Workbook

Sheet Instructions and Version Notes
B2: Software tool for calculating CRI and associated CRI-based colour rendition properties
B4: Version………...: 1.1 (separate unprotected sheet with output data has been added, together with R9 and C9 values)
B5: Release date..: January 2020
B6: Release Notes: This initial version of the calculation tool has implemented the CRI-related equations specified in CIE 13.3:1995 "Method of Measuring and Specifying Colour Rendering Properties of Light Sources" as well as for the Associated CRI-based colour rendition properties as defined in GLA publication "Application of CIE 13.3-1995 with Associated CRI-based Colour Rendition Properties", dd. December 2018.
B7: This tool is copyrighted by the Global Lighting Association (GLA); http://www.globallightingassociation.org/
B8: For questions and feedback, please contact the secretariat of the GLA: bdouglas@lightingcouncil.com.au
B10: Purpose and background information:
B11: This Excel tool can be used for calculating the CIE general Colour Rendering Index (Ra) and the 14 special Colour Rendering Index values (R1-R14) as specified in CIE 13.3-1995.
B12: The tool also calculates a Colour Gamut Index (Ga) based on the same eight CIE 1964 uniform scale coordinates (U*,V*) as used for calculating Ra. Ga represents the change in gamut area for the test source in comparison to the reference illuminant (having the same CCT as the test source). Ga will be less than 100 if the colour gamut of the test source is smaller, or Ga is greater than 100 if the colour gamut of the test source is larger than the colour gamut for the reference illuminant (based on the first eight TCS).
B13: The colour-shift graphic shows the colour shifts for the first eight CRI colours, where the arrows indicate the direction of the colour shift from the reference illuminant. The background colour of the colour-shift graphic roughly indicates the colour of the test-colour samples and their shifts in CIE 1964 (U*-V*) uniform scale diagram.
B14: The tool also provides the Chroma Indices (Ci) and Hue-angle changes (Dhi) for all individual test-colour samples.
B15: - Sheet "Input-Output" shows the results of the calculations. '- Sheet "Unprotected Output" is unprotected and can be used to copy data to another document - Sheet "SPDs" includes some sample spectra and in this sheet the spectra of measured light sources can be entered - Sheet "Additional TCS" includes the spectral radiance factors of the East-Asian Skin complexion, but this one can be replaced with a user defined Test-Colour Sample (wavelength range 360nm-830nm with 1nm increments)
B17: There are 7 cells in sheet "Input-Output", which can be adjusted:
B18: 1) Cell B3: With this cell, one of the example or user-entered SPDs, within the range specified with cells B1 and B2, can be selected from sheet "SPDs", OR enter 0 to process the SPD data entered in cells A10:B480
B19: 2) Cell B4: With this cell, the first SPD in sheet "SPDs" is selected for batch processing (can be any number, but it must be within the range indicated with cells B1 and B2)
B20: 2) Cell B5: With this cell, the last SPD in sheet "SPDs" is selected for batch processing (can be any number, but it must be within the range indicated with cells B1 and B2)
B21: 4) Cell B6: With this cell, the SPDs in the range defined with cells B4 and B5 will be processed and output pdf files will be generated
B22: 5) Cell B7: With this cell, the calculated values, as visible, will be written to a pdf document
B23: 6) Cell B8: With this cell, the TCS numbers can be added or removed from the colour-shift graphic
B24: 7) Cell D6: With this cell, the additional TCS (#15) can be added or removed from the (CRI, Chroma-index, and Hue-angle changes) graphs
B26: A few macros have been implemented to 1) detect a change in the cells 2) automatically copy the SPD data from the "SPDs" sheet to the "Input - Output" sheet 3) automatically calculate the CCT and Duv 4) automatically start the calculations and to store the values to the SPDs sheet 5) automatically adjust the colours and scales of the graphics 6) maintain a correct formatting of the cells for the input data 7) automatically write the output to a pdf file
B27: The program does not work when macros have been disabled!
B29: If macros are disabled, please try:
B30: File --> Options --> Trust Center --> Trust Center Settings --> Macro Settings ==> Select "Disable all macros with notification" --> Press OK
B31: After that, close Excel file and reopen the Excel program again
B33: Last saved by:
B34: Kees Teunissen ; date / time: 2020-01-08 / 10:27:33

Sheet Input - Output
A1: SPD 1 | B1: =SPDs!B6 -> 1 | C1: =_xlfn.CONCAT(" Available WL ranges before SPD#s: ",SPDs!SI10) -> Available WL ranges before SPD#s: 1,6,25,29 | H1: 14 | J1: Yes
A2: SPD n | B2: =SPDs!C6 -> 29 | C2: =IF(B3>0,_xlfn.CONCAT(" Selected WL range (#",TEXT(SPDs!SL6,"#"),"): ",SPDs!K6),"Results will not be copied to the SPDs sheet; Carefully check cells A10:B480") -> Selected WL range (#6): 380 nm - 780 nm, 5 nm WL increments | H2: 15 | J2: No
A3: SPD-select | B3: 21 | C3: SPD-valid? | D3: =IF(AND(SPDs!F6,B488),"Y","N") -> Y | E3: =D484 -> 
A4: SPD-start | B4: 1 | E4: =D485 -> 
A5: SPD-end | B5: 1 | E5: =IF(SPDs!B5,"","No SPD data available!") -> 
A6: Compute SPDs? | B6: No | C6: #TCS: | D6: 14
A7: Print values? | B7: No
A8: Plot numbers? | B8: Yes
A9: wavelength | B9: SPD | E9: Output of GLA Calculation Tool for CIE 13.3 CRI and Associated CRI-based Colour Rendition Properties
A10: 380 | B10: 4.679166451 | E10: Test Source: | F10: Illuminant E (Equi-Energy Illuminant)
A11: 385 | B11: 4.679166451 | E11: Notes: | F11: Normalized to Y=100
A12: 390 | B12: 4.679166451 | E12: Date / Time: | F12: 2020-01-08T10:24:09 | J12: 43838.43344
A13: 395 | B13: 4.679166451
A14: 400 | B14: 4.679166451
A15: 405 | B15: 4.679166451 | E15: Correlated Colour Temperature (Tcp) in K | G15: ='CIE1931 1-nm'!J5 -> 5455 | I15: CIE1931 chromaticity coordinate, x | J15: =ROUND('CIE1931 1-nm'!H5,4) -> 0.3333
A16: 410 | B16: 4.679166451 | E16: Distance to Blackbody Locus (Duv) | G16: ='CIE1931 1-nm'!K5 -> -0.0044 | I16: CIE1931 chromaticity coordinate, y | J16: =ROUND('CIE1931 1-nm'!I5,4) -> 0.3333
A17: 415 | B17: 4.679166451 | E17: General Colour Rendering Index (Ra) | G17: ='CRI-Calculator'!Q27 -> 95 | I17: CIE1976 chromaticity coordinate, u' | J17: =ROUND('CRI-Calculator'!Q14,4) -> 0.2105
A18: 420 | B18: 4.679166451 | E18: Red Rendering Index (R9) | G18: ='CRI-Calculator'!J27 -> 82 | I18: CIE1976 chromaticity coordinate, v' | J18: =ROUND(1.5*'CRI-Calculator'!Q15,4) -> 0.4737
A19: 425 | B19: 4.679166451 | E19: Colour Gamut Index (Ga) | G19: ='CRI-Calculator'!R27 -> 106
A20: 430 | B20: 4.679166451 | E20: Red Chroma Index (C9) | G20: ='CRI-Calculator'!J40 -> 103
A21: 435 | B21: 4.679166451
A22: 440 | B22: 4.679166451
A23: 445 | B23: 4.679166451
A24: 450 | B24: 4.679166451
A25: 455 | B25: 4.679166451
A26: 460 | B26: 4.679166451
A27: 465 | B27: 4.679166451
A28: 470 | B28: 4.679166451
A29: 475 | B29: 4.679166451
A30: 480 | B30: 4.679166451
A31: 485 | B31: 4.679166451
A32: 490 | B32: 4.679166451
A33: 495 | B33: 4.679166451
A34: 500 | B34: 4.679166451
A35: 505 | B35: 4.679166451
A36: 510 | B36: 4.679166451
A37: 515 | B37: 4.679166451
A38: 520 | B38: 4.679166451
A39: 525 | B39: 4.679166451
A40: 530 | B40: 4.679166451
A41: 535 | B41: 4.679166451
A42: 540 | B42: 4.679166451
A43: 545 | B43: 4.679166451 | E43: Two-dimensional Ra-Ga Graphic | I43: Colour-shift graphic
A44: 550 | B44: 4.679166451
A45: 555 | B45: 4.679166451
A46: 560 | B46: 4.679166451
A47: 565 | B47: 4.679166451
A48: 570 | B48: 4.679166451
A49: 575 | B49: 4.679166451
A50: 580 | B50: 4.679166451
A51: 585 | B51: 4.679166451
A52: 590 | B52: 4.679166451
A53: 595 | B53: 4.679166451
A54: 600 | B54: 4.679166451
A55: 605 | B55: 4.679166451
A56: 610 | B56: 4.679166451
A57: 615 | B57: 4.679166451
A58: 620 | B58: 4.679166451
A59: 625 | B59: 4.679166451
A60: 630 | B60: 4.679166451
A61: 635 | B61: 4.679166451
A62: 640 | B62: 4.679166451
A63: 645 | B63: 4.679166451
A64: 650 | B64: 4.679166451
A65: 655 | B65: 4.679166451
A66: 660 | B66: 4.679166451
A67: 665 | B67: 4.679166451
A68: 670 | B68: 4.679166451
A69: 675 | B69: 4.679166451
A70: 680 | B70: 4.679166451
A71: 685 | B71: 4.679166451
A72: 690 | B72: 4.679166451
A73: 695 | B73: 4.679166451
A74: 700 | B74: 4.679166451
A75: 705 | B75: 4.679166451
A76: 710 | B76: 4.679166451
A77: 715 | B77: 4.679166451
A78: 720 | B78: 4.679166451
A79: 725 | B79: 4.679166451
A80: 730 | B80: 4.679166451
A81: 735 | B81: 4.679166451
A82: 740 | B82: 4.679166451
A83: 745 | B83: 4.679166451
A84: 750 | B84: 4.679166451
A85: 755 | B85: 4.679166451
A86: 760 | B86: 4.679166451
A87: 765 | B87: 4.679166451
A88: 770 | B88: 4.679166451
A89: 775 | B89: 4.679166451
A90: 780 | B90: 4.679166451
B91: 0
B92: 0
B93: 0
B94: 0
B95: 0
B96: 0
B97: 0
B98: 0
B99: 0
B100: 0
B101: 0
B102: 0
B103: 0
B104: 0
B105: 0
B106: 0
B107: 0
B108: 0
B109: 0
B110: 0
B111: 0
B112: 0
B113: 0
B114: 0
B115: 0
B116: 0
B117: 0
B118: 0
B119: 0
B120: 0
B121: 0
B122: 0
B123: 0
B124: 0
B125: 0
B126: 0
B127: 0
B128: 0
B129: 0
B130: 0
B131: 0
B132: 0
B133: 0
B134: 0
B135: 0
B136: 0
B137: 0
B138: 0
B139: 0
B140: 0
B141: 0
B142: 0
B143: 0
B144: 0
B145: 0
B146: 0
B147: 0
B148: 0
B149: 0
B150: 0
B151: 0
B152: 0
B153: 0
B154: 0
B155: 0
B156: 0
B157: 0
B158: 0
B159: 0
B160: 0
B161: 0
B162: 0
B163: 0
B164: 0
B165: 0
B166: 0
B167: 0
B168: 0
B169: 0
B170: 0
B171: 0
B172: 0
B173: 0
B174: 0
B175: 0
B176: 0
B177: 0
B178: 0
B179: 0
B180: 0
B181: 0
B182: 0
B183: 0
B184: 0
B185: 0
B186: 0
B187: 0
B188: 0
B189: 0
B190: 0
B191: 0
B192: 0
B193: 0
B194: 0
B195: 0
B196: 0
B197: 0
B198: 0
B199: 0
B200: 0
... 290 more rows

Sheet Unprotected Output
C2: Output of GLA Calculation Tool for CIE 13.3 CRI and Associated CRI-based Colour Rendition Properties
C3: Test Source: | D3: Illuminant E (Equi-Energy Illuminant)
C4: Notes: | D4: Normalized to Y=100
C5: Date / Time: | D5: 2020-01-08T10:24:09 | H5: 43838.43344
C8: Correlated Colour Temperature (Tcp) in K | E8: 5455 | G8: CIE1931 chromaticity coordinate, x | H8: 0.3333
C9: Distance to Blackbody Locus (Duv) | E9: -0.0044 | G9: CIE1931 chromaticity coordinate, y | H9: 0.3333
C10: General Colour Rendering Index (Ra) | E10: 95 | G10: CIE1976 chromaticity coordinate, u' | H10: 0.2105
C11: Red Rendering Index (R9) | E11: 82 | G11: CIE1976 chromaticity coordinate, v' | H11: 0.4737
C12: Colour Gamut Index (Ga) | E12: 106
C13: Red Chroma Index (C9) | E13: 103
C36: Two-dimensional Ra-Ga Graphic | G36: Colour-shift graphic

Sheet SPDs
A1: SDP# | B1: =IF('Input - Output'!B3>0,'Input - Output'!B3,1) -> 21 | D1: 1 | E1: 2 | F1: 3 | G1: 4 | H1: 5 | I1: 6 | J1: 7 | K1: 8 | L1: 9 | M1: 10 | N1: 11 | O1: 12 | P1: 13 | Q1: 14 | R1: 15 | S1: 16 | T1: 17 | U1: 18 | V1: 19 | W1: 20 | X1: 21 | Y1: 22 | Z1: 23 | AA1: 24 | AB1: 25 | AC1: 26 | AD1: 27 | AE1: 28 | AF1: 29 | AG1: 30 | AH1: 31 | AI1: 32 | AJ1: 33 | AK1: 34 | AL1: 35 | AM1: 36 | AN1: 37 | AO1: 38 | AP1: 39 | AQ1: 40 | AR1: 41 | AS1: 42 | AT1: 43 | AU1: 44 | AV1: 45 | AW1: 46 | AX1: 47 | AY1: 48 | AZ1: 49 | BA1: 50 | BB1: 51 | BC1: 52 | BD1: 53 | BE1: 54 | BF1: 55 | BG1: 56 | BH1: 57 | BI1: 58 | BJ1: 59 | BK1: 60 | BL1: 61 | BM1: 62 | BN1: 63 | BO1: 64 | BP1: 65 | BQ1: 66 | BR1: 67 | BS1: 68 | BT1: 69 | BU1: 70 | BV1: 71 | BW1: 72 | BX1: 73 | BY1: 74 | BZ1: 75 | CA1: 76 | CB1: 77 | CC1: 78 | CD1: 79 | CE1: 80 | CF1: 81 | CG1: 82 | CH1: 83 | CI1: 84 | CJ1: 85 | CK1: 86 | CL1: 87 | CM1: 88 | CN1: 89 | CO1: 90 | CP1: 91 | CQ1: 92 | CR1: 93 | CS1: 94 | CT1: 95 | CU1: 96 | CV1: 97 | CW1: 98 | CX1: 99 | CY1: 100 | CZ1: 101 | DA1: 102 | DB1: 103 | DC1: 104 | DD1: 105 | DE1: 106 | DF1: 107 | DG1: 108 | DH1: 109 | DI1: 110 | DJ1: 111 | DK1: 112 | DL1: 113 | DM1: 114 | DN1: 115 | DO1: 116 | DP1: 117 | DQ1: 118 | DR1: 119 | DS1: 120 | DT1: 121 | DU1: 122 | DV1: 123 | DW1: 124 | DX1: 125 | DY1: 126 | DZ1: 127 | EA1: 128 | EB1: 129 | EC1: 130 | ED1: 131 | EE1: 132 | EF1: 133 | EG1: 134 | EH1: 135 | EI1: 136 | EJ1: 137 | EK1: 138 | EL1: 139 | EM1: 140 | EN1: 141 | EO1: 142 | EP1: 143 | EQ1: 144 | ER1: 145 | ES1: 146 | ET1: 147 | EU1: 148 | EV1: 149 | EW1: 150 | EX1: 151 | EY1: 152 | EZ1: 153 | FA1: 154 | FB1: 155 | FC1: 156 | FD1: 157 | FE1: 158 | FF1: 159 | FG1: 160 | FH1: 161 | FI1: 162 | FJ1: 163 | FK1: 164 | FL1: 165 | FM1: 166 | FN1: 167 | FO1: 168 | FP1: 169 | FQ1: 170 | FR1: 171 | FS1: 172 | FT1: 173 | FU1: 174 | FV1: 175 | FW1: 176 | FX1: 177 | FY1: 178 | FZ1: 179 | GA1: 180 | GB1: 181 | GC1: 182 | GD1: 183 | GE1: 184 | GF1: 185 | GG1: 186 | GH1: 187 | GI1: 188 | GJ1: 189 | GK1: 190 | GL1: 191 | GM1: 192 | GN1: 193 | GO1: 194 | GP1: 195 | GQ1: 196 | GR1: 197 | GS1: 198 | GT1: 199 | GU1: 200 | GV1: 201 | GW1: 202 | GX1: 203 | GY1: 204 | GZ1: 205 | HA1: 206 | HB1: 207 | HC1: 208 | HD1: 209 | HE1: 210 | HF1: 211 | HG1: 212 | HH1: 213 | HI1: 214 | HJ1: 215 | HK1: 216 | HL1: 217 | HM1: 218 | HN1: 219 | HO1: 220 | HP1: 221 | HQ1: 222 | HR1: 223 | HS1: 224 | HT1: 225 | HU1: 226 | HV1: 227 | HW1: 228 | HX1: 229 | HY1: 230 | HZ1: 231 | IA1: 232 | IB1: 233 | IC1: 234 | ID1: 235 | IE1: 236 | IF1: 237 | IG1: 238 | IH1: 239 | II1: 240 | IJ1: 241 | IK1: 242 | IL1: 243 | IM1: 244 | IN1: 245 | IO1: 246 | IP1: 247 | IQ1: 248 | IR1: 249 | IS1: 250 | IT1: 251 | IU1: 252 | IV1: 253 | IW1: 254 | IX1: 255 | IY1: 256 | IZ1: 257 | JA1: 258 | JB1: 259 | JC1: 260 | JD1: 261 | JE1: 262 | JF1: 263 | JG1: 264 | JH1: 265 | JI1: 266 | JJ1: 267 | JK1: 268 | JL1: 269 | JM1: 270 | JN1: 271 | JO1: 272 | JP1: 273 | JQ1: 274 | JR1: 275 | JS1: 276 | JT1: 277 | JU1: 278 | JV1: 279 | JW1: 280 | JX1: 281 | JY1: 282 | JZ1: 283 | KA1: 284 | KB1: 285 | KC1: 286 | KD1: 287 | KE1: 288 | KF1: 289 | KG1: 290 | KH1: 291 | KI1: 292 | KJ1: 293 | KK1: 294 | KL1: 295 | KM1: 296 | KN1: 297 | KO1: 298 | KP1: 299 | KQ1: 300 | KR1: 301 | KS1: 302 | KT1: 303 | KU1: 304 | KV1: 305 | KW1: 306 | KX1: 307 | KY1: 308 | KZ1: 309 | LA1: 310 | LB1: 311 | LC1: 312 | LD1: 313 | LE1: 314 | LF1: 315 | LG1: 316 | LH1: 317 | LI1: 318 | LJ1: 319 | LK1: 320 | LL1: 321 | LM1: 322 | LN1: 323 | LO1: 324 | LP1: 325 | LQ1: 326 | LR1: 327 | LS1: 328 | LT1: 329 | LU1: 330 | LV1: 331 | LW1: 332 | LX1: 333 | LY1: 334 | LZ1: 335 | MA1: 336 | MB1: 337 | MC1: 338 | MD1: 339 | ME1: 340 | MF1: 341 | MG1: 342 | MH1: 343 | MI1: 344 | MJ1: 345 | MK1: 346 | ML1: 347 | MM1: 348 | MN1: 349 | MO1: 350 | MP1: 351 | MQ1: 352 | MR1: 353 | MS1: 354 | MT1: 355 | MU1: 356 | MV1: 357 | MW1: 358 | MX1: 359 | MY1: 360 | MZ1: 361 | NA1: 362 | NB1: 363 | NC1: 364 | ND1: 365 | NE1: 366 | NF1: 367 | NG1: 368 | NH1: 369 | NI1: 370 | NJ1: 371 | NK1: 372 | NL1: 373 | NM1: 374 | NN1: 375 | NO1: 376 | NP1: 377 | NQ1: 378 | NR1: 379 | NS1: 380 | NT1: 381 | NU1: 382 | NV1: 383 | NW1: 384 | NX1: 385 | NY1: 386 | NZ1: 387 | OA1: 388 | OB1: 389 | OC1: 390 | OD1: 391 | OE1: 392 | OF1: 393 | OG1: 394 | OH1: 395 | OI1: 396 | OJ1: 397 | OK1: 398 | OL1: 399 | OM1: 400 | ON1: 401 | OO1: 402 | OP1: 403 | OQ1: 404 | OR1: 405 | OS1: 406 | OT1: 407 | OU1: 408 | OV1: 409 | OW1: 410 | OX1: 411 | OY1: 412 | OZ1: 413 | PA1: 414 | PB1: 415 | PC1: 416 | PD1: 417 | PE1: 418 | PF1: 419 | PG1: 420 | PH1: 421 | PI1: 422 | PJ1: 423 | PK1: 424 | PL1: 425 | PM1: 426 | PN1: 427 | PO1: 428 | PP1: 429 | PQ1: 430 | PR1: 431 | PS1: 432 | PT1: 433 | PU1: 434 | PV1: 435 | PW1: 436 | PX1: 437 | PY1: 438 | PZ1: 439 | QA1: 440 | QB1: 441 | QC1: 442 | QD1: 443 | QE1: 444 | QF1: 445 | QG1: 446 | QH1: 447 | QI1: 448 | QJ1: 449 | QK1: 450 | QL1: 451 | QM1: 452 | QN1: 453 | QO1: 454 | QP1: 455 | QQ1: 456 | QR1: 457 | QS1: 458 | QT1: 459 | QU1: 460 | QV1: 461 | QW1: 462 | QX1: 463 | QY1: 464 | QZ1: 465 | RA1: 466 | RB1: 467 | RC1: 468 | RD1: 469 | RE1: 470 | RF1: 471 | RG1: 472 | RH1: 473 | RI1: 474 | RJ1: 475 | RK1: 476 | RL1: 477 | RM1: 478 | RN1: 479 | RO1: 480 | RP1: 481 | RQ1: 482 | RR1: 483 | RS1: 484 | RT1: 485 | RU1: 486 | RV1: 487 | RW1: 488 | RX1: 489 | RY1: 490 | RZ1: 491 | SA1: 492 | SB1: 493 | SC1: 494 | SD1: 495 | SE1: 496 | SF1: 497 | SG1: 498 | SH1: 499 | SI1: 500
A2: WLmin | B2: =MIN(A11:A481) -> 380 | C2: =MIN(C11:C481) -> 360 | D2: =MIN(D11:D481) -> 6.14462 | E2: 46.4182 | F2: 0.9358308541 | G2: 0 | H2: =MIN(H11:H481) -> 380 | I2: 0.27 | J2: 0.81 | K2: 0.09 | L2: 1.8 | M2: 3.46 | N2: 0 | O2: 0 | P2: 1.62 | Q2: 37 | R2: 1.4 | S2: 0.39 | T2: 3.15 | U2: 0.002748895 | V2: 0.002825336 | W2: 33 | X2: 4.679166451 | Y2: 0.0001439673302 | Z2: 0 | AA2: 380 | AB2: 0.0001439673302 | AC2: 0.9358351527 | AD2: 0 | AE2: 380 | AF2: 1 | AG2: 0 | AH2: 0 | AI2: 0 | AJ2: 0 | AK2: 0 | AL2: 0 | AM2: 0 | AN2: 0 | AO2: 0 | AP2: 0 | AQ2: 0 | AR2: 0 | AS2: 0 | AT2: 0 | AU2: 0 | AV2: 0 | AW2: 0 | AX2: 0 | AY2: 0 | AZ2: 0 | BA2: 0 | BB2: 0 | BC2: 0 | BD2: 0 | BE2: 0 | BF2: 0 | BG2: 0 | BH2: 0 | BI2: 0 | BJ2: 0 | BK2: 0 | BL2: 0 | BM2: 0 | BN2: 0 | BO2: 0 | BP2: 0 | BQ2: 0 | BR2: 0 | BS2: 0 | BT2: =MIN(BT11:BT481) -> 0 | BU2: 0 | BV2: 0 | BW2: 0 | BX2: 0 | BY2: 0 | BZ2: 0 | CA2: 0 | CB2: 0 | CC2: 0 | CD2: 0 | CE2: 0 | CF2: 0 | CG2: 0 | CH2: 0 | CI2: 0 | CJ2: 0 | CK2: 0 | CL2: 0 | CM2: 0 | CN2: 0 | CO2: 0 | CP2: 0 | CQ2: 0 | CR2: 0 | CS2: 0 | CT2: 0 | CU2: 0 | CV2: 0 | CW2: 0 | CX2: 0 | CY2: 0 | CZ2: 0 | DA2: 0 | DB2: 0 | DC2: 0 | DD2: 0 | DE2: 0 | DF2: 0 | DG2: 0 | DH2: 0 | DI2: 0 | DJ2: 0 | DK2: 0 | DL2: 0 | DM2: 0 | DN2: 0 | DO2: 0 | DP2: 0 | DQ2: 0 | DR2: 0 | DS2: 0 | DT2: 0 | DU2: 0 | DV2: 0 | DW2: 0 | DX2: 0 | DY2: 0 | DZ2: 0 | EA2: 0 | EB2: 0 | EC2: 0 | ED2: 0 | EE2: 0 | EF2: =MIN(EF11:EF481) -> 0 | EG2: 0 | EH2: 0 | EI2: 0 | EJ2: 0 | EK2: 0 | EL2: 0 | EM2: 0 | EN2: 0 | EO2: 0 | EP2: 0 | EQ2: 0 | ER2: 0 | ES2: 0 | ET2: 0 | EU2: 0 | EV2: 0 | EW2: 0 | EX2: 0 | EY2: 0 | EZ2: 0 | FA2: 0 | FB2: 0 | FC2: 0 | FD2: 0 | FE2: 0 | FF2: 0 | FG2: 0 | FH2: 0 | FI2: 0 | FJ2: 0 | FK2: 0 | FL2: 0 | FM2: 0 | FN2: 0 | FO2: 0 | FP2: 0 | FQ2: 0 | FR2: 0 | FS2: 0 | FT2: 0 | FU2: 0 | FV2: 0 | FW2: 0 | FX2: 0 | FY2: 0 | FZ2: 0 | GA2: 0 | GB2: 0 | GC2: 0 | GD2: 0 | GE2: 0 | GF2: 0 | GG2: 0 | GH2: 0 | GI2: 0 | GJ2: 0 | GK2: 0 | GL2: 0 | GM2: 0 | GN2: 0 | GO2: 0 | GP2: 0 | GQ2: 0 | GR2: =MIN(GR11:GR481) -> 0 | GS2: 0 | GT2: 0 | GU2: 0 | GV2: 0 | GW2: 0 | GX2: 0 | GY2: 0 | GZ2: 0 | HA2: 0 | HB2: 0 | HC2: 0 | HD2: 0 | HE2: 0 | HF2: 0 | HG2: 0 | HH2: 0 | HI2: 0 | HJ2: 0 | HK2: 0 | HL2: 0 | HM2: 0 | HN2: 0 | HO2: 0 | HP2: 0 | HQ2: 0 | HR2: 0 | HS2: 0 | HT2: 0 | HU2: 0 | HV2: 0 | HW2: 0 | HX2: 0 | HY2: 0 | HZ2: 0 | IA2: 0 | IB2: 0 | IC2: 0 | ID2: 0 | IE2: 0 | IF2: 0 | IG2: 0 | IH2: 0 | II2: 0 | IJ2: 0 | IK2: 0 | IL2: 0 | IM2: 0 | IN2: 0 | IO2: 0 | IP2: 0 | IQ2: 0 | IR2: 0 | IS2: 0 | IT2: 0 | IU2: 0 | IV2: 0 | IW2: 0 | IX2: 0 | IY2: 0 | IZ2: 0 | JA2: 0 | JB2: 0 | JC2: 0 | JD2: =MIN(JD11:JD481) -> 0 | JE2: 0 | JF2: 0 | JG2: 0 | JH2: 0 | JI2: 0 | JJ2: 0 | JK2: 0 | JL2: 0 | JM2: 0 | JN2: 0 | JO2: 0 | JP2: 0 | JQ2: 0 | JR2: 0 | JS2: 0 | JT2: 0 | JU2: 0 | JV2: 0 | JW2: 0 | JX2: 0 | JY2: 0 | JZ2: 0 | KA2: 0 | KB2: 0 | KC2: 0 | KD2: 0 | KE2: 0 | KF2: 0 | KG2: 0 | KH2: 0 | KI2: 0 | KJ2: 0 | KK2: 0 | KL2: 0 | KM2: 0 | KN2: 0 | KO2: 0 | KP2: 0 | KQ2: 0 | KR2: 0 | KS2: 0 | KT2: 0 | KU2: 0 | KV2: 0 | KW2: 0 | KX2: 0 | KY2: 0 | KZ2: 0 | LA2: 0 | LB2: 0 | LC2: 0 | LD2: 0 | LE2: 0 | LF2: 0 | LG2: 0 | LH2: 0 | LI2: 0 | LJ2: 0 | LK2: 0 | LL2: 0 | LM2: 0 | LN2: 0 | LO2: 0 | LP2: =MIN(LP11:LP481) -> 0 | LQ2: 0 | LR2: 0 | LS2: 0 | LT2: 0 | LU2: 0 | LV2: 0 | LW2: 0 | LX2: 0 | LY2: 0 | LZ2: 0 | MA2: 0 | MB2: 0 | MC2: 0 | MD2: 0 | ME2: 0 | MF2: 0 | MG2: 0 | MH2: 0 | MI2: 0 | MJ2: 0 | MK2: 0 | ML2: 0 | MM2: 0 | MN2: 0 | MO2: 0 | MP2: 0 | MQ2: 0 | MR2: 0 | MS2: 0 | MT2: 0 | MU2: 0 | MV2: 0 | MW2: 0 | MX2: 0 | MY2: 0 | MZ2: 0 | NA2: 0 | NB2: 0 | NC2: 0 | ND2: 0 | NE2: 0 | NF2: 0 | NG2: 0 | NH2: 0 | NI2: 0 | NJ2: 0 | NK2: 0 | NL2: 0 | NM2: 0 | NN2: 0 | NO2: 0 | NP2: 0 | NQ2: 0 | NR2: 0 | NS2: 0 | NT2: 0 | NU2: 0 | NV2: 0 | NW2: 0 | NX2: 0 | NY2: 0 | NZ2: 0 | OA2: 0 | OB2: =MIN(OB11:OB481) -> 0 | OC2: 0 | OD2: 0 | OE2: 0 | OF2: 0 | OG2: 0 | OH2: 0 | OI2: 0 | OJ2: 0 | OK2: 0 | OL2: 0 | OM2: 0 | ON2: 0 | OO2: 0 | OP2: 0 | OQ2: 0 | OR2: 0 | OS2: 0 | OT2: 0 | OU2: 0 | OV2: 0 | OW2: 0 | OX2: 0 | OY2: 0 | OZ2: 0 | PA2: 0 | PB2: 0 | PC2: 0 | PD2: 0 | PE2: 0 | PF2: 0 | PG2: 0 | PH2: 0 | PI2: 0 | PJ2: 0 | PK2: 0 | PL2: 0 | PM2: 0 | PN2: 0 | PO2: 0 | PP2: 0 | PQ2: 0 | PR2: 0 | PS2: 0 | PT2: 0 | PU2: 0 | PV2: 0 | PW2: 0 | PX2: 0 | PY2: 0 | PZ2: 0 | QA2: 0 | QB2: 0 | QC2: 0 | QD2: 0 | QE2: 0 | QF2: 0 | QG2: 0 | QH2: 0 | QI2: 0 | QJ2: 0 | QK2: 0 | QL2: 0 | QM2: 0 | QN2: =MIN(QN11:QN481) -> 0 | QO2: 0 | QP2: 0 | QQ2: 0 | QR2: 0 | QS2: 0 | QT2: 0 | QU2: 0 | QV2: 0 | QW2: 0 | QX2: 0 | QY2: 0 | QZ2: 0 | RA2: 0 | RB2: 0 | RC2: 0 | RD2: 0 | RE2: 0 | RF2: 0 | RG2: 0 | RH2: 0 | RI2: 0 | RJ2: 0 | RK2: 0 | RL2: 0 | RM2: 0 | RN2: 0 | RO2: 0 | RP2: 0 | RQ2: 0 | RR2: 0 | RS2: 0 | RT2: 0 | RU2: 0 | RV2: 0 | RW2: 0 | RX2: 0 | RY2: 0 | RZ2: 0 | SA2: 0 | SB2: 0 | SC2: 0 | SD2: 0 | SE2: 0 | SF2: 0 | SG2: 0 | SH2: 0 | SI2: =MIN(SI11:SI481) -> 0
A3: WLmax | B3: =MAX(A11:A481) -> 780 | C3: =MAX(C11:C481) -> 830 | D3: =MAX(D11:D481) -> 261.602 | E3: 117.812 | F3: 0.9358308541 | G3: 0 | H3: =MAX(H11:H481) -> 780 | I3: 34.98 | J3: 44.14 | K3: 72.84 | L3: 262.66 | M3: 192.77 | N3: 427.27 | O3: 100 | P3: 183.53 | Q3: 1417 | R3: 334.84 | S3: 166.12 | T3: 175.18 | U3: 20.99695035 | V3: 32.34186396 | W3: 124.09 | X3: 4.679166451 | Y3: 0.999710445 | Z3: 0 | AA3: 780 | AB3: 1 | AC3: 0.9358351527 | AD3: 0 | AE3: 780 | AF3: 1 | AG3: 0 | AH3: 0 | AI3: 0 | AJ3: 0 | AK3: 0 | AL3: 0 | AM3: 0 | AN3: 0 | AO3: 0 | AP3: 0 | AQ3: 0 | AR3: 0 | AS3: 0 | AT3: 0 | AU3: 0 | AV3: 0 | AW3: 0 | AX3: 0 | AY3: 0 | AZ3: 0 | BA3: 0 | BB3: 0 | BC3: 0 | BD3: 0 | BE3: 0 | BF3: 0 | BG3: 0 | BH3: 0 | BI3: 0 | BJ3: 0 | BK3: 0 | BL3: 0 | BM3: 0 | BN3: 0 | BO3: 0 | BP3: 0 | BQ3: 0 | BR3: 0 | BS3: 0 | BT3: =MAX(BT11:BT481) -> 0 | BU3: 0 | BV3: 0 | BW3: 0 | BX3: 0 | BY3: 0 | BZ3: 0 | CA3: 0 | CB3: 0 | CC3: 0 | CD3: 0 | CE3: 0 | CF3: 0 | CG3: 0 | CH3: 0 | CI3: 0 | CJ3: 0 | CK3: 0 | CL3: 0 | CM3: 0 | CN3: 0 | CO3: 0 | CP3: 0 | CQ3: 0 | CR3: 0 | CS3: 0 | CT3: 0 | CU3: 0 | CV3: 0 | CW3: 0 | CX3: 0 | CY3: 0 | CZ3: 0 | DA3: 0 | DB3: 0 | DC3: 0 | DD3: 0 | DE3: 0 | DF3: 0 | DG3: 0 | DH3: 0 | DI3: 0 | DJ3: 0 | DK3: 0 | DL3: 0 | DM3: 0 | DN3: 0 | DO3: 0 | DP3: 0 | DQ3: 0 | DR3: 0 | DS3: 0 | DT3: 0 | DU3: 0 | DV3: 0 | DW3: 0 | DX3: 0 | DY3: 0 | DZ3: 0 | EA3: 0 | EB3: 0 | EC3: 0 | ED3: 0 | EE3: 0 | EF3: =MAX(EF11:EF481) -> 0 | EG3: 0 | EH3: 0 | EI3: 0 | EJ3: 0 | EK3: 0 | EL3: 0 | EM3: 0 | EN3: 0 | EO3: 0 | EP3: 0 | EQ3: 0 | ER3: 0 | ES3: 0 | ET3: 0 | EU3: 0 | EV3: 0 | EW3: 0 | EX3: 0 | EY3: 0 | EZ3: 0 | FA3: 0 | FB3: 0 | FC3: 0 | FD3: 0 | FE3: 0 | FF3: 0 | FG3: 0 | FH3: 0 | FI3: 0 | FJ3: 0 | FK3: 0 | FL3: 0 | FM3: 0 | FN3: 0 | FO3: 0 | FP3: 0 | FQ3: 0 | FR3: 0 | FS3: 0 | FT3: 0 | FU3: 0 | FV3: 0 | FW3: 0 | FX3: 0 | FY3: 0 | FZ3: 0 | GA3: 0 | GB3: 0 | GC3: 0 | GD3: 0 | GE3: 0 | GF3: 0 | GG3: 0 | GH3: 0 | GI3: 0 | GJ3: 0 | GK3: 0 | GL3: 0 | GM3: 0 | GN3: 0 | GO3: 0 | GP3: 0 | GQ3: 0 | GR3: =MAX(GR11:GR481) -> 0 | GS3: 0 | GT3: 0 | GU3: 0 | GV3: 0 | GW3: 0 | GX3: 0 | GY3: 0 | GZ3: 0 | HA3: 0 | HB3: 0 | HC3: 0 | HD3: 0 | HE3: 0 | HF3: 0 | HG3: 0 | HH3: 0 | HI3: 0 | HJ3: 0 | HK3: 0 | HL3: 0 | HM3: 0 | HN3: 0 | HO3: 0 | HP3: 0 | HQ3: 0 | HR3: 0 | HS3: 0 | HT3: 0 | HU3: 0 | HV3: 0 | HW3: 0 | HX3: 0 | HY3: 0 | HZ3: 0 | IA3: 0 | IB3: 0 | IC3: 0 | ID3: 0 | IE3: 0 | IF3: 0 | IG3: 0 | IH3: 0 | II3: 0 | IJ3: 0 | IK3: 0 | IL3: 0 | IM3: 0 | IN3: 0 | IO3: 0 | IP3: 0 | IQ3: 0 | IR3: 0 | IS3: 0 | IT3: 0 | IU3: 0 | IV3: 0 | IW3: 0 | IX3: 0 | IY3: 0 | IZ3: 0 | JA3: 0 | JB3: 0 | JC3: 0 | JD3: =MAX(JD11:JD481) -> 0 | JE3: 0 | JF3: 0 | JG3: 0 | JH3: 0 | JI3: 0 | JJ3: 0 | JK3: 0 | JL3: 0 | JM3: 0 | JN3: 0 | JO3: 0 | JP3: 0 | JQ3: 0 | JR3: 0 | JS3: 0 | JT3: 0 | JU3: 0 | JV3: 0 | JW3: 0 | JX3: 0 | JY3: 0 | JZ3: 0 | KA3: 0 | KB3: 0 | KC3: 0 | KD3: 0 | KE3: 0 | KF3: 0 | KG3: 0 | KH3: 0 | KI3: 0 | KJ3: 0 | KK3: 0 | KL3: 0 | KM3: 0 | KN3: 0 | KO3: 0 | KP3: 0 | KQ3: 0 | KR3: 0 | KS3: 0 | KT3: 0 | KU3: 0 | KV3: 0 | KW3: 0 | KX3: 0 | KY3: 0 | KZ3: 0 | LA3: 0 | LB3: 0 | LC3: 0 | LD3: 0 | LE3: 0 | LF3: 0 | LG3: 0 | LH3: 0 | LI3: 0 | LJ3: 0 | LK3: 0 | LL3: 0 | LM3: 0 | LN3: 0 | LO3: 0 | LP3: =MAX(LP11:LP481) -> 0 | LQ3: 0 | LR3: 0 | LS3: 0 | LT3: 0 | LU3: 0 | LV3: 0 | LW3: 0 | LX3: 0 | LY3: 0 | LZ3: 0 | MA3: 0 | MB3: 0 | MC3: 0 | MD3: 0 | ME3: 0 | MF3: 0 | MG3: 0 | MH3: 0 | MI3: 0 | MJ3: 0 | MK3: 0 | ML3: 0 | MM3: 0 | MN3: 0 | MO3: 0 | MP3: 0 | MQ3: 0 | MR3: 0 | MS3: 0 | MT3: 0 | MU3: 0 | MV3: 0 | MW3: 0 | MX3: 0 | MY3: 0 | MZ3: 0 | NA3: 0 | NB3: 0 | NC3: 0 | ND3: 0 | NE3: 0 | NF3: 0 | NG3: 0 | NH3: 0 | NI3: 0 | NJ3: 0 | NK3: 0 | NL3: 0 | NM3: 0 | NN3: 0 | NO3: 0 | NP3: 0 | NQ3: 0 | NR3: 0 | NS3: 0 | NT3: 0 | NU3: 0 | NV3: 0 | NW3: 0 | NX3: 0 | NY3: 0 | NZ3: 0 | OA3: 0 | OB3: =MAX(OB11:OB481) -> 0 | OC3: 0 | OD3: 0 | OE3: 0 | OF3: 0 | OG3: 0 | OH3: 0 | OI3: 0 | OJ3: 0 | OK3: 0 | OL3: 0 | OM3: 0 | ON3: 0 | OO3: 0 | OP3: 0 | OQ3: 0 | OR3: 0 | OS3: 0 | OT3: 0 | OU3: 0 | OV3: 0 | OW3: 0 | OX3: 0 | OY3: 0 | OZ3: 0 | PA3: 0 | PB3: 0 | PC3: 0 | PD3: 0 | PE3: 0 | PF3: 0 | PG3: 0 | PH3: 0 | PI3: 0 | PJ3: 0 | PK3: 0 | PL3: 0 | PM3: 0 | PN3: 0 | PO3: 0 | PP3: 0 | PQ3: 0 | PR3: 0 | PS3: 0 | PT3: 0 | PU3: 0 | PV3: 0 | PW3: 0 | PX3: 0 | PY3: 0 | PZ3: 0 | QA3: 0 | QB3: 0 | QC3: 0 | QD3: 0 | QE3: 0 | QF3: 0 | QG3: 0 | QH3: 0 | QI3: 0 | QJ3: 0 | QK3: 0 | QL3: 0 | QM3: 0 | QN3: =MAX(QN11:QN481) -> 0 | QO3: 0 | QP3: 0 | QQ3: 0 | QR3: 0 | QS3: 0 | QT3: 0 | QU3: 0 | QV3: 0 | QW3: 0 | QX3: 0 | QY3: 0 | QZ3: 0 | RA3: 0 | RB3: 0 | RC3: 0 | RD3: 0 | RE3: 0 | RF3: 0 | RG3: 0 | RH3: 0 | RI3: 0 | RJ3: 0 | RK3: 0 | RL3: 0 | RM3: 0 | RN3: 0 | RO3: 0 | RP3: 0 | RQ3: 0 | RR3: 0 | RS3: 0 | RT3: 0 | RU3: 0 | RV3: 0 | RW3: 0 | RX3: 0 | RY3: 0 | RZ3: 0 | SA3: 0 | SB3: 0 | SC3: 0 | SD3: 0 | SE3: 0 | SF3: 0 | SG3: 0 | SH3: 0 | SI3: =MAX(SI11:SI481) -> 0
A4: WL# | B4: =SL6 -> 6 | C4: =IF(OR(AND(C2=0,C3=0),C10<>""),0,1) -> 0 | D4: =IF(OR(AND(D2=0,D3=0),D10<>C10),0,1) -> 1 | E4: =IF(OR(AND(E2=0,E3=0),E10<>D10),0,1) -> 1 | F4: 1 | G4: 0 | H4: 0 | I4: 1 | J4: =IF(OR(AND(J2=0,J3=0),J10<>I10),0,1) -> 1 | K4: =IF(OR(AND(K2=0,K3=0),K10<>J10),0,1) -> 1 | L4: =IF(OR(AND(L2=0,L3=0),L10<>K10),0,1) -> 1 | M4: =IF(OR(AND(M2=0,M3=0),M10<>L10),0,1) -> 1 | N4: 1 | O4: =IF(OR(AND(O2=0,O3=0),O10<>N10),0,1) -> 1 | P4: =IF(OR(AND(P2=0,P3=0),P10<>O10),0,1) -> 1 | Q4: =IF(OR(AND(Q2=0,Q3=0),Q10<>P10),0,1) -> 1 | R4: =IF(OR(AND(R2=0,R3=0),R10<>Q10),0,1) -> 1 | S4: 1 | T4: =IF(OR(AND(T2=0,T3=0),T10<>S10),0,1) -> 1 | U4: =IF(OR(AND(U2=0,U3=0),U10<>T10),0,1) -> 1 | V4: =IF(OR(AND(V2=0,V3=0),V10<>U10),0,1) -> 1 | W4: =IF(OR(AND(W2=0,W3=0),W10<>V10),0,1) -> 1 | X4: 1 | Y4: =IF(OR(AND(Y2=0,Y3=0),Y10<>X10),0,1) -> 1 | Z4: =IF(OR(AND(Z2=0,Z3=0),Z10<>Y10),0,1) -> 0 | AA4: =IF(OR(AND(AA2=0,AA3=0),AA10<>Z10),0,1) -> 0 | AB4: =IF(OR(AND(AB2=0,AB3=0),AB10<>AA10),0,1) -> 1 | AC4: 1 | AD4: =IF(OR(AND(AD2=0,AD3=0),AD10<>AC10),0,1) -> 0 | AE4: =IF(OR(AND(AE2=0,AE3=0),AE10<>AD10),0,1) -> 0 | AF4: =IF(OR(AND(AF2=0,AF3=0),AF10<>AE10),0,1) -> 1 | AG4: =IF(OR(AND(AG2=0,AG3=0),AG10<>AF10),0,1) -> 0 | AH4: 0 | AI4: =IF(OR(AND(AI2=0,AI3=0),AI10<>AH10),0,1) -> 0 | AJ4: =IF(OR(AND(AJ2=0,AJ3=0),AJ10<>AI10),0,1) -> 0 | AK4: =IF(OR(AND(AK2=0,AK3=0),AK10<>AJ10),0,1) -> 0 | AL4: =IF(OR(AND(AL2=0,AL3=0),AL10<>AK10),0,1) -> 0 | AM4: 0 | AN4: =IF(OR(AND(AN2=0,AN3=0),AN10<>AM10),0,1) -> 0 | AO4: =IF(OR(AND(AO2=0,AO3=0),AO10<>AN10),0,1) -> 0 | AP4: =IF(OR(AND(AP2=0,AP3=0),AP10<>AO10),0,1) -> 0 | AQ4: =IF(OR(AND(AQ2=0,AQ3=0),AQ10<>AP10),0,1) -> 0 | AR4: 0 | AS4: =IF(OR(AND(AS2=0,AS3=0),AS10<>AR10),0,1) -> 0 | AT4: =IF(OR(AND(AT2=0,AT3=0),AT10<>AS10),0,1) -> 0 | AU4: =IF(OR(AND(AU2=0,AU3=0),AU10<>AT10),0,1) -> 0 | AV4: =IF(OR(AND(AV2=0,AV3=0),AV10<>AU10),0,1) -> 0 | AW4: 0 | AX4: =IF(OR(AND(AX2=0,AX3=0),AX10<>AW10),0,1) -> 0 | AY4: =IF(OR(AND(AY2=0,AY3=0),AY10<>AX10),0,1) -> 0 | AZ4: =IF(OR(AND(AZ2=0,AZ3=0),AZ10<>AY10),0,1) -> 0 | BA4: =IF(OR(AND(BA2=0,BA3=0),BA10<>AZ10),0,1) -> 0 | BB4: 0 | BC4: =IF(OR(AND(BC2=0,BC3=0),BC10<>BB10),0,1) -> 0 | BD4: =IF(OR(AND(BD2=0,BD3=0),BD10<>BC10),0,1) -> 0 | BE4: =IF(OR(AND(BE2=0,BE3=0),BE10<>BD10),0,1) -> 0 | BF4: =IF(OR(AND(BF2=0,BF3=0),BF10<>BE10),0,1) -> 0 | BG4: 0 | BH4: =IF(OR(AND(BH2=0,BH3=0),BH10<>BG10),0,1) -> 0 | BI4: =IF(OR(AND(BI2=0,BI3=0),BI10<>BH10),0,1) -> 0 | BJ4: =IF(OR(AND(BJ2=0,BJ3=0),BJ10<>BI10),0,1) -> 0 | BK4: =IF(OR(AND(BK2=0,BK3=0),BK10<>BJ10),0,1) -> 0 | BL4: 0 | BM4: =IF(OR(AND(BM2=0,BM3=0),BM10<>BL10),0,1) -> 0 | BN4: =IF(OR(AND(BN2=0,BN3=0),BN10<>BM10),0,1) -> 0 | BO4: =IF(OR(AND(BO2=0,BO3=0),BO10<>BN10),0,1) -> 0 | BP4: =IF(OR(AND(BP2=0,BP3=0),BP10<>BO10),0,1) -> 0 | BQ4: 0 | BR4: =IF(OR(AND(BR2=0,BR3=0),BR10<>BQ10),0,1) -> 0 | BS4: =IF(OR(AND(BS2=0,BS3=0),BS10<>BR10),0,1) -> 0 | BT4: =IF(OR(AND(BT2=0,BT3=0),BT10<>BS10),0,1) -> 0 | BU4: =IF(OR(AND(BU2=0,BU3=0),BU10<>BT10),0,1) -> 0 | BV4: 0 | BW4: =IF(OR(AND(BW2=0,BW3=0),BW10<>BV10),0,1) -> 0 | BX4: =IF(OR(AND(BX2=0,BX3=0),BX10<>BW10),0,1) -> 0 | BY4: =IF(OR(AND(BY2=0,BY3=0),BY10<>BX10),0,1) -> 0 | BZ4: =IF(OR(AND(BZ2=0,BZ3=0),BZ10<>BY10),0,1) -> 0 | CA4: 0 | CB4: =IF(OR(AND(CB2=0,CB3=0),CB10<>CA10),0,1) -> 0 | CC4: =IF(OR(AND(CC2=0,CC3=0),CC10<>CB10),0,1) -> 0 | CD4: =IF(OR(AND(CD2=0,CD3=0),CD10<>CC10),0,1) -> 0 | CE4: =IF(OR(AND(CE2=0,CE3=0),CE10<>CD10),0,1) -> 0 | CF4: 0 | CG4: =IF(OR(AND(CG2=0,CG3=0),CG10<>CF10),0,1) -> 0 | CH4: =IF(OR(AND(CH2=0,CH3=0),CH10<>CG10),0,1) -> 0 | CI4: =IF(OR(AND(CI2=0,CI3=0),CI10<>CH10),0,1) -> 0 | CJ4: =IF(OR(AND(CJ2=0,CJ3=0),CJ10<>CI10),0,1) -> 0 | CK4: 0 | CL4: =IF(OR(AND(CL2=0,CL3=0),CL10<>CK10),0,1) -> 0 | CM4: =IF(OR(AND(CM2=0,CM3=0),CM10<>CL10),0,1) -> 0 | CN4: =IF(OR(AND(CN2=0,CN3=0),CN10<>CM10),0,1) -> 0 | CO4: =IF(OR(AND(CO2=0,CO3=0),CO10<>CN10),0,1) -> 0 | CP4: 0 | CQ4: =IF(OR(AND(CQ2=0,CQ3=0),CQ10<>CP10),0,1) -> 0 | CR4: =IF(OR(AND(CR2=0,CR3=0),CR10<>CQ10),0,1) -> 0 | CS4: =IF(OR(AND(CS2=0,CS3=0),CS10<>CR10),0,1) -> 0 | CT4: =IF(OR(AND(CT2=0,CT3=0),CT10<>CS10),0,1) -> 0 | CU4: 0 | CV4: =IF(OR(AND(CV2=0,CV3=0),CV10<>CU10),0,1) -> 0 | CW4: =IF(OR(AND(CW2=0,CW3=0),CW10<>CV10),0,1) -> 0 | CX4: =IF(OR(AND(CX2=0,CX3=0),CX10<>CW10),0,1) -> 0 | CY4: =IF(OR(AND(CY2=0,CY3=0),CY10<>CX10),0,1) -> 0 | CZ4: 0 | DA4: =IF(OR(AND(DA2=0,DA3=0),DA10<>CZ10),0,1) -> 0 | DB4: =IF(OR(AND(DB2=0,DB3=0),DB10<>DA10),0,1) -> 0 | DC4: =IF(OR(AND(DC2=0,DC3=0),DC10<>DB10),0,1) -> 0 | DD4: =IF(OR(AND(DD2=0,DD3=0),DD10<>DC10),0,1) -> 0 | DE4: 0 | DF4: =IF(OR(AND(DF2=0,DF3=0),DF10<>DE10),0,1) -> 0 | DG4: =IF(OR(AND(DG2=0,DG3=0),DG10<>DF10),0,1) -> 0 | DH4: =IF(OR(AND(DH2=0,DH3=0),DH10<>DG10),0,1) -> 0 | DI4: =IF(OR(AND(DI2=0,DI3=0),DI10<>DH10),0,1) -> 0 | DJ4: 0 | DK4: =IF(OR(AND(DK2=0,DK3=0),DK10<>DJ10),0,1) -> 0 | DL4: =IF(OR(AND(DL2=0,DL3=0),DL10<>DK10),0,1) -> 0 | DM4: =IF(OR(AND(DM2=0,DM3=0),DM10<>DL10),0,1) -> 0 | DN4: =IF(OR(AND(DN2=0,DN3=0),DN10<>DM10),0,1) -> 0 | DO4: 0 | DP4: =IF(OR(AND(DP2=0,DP3=0),DP10<>DO10),0,1) -> 0 | DQ4: =IF(OR(AND(DQ2=0,DQ3=0),DQ10<>DP10),0,1) -> 0 | DR4: =IF(OR(AND(DR2=0,DR3=0),DR10<>DQ10),0,1) -> 0 | DS4: =IF(OR(AND(DS2=0,DS3=0),DS10<>DR10),0,1) -> 0 | DT4: 0 | DU4: =IF(OR(AND(DU2=0,DU3=0),DU10<>DT10),0,1) -> 0 | DV4: =IF(OR(AND(DV2=0,DV3=0),DV10<>DU10),0,1) -> 0 | DW4: =IF(OR(AND(DW2=0,DW3=0),DW10<>DV10),0,1) -> 0 | DX4: =IF(OR(AND(DX2=0,DX3=0),DX10<>DW10),0,1) -> 0 | DY4: 0 | DZ4: =IF(OR(AND(DZ2=0,DZ3=0),DZ10<>DY10),0,1) -> 0 | EA4: =IF(OR(AND(EA2=0,EA3=0),EA10<>DZ10),0,1) -> 0 | EB4: =IF(OR(AND(EB2=0,EB3=0),EB10<>EA10),0,1) -> 0 | EC4: =IF(OR(AND(EC2=0,EC3=0),EC10<>EB10),0,1) -> 0 | ED4: 0 | EE4: =IF(OR(AND(EE2=0,EE3=0),EE10<>ED10),0,1) -> 0 | EF4: =IF(OR(AND(EF2=0,EF3=0),EF10<>EE10),0,1) -> 0 | EG4: =IF(OR(AND(EG2=0,EG3=0),EG10<>EF10),0,1) -> 0 | EH4: =IF(OR(AND(EH2=0,EH3=0),EH10<>EG10),0,1) -> 0 | EI4: 0 | EJ4: =IF(OR(AND(EJ2=0,EJ3=0),EJ10<>EI10),0,1) -> 0 | EK4: =IF(OR(AND(EK2=0,EK3=0),EK10<>EJ10),0,1) -> 0 | EL4: =IF(OR(AND(EL2=0,EL3=0),EL10<>EK10),0,1) -> 0 | EM4: =IF(OR(AND(EM2=0,EM3=0),EM10<>EL10),0,1) -> 0 | EN4: 0 | EO4: =IF(OR(AND(EO2=0,EO3=0),EO10<>EN10),0,1) -> 0 | EP4: =IF(OR(AND(EP2=0,EP3=0),EP10<>EO10),0,1) -> 0 | EQ4: =IF(OR(AND(EQ2=0,EQ3=0),EQ10<>EP10),0,1) -> 0 | ER4: =IF(OR(AND(ER2=0,ER3=0),ER10<>EQ10),0,1) -> 0 | ES4: 0 | ET4: =IF(OR(AND(ET2=0,ET3=0),ET10<>ES10),0,1) -> 0 | EU4: =IF(OR(AND(EU2=0,EU3=0),EU10<>ET10),0,1) -> 0 | EV4: =IF(OR(AND(EV2=0,EV3=0),EV10<>EU10),0,1) -> 0 | EW4: =IF(OR(AND(EW2=0,EW3=0),EW10<>EV10),0,1) -> 0 | EX4: 0 | EY4: =IF(OR(AND(EY2=0,EY3=0),EY10<>EX10),0,1) -> 0 | EZ4: =IF(OR(AND(EZ2=0,EZ3=0),EZ10<>EY10),0,1) -> 0 | FA4: =IF(OR(AND(FA2=0,FA3=0),FA10<>EZ10),0,1) -> 0 | FB4: =IF(OR(AND(FB2=0,FB3=0),FB10<>FA10),0,1) -> 0 | FC4: 0 | FD4: =IF(OR(AND(FD2=0,FD3=0),FD10<>FC10),0,1) -> 0 | FE4: =IF(OR(AND(FE2=0,FE3=0),FE10<>FD10),0,1) -> 0 | FF4: =IF(OR(AND(FF2=0,FF3=0),FF10<>FE10),0,1) -> 0 | FG4: =IF(OR(AND(FG2=0,FG3=0),FG10<>FF10),0,1) -> 0 | FH4: 0 | FI4: =IF(OR(AND(FI2=0,FI3=0),FI10<>FH10),0,1) -> 0 | FJ4: =IF(OR(AND(FJ2=0,FJ3=0),FJ10<>FI10),0,1) -> 0 | FK4: =IF(OR(AND(FK2=0,FK3=0),FK10<>FJ10),0,1) -> 0 | FL4: =IF(OR(AND(FL2=0,FL3=0),FL10<>FK10),0,1) -> 0 | FM4: 0 | FN4: =IF(OR(AND(FN2=0,FN3=0),FN10<>FM10),0,1) -> 0 | FO4: =IF(OR(AND(FO2=0,FO3=0),FO10<>FN10),0,1) -> 0 | FP4: =IF(OR(AND(FP2=0,FP3=0),FP10<>FO10),0,1) -> 0 | FQ4: =IF(OR(AND(FQ2=0,FQ3=0),FQ10<>FP10),0,1) -> 0 | FR4: 0 | FS4: =IF(OR(AND(FS2=0,FS3=0),FS10<>FR10),0,1) -> 0 | FT4: =IF(OR(AND(FT2=0,FT3=0),FT10<>FS10),0,1) -> 0 | FU4: =IF(OR(AND(FU2=0,FU3=0),FU10<>FT10),0,1) -> 0 | FV4: =IF(OR(AND(FV2=0,FV3=0),FV10<>FU10),0,1) -> 0 | FW4: 0 | FX4: =IF(OR(AND(FX2=0,FX3=0),FX10<>FW10),0,1) -> 0 | FY4: =IF(OR(AND(FY2=0,FY3=0),FY10<>FX10),0,1) -> 0 | FZ4: =IF(OR(AND(FZ2=0,FZ3=0),FZ10<>FY10),0,1) -> 0 | GA4: =IF(OR(AND(GA2=0,GA3=0),GA10<>FZ10),0,1) -> 0 | GB4: 0 | GC4: =IF(OR(AND(GC2=0,GC3=0),GC10<>GB10),0,1) -> 0 | GD4: =IF(OR(AND(GD2=0,GD3=0),GD10<>GC10),0,1) -> 0 | GE4: =IF(OR(AND(GE2=0,GE3=0),GE10<>GD10),0,1) -> 0 | GF4: =IF(OR(AND(GF2=0,GF3=0),GF10<>GE10),0,1) -> 0 | GG4: 0 | GH4: =IF(OR(AND(GH2=0,GH3=0),GH10<>GG10),0,1) -> 0 | GI4: =IF(OR(AND(GI2=0,GI3=0),GI10<>GH10),0,1) -> 0 | GJ4: =IF(OR(AND(GJ2=0,GJ3=0),GJ10<>GI10),0,1) -> 0 | GK4: =IF(OR(AND(GK2=0,GK3=0),GK10<>GJ10),0,1) -> 0 | GL4: 0 | GM4: =IF(OR(AND(GM2=0,GM3=0),GM10<>GL10),0,1) -> 0 | GN4: =IF(OR(AND(GN2=0,GN3=0),GN10<>GM10),0,1) -> 0 | GO4: =IF(OR(AND(GO2=0,GO3=0),GO10<>GN10),0,1) -> 0 | GP4: =IF(OR(AND(GP2=0,GP3=0),GP10<>GO10),0,1) -> 0 | GQ4: 0 | GR4: =IF(OR(AND(GR2=0,GR3=0),GR10<>GQ10),0,1) -> 0 | GS4: =IF(OR(AND(GS2=0,GS3=0),GS10<>GR10),0,1) -> 0 | GT4: =IF(OR(AND(GT2=0,GT3=0),GT10<>GS10),0,1) -> 0 | GU4: =IF(OR(AND(GU2=0,GU3=0),GU10<>GT10),0,1) -> 0 | GV4: 0 | GW4: =IF(OR(AND(GW2=0,GW3=0),GW10<>GV10),0,1) -> 0 | GX4: =IF(OR(AND(GX2=0,GX3=0),GX10<>GW10),0,1) -> 0 | GY4: =IF(OR(AND(GY2=0,GY3=0),GY10<>GX10),0,1) -> 0 | GZ4: =IF(OR(AND(GZ2=0,GZ3=0),GZ10<>GY10),0,1) -> 0 | HA4: 0 | HB4: =IF(OR(AND(HB2=0,HB3=0),HB10<>HA10),0,1) -> 0 | HC4: =IF(OR(AND(HC2=0,HC3=0),HC10<>HB10),0,1) -> 0 | HD4: =IF(OR(AND(HD2=0,HD3=0),HD10<>HC10),0,1) -> 0 | HE4: =IF(OR(AND(HE2=0,HE3=0),HE10<>HD10),0,1) -> 0 | HF4: 0 | HG4: =IF(OR(AND(HG2=0,HG3=0),HG10<>HF10),0,1) -> 0 | HH4: =IF(OR(AND(HH2=0,HH3=0),HH10<>HG10),0,1) -> 0 | HI4: =IF(OR(AND(HI2=0,HI3=0),HI10<>HH10),0,1) -> 0 | HJ4: =IF(OR(AND(HJ2=0,HJ3=0),HJ10<>HI10),0,1) -> 0 | HK4: 0 | HL4: =IF(OR(AND(HL2=0,HL3=0),HL10<>HK10),0,1) -> 0 | HM4: =IF(OR(AND(HM2=0,HM3=0),HM10<>HL10),0,1) -> 0 | HN4: =IF(OR(AND(HN2=0,HN3=0),HN10<>HM10),0,1) -> 0 | HO4: =IF(OR(AND(HO2=0,HO3=0),HO10<>HN10),0,1) -> 0 | HP4: 0 | HQ4: =IF(OR(AND(HQ2=0,HQ3=0),HQ10<>HP10),0,1) -> 0 | HR4: =IF(OR(AND(HR2=0,HR3=0),HR10<>HQ10),0,1) -> 0 | HS4: =IF(OR(AND(HS2=0,HS3=0),HS10<>HR10),0,1) -> 0 | HT4: =IF(OR(AND(HT2=0,HT3=0),HT10<>HS10),0,1) -> 0 | HU4: 0 | HV4: =IF(OR(AND(HV2=0,HV3=0),HV10<>HU10),0,1) -> 0 | HW4: =IF(OR(AND(HW2=0,HW3=0),HW10<>HV10),0,1) -> 0 | HX4: =IF(OR(AND(HX2=0,HX3=0),HX10<>HW10),0,1) -> 0 | HY4: =IF(OR(AND(HY2=0,HY3=0),HY10<>HX10),0,1) -> 0 | HZ4: 0 | IA4: =IF(OR(AND(IA2=0,IA3=0),IA10<>HZ10),0,1) -> 0 | IB4: =IF(OR(AND(IB2=0,IB3=0),IB10<>IA10),0,1) -> 0 | IC4: =IF(OR(AND(IC2=0,IC3=0),IC10<>IB10),0,1) -> 0 | ID4: =IF(OR(AND(ID2=0,ID3=0),ID10<>IC10),0,1) -> 0 | IE4: 0 | IF4: =IF(OR(AND(IF2=0,IF3=0),IF10<>IE10),0,1) -> 0 | IG4: =IF(OR(AND(IG2=0,IG3=0),IG10<>IF10),0,1) -> 0 | IH4: =IF(OR(AND(IH2=0,IH3=0),IH10<>IG10),0,1) -> 0 | II4: =IF(OR(AND(II2=0,II3=0),II10<>IH10),0,1) -> 0 | IJ4: 0 | IK4: =IF(OR(AND(IK2=0,IK3=0),IK10<>IJ10),0,1) -> 0 | IL4: =IF(OR(AND(IL2=0,IL3=0),IL10<>IK10),0,1) -> 0 | IM4: =IF(OR(AND(IM2=0,IM3=0),IM10<>IL10),0,1) -> 0 | IN4: =IF(OR(AND(IN2=0,IN3=0),IN10<>IM10),0,1) -> 0 | IO4: 0 | IP4: =IF(OR(AND(IP2=0,IP3=0),IP10<>IO10),0,1) -> 0 | IQ4: =IF(OR(AND(IQ2=0,IQ3=0),IQ10<>IP10),0,1) -> 0 | IR4: =IF(OR(AND(IR2=0,IR3=0),IR10<>IQ10),0,1) -> 0 | IS4: =IF(OR(AND(IS2=0,IS3=0),IS10<>IR10),0,1) -> 0 | IT4: 0 | IU4: =IF(OR(AND(IU2=0,IU3=0),IU10<>IT10),0,1) -> 0 | IV4: =IF(OR(AND(IV2=0,IV3=0),IV10<>IU10),0,1) -> 0 | IW4: =IF(OR(AND(IW2=0,IW3=0),IW10<>IV10),0,1) -> 0 | IX4: =IF(OR(AND(IX2=0,IX3=0),IX10<>IW10),0,1) -> 0 | IY4: 0 | IZ4: =IF(OR(AND(IZ2=0,IZ3=0),IZ10<>IY10),0,1) -> 0 | JA4: =IF(OR(AND(JA2=0,JA3=0),JA10<>IZ10),0,1) -> 0 | JB4: =IF(OR(AND(JB2=0,JB3=0),JB10<>JA10),0,1) -> 0 | JC4: =IF(OR(AND(JC2=0,JC3=0),JC10<>JB10),0,1) -> 0 | JD4: 0 | JE4: =IF(OR(AND(JE2=0,JE3=0),JE10<>JD10),0,1) -> 0 | JF4: =IF(OR(AND(JF2=0,JF3=0),JF10<>JE10),0,1) -> 0 | JG4: =IF(OR(AND(JG2=0,JG3=0),JG10<>JF10),0,1) -> 0 | JH4: =IF(OR(AND(JH2=0,JH3=0),JH10<>JG10),0,1) -> 0 | JI4: 0 | JJ4: =IF(OR(AND(JJ2=0,JJ3=0),JJ10<>JI10),0,1) -> 0 | JK4: =IF(OR(AND(JK2=0,JK3=0),JK10<>JJ10),0,1) -> 0 | JL4: =IF(OR(AND(JL2=0,JL3=0),JL10<>JK10),0,1) -> 0 | JM4: =IF(OR(AND(JM2=0,JM3=0),JM10<>JL10),0,1) -> 0 | JN4: 0 | JO4: =IF(OR(AND(JO2=0,JO3=0),JO10<>JN10),0,1) -> 0 | JP4: =IF(OR(AND(JP2=0,JP3=0),JP10<>JO10),0,1) -> 0 | JQ4: =IF(OR(AND(JQ2=0,JQ3=0),JQ10<>JP10),0,1) -> 0 | JR4: =IF(OR(AND(JR2=0,JR3=0),JR10<>JQ10),0,1) -> 0 | JS4: 0 | JT4: =IF(OR(AND(JT2=0,JT3=0),JT10<>JS10),0,1) -> 0 | JU4: =IF(OR(AND(JU2=0,JU3=0),JU10<>JT10),0,1) -> 0 | JV4: =IF(OR(AND(JV2=0,JV3=0),JV10<>JU10),0,1) -> 0 | JW4: =IF(OR(AND(JW2=0,JW3=0),JW10<>JV10),0,1) -> 0 | JX4: 0 | JY4: =IF(OR(AND(JY2=0,JY3=0),JY10<>JX10),0,1) -> 0 | JZ4: =IF(OR(AND(JZ2=0,JZ3=0),JZ10<>JY10),0,1) -> 0 | KA4: =IF(OR(AND(KA2=0,KA3=0),KA10<>JZ10),0,1) -> 0 | KB4: =IF(OR(AND(KB2=0,KB3=0),KB10<>KA10),0,1) -> 0 | KC4: 0 | KD4: =IF(OR(AND(KD2=0,KD3=0),KD10<>KC10),0,1) -> 0 | KE4: =IF(OR(AND(KE2=0,KE3=0),KE10<>KD10),0,1) -> 0 | KF4: =IF(OR(AND(KF2=0,KF3=0),KF10<>KE10),0,1) -> 0 | KG4: =IF(OR(AND(KG2=0,KG3=0),KG10<>KF10),0,1) -> 0 | KH4: 0 | KI4: =IF(OR(AND(KI2=0,KI3=0),KI10<>KH10),0,1) -> 0 | KJ4: =IF(OR(AND(KJ2=0,KJ3=0),KJ10<>KI10),0,1) -> 0 | KK4: =IF(OR(AND(KK2=0,KK3=0),KK10<>KJ10),0,1) -> 0 | KL4: =IF(OR(AND(KL2=0,KL3=0),KL10<>KK10),0,1) -> 0 | KM4: 0 | KN4: =IF(OR(AND(KN2=0,KN3=0),KN10<>KM10),0,1) -> 0 | KO4: =IF(OR(AND(KO2=0,KO3=0),KO10<>KN10),0,1) -> 0 | KP4: =IF(OR(AND(KP2=0,KP3=0),KP10<>KO10),0,1) -> 0 | KQ4: =IF(OR(AND(KQ2=0,KQ3=0),KQ10<>KP10),0,1) -> 0 | KR4: 0 | KS4: =IF(OR(AND(KS2=0,KS3=0),KS10<>KR10),0,1) -> 0 | KT4: =IF(OR(AND(KT2=0,KT3=0),KT10<>KS10),0,1) -> 0 | KU4: =IF(OR(AND(KU2=0,KU3=0),KU10<>KT10),0,1) -> 0 | KV4: =IF(OR(AND(KV2=0,KV3=0),KV10<>KU10),0,1) -> 0 | KW4: 0 | KX4: =IF(OR(AND(KX2=0,KX3=0),KX10<>KW10),0,1) -> 0 | KY4: =IF(OR(AND(KY2=0,KY3=0),KY10<>KX10),0,1) -> 0 | KZ4: =IF(OR(AND(KZ2=0,KZ3=0),KZ10<>KY10),0,1) -> 0 | LA4: =IF(OR(AND(LA2=0,LA3=0),LA10<>KZ10),0,1) -> 0 | LB4: 0 | LC4: =IF(OR(AND(LC2=0,LC3=0),LC10<>LB10),0,1) -> 0 | LD4: =IF(OR(AND(LD2=0,LD3=0),LD10<>LC10),0,1) -> 0 | LE4: =IF(OR(AND(LE2=0,LE3=0),LE10<>LD10),0,1) -> 0 | LF4: =IF(OR(AND(LF2=0,LF3=0),LF10<>LE10),0,1) -> 0 | LG4: 0 | LH4: =IF(OR(AND(LH2=0,LH3=0),LH10<>LG10),0,1) -> 0 | LI4: =IF(OR(AND(LI2=0,LI3=0),LI10<>LH10),0,1) -> 0 | LJ4: =IF(OR(AND(LJ2=0,LJ3=0),LJ10<>LI10),0,1) -> 0 | LK4: =IF(OR(AND(LK2=0,LK3=0),LK10<>LJ10),0,1) -> 0 | LL4: 0 | LM4: =IF(OR(AND(LM2=0,LM3=0),LM10<>LL10),0,1) -> 0 | LN4: =IF(OR(AND(LN2=0,LN3=0),LN10<>LM10),0,1) -> 0 | LO4: =IF(OR(AND(LO2=0,LO3=0),LO10<>LN10),0,1) -> 0 | LP4: =IF(OR(AND(LP2=0,LP3=0),LP10<>LO10),0,1) -> 0 | LQ4: 0 | LR4: =IF(OR(AND(LR2=0,LR3=0),LR10<>LQ10),0,1) -> 0 | LS4: =IF(OR(AND(LS2=0,LS3=0),LS10<>LR10),0,1) -> 0 | LT4: =IF(OR(AND(LT2=0,LT3=0),LT10<>LS10),0,1) -> 0 | LU4: =IF(OR(AND(LU2=0,LU3=0),LU10<>LT10),0,1) -> 0 | LV4: 0 | LW4: =IF(OR(AND(LW2=0,LW3=0),LW10<>LV10),0,1) -> 0 | LX4: =IF(OR(AND(LX2=0,LX3=0),LX10<>LW10),0,1) -> 0 | LY4: =IF(OR(AND(LY2=0,LY3=0),LY10<>LX10),0,1) -> 0 | LZ4: =IF(OR(AND(LZ2=0,LZ3=0),LZ10<>LY10),0,1) -> 0 | MA4: 0 | MB4: =IF(OR(AND(MB2=0,MB3=0),MB10<>MA10),0,1) -> 0 | MC4: =IF(OR(AND(MC2=0,MC3=0),MC10<>MB10),0,1) -> 0 | MD4: =IF(OR(AND(MD2=0,MD3=0),MD10<>MC10),0,1) -> 0 | ME4: =IF(OR(AND(ME2=0,ME3=0),ME10<>MD10),0,1) -> 0 | MF4: 0 | MG4: =IF(OR(AND(MG2=0,MG3=0),MG10<>MF10),0,1) -> 0 | MH4: =IF(OR(AND(MH2=0,MH3=0),MH10<>MG10),0,1) -> 0 | MI4: =IF(OR(AND(MI2=0,MI3=0),MI10<>MH10),0,1) -> 0 | MJ4: =IF(OR(AND(MJ2=0,MJ3=0),MJ10<>MI10),0,1) -> 0 | MK4: 0 | ML4: =IF(OR(AND(ML2=0,ML3=0),ML10<>MK10),0,1) -> 0 | MM4: =IF(OR(AND(MM2=0,MM3=0),MM10<>ML10),0,1) -> 0 | MN4: =IF(OR(AND(MN2=0,MN3=0),MN10<>MM10),0,1) -> 0 | MO4: =IF(OR(AND(MO2=0,MO3=0),MO10<>MN10),0,1) -> 0 | MP4: 0 | MQ4: =IF(OR(AND(MQ2=0,MQ3=0),MQ10<>MP10),0,1) -> 0 | MR4: =IF(OR(AND(MR2=0,MR3=0),MR10<>MQ10),0,1) -> 0 | MS4: =IF(OR(AND(MS2=0,MS3=0),MS10<>MR10),0,1) -> 0 | MT4: =IF(OR(AND(MT2=0,MT3=0),MT10<>MS10),0,1) -> 0 | MU4: 0 | MV4: =IF(OR(AND(MV2=0,MV3=0),MV10<>MU10),0,1) -> 0 | MW4: =IF(OR(AND(MW2=0,MW3=0),MW10<>MV10),0,1) -> 0 | MX4: =IF(OR(AND(MX2=0,MX3=0),MX10<>MW10),0,1) -> 0 | MY4: =IF(OR(AND(MY2=0,MY3=0),MY10<>MX10),0,1) -> 0 | MZ4: 0 | NA4: =IF(OR(AND(NA2=0,NA3=0),NA10<>MZ10),0,1) -> 0 | NB4: =IF(OR(AND(NB2=0,NB3=0),NB10<>NA10),0,1) -> 0 | NC4: =IF(OR(AND(NC2=0,NC3=0),NC10<>NB10),0,1) -> 0 | ND4: =IF(OR(AND(ND2=0,ND3=0),ND10<>NC10),0,1) -> 0 | NE4: 0 | NF4: =IF(OR(AND(NF2=0,NF3=0),NF10<>NE10),0,1) -> 0 | NG4: =IF(OR(AND(NG2=0,NG3=0),NG10<>NF10),0,1) -> 0 | NH4: =IF(OR(AND(NH2=0,NH3=0),NH10<>NG10),0,1) -> 0 | NI4: =IF(OR(AND(NI2=0,NI3=0),NI10<>NH10),0,1) -> 0 | NJ4: 0 | NK4: =IF(OR(AND(NK2=0,NK3=0),NK10<>NJ10),0,1) -> 0 | NL4: =IF(OR(AND(NL2=0,NL3=0),NL10<>NK10),0,1) -> 0 | NM4: =IF(OR(AND(NM2=0,NM3=0),NM10<>NL10),0,1) -> 0 | NN4: =IF(OR(AND(NN2=0,NN3=0),NN10<>NM10),0,1) -> 0 | NO4: 0 | NP4: =IF(OR(AND(NP2=0,NP3=0),NP10<>NO10),0,1) -> 0 | NQ4: =IF(OR(AND(NQ2=0,NQ3=0),NQ10<>NP10),0,1) -> 0 | NR4: =IF(OR(AND(NR2=0,NR3=0),NR10<>NQ10),0,1) -> 0 | NS4: =IF(OR(AND(NS2=0,NS3=0),NS10<>NR10),0,1) -> 0 | NT4: 0 | NU4: =IF(OR(AND(NU2=0,NU3=0),NU10<>NT10),0,1) -> 0 | NV4: =IF(OR(AND(NV2=0,NV3=0),NV10<>NU10),0,1) -> 0 | NW4: =IF(OR(AND(NW2=0,NW3=0),NW10<>NV10),0,1) -> 0 | NX4: =IF(OR(AND(NX2=0,NX3=0),NX10<>NW10),0,1) -> 0 | NY4: 0 | NZ4: =IF(OR(AND(NZ2=0,NZ3=0),NZ10<>NY10),0,1) -> 0 | OA4: =IF(OR(AND(OA2=0,OA3=0),OA10<>NZ10),0,1) -> 0 | OB4: =IF(OR(AND(OB2=0,OB3=0),OB10<>OA10),0,1) -> 0 | OC4: =IF(OR(AND(OC2=0,OC3=0),OC10<>OB10),0,1) -> 0 | OD4: 0 | OE4: =IF(OR(AND(OE2=0,OE3=0),OE10<>OD10),0,1) -> 0 | OF4: =IF(OR(AND(OF2=0,OF3=0),OF10<>OE10),0,1) -> 0 | OG4: =IF(OR(AND(OG2=0,OG3=0),OG10<>OF10),0,1) -> 0 | OH4: =IF(OR(AND(OH2=0,OH3=0),OH10<>OG10),0,1) -> 0 | OI4: 0 | OJ4: =IF(OR(AND(OJ2=0,OJ3=0),OJ10<>OI10),0,1) -> 0 | OK4: =IF(OR(AND(OK2=0,OK3=0),OK10<>OJ10),0,1) -> 0 | OL4: =IF(OR(AND(OL2=0,OL3=0),OL10<>OK10),0,1) -> 0 | OM4: =IF(OR(AND(OM2=0,OM3=0),OM10<>OL10),0,1) -> 0 | ON4: 0 | OO4: =IF(OR(AND(OO2=0,OO3=0),OO10<>ON10),0,1) -> 0 | OP4: =IF(OR(AND(OP2=0,OP3=0),OP10<>OO10),0,1) -> 0 | OQ4: =IF(OR(AND(OQ2=0,OQ3=0),OQ10<>OP10),0,1) -> 0 | OR4: =IF(OR(AND(OR2=0,OR3=0),OR10<>OQ10),0,1) -> 0 | OS4: 0 | OT4: =IF(OR(AND(OT2=0,OT3=0),OT10<>OS10),0,1) -> 0 | OU4: =IF(OR(AND(OU2=0,OU3=0),OU10<>OT10),0,1) -> 0 | OV4: =IF(OR(AND(OV2=0,OV3=0),OV10<>OU10),0,1) -> 0 | OW4: =IF(OR(AND(OW2=0,OW3=0),OW10<>OV10),0,1) -> 0 | OX4: 0 | OY4: =IF(OR(AND(OY2=0,OY3=0),OY10<>OX10),0,1) -> 0 | OZ4: =IF(OR(AND(OZ2=0,OZ3=0),OZ10<>OY10),0,1) -> 0 | PA4: =IF(OR(AND(PA2=0,PA3=0),PA10<>OZ10),0,1) -> 0 | PB4: =IF(OR(AND(PB2=0,PB3=0),PB10<>PA10),0,1) -> 0 | PC4: 0 | PD4: =IF(OR(AND(PD2=0,PD3=0),PD10<>PC10),0,1) -> 0 | PE4: =IF(OR(AND(PE2=0,PE3=0),PE10<>PD10),0,1) -> 0 | PF4: =IF(OR(AND(PF2=0,PF3=0),PF10<>PE10),0,1) -> 0 | PG4: =IF(OR(AND(PG2=0,PG3=0),PG10<>PF10),0,1) -> 0 | PH4: 0 | PI4: =IF(OR(AND(PI2=0,PI3=0),PI10<>PH10),0,1) -> 0 | PJ4: =IF(OR(AND(PJ2=0,PJ3=0),PJ10<>PI10),0,1) -> 0 | PK4: =IF(OR(AND(PK2=0,PK3=0),PK10<>PJ10),0,1) -> 0 | PL4: =IF(OR(AND(PL2=0,PL3=0),PL10<>PK10),0,1) -> 0 | PM4: 0 | PN4: =IF(OR(AND(PN2=0,PN3=0),PN10<>PM10),0,1) -> 0 | PO4: =IF(OR(AND(PO2=0,PO3=0),PO10<>PN10),0,1) -> 0 | PP4: =IF(OR(AND(PP2=0,PP3=0),PP10<>PO10),0,1) -> 0 | PQ4: =IF(OR(AND(PQ2=0,PQ3=0),PQ10<>PP10),0,1) -> 0 | PR4: 0 | PS4: =IF(OR(AND(PS2=0,PS3=0),PS10<>PR10),0,1) -> 0 | PT4: =IF(OR(AND(PT2=0,PT3=0),PT10<>PS10),0,1) -> 0 | PU4: =IF(OR(AND(PU2=0,PU3=0),PU10<>PT10),0,1) -> 0 | PV4: =IF(OR(AND(PV2=0,PV3=0),PV10<>PU10),0,1) -> 0 | PW4: 0 | PX4: =IF(OR(AND(PX2=0,PX3=0),PX10<>PW10),0,1) -> 0 | PY4: =IF(OR(AND(PY2=0,PY3=0),PY10<>PX10),0,1) -> 0 | PZ4: =IF(OR(AND(PZ2=0,PZ3=0),PZ10<>PY10),0,1) -> 0 | QA4: =IF(OR(AND(QA2=0,QA3=0),QA10<>PZ10),0,1) -> 0 | QB4: 0 | QC4: =IF(OR(AND(QC2=0,QC3=0),QC10<>QB10),0,1) -> 0 | QD4: =IF(OR(AND(QD2=0,QD3=0),QD10<>QC10),0,1) -> 0 | QE4: =IF(OR(AND(QE2=0,QE3=0),QE10<>QD10),0,1) -> 0 | QF4: =IF(OR(AND(QF2=0,QF3=0),QF10<>QE10),0,1) -> 0 | QG4: 0 | QH4: =IF(OR(AND(QH2=0,QH3=0),QH10<>QG10),0,1) -> 0 | QI4: =IF(OR(AND(QI2=0,QI3=0),QI10<>QH10),0,1) -> 0 | QJ4: =IF(OR(AND(QJ2=0,QJ3=0),QJ10<>QI10),0,1) -> 0 | QK4: =IF(OR(AND(QK2=0,QK3=0),QK10<>QJ10),0,1) -> 0 | QL4: 0 | QM4: =IF(OR(AND(QM2=0,QM3=0),QM10<>QL10),0,1) -> 0 | QN4: =IF(OR(AND(QN2=0,QN3=0),QN10<>QM10),0,1) -> 0 | QO4: =IF(OR(AND(QO2=0,QO3=0),QO10<>QN10),0,1) -> 0 | QP4: =IF(OR(AND(QP2=0,QP3=0),QP10<>QO10),0,1) -> 0 | QQ4: 0 | QR4: =IF(OR(AND(QR2=0,QR3=0),QR10<>QQ10),0,1) -> 0 | QS4: =IF(OR(AND(QS2=0,QS3=0),QS10<>QR10),0,1) -> 0 | QT4: =IF(OR(AND(QT2=0,QT3=0),QT10<>QS10),0,1) -> 0 | QU4: =IF(OR(AND(QU2=0,QU3=0),QU10<>QT10),0,1) -> 0 | QV4: 0 | QW4: =IF(OR(AND(QW2=0,QW3=0),QW10<>QV10),0,1) -> 0 | QX4: =IF(OR(AND(QX2=0,QX3=0),QX10<>QW10),0,1) -> 0 | QY4: =IF(OR(AND(QY2=0,QY3=0),QY10<>QX10),0,1) -> 0 | QZ4: =IF(OR(AND(QZ2=0,QZ3=0),QZ10<>QY10),0,1) -> 0 | RA4: 0 | RB4: =IF(OR(AND(RB2=0,RB3=0),RB10<>RA10),0,1) -> 0 | RC4: =IF(OR(AND(RC2=0,RC3=0),RC10<>RB10),0,1) -> 0 | RD4: =IF(OR(AND(RD2=0,RD3=0),RD10<>RC10),0,1) -> 0 | RE4: =IF(OR(AND(RE2=0,RE3=0),RE10<>RD10),0,1) -> 0 | RF4: 0 | RG4: =IF(OR(AND(RG2=0,RG3=0),RG10<>RF10),0,1) -> 0 | RH4: =IF(OR(AND(RH2=0,RH3=0),RH10<>RG10),0,1) -> 0 | RI4: =IF(OR(AND(RI2=0,RI3=0),RI10<>RH10),0,1) -> 0 | RJ4: =IF(OR(AND(RJ2=0,RJ3=0),RJ10<>RI10),0,1) -> 0 | RK4: 0 | RL4: =IF(OR(AND(RL2=0,RL3=0),RL10<>RK10),0,1) -> 0 | RM4: =IF(OR(AND(RM2=0,RM3=0),RM10<>RL10),0,1) -> 0 | RN4: =IF(OR(AND(RN2=0,RN3=0),RN10<>RM10),0,1) -> 0 | RO4: =IF(OR(AND(RO2=0,RO3=0),RO10<>RN10),0,1) -> 0 | RP4: 0 | RQ4: =IF(OR(AND(RQ2=0,RQ3=0),RQ10<>RP10),0,1) -> 0 | RR4: =IF(OR(AND(RR2=0,RR3=0),RR10<>RQ10),0,1) -> 0 | RS4: =IF(OR(AND(RS2=0,RS3=0),RS10<>RR10),0,1) -> 0 | RT4: =IF(OR(AND(RT2=0,RT3=0),RT10<>RS10),0,1) -> 0 | RU4: 0 | RV4: =IF(OR(AND(RV2=0,RV3=0),RV10<>RU10),0,1) -> 0 | RW4: =IF(OR(AND(RW2=0,RW3=0),RW10<>RV10),0,1) -> 0 | RX4: =IF(OR(AND(RX2=0,RX3=0),RX10<>RW10),0,1) -> 0 | RY4: =IF(OR(AND(RY2=0,RY3=0),RY10<>RX10),0,1) -> 0 | RZ4: 0 | SA4: =IF(OR(AND(SA2=0,SA3=0),SA10<>RZ10),0,1) -> 0 | SB4: =IF(OR(AND(SB2=0,SB3=0),SB10<>SA10),0,1) -> 0 | SC4: =IF(OR(AND(SC2=0,SC3=0),SC10<>SB10),0,1) -> 0 | SD4: =IF(OR(AND(SD2=0,SD3=0),SD10<>SC10),0,1) -> 0 | SE4: 0 | SF4: =IF(OR(AND(SF2=0,SF3=0),SF10<>SE10),0,1) -> 0 | SG4: =IF(OR(AND(SG2=0,SG3=0),SG10<>SF10),0,1) -> 0 | SH4: =IF(OR(AND(SH2=0,SH3=0),SH10<>SG10),0,1) -> 0 | SI4: =IF(OR(AND(SI2=0,SI3=0),SI10<>SH10),0,1) -> 0
A5: SPDavailable | B5: =INDEX(D4:SI4,$B$1) -> 1 | C5: =IF(C4,C1,"") ->  | D5: =IF(D4,D1,"") -> 1 | E5: 2 | F5: 3 | I5: 6 | J5: 7 | K5: 8 | L5: 9 | M5: 10 | N5: 11 | O5: 12 | P5: 13 | Q5: 14 | R5: 15 | S5: 16 | T5: 17 | U5: 18 | V5: 19 | W5: 20 | X5: 21 | Y5: 22 | AB5: 25 | AC5: 26 | AF5: 29 | BP5: =IF(BP4,BP1,"") ->  | EB5: =IF(EB4,EB1,"") ->  | GN5: =IF(GN4,GN1,"") ->  | IZ5: =IF(IZ4,IZ1,"") ->  | LL5: =IF(LL4,LL1,"") ->  | NX5: =IF(NX4,NX1,"") ->  | QJ5: =IF(QJ4,QJ1,"") -> 
A6: #SPDs | B6: =MIN(D5:SI5) -> 1 | C6: =MAX(D5:SI5) -> 29 | D6: Data Valid | F6: =IF(AND(B2>=360,B2<=380,B3>=780,B3<=830,B5>0),1,0) -> 1 | H6: =MATCH(B2,A11:A481) -> 1 | I6: =MATCH(B3,A11:A481) -> 81 | J6: =(B3-B2)/(I6-H6) -> 5 | K6: =_xlfn.CONCAT(TEXT(B2,"#")," nm - ",TEXT(B3,"#")," nm, ",TEXT(J6,"#")," nm WL increments") -> 380 nm - 780 nm, 5 nm WL increments | AE6: =IF(OR(AE2<360,AE2>380,AE3<780,AE3>830),"Error in wavelength range, please check!","") ->  | SJ6: last WL position | SK6: =_xlfn.NUMBERVALUE(TRIM(RIGHT(SUBSTITUTE(SI10,",",REPT(" ",LEN(SI10))),LEN(SI10)))) -> 29 | SL6: =IF(SM6>0,INDEX(SL7:SL481,SM6),1)+1 -> 6 | SM6: =MATCH(1,SM7:SM481,0)-1 -> 2
C7: CIE-defined example spectra with different wavelength ranges and sampling intervals (columns C, H & AA). From column AE, user measured spectra shall be entered together with the wavelength range (the wavelength range should precede the SPD data) | AE7: User-provided SPD data within the wavelength range as specified in the cells always immediately preceding the SPD data (e.g. cells AE11-AE481) | SJ7: =IFERROR(FIND(",",$SI$10,SK7),0) -> 2 | SK7: 1 | SL7: =_xlfn.NUMBERVALUE(LEFT(SI10,SJ7-1))-1 -> 0 | SM7: =IF(OR($B$1<SL7,SL7=$SK$6),1,0) -> 0
A8: SPD-name | B8: =INDEX(D8:SJ8,$B$1) -> Illuminant E (Equi-Energy Illuminant) | C8: l, nm | D8: CIE Standard Illuminant A | E8: CIE Standard Illuminant D65 | F8: Illuminant E (or Equi-Energy Spectrum) | H8: l, nm | I8: FL2* | J8: FL7* | K8: FL11* | L8: FL3.3 | M8: FL3.4 | N8: FL3.7 | O8: FL3.10 | P8: FL3.12 | Q8: FL3.15 | R8: HP1 | S8: HP2 | T8: HP3 | U8: LED-B1 | V8: LED-B5 | W8: Illuminant C | X8: Illuminant E (Equi-Energy Illuminant) | Y8: Example (CIE 224) LED spectrum | AA8: l, nm | AB8: Example (CIE 224) LED spectrum | AC8: EES: Illuminant E (Equi-Energy Spectrum) | AE8: l, nm | AF8: Test | SJ8: 4 | SK8: =IF(SJ7>0,SJ7+1,SK7) -> 3 | SL8: =IF(SJ7=0,$SK$6,_xlfn.NUMBERVALUE(IF(SJ8>0,MID($SI$10,SJ7+1,SJ8-SJ7-1),$SK$6))-1) -> 5 | SM8: =IF(OR($B$1<=SL8,SL8=$SK$6),1,0) -> 0
A9: SPD-notes | B9: =INDEX(D9:SJ9,$B$1) -> Normalized to Y=100 | C9: default | D9: Table 1 in ISO 11664-2:2007(E) / CIE S 014-2/E:2006 | E9: Table 1 in ISO 11664-2:2007(E) / CIE S 014-2/E:2006 | F9: Normalized to Y=100 | I9: Tables 10.1 & 13.1 - Standard Fluorescent lamp in CIE publication 015-2018 "Colorimetry" | J9: Tables 10.1 & 13.1 - Broad-Band Fluorescent lamp in CIE publication 015-2018 "Colorimetry" | K9: Tables 10.1 & 13.1 - Narrow-Band Fluorescent lamp in CIE publication 015-2018 "Colorimetry" | L9: Tables 10.2 & 13.2 - Standard Halophosphate Fluorescent lamp in CIE publication 015-2018 "Colorimetry" | M9: Tables 10.2 & 13.2 - DeLuxe-type Fluorescent lamp in CIE publication 015-2018 "Colorimetry" | N9: Tables 10.2 & 13.2 - Three-band Fluorescent lamp in CIE publication 015-2018 "Colorimetry" | O9: Tables 10.3 & 13.3 - Three-band Fluorescent lamp in CIE publication 015-2018 "Colorimetry" | P9: Tables 10.3 & 13.3 - Multi-band Fluorescent lamp in CIE publication 015-2018 "Colorimetry" | Q9: Tables 10.3 & 13.3 - D65 simulator Fluorescent lamp in CIE publication 015-2018 "Colorimetry" | R9: Tables 11 & 14 - Standard High Pressure sodium lamp in CIE publication 015-2018 "Colorimetry" | S9: Tables 11 & 14 - Colour enhanced high pressure sodium lamp in CIE publication 015-2018 "Colorimetry" | T9: Tables 11 & 14 - High pressure metal halide lamp in CIE publication 015-2018 "Colorimetry" | U9: Tables 12.1 & 15 - Phosphor-type LED (2 733 K) in CIE publication 015-2018 "Colorimetry" | V9: Tables 12.1 & 15 - Phosphor-type LED (6 598 K) in CIE publication 015-2018 "Colorimetry" | W9: Tables 5 & 9.1 - Relative spectral power distribution of CIE illuminant C in CIE publication 015-2018 "Colorimetry" | X9: Normalized to Y=100 | Y9: From CIE 2017 Colour Fidelity Index Calculator 5 nm - V.3 (2017-07-15).xlsx | AB9: From CIE 2017 Colour Fidelity Index Calculator 1 nm - V.3(2017-07-15).xlsx | AC9: Normalized to Y=100 | AF9: EES | SJ9: 7 | SK9: 5 | SL9: 24 | SM9: 1
A10: WL | B10: SPD-selected | C10: 1 | D10: =IF(AND(D2<=380,D2>=360,D3>=780,D3<=830,(D3-D2)/5>=80),_xlfn.CONCAT(C10,",",TEXT(D1+1,"#")),C10) -> 1 | E10: =IF(AND(E2<=380,E2>=360,E3>=780,E3<=830,(E3-E2)/5>=80),_xlfn.CONCAT(D10,",",TEXT(E1+1,"#")),D10) -> 1 | F10: 1 | G10: 1 | H10: 1,6 | I10: 1,6 | J10: 1,6 | K10: 1,6 | L10: 1,6 | M10: 1,6 | N10: 1,6 | O10: 1,6 | P10: 1,6 | Q10: 1,6 | R10: 1,6 | S10: 1,6 | T10: 1,6 | U10: 1,6 | V10: 1,6 | W10: 1,6 | X10: 1,6 | Y10: 1,6 | Z10: 1,6 | AA10: 1,6,25 | AB10: 1,6,25 | AC10: 1,6,25 | AD10: 1,6,25 | AE10: 1,6,25,29 | AF10: 1,6,25,29 | AG10: 1,6,25,29 | AH10: 1,6,25,29 | AI10: 1,6,25,29 | AJ10: 1,6,25,29 | AK10: 1,6,25,29 | AL10: 1,6,25,29 | AM10: 1,6,25,29 | AN10: 1,6,25,29 | AO10: 1,6,25,29 | AP10: 1,6,25,29 | AQ10: 1,6,25,29 | AR10: 1,6,25,29 | AS10: 1,6,25,29 | AT10: 1,6,25,29 | AU10: 1,6,25,29 | AV10: 1,6,25,29 | AW10: 1,6,25,29 | AX10: 1,6,25,29 | AY10: 1,6,25,29 | AZ10: 1,6,25,29 | BA10: 1,6,25,29 | BB10: 1,6,25,29 | BC10: 1,6,25,29 | BD10: 1,6,25,29 | BE10: 1,6,25,29 | BF10: 1,6,25,29 | BG10: 1,6,25,29 | BH10: 1,6,25,29 | BI10: 1,6,25,29 | BJ10: 1,6,25,29 | BK10: 1,6,25,29 | BL10: 1,6,25,29 | BM10: 1,6,25,29 | BN10: 1,6,25,29 | BO10: 1,6,25,29 | BP10: 1,6,25,29 | BQ10: =IF(AND(BQ2<=380,BQ2>=360,BQ3>=780,BQ3<=830,(BQ3-BQ2)/5>=80),_xlfn.CONCAT(BP10,",",TEXT(BQ1+1,"#")),BP10) -> 1,6,25,29 | BR10: 1,6,25,29 | BS10: 1,6,25,29 | BT10: 1,6,25,29 | BU10: 1,6,25,29 | BV10: 1,6,25,29 | BW10: 1,6,25,29 | BX10: 1,6,25,29 | BY10: 1,6,25,29 | BZ10: 1,6,25,29 | CA10: 1,6,25,29 | CB10: 1,6,25,29 | CC10: 1,6,25,29 | CD10: 1,6,25,29 | CE10: 1,6,25,29 | CF10: 1,6,25,29 | CG10: 1,6,25,29 | CH10: 1,6,25,29 | CI10: 1,6,25,29 | CJ10: 1,6,25,29 | CK10: 1,6,25,29 | CL10: 1,6,25,29 | CM10: 1,6,25,29 | CN10: 1,6,25,29 | CO10: 1,6,25,29 | CP10: 1,6,25,29 | CQ10: 1,6,25,29 | CR10: 1,6,25,29 | CS10: 1,6,25,29 | CT10: 1,6,25,29 | CU10: 1,6,25,29 | CV10: 1,6,25,29 | CW10: 1,6,25,29 | CX10: 1,6,25,29 | CY10: 1,6,25,29 | CZ10: 1,6,25,29 | DA10: 1,6,25,29 | DB10: 1,6,25,29 | DC10: 1,6,25,29 | DD10: 1,6,25,29 | DE10: 1,6,25,29 | DF10: 1,6,25,29 | DG10: 1,6,25,29 | DH10: 1,6,25,29 | DI10: 1,6,25,29 | DJ10: 1,6,25,29 | DK10: 1,6,25,29 | DL10: 1,6,25,29 | DM10: 1,6,25,29 | DN10: 1,6,25,29 | DO10: 1,6,25,29 | DP10: 1,6,25,29 | DQ10: 1,6,25,29 | DR10: 1,6,25,29 | DS10: 1,6,25,29 | DT10: 1,6,25,29 | DU10: 1,6,25,29 | DV10: 1,6,25,29 | DW10: 1,6,25,29 | DX10: 1,6,25,29 | DY10: 1,6,25,29 | DZ10: 1,6,25,29 | EA10: 1,6,25,29 | EB10: 1,6,25,29 | EC10: =IF(AND(EC2<=380,EC2>=360,EC3>=780,EC3<=830,(EC3-EC2)/5>=80),_xlfn.CONCAT(EB10,",",TEXT(EC1+1,"#")),EB10) -> 1,6,25,29 | ED10: 1,6,25,29 | EE10: 1,6,25,29 | EF10: 1,6,25,29 | EG10: 1,6,25,29 | EH10: 1,6,25,29 | EI10: 1,6,25,29 | EJ10: 1,6,25,29 | EK10: 1,6,25,29 | EL10: 1,6,25,29 | EM10: 1,6,25,29 | EN10: 1,6,25,29 | EO10: 1,6,25,29 | EP10: 1,6,25,29 | EQ10: 1,6,25,29 | ER10: 1,6,25,29 | ES10: 1,6,25,29 | ET10: 1,6,25,29 | EU10: 1,6,25,29 | EV10: 1,6,25,29 | EW10: 1,6,25,29 | EX10: 1,6,25,29 | EY10: 1,6,25,29 | EZ10: 1,6,25,29 | FA10: 1,6,25,29 | FB10: 1,6,25,29 | FC10: 1,6,25,29 | FD10: 1,6,25,29 | FE10: 1,6,25,29 | FF10: 1,6,25,29 | FG10: 1,6,25,29 | FH10: 1,6,25,29 | FI10: 1,6,25,29 | FJ10: 1,6,25,29 | FK10: 1,6,25,29 | FL10: 1,6,25,29 | FM10: 1,6,25,29 | FN10: 1,6,25,29 | FO10: 1,6,25,29 | FP10: 1,6,25,29 | FQ10: 1,6,25,29 | FR10: 1,6,25,29 | FS10: 1,6,25,29 | FT10: 1,6,25,29 | FU10: 1,6,25,29 | FV10: 1,6,25,29 | FW10: 1,6,25,29 | FX10: 1,6,25,29 | FY10: 1,6,25,29 | FZ10: 1,6,25,29 | GA10: 1,6,25,29 | GB10: 1,6,25,29 | GC10: 1,6,25,29 | GD10: 1,6,25,29 | GE10: 1,6,25,29 | GF10: 1,6,25,29 | GG10: 1,6,25,29 | GH10: 1,6,25,29 | GI10: 1,6,25,29 | GJ10: 1,6,25,29 | GK10: 1,6,25,29 | GL10: 1,6,25,29 | GM10: 1,6,25,29 | GN10: 1,6,25,29 | GO10: =IF(AND(GO2<=380,GO2>=360,GO3>=780,GO3<=830,(GO3-GO2)/5>=80),_xlfn.CONCAT(GN10,",",TEXT(GO1+1,"#")),GN10) -> 1,6,25,29 | GP10: 1,6,25,29 | GQ10: 1,6,25,29 | GR10: 1,6,25,29 | GS10: 1,6,25,29 | GT10: 1,6,25,29 | GU10: 1,6,25,29 | GV10: 1,6,25,29 | GW10: 1,6,25,29 | GX10: 1,6,25,29 | GY10: 1,6,25,29 | GZ10: 1,6,25,29 | HA10: 1,6,25,29 | HB10: 1,6,25,29 | HC10: 1,6,25,29 | HD10: 1,6,25,29 | HE10: 1,6,25,29 | HF10: 1,6,25,29 | HG10: 1,6,25,29 | HH10: 1,6,25,29 | HI10: 1,6,25,29 | HJ10: 1,6,25,29 | HK10: 1,6,25,29 | HL10: 1,6,25,29 | HM10: 1,6,25,29 | HN10: 1,6,25,29 | HO10: 1,6,25,29 | HP10: 1,6,25,29 | HQ10: 1,6,25,29 | HR10: 1,6,25,29 | HS10: 1,6,25,29 | HT10: 1,6,25,29 | HU10: 1,6,25,29 | HV10: 1,6,25,29 | HW10: 1,6,25,29 | HX10: 1,6,25,29 | HY10: 1,6,25,29 | HZ10: 1,6,25,29 | IA10: 1,6,25,29 | IB10: 1,6,25,29 | IC10: 1,6,25,29 | ID10: 1,6,25,29 | IE10: 1,6,25,29 | IF10: 1,6,25,29 | IG10: 1,6,25,29 | IH10: 1,6,25,29 | II10: 1,6,25,29 | IJ10: 1,6,25,29 | IK10: 1,6,25,29 | IL10: 1,6,25,29 | IM10: 1,6,25,29 | IN10: 1,6,25,29 | IO10: 1,6,25,29 | IP10: 1,6,25,29 | IQ10: 1,6,25,29 | IR10: 1,6,25,29 | IS10: 1,6,25,29 | IT10: 1,6,25,29 | IU10: 1,6,25,29 | IV10: 1,6,25,29 | IW10: 1,6,25,29 | IX10: 1,6,25,29 | IY10: 1,6,25,29 | IZ10: 1,6,25,29 | JA10: =IF(AND(JA2<=380,JA2>=360,JA3>=780,JA3<=830,(JA3-JA2)/5>=80),_xlfn.CONCAT(IZ10,",",TEXT(JA1+1,"#")),IZ10) -> 1,6,25,29 | JB10: 1,6,25,29 | JC10: 1,6,25,29 | JD10: 1,6,25,29 | JE10: 1,6,25,29 | JF10: 1,6,25,29 | JG10: 1,6,25,29 | JH10: 1,6,25,29 | JI10: 1,6,25,29 | JJ10: 1,6,25,29 | JK10: 1,6,25,29 | JL10: 1,6,25,29 | JM10: 1,6,25,29 | JN10: 1,6,25,29 | JO10: 1,6,25,29 | JP10: 1,6,25,29 | JQ10: 1,6,25,29 | JR10: 1,6,25,29 | JS10: 1,6,25,29 | JT10: 1,6,25,29 | JU10: 1,6,25,29 | JV10: 1,6,25,29 | JW10: 1,6,25,29 | JX10: 1,6,25,29 | JY10: 1,6,25,29 | JZ10: 1,6,25,29 | KA10: 1,6,25,29 | KB10: 1,6,25,29 | KC10: 1,6,25,29 | KD10: 1,6,25,29 | KE10: 1,6,25,29 | KF10: 1,6,25,29 | KG10: 1,6,25,29 | KH10: 1,6,25,29 | KI10: 1,6,25,29 | KJ10: 1,6,25,29 | KK10: 1,6,25,29 | KL10: 1,6,25,29 | KM10: 1,6,25,29 | KN10: 1,6,25,29 | KO10: 1,6,25,29 | KP10: 1,6,25,29 | KQ10: 1,6,25,29 | KR10: 1,6,25,29 | KS10: 1,6,25,29 | KT10: 1,6,25,29 | KU10: 1,6,25,29 | KV10: 1,6,25,29 | KW10: 1,6,25,29 | KX10: 1,6,25,29 | KY10: 1,6,25,29 | KZ10: 1,6,25,29 | LA10: 1,6,25,29 | LB10: 1,6,25,29 | LC10: 1,6,25,29 | LD10: 1,6,25,29 | LE10: 1,6,25,29 | LF10: 1,6,25,29 | LG10: 1,6,25,29 | LH10: 1,6,25,29 | LI10: 1,6,25,29 | LJ10: 1,6,25,29 | LK10: 1,6,25,29 | LL10: 1,6,25,29 | LM10: =IF(AND(LM2<=380,LM2>=360,LM3>=780,LM3<=830,(LM3-LM2)/5>=80),_xlfn.CONCAT(LL10,",",TEXT(LM1+1,"#")),LL10) -> 1,6,25,29 | LN10: 1,6,25,29 | LO10: 1,6,25,29 | LP10: 1,6,25,29 | LQ10: 1,6,25,29 | LR10: 1,6,25,29 | LS10: 1,6,25,29 | LT10: 1,6,25,29 | LU10: 1,6,25,29 | LV10: 1,6,25,29 | LW10: 1,6,25,29 | LX10: 1,6,25,29 | LY10: 1,6,25,29 | LZ10: 1,6,25,29 | MA10: 1,6,25,29 | MB10: 1,6,25,29 | MC10: 1,6,25,29 | MD10: 1,6,25,29 | ME10: 1,6,25,29 | MF10: 1,6,25,29 | MG10: 1,6,25,29 | MH10: 1,6,25,29 | MI10: 1,6,25,29 | MJ10: 1,6,25,29 | MK10: 1,6,25,29 | ML10: 1,6,25,29 | MM10: 1,6,25,29 | MN10: 1,6,25,29 | MO10: 1,6,25,29 | MP10: 1,6,25,29 | MQ10: 1,6,25,29 | MR10: 1,6,25,29 | MS10: 1,6,25,29 | MT10: 1,6,25,29 | MU10: 1,6,25,29 | MV10: 1,6,25,29 | MW10: 1,6,25,29 | MX10: 1,6,25,29 | MY10: 1,6,25,29 | MZ10: 1,6,25,29 | NA10: 1,6,25,29 | NB10: 1,6,25,29 | NC10: 1,6,25,29 | ND10: 1,6,25,29 | NE10: 1,6,25,29 | NF10: 1,6,25,29 | NG10: 1,6,25,29 | NH10: 1,6,25,29 | NI10: 1,6,25,29 | NJ10: 1,6,25,29 | NK10: 1,6,25,29 | NL10: 1,6,25,29 | NM10: 1,6,25,29 | NN10: 1,6,25,29 | NO10: 1,6,25,29 | NP10: 1,6,25,29 | NQ10: 1,6,25,29 | NR10: 1,6,25,29 | NS10: 1,6,25,29 | NT10: 1,6,25,29 | NU10: 1,6,25,29 | NV10: 1,6,25,29 | NW10: 1,6,25,29 | NX10: 1,6,25,29 | NY10: =IF(AND(NY2<=380,NY2>=360,NY3>=780,NY3<=830,(NY3-NY2)/5>=80),_xlfn.CONCAT(NX10,",",TEXT(NY1+1,"#")),NX10) -> 1,6,25,29 | NZ10: 1,6,25,29 | OA10: 1,6,25,29 | OB10: 1,6,25,29 | OC10: 1,6,25,29 | OD10: 1,6,25,29 | OE10: 1,6,25,29 | OF10: 1,6,25,29 | OG10: 1,6,25,29 | OH10: 1,6,25,29 | OI10: 1,6,25,29 | OJ10: 1,6,25,29 | OK10: 1,6,25,29 | OL10: 1,6,25,29 | OM10: 1,6,25,29 | ON10: 1,6,25,29 | OO10: 1,6,25,29 | OP10: 1,6,25,29 | OQ10: 1,6,25,29 | OR10: 1,6,25,29 | OS10: 1,6,25,29 | OT10: 1,6,25,29 | OU10: 1,6,25,29 | OV10: 1,6,25,29 | OW10: 1,6,25,29 | OX10: 1,6,25,29 | OY10: 1,6,25,29 | OZ10: 1,6,25,29 | PA10: 1,6,25,29 | PB10: 1,6,25,29 | PC10: 1,6,25,29 | PD10: 1,6,25,29 | PE10: 1,6,25,29 | PF10: 1,6,25,29 | PG10: 1,6,25,29 | PH10: 1,6,25,29 | PI10: 1,6,25,29 | PJ10: 1,6,25,29 | PK10: 1,6,25,29 | PL10: 1,6,25,29 | PM10: 1,6,25,29 | PN10: 1,6,25,29 | PO10: 1,6,25,29 | PP10: 1,6,25,29 | PQ10: 1,6,25,29 | PR10: 1,6,25,29 | PS10: 1,6,25,29 | PT10: 1,6,25,29 | PU10: 1,6,25,29 | PV10: 1,6,25,29 | PW10: 1,6,25,29 | PX10: 1,6,25,29 | PY10: 1,6,25,29 | PZ10: 1,6,25,29 | QA10: 1,6,25,29 | QB10: 1,6,25,29 | QC10: 1,6,25,29 | QD10: 1,6,25,29 | QE10: 1,6,25,29 | QF10: 1,6,25,29 | QG10: 1,6,25,29 | QH10: 1,6,25,29 | QI10: 1,6,25,29 | QJ10: 1,6,25,29 | QK10: =IF(AND(QK2<=380,QK2>=360,QK3>=780,QK3<=830,(QK3-QK2)/5>=80),_xlfn.CONCAT(QJ10,",",TEXT(QK1+1,"#")),QJ10) -> 1,6,25,29 | QL10: 1,6,25,29 | QM10: 1,6,25,29 | QN10: 1,6,25,29 | QO10: 1,6,25,29 | QP10: 1,6,25,29 | QQ10: 1,6,25,29 | QR10: 1,6,25,29 | QS10: 1,6,25,29 | QT10: 1,6,25,29 | QU10: 1,6,25,29 | QV10: 1,6,25,29 | QW10: 1,6,25,29 | QX10: 1,6,25,29 | QY10: 1,6,25,29 | QZ10: 1,6,25,29 | RA10: 1,6,25,29 | RB10: 1,6,25,29 | RC10: 1,6,25,29 | RD10: 1,6,25,29 | RE10: 1,6,25,29 | RF10: 1,6,25,29 | RG10: 1,6,25,29 | RH10: 1,6,25,29 | RI10: 1,6,25,29 | RJ10: 1,6,25,29 | RK10: 1,6,25,29 | RL10: 1,6,25,29 | RM10: 1,6,25,29 | RN10: 1,6,25,29 | RO10: 1,6,25,29 | RP10: 1,6,25,29 | RQ10: 1,6,25,29 | RR10: 1,6,25,29 | RS10: 1,6,25,29 | RT10: 1,6,25,29 | RU10: 1,6,25,29 | RV10: 1,6,25,29 | RW10: 1,6,25,29 | RX10: 1,6,25,29 | RY10: 1,6,25,29 | RZ10: 1,6,25,29 | SA10: 1,6,25,29 | SB10: 1,6,25,29 | SC10: 1,6,25,29 | SD10: 1,6,25,29 | SE10: 1,6,25,29 | SF10: 1,6,25,29 | SG10: 1,6,25,29 | SH10: 1,6,25,29 | SI10: 1,6,25,29 | SJ10: =IFERROR(FIND(",",$SI$10,SK10),0) -> 0 | SK10: 8 | SL10: 28 | SM10: 1
A11: =IF(AND(INDEX(C11:SI11,$B$4)>=360,INDEX(C11:SI11,$B$4)<=830),INDEX(C11:SI11,$B$4),"") -> 380 | B11: =IF($F$6,INDEX(D11:SI11,$B$1),"") -> 4.679166451 | C11: 360 | D11: 6.14462 | E11: 46.6383 | F11: 0.9358308541 | H11: 380 | I11: 1.18 | J11: 2.56 | K11: 0.91 | L11: 8.94 | M11: 3.46 | N11: 3.79 | O11: 0.25 | P11: 1.62 | Q11: 300 | R11: 1.9 | S11: 2.64 | T11: 3.15 | U11: 0.002748895 | V11: 0.002825336 | W11: 33 | X11: 4.679166451 | Y11: 0.0001439673302 | AA11: 380 | AB11: 0.0001439673302 | AC11: 0.9358351527 | AE11: 380 | AF11: 1 | SJ11: =IFERROR(FIND(",",$SI$10,SK11),0) -> 0 | SK11: =IF(SJ10>0,SJ10+1,SK10) -> 8 | SL11: 29 | SM11: 1
A12: =IF(AND(INDEX(C12:SI12,$B$4)>=360,INDEX(C12:SI12,$B$4)<=830),INDEX(C12:SI12,$B$4),"") -> 385 | B12: =IF($F$6,INDEX(D12:SI12,$B$1),"") -> 4.679166451 | C12: 361 | D12: 6.29955 | E12: 47.1834 | F12: 0.9358308541 | H12: 385 | I12: 1.48 | J12: 3.18 | K12: 0.63 | L12: 11.21 | M12: 3.86 | N12: 2.56 | O12: 0 | P12: 2.06 | Q12: 286 | R12: 2.2 | S12: 2.77 | T12: 7.49 | U12: 0.005324829 | V12: 0.006309478 | W12: 39.92 | X12: 4.679166451 | Y12: 0.0002929808286 | AA12: 381 | AB12: 0.0001659506829 | AC12: 0.9358351527 | AE12: 381 | AF12: 1 | SJ12: =IFERROR(FIND(",",$SI$10,SK12),0) -> 0 | SK12: =IF(SJ11>0,SJ11+1,SK11) -> 8 | SL12: 29 | SM12: 1
A13: 390 | B13: 4.679166451 | C13: 362 | D13: 6.45724 | E13: 47.7285 | F13: 0.9358308541 | H13: 390 | I13: 1.84 | J13: 3.84 | K13: 0.46 | L13: 14.08 | M13: 4.41 | N13: 1.91 | O13: 0 | P13: 2.71 | Q13: 268 | R13: 2.5 | S13: 3.42 | T13: 10.87 | U13: 0.010314601 | V13: 0.014090142 | W13: 47.4 | X13: 4.679166451 | Y13: 0.0005962297137 | AA13: 382 | AB13: 0.0001912908155 | AC13: 0.9358351527 | AE13: 382 | AF13: 1 | SJ13: 0 | SK13: 8 | SL13: 29 | SM13: 1
A14: 395 | B14: 4.679166451 | C14: 363 | D14: 6.61774 | E14: 48.2735 | F14: 0.9358308541 | H14: 395 | I14: 2.15 | J14: 4.53 | K14: 0.37 | L14: 16.48 | M14: 4.51 | N14: 1.42 | O14: 0 | P14: 3.11 | Q14: 244 | R14: 2.7 | S14: 3.68 | T14: 12.57 | U14: 0.019980107 | V14: 0.031465488 | W14: 55.17 | X14: 4.679166451 | Y14: 0.001213350631 | AA14: 383 | AB14: 0.0002205002937 | AC14: 0.9358351527 | AE14: 383 | AF14: 1 | SJ14: 0 | SK14: 8 | SL14: 29 | SM14: 1
A15: 400 | B15: 4.679166451 | C15: 364 | D15: 6.78105 | E15: 48.8186 | F15: 0.9358308541 | H15: 400 | I15: 3.44 | J15: 6.15 | K15: 1.29 | L15: 19.63 | M15: 4.86 | N15: 1.51 | O15: 0.69 | P15: 3.67 | Q15: 304 | R15: 3.1 | S15: 4.33 | T15: 12.97 | U15: 0.038702634 | V15: 0.070266323 | W15: 63.3 | X15: 4.679166451 | Y15: 0.002469195907 | AA15: 384 | AB15: 0.0002541699489 | AC15: 0.9358351527 | AE15: 384 | AF15: 1 | SJ15: 0 | SK15: 8 | SL15: 29 | SM15: 1
A16: 405 | B16: 4.679166451 | C16: 365 | D16: 6.9472 | E16: 49.3637 | F16: 0.9358308541 | H16: 405 | I16: 15.69 | J16: 19.37 | K16: 12.68 | L16: 116.33 | M16: 71.22 | N16: 73.64 | O16: 21.24 | P16: 74.6 | Q16: 581 | R16: 4.3 | S16: 5.5 | T16: 21.29 | U16: 0.074968361 | V16: 0.156908255 | W16: 71.81 | X16: 4.679166451 | Y16: 0.005024787526 | AA16: 385 | AB16: 0.0002929808286 | AC16: 0.9358351527 | AE16: 385 | AF16: 1 | SJ16: 0 | SK16: 8 | SL16: 29 | SM16: 1
A17: 410 | B17: 4.679166451 | C17: 366 | D17: 7.11621 | E17: 49.9088 | F17: 0.9358308541 | H17: 410 | I17: 3.85 | J17: 7.37 | K17: 1.59 | L17: 32.07 | M17: 8.72 | N17: 7.37 | O17: 2.18 | P17: 8.88 | Q17: 225 | R17: 3.8 | S17: 5.94 | T17: 26.29 | U17: 0.14521298 | V17: 0.350358506 | W17: 80.6 | X17: 4.679166451 | Y17: 0.01022505048 | AA17: 386 | AB17: 0.0003377179716 | AC17: 0.9358351527 | AE17: 386 | AF17: 1 | SJ17: 0 | SK17: 8 | SL17: 29 | SM17: 1
A18: 415 | B18: 4.679166451 | C18: 367 | D18: 7.28811 | E18: 50.4539 | F18: 0.9358308541 | H18: 415 | I18: 3.74 | J18: 7.05 | K18: 1.79 | L18: 29.72 | M18: 5.36 | N18: 4.69 | O18: 1.86 | P18: 4.77 | Q18: 155 | R18: 4.2 | S18: 7.2 | T18: 30.18 | U18: 0.282963786 | V18: 0.780602962 | W18: 89.53 | X18: 4.679166451 | Y18: 0.0208186981 | AA18: 387 | AB18: 0.0003892862857 | AC18: 0.9358351527 | AE18: 387 | AF18: 1 | SJ18: 0 | SK18: 8 | SL18: 29 | SM18: 1
A19: 420 | B19: 4.679166451 | C19: 368 | D19: 7.46292 | E19: 50.9989 | F19: 0.9358308541 | H19: 420 | I19: 4.19 | J19: 7.71 | K19: 2.46 | L19: 33.39 | M19: 5.61 | N19: 5.33 | O19: 3.1 | P19: 4.72 | Q19: 152 | R19: 4.8 | S19: 9.02 | T19: 43.06 | U19: 0.525864517 | V19: 1.674673414 | W19: 98.1 | X19: 4.679166451 | Y19: 0.04214673181 | AA19: 388 | AB19: 0.0004487288509 | AC19: 0.9358351527 | AE19: 388 | AF19: 1 | SJ19: 0 | SK19: 8 | SL19: 29 | SM19: 1
A20: 425 | B20: 4.679166451 | C20: 369 | D20: 7.64066 | E20: 51.544 | F20: 0.9358308541 | H20: 425 | I20: 4.62 | J20: 8.41 | K20: 3.33 | L20: 36.94 | M20: 5.91 | N20: 6.75 | O20: 5 | P20: 4.72 | Q20: 170 | R20: 5.19 | S20: 10.27 | T20: 29.58 | U20: 0.91968226 | V20: 3.295815386 | W20: 105.8 | X20: 4.679166451 | Y20: 0.08039641379 | AA20: 389 | AB20: 0.0005172480153 | AC20: 0.9358351527 | AE20: 389 | AF20: 1 | SJ20: 0 | SK20: 8 | SL20: 29 | SM20: 1
A21: 430 | B21: 4.679166451 | C21: 370 | D21: 7.82135 | E21: 52.0891 | F21: 0.9358308541 | H21: 430 | I21: 5.06 | J21: 9.15 | K21: 4.49 | L21: 40.33 | M21: 6.42 | N21: 8.51 | O21: 7.03 | P21: 4.94 | Q21: 295 | R21: 5.89 | S21: 12.48 | T21: 23.18 | U21: 1.538681532 | V21: 5.940309963 | W21: 112.4 | X21: 4.679166451 | Y21: 0.1404817245 | AA21: 390 | AB21: 0.0005962297137 | AC21: 0.9358351527 | AE21: 390 | AF21: 1 | SJ21: 0 | SK21: 8 | SL21: 29 | SM21: 1
A22: 435 | B22: 4.679166451 | C22: 371 | D22: 8.00501 | E22: 51.8777 | F22: 0.9358308541 | H22: 435 | I22: 34.98 | J22: 44.14 | K22: 33.94 | L22: 262.66 | M22: 192.77 | N22: 181.81 | O22: 45.08 | P22: 150.29 | Q22: 1417 | R22: 7.39 | S22: 16.82 | T22: 35.28 | U22: 2.519605524 | V22: 9.921219002 | W22: 117.75 | X22: 4.679166451 | Y22: 0.2251112935 | AA22: 391 | AB22: 0.0006872714969 | AC22: 0.9358351527 | AE22: 391 | AF22: 1 | SJ22: 0 | SK22: 8 | SL22: 29 | SM22: 1
A23: 440 | B23: 4.679166451 | C23: 372 | D23: 8.19167 | E23: 51.6664 | F23: 0.9358308541 | H23: 440 | I23: 11.81 | J23: 17.52 | K23: 12.13 | L23: 46.87 | M23: 7.77 | N23: 11.71 | O23: 16.78 | P23: 6.08 | Q23: 607 | R23: 7.89 | S23: 16.04 | T23: 26.29 | U23: 4.159351673 | V23: 16.14825392 | W23: 121.5 | X23: 4.679166451 | Y23: 0.3374061745 | AA23: 392 | AB23: 0.0007922148416 | AC23: 0.9358351527 | AE23: 392 | AF23: 1 | SJ23: 0 | SK23: 8 | SL23: 29 | SM23: 1
A24: 445 | B24: 4.679166451 | C24: 373 | D24: 8.38134 | E24: 51.455 | F24: 0.9358308541 | H24: 445 | I24: 6.27 | J24: 11.35 | K24: 6.95 | L24: 49.79 | M24: 8.37 | N24: 11.96 | O24: 12.28 | P24: 7.13 | Q24: 343 | R24: 5.69 | S24: 15.26 | T24: 24.29 | U24: 6.390312767 | V24: 25.15432425 | W24: 123.45 | X24: 4.679166451 | Y24: 0.478529769 | AA24: 393 | AB24: 0.0009131823915 | AC24: 0.9358351527 | AE24: 393 | AF24: 1 | SJ24: 0 | SK24: 8 | SL24: 29 | SM24: 1
A25: 450 | B25: 4.679166451 | C25: 374 | D25: 8.57404 | E25: 51.2437 | F25: 0.9358308541 | H25: 450 | I25: 6.63 | J25: 12 | K25: 7.19 | L25: 52.46 | M25: 9.22 | N25: 12.18 | O25: 13.31 | P25: 9.1 | Q25: 386 | R25: 12.89 | S25: 22.58 | T25: 22.91 | U25: 7.891599953 | V25: 32.34186396 | W25: 124 | X25: 4.679166451 | Y25: 0.6042734828 | AA25: 394 | AB25: 0.001052620884 | AC25: 0.9358351527 | AE25: 394 | AF25: 1 | SJ25: 0 | SK25: 8 | SL25: 29 | SM25: 1
A26: 455 | B26: 4.679166451 | C26: 375 | D26: 8.7698 | E26: 51.0323 | F26: 0.9358308541 | H26: 455 | I26: 6.93 | J26: 12.58 | K26: 7.12 | L26: 54.81 | M26: 10.18 | N26: 11.9 | O26: 13.66 | P26: 11.76 | Q26: 430 | R26: 6.69 | S26: 20.07 | T26: 26.2 | U26: 7.566117132 | V26: 31.17858223 | W26: 123.6 | X26: 4.679166451 | Y26: 0.6326596643 | AA26: 395 | AB26: 0.001213350631 | AC26: 0.9358351527 | AE26: 395 | AF26: 1 | SJ26: 0 | SK26: 8 | SL26: 29 | SM26: 1
A27: 460 | B27: 4.679166451 | C27: 376 | D27: 8.96864 | E27: 50.8209 | F27: 0.9358308541 | H27: 460 | I27: 7.19 | J27: 13.08 | K27: 6.72 | L27: 56.81 | M27: 11.18 | N27: 11.16 | O27: 13.69 | P27: 14.96 | Q27: 469 | R27: 4.3 | S27: 15.13 | T27: 29.31 | U27: 6.250842435 | V27: 23.45907265 | W27: 123.1 | X27: 4.679166451 | Y27: 0.5509770224 | AA27: 396 | AB27: 0.001398622545 | AC27: 0.9358351527 | AE27: 396 | AF27: 1 | SJ27: 0 | SK27: 8 | SL27: 29 | SM27: 1
A28: 465 | B28: 4.679166451 | C28: 377 | D28: 9.17056 | E28: 50.6096 | F28: 0.9358308541 | H28: 465 | I28: 7.4 | J28: 13.45 | K28: 6.13 | L28: 58.44 | M28: 12.28 | N28: 11.22 | O28: 13.13 | P28: 18.54 | Q28: 502 | R28: 20.78 | S28: 25.27 | T28: 25.3 | U28: 5.157677782 | V28: 16.39122295 | W28: 123.3 | X28: 4.679166451 | Y28: 0.4360197986 | AA28: 397 | AB28: 0.001612183882 | AC28: 0.9358351527 | AE28: 397 | AF28: 1 | SJ28: 0 | SK28: 8 | SL28: 29 | SM28: 1
A29: 470 | B29: 4.679166451 | C29: 378 | D29: 9.37561 | E29: 50.3982 | F29: 0.9358308541 | H29: 470 | I29: 7.54 | J29: 13.71 | K29: 5.46 | L29: 59.52 | M29: 13.38 | N29: 9.83 | O29: 12.28 | P29: 22.48 | Q29: 531 | R29: 12.99 | S29: 28.04 | T29: 28.14 | U29: 4.368078377 | V29: 12.08052206 | W29: 123.8 | X29: 4.679166451 | Y29: 0.3458083484 | AA29: 398 | AB29: 0.001858354004 | AC29: 0.9358351527 | AE29: 398 | AF29: 1 | SJ29: 0 | SK29: =IF(SJ28>0,SJ28+1,SK28) -> 8 | SL29: 29 | SM29: 1
A30: 475 | B30: 4.679166451 | C30: 379 | D30: 9.58378 | E30: 50.1869 | F30: 0.9358308541 | H30: 475 | I30: 7.62 | J30: 13.88 | K30: 4.79 | L30: 60.12 | M30: 14.54 | N30: 8.94 | O30: 11.42 | P30: 26.76 | Q30: 552 | R30: 6.69 | S30: 15.99 | T30: 24.05 | U30: 3.835307401 | V30: 9.080200681 | W30: 124.09 | X30: 4.679166451 | Y30: 0.2815976433 | AA30: 399 | AB30: 0.002142111713 | AC30: 0.9358351527 | AE30: 399 | AF30: 1 | SJ30: 0 | SK30: 8 | SL30: 29 | SM30: 1
A31: 480 | B31: 4.679166451 | C31: 380 | D31: 9.7951 | E31: 49.9755 | F31: 0.9358308541 | H31: 480 | I31: 7.65 | J31: 13.95 | K31: 5.66 | L31: 60.24 | M31: 15.74 | N31: 12.08 | O31: 11.66 | P31: 31.66 | Q31: 567 | R31: 1.4 | S31: 10.4 | T31: 21.82 | U31: 3.701303471 | V31: 7.21160387 | W31: 123.9 | X31: 4.679166451 | Y31: 0.2368194507 | AA31: 400 | AB31: 0.002469195907 | AC31: 0.9358351527 | AE31: 400 | AF31: 1 | SJ31: 0 | SK31: 8 | SL31: 29 | SM31: 1
A32: 485 | B32: 4.679166451 | C32: 381 | D32: 10.0096 | E32: 50.4428 | F32: 0.9358308541 | H32: 485 | I32: 7.62 | J32: 13.93 | K32: 14.29 | L32: 59.88 | M32: 17.09 | N32: 52.56 | O32: 22.04 | P32: 40.93 | Q32: 572 | R32: 1.5 | S32: 11.1 | T32: 20.51 | U32: 3.881165277 | V32: 6.477890886 | W32: 122.92 | X32: 4.679166451 | Y32: 0.2128557866 | AA32: 401 | AB32: 0.002846221592 | AC32: 0.9358351527 | AE32: 401 | AF32: 1 | SJ32: 0 | SK32: 8 | SL32: 29 | SM32: 1
A33: =IF(AND(INDEX(C33:SI33,$B$4)>=360,INDEX(C33:SI33,$B$4)<=830),INDEX(C33:SI33,$B$4),"") -> 490 | B33: =IF($F$6,INDEX(D33:SI33,$B$1),"") -> 4.679166451 | C33: 382 | D33: 10.2273 | E33: 50.91 | F33: 0.9358308541 | H33: 490 | I33: 7.62 | J33: 13.82 | K33: 14.96 | L33: 59.88 | M33: 19.6 | N33: 55.42 | O33: 26.17 | P33: 45.83 | Q33: 575 | R33: 3.2 | S33: 13.44 | T33: 23.05 | U33: 4.257788814 | V33: 6.488824078 | W33: 120.7 | X33: 4.679166451 | Y33: 0.2099317403 | AA33: 402 | AB33: 0.003280813598 | AC33: 0.9358351527 | AE33: 402 | AF33: 1 | SJ33: 0 | SK33: 8 | SL33: 29 | SM33: 1
A34: 495 | B34: 4.679166451 | C34: 383 | D34: 10.4481 | E34: 51.3773 | F34: 0.9358308541 | H34: 495 | I34: 7.45 | J34: 13.64 | K34: 8.97 | L34: 58.6 | M34: 21.05 | N34: 31.69 | O34: 18.57 | P34: 46 | Q34: 561 | R34: 18.18 | S34: 22.62 | T34: 26.98 | U34: 4.787373225 | V34: 7.049828697 | W34: 116.9 | X34: 4.679166451 | Y34: 0.2256596165 | AA34: 403 | AB34: 0.003781760683 | AC34: 0.9358351527 | AE34: 403 | AF34: 1 | SJ34: 0 | SK34: 8 | SL34: 29 | SM34: 1
A35: 500 | B35: 4.679166451 | C35: 384 | D35: 10.6722 | E35: 51.8446 | F35: 0.9358308541 | H35: 500 | I35: 7.28 | J35: 13.43 | K35: 4.72 | L35: 57.85 | M35: 23.96 | N35: 16.03 | O35: 11.36 | P35: 45.26 | Q35: 548 | R35: 56.24 | S35: 49.71 | T35: 30.96 | U35: 5.406324451 | V35: 8.099518029 | W35: 112.1 | X35: 4.679166451 | Y35: 0.259988358 | AA35: 404 | AB35: 0.004359193148 | AC35: 0.9358351527 | AE35: 404 | AF35: 1 | SJ35: 0 | SK35: 8 | SL35: 29 | SM35: 1
A36: 505 | B36: 4.679166451 | C36: 385 | D36: 10.8996 | E36: 52.3118 | F36: 0.9358308541 | H36: 505 | I36: 7.15 | J36: 13.25 | K36: 2.33 | L36: 56.29 | M36: 27.77 | N36: 6.72 | O36: 6.83 | P36: 43.16 | Q36: 527 | R36: 2.9 | S36: 17.21 | T36: 30.72 | U36: 6.051291326 | V36: 9.450486805 | W36: 106.98 | X36: 4.679166451 | Y36: 0.3108416663 | AA36: 405 | AB36: 0.005024787526 | AC36: 0.9358351527 | AE36: 405 | AF36: 1 | SJ36: 0 | SK36: 8 | SL36: 29 | SM36: 1
A37: 510 | B37: 4.679166451 | C37: 386 | D37: 11.1302 | E37: 52.7791 | F37: 0.9358308541 | H37: 510 | I37: 7.05 | J37: 13.08 | K37: 1.47 | L37: 54.81 | M37: 32.68 | N37: 4.59 | O37: 5.58 | P37: 41.63 | Q37: 507 | R37: 2.1 | S37: 17.12 | T37: 27.13 | U37: 6.696100036 | V37: 10.88178529 | W37: 102.3 | X37: 4.679166451 | Y37: 0.3716141471 | AA37: 406 | AB37: 0.005792002479 | AC37: 0.9358351527 | AE37: 406 | AF37: 1 | SJ37: 0 | SK37: 8 | SL37: 29 | SM37: 1
A38: 515 | B38: 4.679166451 | C38: 387 | D38: 11.364 | E38: 53.2464 | F38: 0.9358308541 | H38: 515 | I38: 7.04 | J38: 12.93 | K38: 1.1 | L38: 53.42 | M38: 38.29 | N38: 3.67 | O38: 4.88 | P38: 39.75 | Q38: 482 | R38: 13.39 | S38: 27.26 | T38: 29.55 | U38: 7.338650356 | V38: 12.21782069 | W38: 98.81 | X38: 4.679166451 | Y38: 0.436063918 | AA38: 407 | AB38: 0.00667635065 | AC38: 0.9358351527 | AE38: 407 | AF38: 1 | SJ38: 0 | SK38: 8 | SL38: 29 | SM38: 1
A39: 520 | B39: 4.679166451 | C39: 388 | D39: 11.6012 | E39: 53.7137 | F39: 0.9358308541 | H39: 520 | I39: 7.16 | J39: 12.78 | K39: 0.89 | L39: 52.7 | M39: 43.76 | N39: 3.02 | O39: 4.31 | P39: 37.83 | Q39: 461 | R39: 2.1 | S39: 20.02 | T39: 34.22 | U39: 7.983256522 | V39: 13.37629078 | W39: 96.9 | X39: 4.679166451 | Y39: 0.4993197121 | AA39: 408 | AB39: 0.007695711931 | AC39: 0.9358351527 | AE39: 408 | AF39: 1 | SJ39: 0 | SK39: 8 | SL39: 29 | SM39: 1
A40: 525 | B40: 4.679166451 | C40: 389 | D40: 11.8416 | E40: 54.1809 | F40: 0.9358308541 | H40: 525 | I40: 7.47 | J40: 12.6 | K40: 0.83 | L40: 52.5 | M40: 47.72 | N40: 3.21 | O40: 3.76 | P40: 36.16 | Q40: 438 | R40: 2 | S40: 21.54 | T40: 29.98 | U40: 8.637170667 | V40: 14.29472241 | W40: 96.78 | X40: 4.679166451 | Y40: 0.5589507242 | AA40: 409 | AB40: 0.008870694441 | AC40: 0.9358351527 | AE40: 409 | AF40: 1 | SJ40: 0 | SK40: 8 | SL40: 29 | SM40: 1
A41: 530 | B41: 4.679166451 | C41: 390 | D41: 12.0853 | E41: 54.6482 | F41: 0.9358308541 | H41: 530 | I41: 8.04 | J41: 12.44 | K41: 1.18 | L41: 53.3 | M41: 50.27 | N41: 4.9 | O41: 3.61 | P41: 35.25 | Q41: 418 | R41: 2.2 | S41: 23.36 | T41: 41.21 | U41: 9.314749493 | V41: 14.98354399 | W41: 98 | X41: 4.679166451 | Y41: 0.6123181729 | AA41: 410 | AB41: 0.01022505048 | AC41: 0.9358351527 | AE41: 410 | AF41: 1 | SJ41: 0 | SK41: 8 | SL41: 29 | SM41: 1
A42: 535 | B42: 4.679166451 | C42: 391 | D42: 12.3324 | E42: 57.4589 | F42: 0.9358308541 | H42: 535 | I42: 8.88 | J42: 12.33 | K42: 4.9 | L42: 54.89 | M42: 51.78 | N42: 19.05 | O42: 5.62 | P42: 37.04 | Q42: 404 | R42: 2.3 | S42: 25.66 | T42: 173.14 | U42: 10.01913206 | V42: 15.47762405 | W42: 99.94 | X42: 4.679166451 | Y42: 0.6584465473 | AA42: 411 | AB42: 0.01177244356 | AC42: 0.9358351527 | AE42: 411 | AF42: 1 | SJ42: 0 | SK42: 8 | SL42: 29 | SM42: 1
A43: 540 | B43: 4.679166451 | C43: 392 | D43: 12.5828 | E43: 60.2695 | F43: 0.9358308541 | H43: 540 | I43: 10.01 | J43: 12.26 | K43: 39.59 | L43: 57.61 | M43: 52.68 | N43: 177.64 | O43: 38.59 | P43: 59.86 | Q43: 429 | R43: 2.6 | S43: 29.69 | T43: 141.37 | U43: 10.75736353 | V43: 15.81091638 | W43: 102.1 | X43: 4.679166451 | Y43: 0.6984818084 | AA43: 412 | AB43: 0.01351571161 | AC43: 0.9358351527 | AE43: 412 | AF43: 1 | SJ43: 0 | SK43: 8 | SL43: 29 | SM43: 1
A44: 545 | B44: 4.679166451 | C44: 393 | D44: 12.8366 | E44: 63.0802 | F44: 0.9358308541 | H44: 545 | I44: 24.88 | J44: 29.52 | K44: 72.84 | L44: 182.75 | M44: 167.36 | N44: 347.34 | O44: 100 | P44: 183.53 | Q44: 1016 | R44: 5.1 | S44: 43.12 | T44: 64.98 | U44: 11.53295136 | V44: 16.00586008 | W44: 103.95 | X44: 4.679166451 | Y44: 0.7354917628 | AA44: 413 | AB44: 0.01555537469 | AC44: 0.9358351527 | AE44: 413 | AF44: 1 | SJ44: 0 | SK44: 8 | SL44: 29 | SM44: 1
A45: 550 | B45: 4.679166451 | C45: 394 | D45: 13.0938 | E45: 65.8909 | F45: 0.9358308541 | H45: 550 | I45: 16.64 | J45: 17.05 | K45: 32.61 | L45: 65.27 | M45: 55.29 | N45: 116.8 | O45: 36.54 | P45: 59.03 | Q45: 581 | R45: 11.39 | S45: 98.3 | T45: 33.83 | U45: 12.37598745 | V45: 16.10410239 | W45: 105.2 | X45: 4.679166451 | Y45: 0.7706611213 | AA45: 414 | AB45: 0.01797361648 | AC45: 0.9358351527 | AE45: 414 | AF45: 1 | SJ45: 0 | SK45: 8 | SL45: 29 | SM45: 1
A46: 555 | B46: 4.679166451 | C46: 395 | D46: 13.3543 | E46: 68.7015 | F46: 0.9358308541 | H46: 555 | I46: 14.59 | J46: 12.44 | K46: 7.52 | L46: 69.41 | M46: 56.94 | N46: 31.87 | O46: 10.57 | P46: 47.93 | Q46: 370 | R46: 15.48 | S46: 125.6 | T46: 34.26 | U46: 13.27628585 | V46: 16.13466669 | W46: 105.67 | X46: 4.679166451 | Y46: 0.8041968898 | AA46: 415 | AB46: 0.0208186981 | AC46: 0.9358351527 | AE46: 415 | AF46: 1 | SJ46: 0 | SK46: 8 | SL46: 29 | SM46: 1
A47: 560 | B47: 4.679166451 | C47: 396 | D47: 13.6182 | E47: 71.5122 | F47: 0.9358308541 | H47: 560 | I47: 16.16 | J47: 12.58 | K47: 2.83 | L47: 73.28 | M47: 59.3 | N47: 16.37 | O47: 2.98 | P47: 48.67 | Q47: 368 | R47: 20.78 | S47: 134.57 | T47: 33.32 | U47: 14.22599571 | V47: 16.09579246 | W47: 105.3 | X47: 4.679166451 | Y47: 0.8362255231 | AA47: 416 | AB47: 0.02405099826 | AC47: 0.9358351527 | AE47: 416 | AF47: 1 | SJ47: 0 | SK47: 8 | SL47: 29 | SM47: 1
A48: 565 | B48: 4.679166451 | C48: 397 | D48: 13.8855 | E48: 74.3229 | F48: 0.9358308541 | H48: 565 | I48: 17.56 | J48: 12.72 | K48: 1.96 | L48: 76.56 | M48: 62.15 | N48: 14.92 | O48: 2.05 | P48: 52.69 | Q48: 371 | R48: 55.64 | S48: 149.7 | T48: 52.8 | U48: 15.19858544 | V48: 15.98100525 | W48: 104.11 | X48: 4.679166451 | Y48: 0.8675059534 | AA48: 417 | AB48: 0.02777233355 | AC48: 0.9358351527 | AE48: 417 | AF48: 1 | SJ48: 0 | SK48: 8 | SL48: 29 | SM48: 1
A49: 570 | B49: 4.679166451 | C49: 398 | D49: 14.1563 | E49: 77.1336 | F49: 0.9358308541 | H49: 570 | I49: 18.62 | J49: 12.83 | K49: 1.67 | L49: 78.67 | M49: 65.26 | N49: 14.12 | O49: 1.84 | P49: 57.24 | Q49: 377 | R49: 254.03 | S49: 166.12 | T49: 74.29 | U49: 16.19956368 | V49: 15.77419334 | W49: 102.3 | X49: 4.679166451 | Y49: 0.8976098757 | AA49: 418 | AB49: 0.03198645153 | AC49: 0.9358351527 | AE49: 418 | AF49: 1 | SJ49: 0 | SK49: 8 | SL49: 29 | SM49: 1
A50: 575 | B50: 4.679166451 | C50: 399 | D50: 14.4304 | E50: 79.9442 | F50: 0.9358308541 | H50: 575 | I50: 21.47 | J50: 15.46 | K50: 4.43 | L50: 95.74 | M50: 84.26 | N50: 29.5 | O50: 6.09 | P50: 77.75 | Q50: 490 | R50: 56.14 | S50: 98.77 | T50: 47.97 | U50: 17.18946862 | V50: 15.49993127 | W50: 100.15 | X50: 4.679166451 | Y50: 0.9261486203 | AA50: 419 | AB50: 0.03675468887 | AC50: 0.9358351527 | AE50: 419 | AF50: 1 | SJ50: 0 | SK50: 8 | SL50: 29 | SM50: 1
A51: 580 | B51: 4.679166451 | C51: 400 | D51: 14.708 | E51: 82.7549 | F51: 0.9358308541 | H51: 580 | I51: 22.79 | J51: 16.75 | K51: 11.28 | L51: 97.22 | M51: 89.22 | N51: 61.4 | O51: 17.27 | P51: 87.81 | Q51: 525 | R51: 111.78 | S51: 30.47 | T51: 49.2 | U51: 18.14084707 | V51: 15.15387643 | W51: 97.8 | X51: 4.679166451 | Y51: 0.951638144 | AA51: 420 | AB51: 0.04214673181 | AC51: 0.9358351527 | AE51: 420 | AF51: 1 | SJ51: 0 | SK51: 8 | SL51: 29 | SM51: 1
A52: 585 | B52: 4.679166451 | C52: 401 | D52: 14.9891 | E52: 83.628 | F52: 0.9358308541 | H52: 585 | I52: 19.29 | J52: 12.83 | K52: 14.76 | L52: 76.79 | M52: 75.79 | N52: 85.05 | O52: 21.77 | P52: 80.55 | Q52: 402 | R52: 297.98 | S52: 1.17 | T52: 96.07 | U52: 19.01858161 | V52: 14.76058058 | W52: 95.43 | X52: 4.679166451 | Y52: 0.9735809137 | AA52: 421 | AB52: 0.04824887974 | AC52: 0.9358351527 | AE52: 421 | AF52: 1 | SJ52: 0 | SK52: 8 | SL52: 29 | SM52: 1
A53: 590 | B53: 4.679166451 | C53: 402 | D53: 15.2736 | E53: 84.5011 | F53: 0.9358308541 | H53: 590 | I53: 18.66 | J53: 12.67 | K53: 12.73 | L53: 73.36 | M53: 79.19 | N53: 64.86 | O53: 18.72 | P53: 84.83 | Q53: 404 | R53: 142.55 | S53: 0.39 | T53: 85.41 | U53: 19.77736842 | V53: 14.30596901 | W53: 93.2 | X53: 4.679166451 | Y53: 0.9889912796 | AA53: 422 | AB53: 0.05507117429 | AC53: 0.9358351527 | AE53: 422 | AF53: 1 | SJ53: 0 | SK53: 8 | SL53: 29 | SM53: 1
A54: 595 | B54: 4.679166451 | C54: 403 | D54: 15.5616 | E54: 85.3742 | F54: 0.9358308541 | H54: 595 | I54: 17.73 | J54: 12.45 | K54: 9.74 | L54: 69.33 | M54: 82.8 | N54: 65.01 | O54: 10.15 | P54: 86.84 | Q54: 412 | R54: 334.84 | S54: 1.65 | T54: 175.18 | U54: 20.38151682 | V54: 13.79251415 | W54: 91.22 | X54: 4.679166451 | Y54: 0.9976716654 | AA54: 423 | AB54: 0.06272896263 | AC54: 0.9358351527 | AE54: 423 | AF54: 1 | SJ54: 0 | SK54: 8 | SL54: 29 | SM54: 1
A55: 600 | B55: 4.679166451 | C55: 404 | D55: 15.853 | E55: 86.2473 | F55: 0.9358308541 | H55: 600 | I55: 16.54 | J55: 12.19 | K55: 7.33 | L55: 64.23 | M55: 85.76 | N55: 53.17 | O55: 7.26 | P55: 91.44 | Q55: 418 | R55: 189.4 | S55: 21.41 | T55: 153.73 | U55: 20.79688834 | V55: 13.21717299 | W55: 89.7 | X55: 4.679166451 | Y55: 0.999710445 | AA55: 424 | AB55: 0.07115989599 | AC55: 0.9358351527 | AE55: 424 | AF55: 1 | SJ55: 0 | SK55: 8 | SL55: 29 | SM55: 1
A56: 605 | B56: 4.679166451 | C56: 405 | D56: 16.148 | E56: 87.1204 | F56: 0.9358308541 | H56: 605 | I56: 15.21 | J56: 11.89 | K56: 9.72 | L56: 58.92 | M56: 88.62 | N56: 34.22 | O56: 5.17 | P56: 96.51 | Q56: 425 | R56: 117.78 | S56: 76.11 | T56: 120.22 | U56: 20.99695035 | V56: 12.58630064 | W56: 88.83 | X56: 4.679166451 | Y56: 0.9924998171 | AA56: 425 | AB56: 0.08039641379 | AC56: 0.9358351527 | AE56: 425 | AF56: 1 | SJ56: 0 | SK56: 8 | SL56: 29 | SM56: 1
A57: 610 | B57: 4.679166451 | C57: 406 | D57: 16.4464 | E57: 87.9936 | F57: 0.9358308541 | H57: 610 | I57: 13.8 | J57: 11.6 | K57: 55.27 | L57: 53.38 | M57: 91.12 | N57: 427.27 | O57: 56.66 | P57: 105.25 | Q57: 428 | R57: 79.92 | S57: 126.16 | T57: 98.9 | U57: 20.97124777 | V57: 11.90981724 | W57: 88.4 | X57: 4.679166451 | Y57: 0.9776272769 | AA57: 426 | AB57: 0.09053832564 | AC57: 0.9358351527 | AE57: 426 | AF57: 1 | SJ57: 0 | SK57: 8 | SL57: 29 | SM57: 1
A58: 615 | B58: 4.679166451 | C58: 407 | D58: 16.7484 | E58: 88.8667 | F58: 0.9358308541 | H58: 615 | I58: 12.36 | J58: 11.35 | K58: 42.58 | L58: 47.91 | M58: 93.43 | N58: 201.1 | O58: 49.39 | P58: 106.74 | Q58: 432 | R58: 108.09 | S58: 161.96 | T58: 90.22 | U58: 20.70733581 | V58: 11.20367346 | W58: 88.19 | X58: 4.679166451 | Y58: 0.9571029272 | AA58: 427 | AB58: 0.1015721152 | AC58: 0.9358351527 | AE58: 427 | AF58: 1 | SJ58: 0 | SK58: 8 | SL58: 29 | SM58: 1
A59: 620 | B59: 4.679166451 | C59: 408 | D59: 17.0538 | E59: 89.7398 | F59: 0.9358308541 | H59: 620 | I59: 10.95 | J59: 11.12 | K59: 13.18 | L59: 42.61 | M59: 96.89 | N59: 58.63 | O59: 18.57 | P59: 108.53 | Q59: 433 | R59: 46.85 | S59: 160.06 | T59: 70.07 | U59: 20.22525849 | V59: 10.46761606 | W59: 88.1 | X59: 4.679166451 | Y59: 0.9269944485 | AA59: 428 | AB59: 0.113551889 | AC59: 0.9358351527 | AE59: 428 | AF59: 1 | SJ59: 0 | SK59: 8 | SL59: 29 | SM59: 1
A60: 625 | B60: 4.679166451 | C60: 409 | D60: 17.3628 | E60: 90.6129 | F60: 0.9358308541 | H60: 625 | I60: 9.65 | J60: 10.95 | K60: 13.16 | L60: 37.74 | M60: 101.45 | N60: 72.01 | O60: 14.21 | P60: 106.92 | Q60: 431 | R60: 38.16 | S60: 158.19 | T60: 66.84 | U60: 19.56409074 | V60: 9.729740834 | W60: 88.06 | X60: 4.679166451 | Y60: 0.888150423 | AA60: 429 | AB60: 0.1265428744 | AC60: 0.9358351527 | AE60: 429 | AF60: 1 | SJ60: 0 | SK60: 8 | SL60: 29 | SM60: 1
A61: 630 | B61: 4.679166451 | C61: 410 | D61: 17.6753 | E61: 91.486 | F61: 0.9358308541 | H61: 630 | I61: 8.4 | J61: 10.76 | K61: 12.26 | L61: 33.11 | M61: 103.65 | N61: 88.19 | O61: 14.01 | P61: 101.54 | Q61: 427 | R61: 32.47 | S61: 153.69 | T61: 57.61 | U61: 18.75853658 | V61: 8.995837096 | W61: 88 | X61: 4.679166451 | Y61: 0.8439758487 | AA61: 430 | AB61: 0.1404817245 | AC61: 0.9358351527 | AE61: 430 | AF61: 1 | SJ61: 0 | SK61: 8 | SL61: 29 | SM61: 1
A62: 635 | B62: 4.679166451 | C62: 411 | D62: 17.9913 | E62: 91.6806 | F62: 0.9358308541 | H62: 635 | I62: 7.32 | J62: 10.42 | K62: 5.11 | L62: 29.04 | M62: 100.3 | N62: 20.07 | O62: 5.99 | P62: 95.2 | Q62: 420 | R62: 28.37 | S62: 147.4 | T62: 53.03 | U62: 17.82247338 | V62: 8.272469747 | W62: 87.86 | X62: 4.679166451 | Y62: 0.7987662289 | AA62: 431 | AB62: 0.1553315945 | AC62: 0.9358351527 | AE62: 431 | AF62: 1 | SJ62: 0 | SK62: 8 | SL62: 29 | SM62: 1
... 76 more rows

Sheet Additional TCS
A1: User defined Spectral Radiance Factor | C1: Default for TCS#15 | D1: =IF(SUMXMY2(B5:B475,C5:C475)=0,TRUE,FALSE) -> TRUE | E1: D65 | F1: 0.82414 | H1: D65 sRGB conversion matrix XYZ to RGB
A2: Munsell Notation | B2: 1 YR 6/4 | C2: 1 YR 6/4 | E2: X | F2: =100*SUMPRODUCT($B$5:$B$475,SPDs!$E$11:$E$481,'CIE1931 1-nm'!$B$9:$B$479)/$G$3 -> 0.3499594279 | H2: 3.2404542 | I2: -1.5371385 | J2: -0.4985316
A3: Description | B3: Japanese Skin Complexion | C3: Japanese Skin Complexion | E3: Y | F3: =100*SUMPRODUCT($B$5:$B$475,SPDs!$E$11:$E$481,'CIE1931 1-nm'!$C$9:$C$479)/$G$3 -> 0.3267459128 | G3: 1056708.167 | H3: -0.969266 | I3: 1.8760108 | J3: 0.0415562
A4: Wavelength (nm) | B4: TCS15 | C4: <== Cell is protected | E4: Z | F4: =100*SUMPRODUCT($B$5:$B$475,SPDs!$E$11:$E$481,'CIE1931 1-nm'!$D$9:$D$479)/$G$3 -> 0.2450839447 | H4: 0.0556434 | I4: -0.2040259 | J4: 1.0572254
A5: 360 | B5: 0.131 | C5: 0.131 | E5: R | F5: =MMULT(H2:J4,F2:F4) -> 0.5095916846
A6: 361 | B6: 0.131 | C6: 0.131 | E6: G | F6: 0.2839598438
A7: 362 | B7: 0.131 | C7: 0.131 | E7: B | F7: 0.2119172749
A8: 363 | B8: 0.131 | C8: 0.131 | E8: R | F8: =IF(F5>0,ROUND(255*(F5/$F$1)^(1/2.2),0),0) -> 205 | G8: =IF(F8>255,255,IF(F8<0,0,F8)) -> 205
A9: 364 | B9: 0.131 | C9: 0.131 | E9: G | F9: =IF(F6>0,ROUND(255*(F6/$F$1)^(1/2.2),0),0) -> 157 | G9: =IF(F9>255,255,IF(F9<0,0,F9)) -> 157
A10: 365 | B10: 0.131 | C10: 0.131 | E10: B | F10: 138 | G10: 138
A11: 366 | B11: 0.131 | C11: 0.131
A12: 367 | B12: 0.131 | C12: 0.131
A13: 368 | B13: 0.131 | C13: 0.131
A14: 369 | B14: 0.131 | C14: 0.131
A15: 370 | B15: 0.131 | C15: 0.131
A16: 371 | B16: 0.131 | C16: 0.131
A17: 372 | B17: 0.131 | C17: 0.131
A18: 373 | B18: 0.131 | C18: 0.131
A19: 374 | B19: 0.131 | C19: 0.131
A20: 375 | B20: 0.131 | C20: 0.131
A21: 376 | B21: 0.131 | C21: 0.131
A22: 377 | B22: 0.131 | C22: 0.131
A23: 378 | B23: 0.131 | C23: 0.131
A24: 379 | B24: 0.131 | C24: 0.131
A25: 380 | B25: 0.131 | C25: 0.131
A26: 381 | B26: 0.1326 | C26: 0.1326
A27: 382 | B27: 0.1342 | C27: 0.1342
A28: 383 | B28: 0.1358 | C28: 0.1358
A29: 384 | B29: 0.1374 | C29: 0.1374
A30: 385 | B30: 0.139 | C30: 0.139
A31: 386 | B31: 0.1406 | C31: 0.1406
A32: 387 | B32: 0.1422 | C32: 0.1422
A33: 388 | B33: 0.1438 | C33: 0.1438
A34: 389 | B34: 0.1454 | C34: 0.1454
A35: 390 | B35: 0.147 | C35: 0.147
A36: 391 | B36: 0.1482 | C36: 0.1482
A37: 392 | B37: 0.1494 | C37: 0.1494
A38: 393 | B38: 0.1506 | C38: 0.1506
A39: 394 | B39: 0.1518 | C39: 0.1518
A40: 395 | B40: 0.153 | C40: 0.153
A41: 396 | B41: 0.154 | C41: 0.154
A42: 397 | B42: 0.155 | C42: 0.155
A43: 398 | B43: 0.156 | C43: 0.156
A44: 399 | B44: 0.157 | C44: 0.157
A45: 400 | B45: 0.158 | C45: 0.158
A46: 401 | B46: 0.1588 | C46: 0.1588
A47: 402 | B47: 0.1596 | C47: 0.1596
A48: 403 | B48: 0.1604 | C48: 0.1604
A49: 404 | B49: 0.1612 | C49: 0.1612
A50: 405 | B50: 0.162 | C50: 0.162
A51: 406 | B51: 0.1624 | C51: 0.1624
A52: 407 | B52: 0.1628 | C52: 0.1628
A53: 408 | B53: 0.1632 | C53: 0.1632
A54: 409 | B54: 0.1636 | C54: 0.1636
A55: 410 | B55: 0.164 | C55: 0.164
A56: 411 | B56: 0.1646 | C56: 0.1646
A57: 412 | B57: 0.1652 | C57: 0.1652
A58: 413 | B58: 0.1658 | C58: 0.1658
A59: 414 | B59: 0.1664 | C59: 0.1664
A60: 415 | B60: 0.167 | C60: 0.167
A61: 416 | B61: 0.1676 | C61: 0.1676
A62: 417 | B62: 0.1682 | C62: 0.1682
A63: 418 | B63: 0.1688 | C63: 0.1688
A64: 419 | B64: 0.1694 | C64: 0.1694
A65: 420 | B65: 0.17 | C65: 0.17
A66: 421 | B66: 0.171 | C66: 0.171
A67: 422 | B67: 0.172 | C67: 0.172
A68: 423 | B68: 0.173 | C68: 0.173
A69: 424 | B69: 0.174 | C69: 0.174
A70: 425 | B70: 0.175 | C70: 0.175
A71: 426 | B71: 0.1764 | C71: 0.1764
A72: 427 | B72: 0.1778 | C72: 0.1778
A73: 428 | B73: 0.1792 | C73: 0.1792
A74: 429 | B74: 0.1806 | C74: 0.1806
A75: 430 | B75: 0.182 | C75: 0.182
A76: 431 | B76: 0.184 | C76: 0.184
A77: 432 | B77: 0.186 | C77: 0.186
A78: 433 | B78: 0.188 | C78: 0.188
A79: 434 | B79: 0.19 | C79: 0.19
A80: 435 | B80: 0.192 | C80: 0.192
A81: 436 | B81: 0.1942 | C81: 0.1942
A82: 437 | B82: 0.1964 | C82: 0.1964
A83: 438 | B83: 0.1986 | C83: 0.1986
A84: 439 | B84: 0.2008 | C84: 0.2008
A85: 440 | B85: 0.203 | C85: 0.203
A86: 441 | B86: 0.2048 | C86: 0.2048
A87: 442 | B87: 0.2066 | C87: 0.2066
A88: 443 | B88: 0.2084 | C88: 0.2084
A89: 444 | B89: 0.2102 | C89: 0.2102
A90: 445 | B90: 0.212 | C90: 0.212
A91: 446 | B91: 0.2138 | C91: 0.2138
A92: 447 | B92: 0.2156 | C92: 0.2156
A93: 448 | B93: 0.2174 | C93: 0.2174
A94: 449 | B94: 0.2192 | C94: 0.2192
A95: 450 | B95: 0.221 | C95: 0.221
A96: 451 | B96: 0.2226 | C96: 0.2226
A97: 452 | B97: 0.2242 | C97: 0.2242
A98: 453 | B98: 0.2258 | C98: 0.2258
A99: 454 | B99: 0.2274 | C99: 0.2274
A100: 455 | B100: 0.229 | C100: 0.229
A101: 456 | B101: 0.2304 | C101: 0.2304
A102: 457 | B102: 0.2318 | C102: 0.2318
A103: 458 | B103: 0.2332 | C103: 0.2332
A104: 459 | B104: 0.2346 | C104: 0.2346
A105: 460 | B105: 0.236 | C105: 0.236
A106: 461 | B106: 0.2374 | C106: 0.2374
A107: 462 | B107: 0.2388 | C107: 0.2388
A108: 463 | B108: 0.2402 | C108: 0.2402
A109: 464 | B109: 0.2416 | C109: 0.2416
A110: 465 | B110: 0.243 | C110: 0.243
A111: 466 | B111: 0.2442 | C111: 0.2442
A112: 467 | B112: 0.2454 | C112: 0.2454
A113: 468 | B113: 0.2466 | C113: 0.2466
A114: 469 | B114: 0.2478 | C114: 0.2478
A115: 470 | B115: 0.249 | C115: 0.249
A116: 471 | B116: 0.25 | C116: 0.25
A117: 472 | B117: 0.251 | C117: 0.251
A118: 473 | B118: 0.252 | C118: 0.252
A119: 474 | B119: 0.253 | C119: 0.253
A120: 475 | B120: 0.254 | C120: 0.254
A121: 476 | B121: 0.255 | C121: 0.255
A122: 477 | B122: 0.256 | C122: 0.256
A123: 478 | B123: 0.257 | C123: 0.257
A124: 479 | B124: 0.258 | C124: 0.258
A125: 480 | B125: 0.259 | C125: 0.259
A126: 481 | B126: 0.26 | C126: 0.26
A127: 482 | B127: 0.261 | C127: 0.261
A128: 483 | B128: 0.262 | C128: 0.262
A129: 484 | B129: 0.263 | C129: 0.263
A130: 485 | B130: 0.264 | C130: 0.264
A131: 486 | B131: 0.265 | C131: 0.265
A132: 487 | B132: 0.266 | C132: 0.266
A133: 488 | B133: 0.267 | C133: 0.267
A134: 489 | B134: 0.268 | C134: 0.268
A135: 490 | B135: 0.269 | C135: 0.269
A136: 491 | B136: 0.2704 | C136: 0.2704
A137: 492 | B137: 0.2718 | C137: 0.2718
A138: 493 | B138: 0.2732 | C138: 0.2732
A139: 494 | B139: 0.2746 | C139: 0.2746
A140: 495 | B140: 0.276 | C140: 0.276
A141: 496 | B141: 0.2776 | C141: 0.2776
A142: 497 | B142: 0.2792 | C142: 0.2792
A143: 498 | B143: 0.2808 | C143: 0.2808
A144: 499 | B144: 0.2824 | C144: 0.2824
A145: 500 | B145: 0.284 | C145: 0.284
A146: 501 | B146: 0.2854 | C146: 0.2854
A147: 502 | B147: 0.2868 | C147: 0.2868
A148: 503 | B148: 0.2882 | C148: 0.2882
A149: 504 | B149: 0.2896 | C149: 0.2896
A150: 505 | B150: 0.291 | C150: 0.291
A151: 506 | B151: 0.292 | C151: 0.292
A152: 507 | B152: 0.293 | C152: 0.293
A153: 508 | B153: 0.294 | C153: 0.294
A154: 509 | B154: 0.295 | C154: 0.295
A155: 510 | B155: 0.296 | C155: 0.296
A156: 511 | B156: 0.2964 | C156: 0.2964
A157: 512 | B157: 0.2968 | C157: 0.2968
A158: 513 | B158: 0.2972 | C158: 0.2972
A159: 514 | B159: 0.2976 | C159: 0.2976
A160: 515 | B160: 0.298 | C160: 0.298
A161: 516 | B161: 0.2976 | C161: 0.2976
A162: 517 | B162: 0.2972 | C162: 0.2972
A163: 518 | B163: 0.2968 | C163: 0.2968
A164: 519 | B164: 0.2964 | C164: 0.2964
A165: 520 | B165: 0.296 | C165: 0.296
A166: 521 | B166: 0.2946 | C166: 0.2946
A167: 522 | B167: 0.2932 | C167: 0.2932
A168: 523 | B168: 0.2918 | C168: 0.2918
A169: 524 | B169: 0.2904 | C169: 0.2904
A170: 525 | B170: 0.289 | C170: 0.289
A171: 526 | B171: 0.2876 | C171: 0.2876
A172: 527 | B172: 0.2862 | C172: 0.2862
A173: 528 | B173: 0.2848 | C173: 0.2848
A174: 529 | B174: 0.2834 | C174: 0.2834
A175: 530 | B175: 0.282 | C175: 0.282
A176: 531 | B176: 0.2808 | C176: 0.2808
A177: 532 | B177: 0.2796 | C177: 0.2796
A178: 533 | B178: 0.2784 | C178: 0.2784
A179: 534 | B179: 0.2772 | C179: 0.2772
A180: 535 | B180: 0.276 | C180: 0.276
A181: 536 | B181: 0.2756 | C181: 0.2756
A182: 537 | B182: 0.2752 | C182: 0.2752
A183: 538 | B183: 0.2748 | C183: 0.2748
A184: 539 | B184: 0.2744 | C184: 0.2744
A185: 540 | B185: 0.274 | C185: 0.274
A186: 541 | B186: 0.2744 | C186: 0.2744
A187: 542 | B187: 0.2748 | C187: 0.2748
A188: 543 | B188: 0.2752 | C188: 0.2752
A189: 544 | B189: 0.2756 | C189: 0.2756
A190: 545 | B190: 0.276 | C190: 0.276
A191: 546 | B191: 0.277 | C191: 0.277
A192: 547 | B192: 0.278 | C192: 0.278
A193: 548 | B193: 0.279 | C193: 0.279
A194: 549 | B194: 0.28 | C194: 0.28
A195: 550 | B195: 0.281 | C195: 0.281
A196: 551 | B196: 0.282 | C196: 0.282
A197: 552 | B197: 0.283 | C197: 0.283
A198: 553 | B198: 0.284 | C198: 0.284
A199: 554 | B199: 0.285 | C199: 0.285
A200: 555 | B200: 0.286 | C200: 0.286
... 275 more rows

Sheet CRI-Calculator (hidden)
A1: Reference | B1: TCS01 | C1: TCS02 | D1: TCS03 | E1: TCS04 | F1: TCS05 | G1: TCS06 | H1: TCS07 | I1: TCS08 | J1: TCS09 | K1: TCS10 | L1: TCS11 | M1: TCS12 | N1: TCS13 | O1: TCS14 | P1: TCS15 | Q1: White | T1: Ref | U1: Test
A2: X = | B2: ='CRI-TCS'!B2 -> 33.94874147 | C2: ='CRI-TCS'!C2 -> 28.3884274 | D2: ='CRI-TCS'!D2 -> 24.62288855 | E2: ='CRI-TCS'!E2 -> 20.55979859 | F2: ='CRI-TCS'!F2 -> 24.60197912 | G2: ='CRI-TCS'!G2 -> 27.4020607 | H2: ='CRI-TCS'!H2 -> 33.09559522 | I2: ='CRI-TCS'!I2 -> 38.18618063 | J2: ='CRI-TCS'!J2 -> 22.25094414 | K2: ='CRI-TCS'!K2 -> 57.35655349 | L2: ='CRI-TCS'!L2 -> 12.09750629 | M2: ='CRI-TCS'!M2 -> 5.571457345 | N2: ='CRI-TCS'!N2 -> 60.57179498 | O2: ='CRI-TCS'!O2 -> 9.547654874 | P2: ='CRI-TCS'!P2 -> 36.23685685 | Q2: ='CRI-TCS'!Q2 -> 95.73840973 | S2: TCS01 | T2: =ROUND(B8,1) -> 33.8 | U2: =ROUND(B23,1) -> 35 | V2: U*
A3: Y = | B3: ='CRI-TCS'!B3 -> 30.19227278 | C3: ='CRI-TCS'!C3 -> 29.15486572 | D3: ='CRI-TCS'!D3 -> 30.52342386 | E3: ='CRI-TCS'!E3 -> 29.16974365 | F3: ='CRI-TCS'!F3 -> 30.45681112 | G3: ='CRI-TCS'!G3 -> 29.3620766 | H3: ='CRI-TCS'!H3 -> 29.37713193 | I3: ='CRI-TCS'!I3 -> 31.64494696 | J3: ='CRI-TCS'!J3 -> 11.96977742 | K3: ='CRI-TCS'!K3 -> 59.78483727 | L3: ='CRI-TCS'!L3 -> 20.0052148 | M3: ='CRI-TCS'!M3 -> 6.093043531 | N3: ='CRI-TCS'!N3 -> 57.71602333 | O3: ='CRI-TCS'!O3 -> 11.72532585 | P3: ='CRI-TCS'!P3 -> 33.06198772 | Q3: ='CRI-TCS'!Q3 -> 100 | T3: =ROUND(B9,1) -> 7.4 | U3: =ROUND(B24,1) -> 7.5 | V3: V*
A4: Z = | B4: ='CRI-TCS'!B4 -> 20.51142282 | C4: ='CRI-TCS'!C4 -> 12.60791841 | D4: ='CRI-TCS'!D4 -> 8.456268808 | E4: ='CRI-TCS'!E4 -> 18.13617174 | F4: ='CRI-TCS'!F4 -> 33.9526177 | G4: ='CRI-TCS'!G4 -> 48.37041442 | H4: ='CRI-TCS'!H4 -> 44.20938907 | I4: ='CRI-TCS'!I4 -> 37.76537055 | J4: ='CRI-TCS'!J4 -> 3.602995462 | K4: ='CRI-TCS'!K4 -> 10.32499844 | L4: ='CRI-TCS'!L4 -> 13.08776916 | M4: ='CRI-TCS'!M4 -> 23.32819616 | N4: ='CRI-TCS'!N4 -> 34.71591258 | O4: ='CRI-TCS'!O4 -> 4.567243536 | P4: ='CRI-TCS'!P4 -> 20.70085415 | Q4: ='CRI-TCS'!Q4 -> 91.25632819 | S4: TCS02 | T4: =ROUND(C8,1) -> 16.1 | U4: =ROUND(C23,1) -> 16.7 | V4: U*
A5: ur,i | B5: =4*B2/(B2+15*B3+3*B4) -> 0.2476351435 | C5: 0.2255129666 | D5: 0.1939409304 | E5: 0.1604621906 | F5: 0.1687054555 | G5: 0.1788224728 | H5: 0.2183156091 | I5: 0.2439401705 | J5: 0.4186313123 | K5: 0.2328953987 | L5: 0.1376910936 | M5: 0.1334866883 | N5: 0.2351252911 | O5: 0.1917880725 | P5: 0.2439086846 | Q5: =4*Q2/(Q2+15*Q3+3*Q4) -> 0.2048420028 | T5: =ROUND(C9,1) -> 20.6 | U5: =ROUND(C24,1) -> 20.9 | V5: V*
A6: vr,i | B6: =6*B3/(B2+15*B3+3*B4) -> 0.3303510297 | C6: 0.3474021385 | D6: 0.3606242955 | E6: 0.3414897972 | F6: 0.3132815149 | G6: 0.2874199428 | H6: 0.2906800621 | I6: 0.3032303949 | J6: 0.3378007422 | K6: 0.3641331112 | L6: 0.3415422779 | M6: 0.2189750775 | N6: 0.336059798 | O6: 0.3532979052 | P6: 0.3338081708 | Q6: =6*Q3/(Q2+15*Q3+3*Q4) -> 0.3209401588 | S6: TCS03 | T6: =ROUND(D8,1) -> -8.7 | U6: =ROUND(D23,1) -> -9 | V6: U*
A7: W*r,i | B7: =25*B3^(1/3)-17 -> 60.84641387 | C7: =25*C3^(1/3)-17 -> 59.94440113 | D7: =25*D3^(1/3)-17 -> 61.12998804 | E7: 59.95748733 | F7: 61.07311104 | G7: 60.12625864 | H7: 60.13943848 | I7: 62.07541248 | J7: 40.18762144 | K7: 80.75456012 | L7: 50.86633788 | M7: 28.66163263 | N7: 79.61372096 | O7: 39.79563798 | P7: 63.23853587 | Q7: =25*Q3^(1/3)-17 -> 99.03972084 | T7: =ROUND(D9,1) -> 31.5 | U7: =ROUND(D24,1) -> 31.8 | V7: V*
A8: U*r,i | B8: =IF('CIE1931 1-nm'!$J$5<>0,13*B7*(B5-$Q$5),0) -> 33.84951894 | C8: =IF('CIE1931 1-nm'!$J$5<>0,13*C7*(C5-$Q$5),0) -> 16.10841106 | D8: =IF('CIE1931 1-nm'!$J$5<>0,13*D7*(D5-$Q$5),0) -> -8.662971532 | E8: =IF('CIE1931 1-nm'!$J$5<>0,13*E7*(E5-$Q$5),0) -> -34.59172636 | F8: =IF('CIE1931 1-nm'!$J$5<>0,13*F7*(F5-$Q$5),0) -> -28.6906278 | G8: =IF('CIE1931 1-nm'!$J$5<>0,13*G7*(G5-$Q$5),0) -> -20.33794087 | H8: =IF('CIE1931 1-nm'!$J$5<>0,13*H7*(H5-$Q$5),0) -> 10.53383649 | I8: =IF('CIE1931 1-nm'!$J$5<>0,13*I7*(I5-$Q$5),0) -> 31.55145348 | J8: =IF('CIE1931 1-nm'!$J$5<>0,13*J7*(J5-$Q$5),0) -> 111.6918899 | K8: =IF('CIE1931 1-nm'!$J$5<>0,13*K7*(K5-$Q$5),0) -> 29.45071539 | L8: =IF('CIE1931 1-nm'!$J$5<>0,13*L7*(L5-$Q$5),0) -> -44.40437091 | M8: =IF('CIE1931 1-nm'!$J$5<>0,13*M7*(M5-$Q$5),0) -> -26.58707754 | N8: =IF('CIE1931 1-nm'!$J$5<>0,13*N7*(N5-$Q$5),0) -> 31.34254847 | O8: =IF('CIE1931 1-nm'!$J$5<>0,13*O7*(O5-$Q$5),0) -> -6.753363313 | P8: =IF('CIE1931 1-nm'!$J$5<>0,13*P7*(P5-$Q$5),0) -> 32.11675681 | Q8: =IF('CIE1931 1-nm'!$J$5<>0,13*Q7*(Q5-$Q$5),0) -> 0 | S8: TCS04 | T8: =ROUND(E8,1) -> -34.6 | U8: =ROUND(E23,1) -> -36.1 | V8: U*
A9: V*r,i | B9: =IF('CIE1931 1-nm'!$J$5<>0,13*B7*(B6-$Q$6),0) -> 7.4440307 | C9: =IF('CIE1931 1-nm'!$J$5<>0,13*C7*(C6-$Q$6),0) -> 20.62121783 | D9: =IF('CIE1931 1-nm'!$J$5<>0,13*D7*(D6-$Q$6),0) -> 31.53658042 | E9: =IF('CIE1931 1-nm'!$J$5<>0,13*E7*(E6-$Q$6),0) -> 16.01736086 | F9: =IF('CIE1931 1-nm'!$J$5<>0,13*F7*(F6-$Q$6),0) -> -6.080583698 | G9: =IF('CIE1931 1-nm'!$J$5<>0,13*G7*(G6-$Q$6),0) -> -26.20078731 | H9: =IF('CIE1931 1-nm'!$J$5<>0,13*H7*(H6-$Q$6),0) -> -23.65772789 | I9: =IF('CIE1931 1-nm'!$J$5<>0,13*I7*(I6-$Q$6),0) -> -14.29143169 | J9: =IF('CIE1931 1-nm'!$J$5<>0,13*J7*(J6-$Q$6),0) -> 8.808627675 | K9: =IF('CIE1931 1-nm'!$J$5<>0,13*K7*(K6-$Q$6),0) -> 45.34436229 | L9: =IF('CIE1931 1-nm'!$J$5<>0,13*L7*(L6-$Q$6),0) -> 13.62340654 | M9: =IF('CIE1931 1-nm'!$J$5<>0,13*M7*(M6-$Q$6),0) -> -37.99231411 | N9: =IF('CIE1931 1-nm'!$J$5<>0,13*N7*(N6-$Q$6),0) -> 15.64849954 | O9: =IF('CIE1931 1-nm'!$J$5<>0,13*O7*(O6-$Q$6),0) -> 16.74006311 | P9: =IF('CIE1931 1-nm'!$J$5<>0,13*P7*(P6-$Q$6),0) -> 10.57880508 | Q9: =IF('CIE1931 1-nm'!$J$5<>0,13*Q7*(Q6-$Q$6),0) -> 0 | T9: =ROUND(E9,1) -> 16 | U9: =ROUND(E24,1) -> 16.8 | V9: V*
A10: Test | B10: TCS01 | C10: TCS02 | D10: TCS03 | E10: TCS04 | F10: TCS05 | G10: TCS06 | H10: TCS07 | I10: TCS08 | J10: TCS09 | K10: TCS10 | L10: TCS11 | M10: TCS12 | N10: TCS13 | O10: TCS14 | P10: TCS15 | Q10: White | S10: TCS05 | T10: =ROUND(F8,1) -> -28.7 | U10: =ROUND(F23,1) -> -29.9 | V10: U*
A11: X = | B11: ='CRI-TCS'!S2 -> 35.51217073 | C11: ='CRI-TCS'!T2 -> 29.460211 | D11: ='CRI-TCS'!U2 -> 25.3131023 | E11: ='CRI-TCS'!V2 -> 21.14175848 | F11: ='CRI-TCS'!W2 -> 25.62857876 | G11: ='CRI-TCS'!X2 -> 28.89570411 | H11: ='CRI-TCS'!Y2 -> 35.02265651 | I11: ='CRI-TCS'!Z2 -> 40.32255577 | J11: ='CRI-TCS'!AA2 -> 23.54196685 | K11: ='CRI-TCS'!AB2 -> 59.25030797 | L11: ='CRI-TCS'!AC2 -> 12.43678137 | M11: ='CRI-TCS'!AD2 -> 5.842446381 | N11: ='CRI-TCS'!AE2 -> 63.12231171 | O11: ='CRI-TCS'!AF2 -> 9.834667333 | P11: ='CRI-TCS'!AG2 -> 37.82193627 | Q11: ='CRI-TCS'!AH2 -> 100.0009238 | T11: =ROUND(F9,1) -> -6.1 | U11: =ROUND(F24,1) -> -5.8 | V11: V*
A12: Y = | B12: ='CRI-TCS'!S3 -> 30.46588178 | C12: ='CRI-TCS'!T3 -> 29.25667626 | D12: ='CRI-TCS'!U3 -> 30.3799341 | E12: ='CRI-TCS'!V3 -> 28.88609707 | F12: ='CRI-TCS'!W3 -> 30.2252251 | G12: ='CRI-TCS'!X3 -> 29.22341394 | H12: ='CRI-TCS'!Y3 -> 29.49218733 | I12: ='CRI-TCS'!Z3 -> 31.92514356 | J12: ='CRI-TCS'!AA3 -> 12.44396977 | K12: ='CRI-TCS'!AB3 -> 59.98587954 | L12: ='CRI-TCS'!AC3 -> 19.72221246 | M12: ='CRI-TCS'!AD3 -> 6.008271894 | N12: ='CRI-TCS'!AE3 -> 58.0809877 | O12: ='CRI-TCS'!AF3 -> 11.66567566 | P12: ='CRI-TCS'!AG3 -> 33.30885035 | Q12: ='CRI-TCS'!AH3 -> 100 | S12: TCS06 | T12: =ROUND(G8,1) -> -20.3 | U12: =ROUND(G23,1) -> -21.1 | V12: U*
A13: Z = | B13: ='CRI-TCS'!S4 -> 22.59705913 | C13: ='CRI-TCS'!T4 -> 13.63921646 | D13: ='CRI-TCS'!U4 -> 9.055056744 | E13: ='CRI-TCS'!V4 -> 19.22509641 | F13: ='CRI-TCS'!W4 -> 36.83755593 | G13: ='CRI-TCS'!X4 -> 52.96711912 | H13: ='CRI-TCS'!Y4 -> 49.13056575 | I13: ='CRI-TCS'!Z4 -> 41.92306821 | J13: ='CRI-TCS'!AA4 -> 4.033106585 | K13: ='CRI-TCS'!AB4 -> 10.87995268 | L13: ='CRI-TCS'!AC4 -> 13.95639901 | M13: ='CRI-TCS'!AD4 -> 24.44721199 | N13: ='CRI-TCS'!AE4 -> 37.8068958 | O13: ='CRI-TCS'!AF4 -> 4.928438702 | P13: ='CRI-TCS'!AG4 -> 22.26802036 | Q13: ='CRI-TCS'!AH4 -> 100.0009939 | T13: =ROUND(G9,1) -> -26.2 | U13: =ROUND(G24,1) -> -26.3 | V13: V*
A14: uk,i | B14: =IF('CIE1931 1-nm'!$J$5<>0,4*B11/(B11+15*B12+3*B13),0) -> 0.2535263589 | C14: =IF('CIE1931 1-nm'!$J$5<>0,4*C11/(C11+15*C12+3*C13),0) -> 0.2314107689 | D14: =IF('CIE1931 1-nm'!$J$5<>0,4*D11/(D11+15*D12+3*D13),0) -> 0.1992462323 | E14: =IF('CIE1931 1-nm'!$J$5<>0,4*E11/(E11+15*E12+3*E13),0) -> 0.1651349925 | F14: =IF('CIE1931 1-nm'!$J$5<>0,4*F11/(F11+15*F12+3*F13),0) -> 0.1738946611 | G14: =IF('CIE1931 1-nm'!$J$5<>0,4*G11/(G11+15*G12+3*G13),0) -> 0.1845933653 | H14: =IF('CIE1931 1-nm'!$J$5<>0,4*H11/(H11+15*H12+3*H13),0) -> 0.2242177689 | I14: =IF('CIE1931 1-nm'!$J$5<>0,4*I11/(I11+15*I12+3*I13),0) -> 0.2500744139 | J14: =IF('CIE1931 1-nm'!$J$5<>0,4*J11/(J11+15*J12+3*J13),0) -> 0.4236055531 | K14: =IF('CIE1931 1-nm'!$J$5<>0,4*K11/(K11+15*K12+3*K13),0) -> 0.238990021 | L14: =IF('CIE1931 1-nm'!$J$5<>0,4*L11/(L11+15*L12+3*L13),0) -> 0.1420781517 | M14: =IF('CIE1931 1-nm'!$J$5<>0,4*M11/(M11+15*M12+3*M13),0) -> 0.1380310637 | N14: =IF('CIE1931 1-nm'!$J$5<>0,4*N11/(N11+15*N12+3*N13),0) -> 0.2409805428 | O14: =IF('CIE1931 1-nm'!$J$5<>0,4*O11/(O11+15*O12+3*O13),0) -> 0.1970824679 | P14: =IF('CIE1931 1-nm'!$J$5<>0,4*P11/(P11+15*P12+3*P13),0) -> 0.2503691414 | Q14: =4*Q11/(Q11+15*Q12+3*Q13) -> 0.2105278278 | S14: TCS07 | T14: =ROUND(H8,1) -> 10.5 | U14: =ROUND(H23,1) -> 11 | V14: U*
A15: vk,i | B15: =IF('CIE1931 1-nm'!$J$5<>0,6*B12/(B11+15*B12+3*B13),0) -> 0.3262502934 | C15: =IF('CIE1931 1-nm'!$J$5<>0,6*C12/(C11+15*C12+3*C13),0) -> 0.3447179968 | D15: =IF('CIE1931 1-nm'!$J$5<>0,6*D12/(D11+15*D12+3*D13),0) -> 0.3586929411 | E15: =IF('CIE1931 1-nm'!$J$5<>0,6*E12/(E11+15*E12+3*E13),0) -> 0.3384372279 | F15: =IF('CIE1931 1-nm'!$J$5<>0,6*F12/(F11+15*F12+3*F13),0) -> 0.3076256387 | G15: =IF('CIE1931 1-nm'!$J$5<>0,6*G12/(G11+15*G12+3*G13),0) -> 0.2800302929 | H15: =IF('CIE1931 1-nm'!$J$5<>0,6*H12/(H11+15*H12+3*H13),0) -> 0.283216913 | I15: =IF('CIE1931 1-nm'!$J$5<>0,6*I12/(I11+15*I12+3*I13),0) -> 0.2969923934 | J15: =IF('CIE1931 1-nm'!$J$5<>0,6*J12/(J11+15*J12+3*J13),0) -> 0.3358683706 | K15: =IF('CIE1931 1-nm'!$J$5<>0,6*K12/(K11+15*K12+3*K13),0) -> 0.3629354961 | L15: =IF('CIE1931 1-nm'!$J$5<>0,6*L12/(L11+15*L12+3*L13),0) -> 0.3379606925 | M15: =IF('CIE1931 1-nm'!$J$5<>0,6*M12/(M11+15*M12+3*M13),0) -> 0.2129231763 | N15: =IF('CIE1931 1-nm'!$J$5<>0,6*N12/(N11+15*N12+3*N13),0) -> 0.3326016006 | O15: =IF('CIE1931 1-nm'!$J$5<>0,6*O12/(O11+15*O12+3*O13),0) -> 0.350662621 | P15: =IF('CIE1931 1-nm'!$J$5<>0,6*P12/(P11+15*P12+3*P13),0) -> 0.3307409305 | Q15: =6*Q12/(Q11+15*Q12+3*Q13) -> 0.3157888246 | T15: =ROUND(H9,1) -> -23.7 | U15: =ROUND(H24,1) -> -24.3 | V15: V*
A16: Chromatic adaptation transform | D16: Ref source | E16: ur | F16: vr | G16: cr | H16: dr | I16: Test source | J16: uk | K16: vk | L16: ck | M16: dk | S16: TCS08 | T16: =ROUND(I8,1) -> 31.6 | U16: =ROUND(I23,1) -> 33 | V16: U*
E17: =Q5 -> 0.2048420028 | F17: =Q6 -> 0.3209401588 | G17: =(4-E17-10*F17)/F17 -> 1.825126564 | H17: =(1.708*F17+0.404-1.481*E17)/F17 -> 2.021544413 | J17: =Q14 -> 0.2105278278 | K17: =Q15 -> 0.3157888246 | L17: =IF('CIE1931 1-nm'!$J$5<>0,(4-J17-10*K17)/K17,0) -> 2.000019879 | M17: =IF('CIE1931 1-nm'!$J$5<>0,(1.708*K17+0.404-1.481*J17)/K17,0) -> 1.999993509 | T17: =ROUND(I9,1) -> -14.3 | U17: =ROUND(I24,1) -> -14.6 | V17: V*
A18: ck,i | B18: =(4-B14-10*B15)/B15 -> 1.483433783 | C18: 0.9323831825 | D18: 0.5961208944 | E18: 1.33109685 | F18: 2.437537243 | G18: 3.624978193 | H18: 3.331768187 | I18: 2.626335454 | J18: 0.6482025685 | K18: 0.3627504594 | L18: 1.415297502 | M18: 8.137851423 | N18: 1.301868212 | O18: 0.8449469786 | P18: 1.337063281 | Q18: 2.000019879
A19: dk,i | B19: =(1.708*B15+0.404-1.481*B14)/B15 -> 1.795440419 | C19: 1.885770386 | D19: 2.011647821 | E19: 2.179092016 | F19: 2.184104682 | G19: 2.174439629 | H19: 1.961987248 | I19: 1.821268197 | J19: 1.042978094 | K19: 1.845919216 | L19: 2.280795185 | M19: 2.645314566 | N19: 1.849634364 | O19: 2.027739996 | P19: 1.808390664 | Q19: 1.999993509
A20: uka,i | B20: =(10.872+0.404*$G$17/$L$17*B18-4*$H$17/$M$17*B19)/(16.518+1.481*$G$17/$L$17*B18-$H$17/$M$17*B19) -> 0.2489667248 | C20: 0.2262712535 | D20: 0.1934867354 | E20: 0.158395449 | F20: 0.1670064158 | G20: 0.1777876056 | H20: 0.2189239157 | I20: 0.2456128931 | J20: 0.4219205262 | K20: 0.2339448079 | L20: 0.1347125638 | M20: 0.1278828556 | N20: 0.2360876059 | O20: 0.1912288133 | P20: 0.2457047889 | Q20: 0.2048420028 | T20: TCS01 | U20: TCS02 | V20: TCS03 | W20: TCS04 | X20: TCS05 | Y20: TCS06 | Z20: TCS07 | AA20: TCS08 | AB20: =T20 -> TCS01
A21: vka,i | B21: =5.52/(16.518+1.481*$G$17/$L$17*B18-$H$17/$M$17*B19) -> 0.3303794123 | C21: 0.3477818491 | D21: 0.3610125118 | E21: 0.3425508684 | F21: 0.3135530845 | G21: 0.2872118666 | H21: 0.2899505037 | I21: 0.3028543998 | J21: 0.3378249278 | K21: 0.3645382299 | L21: 0.342317249 | M21: 0.2222004997 | N21: 0.3364232996 | O21: 0.3536115492 | P21: 0.3346031599 | Q21: 0.3209401588 | S21: =A8 -> U*r,i | T21: =ROUND(B8,1) -> 33.8 | U21: =ROUND(C8,1) -> 16.1 | V21: -8.7 | W21: -34.6 | X21: -28.7 | Y21: -20.3 | Z21: 10.5 | AA21: 31.6 | AB21: =T21 -> 33.8
A22: W*k,i | B22: =25*(B12^(1/3))-17 -> 61.08086085 | C22: 60.03386191 | D22: 61.00736674 | E22: 59.70722953 | F22: 60.87472451 | G22: 60.00465721 | H22: 60.24001272 | I22: 62.30811512 | J22: 40.93304081 | K22: 80.86401269 | L22: 50.54479475 | M22: 28.44888166 | N22: 79.81693722 | O22: 39.69916214 | P22: 63.43774551 | Q22: 99.03972084 | S22: =A9 -> V*r,i | T22: =ROUND(B9,1) -> 7.4 | U22: =ROUND(C9,1) -> 20.6 | V22: 31.5 | W22: 16 | X22: -6.1 | Y22: -26.2 | Z22: -23.7 | AA22: -14.3 | AB22: =T22 -> 7.4
A23: U*k,i | B23: =IF('CIE1931 1-nm'!$J$5<>0,13*B22*(B20-$Q$20),0) -> 35.03728805 | C23: =IF('CIE1931 1-nm'!$J$5<>0,13*C22*(C20-$Q$20),0) -> 16.72424882 | D23: =IF('CIE1931 1-nm'!$J$5<>0,13*D22*(D20-$Q$20),0) -> -9.0058145 | E23: =IF('CIE1931 1-nm'!$J$5<>0,13*E22*(E20-$Q$20),0) -> -36.05153566 | F23: =IF('CIE1931 1-nm'!$J$5<>0,13*F22*(F20-$Q$20),0) -> -29.94200215 | G23: =IF('CIE1931 1-nm'!$J$5<>0,13*G22*(G20-$Q$20),0) -> -21.1040678 | H23: =IF('CIE1931 1-nm'!$J$5<>0,13*H22*(H20-$Q$20),0) -> 11.02782996 | I23: =IF('CIE1931 1-nm'!$J$5<>0,13*I22*(I20-$Q$20),0) -> 33.02464525 | J23: =IF('CIE1931 1-nm'!$J$5<>0,13*J22*(J20-$Q$20),0) -> 115.5138927 | K23: =IF('CIE1931 1-nm'!$J$5<>0,13*K22*(K20-$Q$20),0) -> 30.59380482 | L23: =IF('CIE1931 1-nm'!$J$5<>0,13*L22*(L20-$Q$20),0) -> -46.08081532 | M23: =IF('CIE1931 1-nm'!$J$5<>0,13*M22*(M20-$Q$20),0) -> -28.46222175 | N23: =IF('CIE1931 1-nm'!$J$5<>0,13*N22*(N20-$Q$20),0) -> 32.42106841 | O23: =IF('CIE1931 1-nm'!$J$5<>0,13*O22*(O20-$Q$20),0) -> -7.025618809 | P23: =IF('CIE1931 1-nm'!$J$5<>0,13*P22*(P20-$Q$20),0) -> 33.69915932 | Q23: =IF('CIE1931 1-nm'!$J$5<>0,13*Q22*(Q20-$Q$20),0) -> 0 | S23: =A23 -> U*k,i | T23: =ROUND(B23,1) -> 35 | U23: =ROUND(C23,1) -> 16.7 | V23: -9 | W23: -36.1 | X23: -29.9 | Y23: -21.1 | Z23: 11 | AA23: 33 | AB23: 35
A24: V*k,i | B24: =IF('CIE1931 1-nm'!$J$5<>0,13*B22*(B21-$Q$21),0) -> 7.495250506 | C24: =IF('CIE1931 1-nm'!$J$5<>0,13*C22*(C21-$Q$21),0) -> 20.94833425 | D24: =IF('CIE1931 1-nm'!$J$5<>0,13*D22*(D21-$Q$21),0) -> 31.78121355 | E24: =IF('CIE1931 1-nm'!$J$5<>0,13*E22*(E21-$Q$21),0) -> 16.77410276 | F24: =IF('CIE1931 1-nm'!$J$5<>0,13*F22*(F21-$Q$21),0) -> -5.845919481 | G24: =IF('CIE1931 1-nm'!$J$5<>0,13*G22*(G21-$Q$21),0) -> -26.31010998 | H24: =IF('CIE1931 1-nm'!$J$5<>0,13*H22*(H21-$Q$21),0) -> -24.26862381 | I24: =IF('CIE1931 1-nm'!$J$5<>0,13*I22*(I21-$Q$21),0) -> -14.64956416 | J24: =IF('CIE1931 1-nm'!$J$5<>0,13*J22*(J21-$Q$21),0) -> 8.984884199 | K24: =IF('CIE1931 1-nm'!$J$5<>0,13*K22*(K21-$Q$21),0) -> 45.83169466 | L24: =IF('CIE1931 1-nm'!$J$5<>0,13*L22*(L21-$Q$21),0) -> 14.04650826 | M24: =IF('CIE1931 1-nm'!$J$5<>0,13*M22*(M21-$Q$21),0) -> -36.51742741 | N24: =IF('CIE1931 1-nm'!$J$5<>0,13*N22*(N21-$Q$21),0) -> 16.06561941 | O24: =IF('CIE1931 1-nm'!$J$5<>0,13*O22*(O21-$Q$21),0) -> 16.86134875 | P24: =IF('CIE1931 1-nm'!$J$5<>0,13*P22*(P21-$Q$21),0) -> 11.26774981 | Q24: =IF('CIE1931 1-nm'!$J$5<>0,13*Q22*(Q21-$Q$21),0) -> 0 | S24: =A24 -> V*k,i | T24: =ROUND(B24,1) -> 7.5 | U24: =ROUND(C24,1) -> 20.9 | V24: =ROUND(D24,1) -> 31.8 | W24: =ROUND(E24,1) -> 16.8 | X24: =ROUND(F24,1) -> -5.8 | Y24: =ROUND(G24,1) -> -26.3 | Z24: =ROUND(H24,1) -> -24.3 | AA24: =ROUND(I24,1) -> -14.6 | AB24: 7.5
A25: ∆Ei | B25: =SQRT((B8-B23)^2+(B9-B24)^2+(B7-B22)^2) -> 1.211769085 | C25: 0.7030394925 | D25: 0.4386600659 | E25: 1.663228928 | F25: 1.288550451 | G25: 0.7833829398 | H25: 0.79204706 | I25: 1.533852454 | J25: 3.898002326 | K25: 1.247447844 | L25: 1.758655995 | M25: 2.395144994 | N25: 1.174091601 | O25: 0.3132743952 | P25: 1.737333317 | Q25: =AVERAGE(B25:I25) -> 1.05181631 | T25: =(T21^2+T22^2)^0.5-(T23^2+T24^2)^0.5 -> -1.193974628 | U25: =(U21^2+U22^2)^0.5-(U23^2+U24^2)^0.5 -> -0.6073983316 | V25: -0.3697031707 | W25: -1.697373847 | X25: -1.116249768 | Y25: -0.573868332 | Z25: -0.7519643946 | AA25: -1.400442961
B26: R1 | C26: R2 | D26: R3 | E26: R4 | F26: R5 | G26: R6 | H26: R7 | I26: R8 | J26: R9 | K26: R10 | L26: R11 | M26: R12 | N26: R13 | O26: R14 | P26: R15 | Q26: Ra | R26: Ga | T26: max CRI | U26: =IF(MAX(B27:O27)>0,MAX(B27:O27),0) -> 99 | V26: =U26+U28 -> 109 | W26: Umax | X26: =IF('CIE1931 1-nm'!$J$5<>0,ROUND(1.15*MAX(T21:AA21,T23:AA23),1),0.5) -> 40.3 | Y26: =IF('CIE1931 1-nm'!$J$5<>0,ABS(X26-X27)/5,0.5) -> 16.36
A27: S-CRI | B27: =IF('CIE1931 1-nm'!$J$5<>0,ROUND(100-4.6*B25,0),0) -> 94 | C27: =IF('CIE1931 1-nm'!$J$5<>0,ROUND(100-4.6*C25,0),0) -> 97 | D27: =IF('CIE1931 1-nm'!$J$5<>0,ROUND(100-4.6*D25,0),0) -> 98 | E27: =IF('CIE1931 1-nm'!$J$5<>0,ROUND(100-4.6*E25,0),0) -> 92 | F27: =IF('CIE1931 1-nm'!$J$5<>0,ROUND(100-4.6*F25,0),0) -> 94 | G27: =IF('CIE1931 1-nm'!$J$5<>0,ROUND(100-4.6*G25,0),0) -> 96 | H27: =IF('CIE1931 1-nm'!$J$5<>0,ROUND(100-4.6*H25,0),0) -> 96 | I27: =IF('CIE1931 1-nm'!$J$5<>0,ROUND(100-4.6*I25,0),0) -> 93 | J27: =IF('CIE1931 1-nm'!$J$5<>0,ROUND(100-4.6*J25,0),0) -> 82 | K27: =IF('CIE1931 1-nm'!$J$5<>0,ROUND(100-4.6*K25,0),0) -> 94 | L27: =IF('CIE1931 1-nm'!$J$5<>0,ROUND(100-4.6*L25,0),0) -> 92 | M27: =IF('CIE1931 1-nm'!$J$5<>0,ROUND(100-4.6*M25,0),0) -> 89 | N27: =IF('CIE1931 1-nm'!$J$5<>0,ROUND(100-4.6*N25,0),0) -> 95 | O27: =IF('CIE1931 1-nm'!$J$5<>0,ROUND(100-4.6*O25,0),0) -> 99 | P27: =IF('CIE1931 1-nm'!$J$5<>0,ROUND(100-4.6*P25,0),0) -> 92 | Q27: =IF('CIE1931 1-nm'!$J$5<>0,ROUND(100-4.6*Q25,0),0) -> 95 | R27: =IF('CIE1931 1-nm'!$J$5<>0,ROUND(100*M29/M30,0),0) -> 106 | T27: min CRI | U27: =IF(MIN(B27:O27)>0,0,MIN(B27:O27)) -> 0 | V27: =IF(U27<0,U27-U28,U27) -> 0 | W27: Umin | X27: =IF('CIE1931 1-nm'!$J$5<>0,ROUND(1.15*MIN(T21:AA21,T23:AA23),1),-0.5) -> -41.5 | Z27: =MIN(Y26,Y28) -> 13.36
A28: S-CRI | B28: =IF('CIE1931 1-nm'!$J$5<>0,ROUND(100-4.6*B25,2),0) -> 94.43 | C28: =IF('CIE1931 1-nm'!$J$5<>0,ROUND(100-4.6*C25,2),0) -> 96.77 | D28: =IF('CIE1931 1-nm'!$J$5<>0,ROUND(100-4.6*D25,2),0) -> 97.98 | E28: =IF('CIE1931 1-nm'!$J$5<>0,ROUND(100-4.6*E25,2),0) -> 92.35 | F28: =IF('CIE1931 1-nm'!$J$5<>0,ROUND(100-4.6*F25,2),0) -> 94.07 | G28: =IF('CIE1931 1-nm'!$J$5<>0,ROUND(100-4.6*G25,2),0) -> 96.4 | H28: =IF('CIE1931 1-nm'!$J$5<>0,ROUND(100-4.6*H25,2),0) -> 96.36 | I28: =IF('CIE1931 1-nm'!$J$5<>0,ROUND(100-4.6*I25,2),0) -> 92.94 | J28: =IF('CIE1931 1-nm'!$J$5<>0,ROUND(100-4.6*J25,2),0) -> 82.07 | K28: =IF('CIE1931 1-nm'!$J$5<>0,ROUND(100-4.6*K25,2),0) -> 94.26 | L28: =IF('CIE1931 1-nm'!$J$5<>0,ROUND(100-4.6*L25,2),0) -> 91.91 | M28: =IF('CIE1931 1-nm'!$J$5<>0,ROUND(100-4.6*M25,2),0) -> 88.98 | N28: =IF('CIE1931 1-nm'!$J$5<>0,ROUND(100-4.6*N25,2),0) -> 94.6 | O28: =IF('CIE1931 1-nm'!$J$5<>0,ROUND(100-4.6*O25,2),0) -> 98.56 | P28: =IF('CIE1931 1-nm'!$J$5<>0,ROUND(100-4.6*P25,2),0) -> 92.01 | T28: delta CRI | U28: =IF(ROUND((U26-U27)/10,0)>1,ROUND((U26-U27)/10,0),1) -> 10 | W28: Vmax | X28: =IF('CIE1931 1-nm'!$J$5<>0,ROUND(1.15*MAX(T22:AA22,T24:AA24),1),0.5) -> 36.6 | Y28: =IF('CIE1931 1-nm'!$J$5<>0,ABS(X28-X29)/5,0.5) -> 13.36
A29: Gamut | B29: =(B23*C24)-(C23*B24) -> 608.6203868 | C29: 720.1737354 | D29: 994.6970958 | E29: 713.0045955 | F29: 664.4046886 | G29: 802.3101014 | H29: 639.9097893 | I29: =(I23*B24)-(B23*I24) -> 760.8089882 | J29: Test source | M29: =SUM(B29:I29)/2 -> 2951.96469 | T29: min CRI | U29: =IF(MIN(B27:O27)>60,60,MIN(B27:O27)) -> 60 | W29: Vmin | X29: =IF('CIE1931 1-nm'!$J$5<>0,ROUND(1.15*MIN(T22:AA22,T24:AA24),1),-0.5) -> -30.2
A30: Gamut | B30: =(B8*C9)-(C8*B9) -> 578.106797 | C30: 686.6452237 | D30: 952.1468191 | E30: 669.8860262 | F30: 628.0504851 | G30: 757.1442804 | H30: 595.8920963 | I30: =(I8*B9)-(B8*I9) -> 718.6280761 | J30: Reference illuminant | M30: =SUM(B30:I30)/2 -> 2793.249902
A31: CIE 1964 U*V*W* (CIEUVW) based colour rendering properties
A32: C'r,i | B32: =(B8^2+B9^2)^0.5 -> 34.65838319 | C32: =(C8^2+C9^2)^0.5 -> 26.1670696 | D32: 32.70478528 | E32: 38.12011781 | F32: 29.32789835 | G32: 33.16795282 | H32: 25.89690715 | I32: 34.63725215 | J32: 112.0386995 | K32: 54.06899138 | L32: 46.44723201 | M32: 46.37120468 | N32: 35.03185526 | O32: 18.05097308 | P32: 33.81415657 | T32: max hue-angle | U32: =IF(MAX(B41:O41)>0,MAX(B41:O41),0)*1.15 -> 1.15 | V32: =U32+U34 -> 3.15 | X32: CCT (K) | Y32: ='CIE1931 1-nm'!J5 -> 5455
A33: C'k,i | B33: =(B23^2+B24^2)^0.5 -> 35.83002001 | C33: =(C23^2+C24^2)^0.5 -> 26.80546971 | D33: 33.03256317 | E33: 39.7628438 | F33: 30.50734776 | G33: 33.72837922 | H33: 26.65669025 | I33: 36.12806283 | J33: 115.8627963 | K33: 55.10467429 | L33: 48.174121 | M33: 46.29925023 | N33: 36.18328072 | O33: 18.266483 | P33: 35.53302021 | T33: min hue-angle | U33: =IF(MIN(B41:O41)>0,0,MIN(B41:O41))*1.15 -> -3.45 | V33: =IF(U33<0,U33-U34,U33) -> -5.45 | X33: Duv | Y33: ='CIE1931 1-nm'!K5 -> -0.0044
A34: h'r,i | B34: =IF('CIE1931 1-nm'!$J$5<>0,IF(ATAN2(B8,B9)>0,180*ATAN2(B8,B9)/PI(),180*ATAN2(B8,B9)/PI()+360),0) -> 12.40279532 | C34: =IF('CIE1931 1-nm'!$J$5<>0,IF(ATAN2(C8,C9)>0,180*ATAN2(C8,C9)/PI(),180*ATAN2(C8,C9)/PI()+360),0) -> 52.00457247 | D34: =IF('CIE1931 1-nm'!$J$5<>0,IF(ATAN2(D8,D9)>0,180*ATAN2(D8,D9)/PI(),180*ATAN2(D8,D9)/PI()+360),0) -> 105.3600551 | E34: =IF('CIE1931 1-nm'!$J$5<>0,IF(ATAN2(E8,E9)>0,180*ATAN2(E8,E9)/PI(),180*ATAN2(E8,E9)/PI()+360),0) -> 155.1539654 | F34: =IF('CIE1931 1-nm'!$J$5<>0,IF(ATAN2(F8,F9)>0,180*ATAN2(F8,F9)/PI(),180*ATAN2(F8,F9)/PI()+360),0) -> 191.9659901 | G34: =IF('CIE1931 1-nm'!$J$5<>0,IF(ATAN2(G8,G9)>0,180*ATAN2(G8,G9)/PI(),180*ATAN2(G8,G9)/PI()+360),0) -> 232.1801714 | H34: =IF('CIE1931 1-nm'!$J$5<>0,IF(ATAN2(H8,H9)>0,180*ATAN2(H8,H9)/PI(),180*ATAN2(H8,H9)/PI()+360),0) -> 294.0014904 | I34: =IF('CIE1931 1-nm'!$J$5<>0,IF(ATAN2(I8,I9)>0,180*ATAN2(I8,I9)/PI(),180*ATAN2(I8,I9)/PI()+360),0) -> 335.631548 | J34: =IF('CIE1931 1-nm'!$J$5<>0,IF(ATAN2(J8,J9)>0,180*ATAN2(J8,J9)/PI(),180*ATAN2(J8,J9)/PI()+360),0) -> 4.509322145 | K34: =IF('CIE1931 1-nm'!$J$5<>0,IF(ATAN2(K8,K9)>0,180*ATAN2(K8,K9)/PI(),180*ATAN2(K8,K9)/PI()+360),0) -> 56.99667422 | L34: =IF('CIE1931 1-nm'!$J$5<>0,IF(ATAN2(L8,L9)>0,180*ATAN2(L8,L9)/PI(),180*ATAN2(L8,L9)/PI()+360),0) -> 162.9438149 | M34: =IF('CIE1931 1-nm'!$J$5<>0,IF(ATAN2(M8,M9)>0,180*ATAN2(M8,M9)/PI(),180*ATAN2(M8,M9)/PI()+360),0) -> 235.0156144 | N34: =IF('CIE1931 1-nm'!$J$5<>0,IF(ATAN2(N8,N9)>0,180*ATAN2(N8,N9)/PI(),180*ATAN2(N8,N9)/PI()+360),0) -> 26.53173485 | O34: =IF('CIE1931 1-nm'!$J$5<>0,IF(ATAN2(O8,O9)>0,180*ATAN2(O8,O9)/PI(),180*ATAN2(O8,O9)/PI()+360),0) -> 111.97039 | P34: =IF('CIE1931 1-nm'!$J$5<>0,IF(ATAN2(P8,P9)>0,180*ATAN2(P8,P9)/PI(),180*ATAN2(P8,P9)/PI()+360),0) -> 18.23115135 | T34: delta hue-angle | U34: =IF(ROUND((U32-U33)/10,0)>2,ROUND((U32-U33)/10,0),2) -> 2 | V34: =MAX(ABS(V32),ABS(V33)) -> 5.45 | X34: x-coordinate | Y34: =ROUND('CIE1931 1-nm'!H5,4) -> 0.3333
A35: h'k,i | B35: =IF('CIE1931 1-nm'!$J$5<>0,IF(ATAN2(B23,B24)>0,180*ATAN2(B23,B24)/PI(),180*ATAN2(B23,B24)/PI()+360),0) -> 12.07483709 | C35: =IF('CIE1931 1-nm'!$J$5<>0,IF(ATAN2(C23,C24)>0,180*ATAN2(C23,C24)/PI(),180*ATAN2(C23,C24)/PI()+360),0) -> 51.39763914 | D35: =IF('CIE1931 1-nm'!$J$5<>0,IF(ATAN2(D23,D24)>0,180*ATAN2(D23,D24)/PI(),180*ATAN2(D23,D24)/PI()+360),0) -> 105.821092 | E35: =IF('CIE1931 1-nm'!$J$5<>0,IF(ATAN2(E23,E24)>0,180*ATAN2(E23,E24)/PI(),180*ATAN2(E23,E24)/PI()+360),0) -> 155.0483253 | F35: =IF('CIE1931 1-nm'!$J$5<>0,IF(ATAN2(F23,F24)>0,180*ATAN2(F23,F24)/PI(),180*ATAN2(F23,F24)/PI()+360),0) -> 191.0475349 | G35: =IF('CIE1931 1-nm'!$J$5<>0,IF(ATAN2(G23,G24)>0,180*ATAN2(G23,G24)/PI(),180*ATAN2(G23,G24)/PI()+360),0) -> 231.2659348 | H35: =IF('CIE1931 1-nm'!$J$5<>0,IF(ATAN2(H23,H24)>0,180*ATAN2(H23,H24)/PI(),180*ATAN2(H23,H24)/PI()+360),0) -> 294.4373749 | I35: =IF('CIE1931 1-nm'!$J$5<>0,IF(ATAN2(I23,I24)>0,180*ATAN2(I23,I24)/PI(),180*ATAN2(I23,I24)/PI()+360),0) -> 336.0781703 | J35: =IF('CIE1931 1-nm'!$J$5<>0,IF(ATAN2(J23,J24)>0,180*ATAN2(J23,J24)/PI(),180*ATAN2(J23,J24)/PI()+360),0) -> 4.447616729 | K35: =IF('CIE1931 1-nm'!$J$5<>0,IF(ATAN2(K23,K24)>0,180*ATAN2(K23,K24)/PI(),180*ATAN2(K23,K24)/PI()+360),0) -> 56.27589659 | L35: =IF('CIE1931 1-nm'!$J$5<>0,IF(ATAN2(L23,L24)>0,180*ATAN2(L23,L24)/PI(),180*ATAN2(L23,L24)/PI()+360),0) -> 163.0475547 | M35: =IF('CIE1931 1-nm'!$J$5<>0,IF(ATAN2(M23,M24)>0,180*ATAN2(M23,M24)/PI(),180*ATAN2(M23,M24)/PI()+360),0) -> 232.0666231 | N35: =IF('CIE1931 1-nm'!$J$5<>0,IF(ATAN2(N23,N24)>0,180*ATAN2(N23,N24)/PI(),180*ATAN2(N23,N24)/PI()+360),0) -> 26.35980582 | O35: =IF('CIE1931 1-nm'!$J$5<>0,IF(ATAN2(O23,O24)>0,180*ATAN2(O23,O24)/PI(),180*ATAN2(O23,O24)/PI()+360),0) -> 112.6200295 | P35: =IF('CIE1931 1-nm'!$J$5<>0,IF(ATAN2(P23,P24)>0,180*ATAN2(P23,P24)/PI(),180*ATAN2(P23,P24)/PI()+360),0) -> 18.48802505 | X35: y-coordinate | Y35: =ROUND('CIE1931 1-nm'!I5,4) -> 0.3333
A36: C'i | B36: =IF('CIE1931 1-nm'!$J$5<>0,ROUND(100+100*(B33-B32)/B32,2),0) -> 103.38 | C36: =IF('CIE1931 1-nm'!$J$5<>0,ROUND(100+100*(C33-C32)/C32,2),0) -> 102.44 | D36: =IF('CIE1931 1-nm'!$J$5<>0,ROUND(100+100*(D33-D32)/D32,2),0) -> 101 | E36: =IF('CIE1931 1-nm'!$J$5<>0,ROUND(100+100*(E33-E32)/E32,2),0) -> 104.31 | F36: =IF('CIE1931 1-nm'!$J$5<>0,ROUND(100+100*(F33-F32)/F32,2),0) -> 104.02 | G36: =IF('CIE1931 1-nm'!$J$5<>0,ROUND(100+100*(G33-G32)/G32,2),0) -> 101.69 | H36: =IF('CIE1931 1-nm'!$J$5<>0,ROUND(100+100*(H33-H32)/H32,2),0) -> 102.93 | I36: =IF('CIE1931 1-nm'!$J$5<>0,ROUND(100+100*(I33-I32)/I32,2),0) -> 104.3 | J36: =IF('CIE1931 1-nm'!$J$5<>0,ROUND(100+100*(J33-J32)/J32,2),0) -> 103.41 | K36: =IF('CIE1931 1-nm'!$J$5<>0,ROUND(100+100*(K33-K32)/K32,2),0) -> 101.92 | L36: =IF('CIE1931 1-nm'!$J$5<>0,ROUND(100+100*(L33-L32)/L32,2),0) -> 103.72 | M36: =IF('CIE1931 1-nm'!$J$5<>0,ROUND(100+100*(M33-M32)/M32,2),0) -> 99.84 | N36: =IF('CIE1931 1-nm'!$J$5<>0,ROUND(100+100*(N33-N32)/N32,2),0) -> 103.29 | O36: =IF('CIE1931 1-nm'!$J$5<>0,ROUND(100+100*(O33-O32)/O32,2),0) -> 101.19 | P36: =IF('CIE1931 1-nm'!$J$5<>0,ROUND(100+100*(P33-P32)/P32,2),0) -> 105.08 | T36: max chroma | U36: =IF(MAX(B43:O43)>0,MAX(B43:O43),0)*1.15 -> 4.6 | V36: =U36+U38 -> 6.6 | X36: u'-coordinate | Y36: =ROUND(Q14,4) -> 0.2105
A37: Dh'i | B37: =IF('CIE1931 1-nm'!$J$5<>0,ROUND(IF(MOD(B35-B34,360)>180,MOD(B35-B34,360)-360,MOD(B35-B34,360)),1),0) -> -0.3 | C37: =IF('CIE1931 1-nm'!$J$5<>0,ROUND(IF(MOD(C35-C34,360)>180,MOD(C35-C34,360)-360,MOD(C35-C34,360)),1),0) -> -0.6 | D37: =IF('CIE1931 1-nm'!$J$5<>0,ROUND(IF(MOD(D35-D34,360)>180,MOD(D35-D34,360)-360,MOD(D35-D34,360)),1),0) -> 0.5 | E37: =IF('CIE1931 1-nm'!$J$5<>0,ROUND(IF(MOD(E35-E34,360)>180,MOD(E35-E34,360)-360,MOD(E35-E34,360)),1),0) -> -0.1 | F37: =IF('CIE1931 1-nm'!$J$5<>0,ROUND(IF(MOD(F35-F34,360)>180,MOD(F35-F34,360)-360,MOD(F35-F34,360)),1),0) -> -0.9 | G37: =IF('CIE1931 1-nm'!$J$5<>0,ROUND(IF(MOD(G35-G34,360)>180,MOD(G35-G34,360)-360,MOD(G35-G34,360)),1),0) -> -0.9 | H37: =IF('CIE1931 1-nm'!$J$5<>0,ROUND(IF(MOD(H35-H34,360)>180,MOD(H35-H34,360)-360,MOD(H35-H34,360)),1),0) -> 0.4 | I37: =IF('CIE1931 1-nm'!$J$5<>0,ROUND(IF(MOD(I35-I34,360)>180,MOD(I35-I34,360)-360,MOD(I35-I34,360)),1),0) -> 0.4 | J37: =IF('CIE1931 1-nm'!$J$5<>0,ROUND(IF(MOD(J35-J34,360)>180,MOD(J35-J34,360)-360,MOD(J35-J34,360)),1),0) -> -0.1 | K37: =IF('CIE1931 1-nm'!$J$5<>0,ROUND(IF(MOD(K35-K34,360)>180,MOD(K35-K34,360)-360,MOD(K35-K34,360)),1),0) -> -0.7 | L37: =IF('CIE1931 1-nm'!$J$5<>0,ROUND(IF(MOD(L35-L34,360)>180,MOD(L35-L34,360)-360,MOD(L35-L34,360)),1),0) -> 0.1 | M37: =IF('CIE1931 1-nm'!$J$5<>0,ROUND(IF(MOD(M35-M34,360)>180,MOD(M35-M34,360)-360,MOD(M35-M34,360)),1),0) -> -2.9 | N37: =IF('CIE1931 1-nm'!$J$5<>0,ROUND(IF(MOD(N35-N34,360)>180,MOD(N35-N34,360)-360,MOD(N35-N34,360)),1),0) -> -0.2 | O37: =IF('CIE1931 1-nm'!$J$5<>0,ROUND(IF(MOD(O35-O34,360)>180,MOD(O35-O34,360)-360,MOD(O35-O34,360)),1),0) -> 0.6 | P37: =IF('CIE1931 1-nm'!$J$5<>0,ROUND(IF(MOD(P35-P34,360)>180,MOD(P35-P34,360)-360,MOD(P35-P34,360)),1),0) -> 0.3 | T37: min chroma | U37: =IF(MIN(B43:O43)>0,0,MIN(B43:O43))*1.15 -> 0 | V37: =IF(U37<0,U37-U38,U37) -> 0 | X37: v'-coordinate | Y37: =ROUND(1.5*Q15,4) -> 0.4737
T38: delta chroma | U38: =IF(ROUND((U36-U37)/10,0)>2,ROUND((U36-U37)/10,0),2) -> 2 | V38: =MAX(ABS(V36),ABS(V37)) -> 6.6 | X38: CRI-Ra | Y38: =Q27 -> 95
B39: TCS01 | C39: TCS02 | D39: TCS03 | E39: TCS04 | F39: TCS05 | G39: TCS06 | H39: TCS07 | I39: TCS08 | J39: TCS09 | K39: TCS10 | L39: TCS11 | M39: TCS12 | N39: TCS13 | O39: TCS14 | P39: TCS15 | X39: CGI-Ga | Y39: =R27 -> 106
A40: C'i | B40: =IF('CIE1931 1-nm'!$J$5<>0,ROUND(100+100*(B33-B32)/B32,0),100) -> 103 | C40: =IF('CIE1931 1-nm'!$J$5<>0,ROUND(100+100*(C33-C32)/C32,0),100) -> 102 | D40: =IF('CIE1931 1-nm'!$J$5<>0,ROUND(100+100*(D33-D32)/D32,0),100) -> 101 | E40: =IF('CIE1931 1-nm'!$J$5<>0,ROUND(100+100*(E33-E32)/E32,0),100) -> 104 | F40: =IF('CIE1931 1-nm'!$J$5<>0,ROUND(100+100*(F33-F32)/F32,0),100) -> 104 | G40: =IF('CIE1931 1-nm'!$J$5<>0,ROUND(100+100*(G33-G32)/G32,0),100) -> 102 | H40: =IF('CIE1931 1-nm'!$J$5<>0,ROUND(100+100*(H33-H32)/H32,0),100) -> 103 | I40: =IF('CIE1931 1-nm'!$J$5<>0,ROUND(100+100*(I33-I32)/I32,0),100) -> 104 | J40: =IF('CIE1931 1-nm'!$J$5<>0,ROUND(100+100*(J33-J32)/J32,0),100) -> 103 | K40: =IF('CIE1931 1-nm'!$J$5<>0,ROUND(100+100*(K33-K32)/K32,0),100) -> 102 | L40: =IF('CIE1931 1-nm'!$J$5<>0,ROUND(100+100*(L33-L32)/L32,0),100) -> 104 | M40: =IF('CIE1931 1-nm'!$J$5<>0,ROUND(100+100*(M33-M32)/M32,0),100) -> 100 | N40: =IF('CIE1931 1-nm'!$J$5<>0,ROUND(100+100*(N33-N32)/N32,0),100) -> 103 | O40: =IF('CIE1931 1-nm'!$J$5<>0,ROUND(100+100*(O33-O32)/O32,0),100) -> 101 | P40: =IF(AND('CIE1931 1-nm'!$J$5<>0,P32<>0),ROUND(100+100*(P33-P32)/P32,0),100) -> 105 | X40: R1 | Y40: =TRANSPOSE(B27:P27) -> 94
A41: Dh'i | B41: =IF('CIE1931 1-nm'!$J$5<>0,ROUND(IF(MOD(B35-B34,360)>180,MOD(B35-B34,360)-360,MOD(B35-B34,360)),0),0) -> 0 | C41: =IF('CIE1931 1-nm'!$J$5<>0,ROUND(IF(MOD(C35-C34,360)>180,MOD(C35-C34,360)-360,MOD(C35-C34,360)),0),0) -> -1 | D41: =IF('CIE1931 1-nm'!$J$5<>0,ROUND(IF(MOD(D35-D34,360)>180,MOD(D35-D34,360)-360,MOD(D35-D34,360)),0),0) -> 0 | E41: =IF('CIE1931 1-nm'!$J$5<>0,ROUND(IF(MOD(E35-E34,360)>180,MOD(E35-E34,360)-360,MOD(E35-E34,360)),0),0) -> 0 | F41: =IF('CIE1931 1-nm'!$J$5<>0,ROUND(IF(MOD(F35-F34,360)>180,MOD(F35-F34,360)-360,MOD(F35-F34,360)),0),0) -> -1 | G41: =IF('CIE1931 1-nm'!$J$5<>0,ROUND(IF(MOD(G35-G34,360)>180,MOD(G35-G34,360)-360,MOD(G35-G34,360)),0),0) -> -1 | H41: =IF('CIE1931 1-nm'!$J$5<>0,ROUND(IF(MOD(H35-H34,360)>180,MOD(H35-H34,360)-360,MOD(H35-H34,360)),0),0) -> 0 | I41: =IF('CIE1931 1-nm'!$J$5<>0,ROUND(IF(MOD(I35-I34,360)>180,MOD(I35-I34,360)-360,MOD(I35-I34,360)),0),0) -> 0 | J41: =IF('CIE1931 1-nm'!$J$5<>0,ROUND(IF(MOD(J35-J34,360)>180,MOD(J35-J34,360)-360,MOD(J35-J34,360)),0),0) -> 0 | K41: =IF('CIE1931 1-nm'!$J$5<>0,ROUND(IF(MOD(K35-K34,360)>180,MOD(K35-K34,360)-360,MOD(K35-K34,360)),0),0) -> -1 | L41: =IF('CIE1931 1-nm'!$J$5<>0,ROUND(IF(MOD(L35-L34,360)>180,MOD(L35-L34,360)-360,MOD(L35-L34,360)),0),0) -> 0 | M41: =IF('CIE1931 1-nm'!$J$5<>0,ROUND(IF(MOD(M35-M34,360)>180,MOD(M35-M34,360)-360,MOD(M35-M34,360)),0),0) -> -3 | N41: =IF('CIE1931 1-nm'!$J$5<>0,ROUND(IF(MOD(N35-N34,360)>180,MOD(N35-N34,360)-360,MOD(N35-N34,360)),0),0) -> 0 | O41: =IF('CIE1931 1-nm'!$J$5<>0,ROUND(IF(MOD(O35-O34,360)>180,MOD(O35-O34,360)-360,MOD(O35-O34,360)),0),0) -> 1 | P41: =IF(AND('CIE1931 1-nm'!$J$5<>0,P32<>0),ROUND(IF(MOD(P35-P34,360)>180,MOD(P35-P34,360)-360,MOD(P35-P34,360)),0),0) -> 0 | X41: R2 | Y41: 97
X42: R3 | Y42: 98
A43: C'i - 100 | B43: =B40-100 -> 3 | C43: =C40-100 -> 2 | D43: 1 | E43: 4 | F43: 4 | G43: 2 | H43: 3 | I43: 4 | J43: 3 | K43: 2 | L43: 4 | M43: 0 | N43: 3 | O43: 1 | P43: 5 | X43: R4 | Y43: 92
X44: R5 | Y44: 94
X45: R6 | Y45: 96
A46: R | B46: 201 | C46: 178 | D46: 150 | E46: 99 | F46: 112 | G46: 124 | H46: 176 | I46: 205 | J46: 198 | K46: 253 | L46: 22 | M46: 0 | N46: 255 | O46: 96 | P46: ='Additional TCS'!G8 -> 205 | X46: R7 | Y46: 96
A47: G | B47: 148 | C47: 157 | D47: 171 | E47: 176 | F47: 173 | G47: 163 | H47: 148 | I47: 146 | J47: 39 | K47: 217 | L47: 154 | M47: 84 | N47: 206 | O47: 111 | P47: ='Additional TCS'!G9 -> 157 | X47: R8 | Y47: 93
A48: B | B48: 139 | C48: 104 | D48: 75 | E48: 126 | F48: 179 | G48: 215 | H48: 207 | I48: 191 | J48: 60 | K48: 62 | L48: 109 | M48: 156 | N48: 173 | O48: 63 | P48: ='Additional TCS'!G10 -> 138 | X48: R9 | Y48: 82
X49: R10 | Y49: 94
X50: R11 | Y50: 92
X51: R12 | Y51: 89
X52: R13 | Y52: 95
X53: R14 | Y53: 99
X54: R15 | Y54: 92
X55: C1 | Y55: =TRANSPOSE(B40:P40) -> 103
X56: C2 | Y56: 102
X57: C3 | Y57: 101
X58: C4 | Y58: 104
X59: C5 | Y59: 104
X60: C6 | Y60: 102
X61: C7 | Y61: 103
X62: C8 | Y62: 104
X63: C9 | Y63: 103
X64: C10 | Y64: 102
X65: C11 | Y65: 104
X66: C12 | Y66: 100
X67: C13 | Y67: 103
X68: C14 | Y68: 101
X69: C15 | Y69: 105
X71: WL range selected before SPD# | Y71: =IF(SPDs!SL6-1>0,SPDs!SL6,1) -> 6
X72: Default for TCS#15? | Y72: ='Additional TCS'!D1 -> TRUE
A74: 0 | B74: 230 | C74: 60 | D74: 150
A75: 60 | B75: 171 | C75: 80 | D75: 130
A76: 80 | B76: 151 | C76: 90 | D76: 120
A77: 90 | B77: 141 | C77: 95 | D77: 114
A78: 98 | B78: 132 | C78: 98 | D78: 108
A79: 102.4 | B79: 124 | C79: 100 | D79: 100
A80: 110 | B80: 100 | C80: 98 | D80: 92
A81: 110 | B81: 100 | C81: 95 | D81: 88
A82: 102.4 | B82: 76 | C82: 90 | D82: 83
A83: 98 | B83: 70 | C83: 80 | D83: 76
A84: 95 | B84: 67 | C84: 60 | D84: 65
A85: 90 | B85: 62.5
A86: 80 | B86: 56
A87: 60 | B87: 45
A88: 0 | B88: 10

Sheet CRI-TCS (hidden)
B1: Fixed wavelength range (360nm-830nm) and wavelength increment (1-nm) for reference illuminant | S1: Variable wavelength range (<=380nm - >=780nm) and increment (<= 5nm) for test source
A2: X = | B2: =SUMPRODUCT(B$9:B$479,'CIE1931 1-nm'!$B$9:$B$479,Reference!$C$9:$C$479) -> 33.94874147 | C2: =SUMPRODUCT(C$9:C$479,'CIE1931 1-nm'!$B$9:$B$479,Reference!$C$9:$C$479) -> 28.3884274 | D2: =SUMPRODUCT(D$9:D$479,'CIE1931 1-nm'!$B$9:$B$479,Reference!$C$9:$C$479) -> 24.62288855 | E2: =SUMPRODUCT(E$9:E$479,'CIE1931 1-nm'!$B$9:$B$479,Reference!$C$9:$C$479) -> 20.55979859 | F2: =SUMPRODUCT(F$9:F$479,'CIE1931 1-nm'!$B$9:$B$479,Reference!$C$9:$C$479) -> 24.60197912 | G2: =SUMPRODUCT(G$9:G$479,'CIE1931 1-nm'!$B$9:$B$479,Reference!$C$9:$C$479) -> 27.4020607 | H2: =SUMPRODUCT(H$9:H$479,'CIE1931 1-nm'!$B$9:$B$479,Reference!$C$9:$C$479) -> 33.09559522 | I2: =SUMPRODUCT(I$9:I$479,'CIE1931 1-nm'!$B$9:$B$479,Reference!$C$9:$C$479) -> 38.18618063 | J2: =SUMPRODUCT(J$9:J$479,'CIE1931 1-nm'!$B$9:$B$479,Reference!$C$9:$C$479) -> 22.25094414 | K2: =SUMPRODUCT(K$9:K$479,'CIE1931 1-nm'!$B$9:$B$479,Reference!$C$9:$C$479) -> 57.35655349 | L2: =SUMPRODUCT(L$9:L$479,'CIE1931 1-nm'!$B$9:$B$479,Reference!$C$9:$C$479) -> 12.09750629 | M2: =SUMPRODUCT(M$9:M$479,'CIE1931 1-nm'!$B$9:$B$479,Reference!$C$9:$C$479) -> 5.571457345 | N2: =SUMPRODUCT(N$9:N$479,'CIE1931 1-nm'!$B$9:$B$479,Reference!$C$9:$C$479) -> 60.57179498 | O2: =SUMPRODUCT(O$9:O$479,'CIE1931 1-nm'!$B$9:$B$479,Reference!$C$9:$C$479) -> 9.547654874 | P2: =SUMPRODUCT(P$9:P$479,'CIE1931 1-nm'!$B$9:$B$479,Reference!$C$9:$C$479) -> 36.23685685 | Q2: =SUMPRODUCT(Q$9:Q$479,'CIE1931 1-nm'!$B$9:$B$479,Reference!$C$9:$C$479) -> 95.73840973 | S2: =SUMPRODUCT(S$9:S$479,'CIE1931 1-nm'!$H$9:$H$479,'CIE1931 1-nm'!$G$9:$G$479) -> 35.51217073 | T2: =SUMPRODUCT(T$9:T$479,'CIE1931 1-nm'!$H$9:$H$479,'CIE1931 1-nm'!$G$9:$G$479) -> 29.460211 | U2: =SUMPRODUCT(U$9:U$479,'CIE1931 1-nm'!$H$9:$H$479,'CIE1931 1-nm'!$G$9:$G$479) -> 25.3131023 | V2: =SUMPRODUCT(V$9:V$479,'CIE1931 1-nm'!$H$9:$H$479,'CIE1931 1-nm'!$G$9:$G$479) -> 21.14175848 | W2: =SUMPRODUCT(W$9:W$479,'CIE1931 1-nm'!$H$9:$H$479,'CIE1931 1-nm'!$G$9:$G$479) -> 25.62857876 | X2: =SUMPRODUCT(X$9:X$479,'CIE1931 1-nm'!$H$9:$H$479,'CIE1931 1-nm'!$G$9:$G$479) -> 28.89570411 | Y2: =SUMPRODUCT(Y$9:Y$479,'CIE1931 1-nm'!$H$9:$H$479,'CIE1931 1-nm'!$G$9:$G$479) -> 35.02265651 | Z2: =SUMPRODUCT(Z$9:Z$479,'CIE1931 1-nm'!$H$9:$H$479,'CIE1931 1-nm'!$G$9:$G$479) -> 40.32255577 | AA2: =SUMPRODUCT(AA$9:AA$479,'CIE1931 1-nm'!$H$9:$H$479,'CIE1931 1-nm'!$G$9:$G$479) -> 23.54196685 | AB2: =SUMPRODUCT(AB$9:AB$479,'CIE1931 1-nm'!$H$9:$H$479,'CIE1931 1-nm'!$G$9:$G$479) -> 59.25030797 | AC2: =SUMPRODUCT(AC$9:AC$479,'CIE1931 1-nm'!$H$9:$H$479,'CIE1931 1-nm'!$G$9:$G$479) -> 12.43678137 | AD2: =SUMPRODUCT(AD$9:AD$479,'CIE1931 1-nm'!$H$9:$H$479,'CIE1931 1-nm'!$G$9:$G$479) -> 5.842446381 | AE2: =SUMPRODUCT(AE$9:AE$479,'CIE1931 1-nm'!$H$9:$H$479,'CIE1931 1-nm'!$G$9:$G$479) -> 63.12231171 | AF2: =SUMPRODUCT(AF$9:AF$479,'CIE1931 1-nm'!$H$9:$H$479,'CIE1931 1-nm'!$G$9:$G$479) -> 9.834667333 | AG2: =SUMPRODUCT(AG$9:AG$479,'CIE1931 1-nm'!$H$9:$H$479,'CIE1931 1-nm'!$G$9:$G$479) -> 37.82193627 | AH2: =SUMPRODUCT(AH$9:AH$479,'CIE1931 1-nm'!$H$9:$H$479,'CIE1931 1-nm'!$G$9:$G$479) -> 100.0009238
A3: Y = | B3: =SUMPRODUCT(B$9:B$479,'CIE1931 1-nm'!$C$9:$C$479,Reference!$C$9:$C$479) -> 30.19227278 | C3: =SUMPRODUCT(C$9:C$479,'CIE1931 1-nm'!$C$9:$C$479,Reference!$C$9:$C$479) -> 29.15486572 | D3: =SUMPRODUCT(D$9:D$479,'CIE1931 1-nm'!$C$9:$C$479,Reference!$C$9:$C$479) -> 30.52342386 | E3: =SUMPRODUCT(E$9:E$479,'CIE1931 1-nm'!$C$9:$C$479,Reference!$C$9:$C$479) -> 29.16974365 | F3: =SUMPRODUCT(F$9:F$479,'CIE1931 1-nm'!$C$9:$C$479,Reference!$C$9:$C$479) -> 30.45681112 | G3: =SUMPRODUCT(G$9:G$479,'CIE1931 1-nm'!$C$9:$C$479,Reference!$C$9:$C$479) -> 29.3620766 | H3: =SUMPRODUCT(H$9:H$479,'CIE1931 1-nm'!$C$9:$C$479,Reference!$C$9:$C$479) -> 29.37713193 | I3: =SUMPRODUCT(I$9:I$479,'CIE1931 1-nm'!$C$9:$C$479,Reference!$C$9:$C$479) -> 31.64494696 | J3: =SUMPRODUCT(J$9:J$479,'CIE1931 1-nm'!$C$9:$C$479,Reference!$C$9:$C$479) -> 11.96977742 | K3: =SUMPRODUCT(K$9:K$479,'CIE1931 1-nm'!$C$9:$C$479,Reference!$C$9:$C$479) -> 59.78483727 | L3: =SUMPRODUCT(L$9:L$479,'CIE1931 1-nm'!$C$9:$C$479,Reference!$C$9:$C$479) -> 20.0052148 | M3: =SUMPRODUCT(M$9:M$479,'CIE1931 1-nm'!$C$9:$C$479,Reference!$C$9:$C$479) -> 6.093043531 | N3: =SUMPRODUCT(N$9:N$479,'CIE1931 1-nm'!$C$9:$C$479,Reference!$C$9:$C$479) -> 57.71602333 | O3: =SUMPRODUCT(O$9:O$479,'CIE1931 1-nm'!$C$9:$C$479,Reference!$C$9:$C$479) -> 11.72532585 | P3: =SUMPRODUCT(P$9:P$479,'CIE1931 1-nm'!$C$9:$C$479,Reference!$C$9:$C$479) -> 33.06198772 | Q3: =SUMPRODUCT(Q$9:Q$479,'CIE1931 1-nm'!$C$9:$C$479,Reference!$C$9:$C$479) -> 100 | S3: =SUMPRODUCT(S$9:S$479,'CIE1931 1-nm'!$I$9:$I$479,'CIE1931 1-nm'!$G$9:$G$479) -> 30.46588178 | T3: =SUMPRODUCT(T$9:T$479,'CIE1931 1-nm'!$I$9:$I$479,'CIE1931 1-nm'!$G$9:$G$479) -> 29.25667626 | U3: =SUMPRODUCT(U$9:U$479,'CIE1931 1-nm'!$I$9:$I$479,'CIE1931 1-nm'!$G$9:$G$479) -> 30.3799341 | V3: =SUMPRODUCT(V$9:V$479,'CIE1931 1-nm'!$I$9:$I$479,'CIE1931 1-nm'!$G$9:$G$479) -> 28.88609707 | W3: =SUMPRODUCT(W$9:W$479,'CIE1931 1-nm'!$I$9:$I$479,'CIE1931 1-nm'!$G$9:$G$479) -> 30.2252251 | X3: =SUMPRODUCT(X$9:X$479,'CIE1931 1-nm'!$I$9:$I$479,'CIE1931 1-nm'!$G$9:$G$479) -> 29.22341394 | Y3: =SUMPRODUCT(Y$9:Y$479,'CIE1931 1-nm'!$I$9:$I$479,'CIE1931 1-nm'!$G$9:$G$479) -> 29.49218733 | Z3: =SUMPRODUCT(Z$9:Z$479,'CIE1931 1-nm'!$I$9:$I$479,'CIE1931 1-nm'!$G$9:$G$479) -> 31.92514356 | AA3: =SUMPRODUCT(AA$9:AA$479,'CIE1931 1-nm'!$I$9:$I$479,'CIE1931 1-nm'!$G$9:$G$479) -> 12.44396977 | AB3: =SUMPRODUCT(AB$9:AB$479,'CIE1931 1-nm'!$I$9:$I$479,'CIE1931 1-nm'!$G$9:$G$479) -> 59.98587954 | AC3: =SUMPRODUCT(AC$9:AC$479,'CIE1931 1-nm'!$I$9:$I$479,'CIE1931 1-nm'!$G$9:$G$479) -> 19.72221246 | AD3: =SUMPRODUCT(AD$9:AD$479,'CIE1931 1-nm'!$I$9:$I$479,'CIE1931 1-nm'!$G$9:$G$479) -> 6.008271894 | AE3: =SUMPRODUCT(AE$9:AE$479,'CIE1931 1-nm'!$I$9:$I$479,'CIE1931 1-nm'!$G$9:$G$479) -> 58.0809877 | AF3: =SUMPRODUCT(AF$9:AF$479,'CIE1931 1-nm'!$I$9:$I$479,'CIE1931 1-nm'!$G$9:$G$479) -> 11.66567566 | AG3: =SUMPRODUCT(AG$9:AG$479,'CIE1931 1-nm'!$I$9:$I$479,'CIE1931 1-nm'!$G$9:$G$479) -> 33.30885035 | AH3: =SUMPRODUCT(AH$9:AH$479,'CIE1931 1-nm'!$I$9:$I$479,'CIE1931 1-nm'!$G$9:$G$479) -> 100
A4: Z = | B4: =SUMPRODUCT(B$9:B$479,'CIE1931 1-nm'!$D$9:$D$479,Reference!$C$9:$C$479) -> 20.51142282 | C4: =SUMPRODUCT(C$9:C$479,'CIE1931 1-nm'!$D$9:$D$479,Reference!$C$9:$C$479) -> 12.60791841 | D4: =SUMPRODUCT(D$9:D$479,'CIE1931 1-nm'!$D$9:$D$479,Reference!$C$9:$C$479) -> 8.456268808 | E4: =SUMPRODUCT(E$9:E$479,'CIE1931 1-nm'!$D$9:$D$479,Reference!$C$9:$C$479) -> 18.13617174 | F4: =SUMPRODUCT(F$9:F$479,'CIE1931 1-nm'!$D$9:$D$479,Reference!$C$9:$C$479) -> 33.9526177 | G4: =SUMPRODUCT(G$9:G$479,'CIE1931 1-nm'!$D$9:$D$479,Reference!$C$9:$C$479) -> 48.37041442 | H4: =SUMPRODUCT(H$9:H$479,'CIE1931 1-nm'!$D$9:$D$479,Reference!$C$9:$C$479) -> 44.20938907 | I4: =SUMPRODUCT(I$9:I$479,'CIE1931 1-nm'!$D$9:$D$479,Reference!$C$9:$C$479) -> 37.76537055 | J4: =SUMPRODUCT(J$9:J$479,'CIE1931 1-nm'!$D$9:$D$479,Reference!$C$9:$C$479) -> 3.602995462 | K4: =SUMPRODUCT(K$9:K$479,'CIE1931 1-nm'!$D$9:$D$479,Reference!$C$9:$C$479) -> 10.32499844 | L4: =SUMPRODUCT(L$9:L$479,'CIE1931 1-nm'!$D$9:$D$479,Reference!$C$9:$C$479) -> 13.08776916 | M4: =SUMPRODUCT(M$9:M$479,'CIE1931 1-nm'!$D$9:$D$479,Reference!$C$9:$C$479) -> 23.32819616 | N4: =SUMPRODUCT(N$9:N$479,'CIE1931 1-nm'!$D$9:$D$479,Reference!$C$9:$C$479) -> 34.71591258 | O4: =SUMPRODUCT(O$9:O$479,'CIE1931 1-nm'!$D$9:$D$479,Reference!$C$9:$C$479) -> 4.567243536 | P4: =SUMPRODUCT(P$9:P$479,'CIE1931 1-nm'!$D$9:$D$479,Reference!$C$9:$C$479) -> 20.70085415 | Q4: =SUMPRODUCT(Q$9:Q$479,'CIE1931 1-nm'!$D$9:$D$479,Reference!$C$9:$C$479) -> 91.25632819 | S4: =SUMPRODUCT(S$9:S$479,'CIE1931 1-nm'!$J$9:$J$479,'CIE1931 1-nm'!$G$9:$G$479) -> 22.59705913 | T4: =SUMPRODUCT(T$9:T$479,'CIE1931 1-nm'!$J$9:$J$479,'CIE1931 1-nm'!$G$9:$G$479) -> 13.63921646 | U4: =SUMPRODUCT(U$9:U$479,'CIE1931 1-nm'!$J$9:$J$479,'CIE1931 1-nm'!$G$9:$G$479) -> 9.055056744 | V4: =SUMPRODUCT(V$9:V$479,'CIE1931 1-nm'!$J$9:$J$479,'CIE1931 1-nm'!$G$9:$G$479) -> 19.22509641 | W4: =SUMPRODUCT(W$9:W$479,'CIE1931 1-nm'!$J$9:$J$479,'CIE1931 1-nm'!$G$9:$G$479) -> 36.83755593 | X4: =SUMPRODUCT(X$9:X$479,'CIE1931 1-nm'!$J$9:$J$479,'CIE1931 1-nm'!$G$9:$G$479) -> 52.96711912 | Y4: =SUMPRODUCT(Y$9:Y$479,'CIE1931 1-nm'!$J$9:$J$479,'CIE1931 1-nm'!$G$9:$G$479) -> 49.13056575 | Z4: =SUMPRODUCT(Z$9:Z$479,'CIE1931 1-nm'!$J$9:$J$479,'CIE1931 1-nm'!$G$9:$G$479) -> 41.92306821 | AA4: =SUMPRODUCT(AA$9:AA$479,'CIE1931 1-nm'!$J$9:$J$479,'CIE1931 1-nm'!$G$9:$G$479) -> 4.033106585 | AB4: =SUMPRODUCT(AB$9:AB$479,'CIE1931 1-nm'!$J$9:$J$479,'CIE1931 1-nm'!$G$9:$G$479) -> 10.87995268 | AC4: =SUMPRODUCT(AC$9:AC$479,'CIE1931 1-nm'!$J$9:$J$479,'CIE1931 1-nm'!$G$9:$G$479) -> 13.95639901 | AD4: =SUMPRODUCT(AD$9:AD$479,'CIE1931 1-nm'!$J$9:$J$479,'CIE1931 1-nm'!$G$9:$G$479) -> 24.44721199 | AE4: =SUMPRODUCT(AE$9:AE$479,'CIE1931 1-nm'!$J$9:$J$479,'CIE1931 1-nm'!$G$9:$G$479) -> 37.8068958 | AF4: =SUMPRODUCT(AF$9:AF$479,'CIE1931 1-nm'!$J$9:$J$479,'CIE1931 1-nm'!$G$9:$G$479) -> 4.928438702 | AG4: =SUMPRODUCT(AG$9:AG$479,'CIE1931 1-nm'!$J$9:$J$479,'CIE1931 1-nm'!$G$9:$G$479) -> 22.26802036 | AH4: =SUMPRODUCT(AH$9:AH$479,'CIE1931 1-nm'!$J$9:$J$479,'CIE1931 1-nm'!$G$9:$G$479) -> 100.0009939
A5: CIE Publication 13.3 - 1995 | B5: Spectral Radiance Factors of the CIE-1974 test-colour samples as specified in Tables 1 & 2 of CIE13.3-1995, linearly interpolated according to clause 5.4
B6: 7.5 R 6/4 | C6: 5 Y6/4 | D6: 5 GY 6/8 | E6: 2.5 G 6/6 | F6: 10 BG 6/4 | G6: 5 PB 6/8 | H6: 2.5 P 6/8 | I6: 10 P 6/8 | J6: 4.5 R 4/13 | K6: 5 Y 8/10 | L6: 4.5 G 5/8 | M6: 3 PB 3/11 | N6: 5 YR 8/4 | O6: 5 GY 4/4 | P6: ='Additional TCS'!B2 -> 1 YR 6/4 | S6: 7.5 R 6/4 | T6: 5 Y6/4 | U6: 5 GY 6/8 | V6: 2.5 G 6/6 | W6: 10 BG 6/4 | X6: 5 PB 6/8 | Y6: 2.5 P 6/8 | Z6: 10 P 6/8 | AA6: 4.5 R 4/13 | AB6: 5 Y 8/10 | AC6: 4.5 G 5/8 | AD6: 3 PB 3/11 | AE6: 5 YR 8/4 | AF6: 5 GY 4/4
B7: light greyish red | C7: Dark greyish yellow | D7: Strong yellow green | E7: Moderate yellowish green | F7: Light bluish green | G7: Light blue | H7: Light violet | I7: Light reddish purple | J7: Strong red | K7: Strong yellow | L7: Strong green | M7: Strong blue | N7: Light yellowish pink | O7: Moderate olive green | P7: ='Additional TCS'!B3 -> Japanese Skin Complexion | S7: light greyish red | T7: Dark greyish yellow | U7: Strong yellow green | V7: Moderate yellowish green | W7: Light bluish green | X7: Light blue | Y7: Light violet | Z7: Light reddish purple | AA7: Strong red | AB7: Strong yellow | AC7: Strong green | AD7: Strong blue | AE7: Light yellowish pink | AF7: Moderate olive green | AG7: Japanese Skin Complexion
A8: Wavelength (nm) | B8: TCS01 | C8: TCS02 | D8: TCS03 | E8: TCS04 | F8: TCS05 | G8: TCS06 | H8: TCS07 | I8: TCS08 | J8: TCS09 | K8: TCS10 | L8: TCS11 | M8: TCS12 | N8: TCS13 | O8: TCS14 | P8: ='Additional TCS'!B4 -> TCS15 | Q8: White | R8: WL | S8: TCS01 | T8: TCS02 | U8: TCS03 | V8: TCS04 | W8: TCS05 | X8: TCS06 | Y8: TCS07 | Z8: TCS08 | AA8: TCS09 | AB8: TCS10 | AC8: TCS11 | AD8: TCS12 | AE8: TCS13 | AF8: TCS14 | AG8: TCS15 | AH8: White
A9: 360 | B9: 0.116 | C9: 0.053 | D9: 0.058 | E9: 0.057 | F9: 0.143 | G9: 0.079 | H9: 0.15 | I9: 0.075 | J9: 0.069 | K9: 0.042 | L9: 0.074 | M9: 0.189 | N9: 0.071 | O9: 0.036 | P9: ='Additional TCS'!B5 -> 0.131 | Q9: 1 | R9: =IF(AND('Input - Output'!A10>=360,'Input - Output'!A10<=830),'Input - Output'!A10,"") -> 380 | S9: =IF($R9<>"",TREND(OFFSET(B$9,MATCH($R9,$A$9:$A$485)-1,,2),OFFSET($A$9,MATCH($R9,$A$9:$A$485)-1,,2),$R9),"") -> 0.219 | T9: =IF($R9<>"",TREND(OFFSET(C$9,MATCH($R9,$A$9:$A$485)-1,,2),OFFSET($A$9,MATCH($R9,$A$9:$A$485)-1,,2),$R9),"") -> 0.07 | U9: 0.065 | V9: 0.074 | W9: 0.295 | X9: 0.151 | Y9: 0.378 | Z9: 0.104 | AA9: 0.066 | AB9: 0.05 | AC9: 0.111 | AD9: 0.12 | AE9: 0.104 | AF9: 0.036 | AG9: 0.131 | AH9: 1
A10: 361 | B10: 0.12 | C10: 0.0534 | D10: 0.0582 | E10: 0.0574 | F10: 0.1518 | G10: 0.0794 | H10: 0.1554 | I10: 0.0756 | J10: 0.0696 | K10: 0.0422 | L10: 0.075 | M10: 0.1862 | N10: 0.072 | O10: 0.036 | P10: ='Additional TCS'!B6 -> 0.131 | Q10: 1 | R10: =IF(AND('Input - Output'!A11>=360,'Input - Output'!A11<=830),'Input - Output'!A11,"") -> 385 | S10: =IF($R10<>"",TREND(OFFSET(B$9,MATCH($R10,$A$9:$A$485)-1,,2),OFFSET($A$9,MATCH($R10,$A$9:$A$485)-1,,2),$R10),"") -> 0.239 | T10: =IF($R10<>"",TREND(OFFSET(C$9,MATCH($R10,$A$9:$A$485)-1,,2),OFFSET($A$9,MATCH($R10,$A$9:$A$485)-1,,2),$R10),"") -> 0.079 | U10: =IF($R10<>"",TREND(OFFSET(D$9,MATCH($R10,$A$9:$A$485)-1,,2),OFFSET($A$9,MATCH($R10,$A$9:$A$485)-1,,2),$R10),"") -> 0.068 | V10: =IF($R10<>"",TREND(OFFSET(E$9,MATCH($R10,$A$9:$A$485)-1,,2),OFFSET($A$9,MATCH($R10,$A$9:$A$485)-1,,2),$R10),"") -> 0.083 | W10: =IF($R10<>"",TREND(OFFSET(F$9,MATCH($R10,$A$9:$A$485)-1,,2),OFFSET($A$9,MATCH($R10,$A$9:$A$485)-1,,2),$R10),"") -> 0.306 | X10: =IF($R10<>"",TREND(OFFSET(G$9,MATCH($R10,$A$9:$A$485)-1,,2),OFFSET($A$9,MATCH($R10,$A$9:$A$485)-1,,2),$R10),"") -> 0.203 | Y10: =IF($R10<>"",TREND(OFFSET(H$9,MATCH($R10,$A$9:$A$485)-1,,2),OFFSET($A$9,MATCH($R10,$A$9:$A$485)-1,,2),$R10),"") -> 0.459 | Z10: =IF($R10<>"",TREND(OFFSET(I$9,MATCH($R10,$A$9:$A$485)-1,,2),OFFSET($A$9,MATCH($R10,$A$9:$A$485)-1,,2),$R10),"") -> 0.129 | AA10: =IF($R10<>"",TREND(OFFSET(J$9,MATCH($R10,$A$9:$A$485)-1,,2),OFFSET($A$9,MATCH($R10,$A$9:$A$485)-1,,2),$R10),"") -> 0.062 | AB10: =IF($R10<>"",TREND(OFFSET(K$9,MATCH($R10,$A$9:$A$485)-1,,2),OFFSET($A$9,MATCH($R10,$A$9:$A$485)-1,,2),$R10),"") -> 0.054 | AC10: =IF($R10<>"",TREND(OFFSET(L$9,MATCH($R10,$A$9:$A$485)-1,,2),OFFSET($A$9,MATCH($R10,$A$9:$A$485)-1,,2),$R10),"") -> 0.121 | AD10: =IF($R10<>"",TREND(OFFSET(M$9,MATCH($R10,$A$9:$A$485)-1,,2),OFFSET($A$9,MATCH($R10,$A$9:$A$485)-1,,2),$R10),"") -> 0.103 | AE10: =IF($R10<>"",TREND(OFFSET(N$9,MATCH($R10,$A$9:$A$485)-1,,2),OFFSET($A$9,MATCH($R10,$A$9:$A$485)-1,,2),$R10),"") -> 0.127 | AF10: =IF($R10<>"",TREND(OFFSET(O$9,MATCH($R10,$A$9:$A$485)-1,,2),OFFSET($A$9,MATCH($R10,$A$9:$A$485)-1,,2),$R10),"") -> 0.036 | AG10: =IF($R10<>"",TREND(OFFSET(P$9,MATCH($R10,$A$9:$A$485)-1,,2),OFFSET($A$9,MATCH($R10,$A$9:$A$485)-1,,2),$R10),"") -> 0.139 | AH10: =IF($R10<>"",TREND(OFFSET(Q$9,MATCH($R10,$A$9:$A$485)-1,,2),OFFSET($A$9,MATCH($R10,$A$9:$A$485)-1,,2),$R10),"") -> 1
A11: 362 | B11: 0.124 | C11: 0.0538 | D11: 0.0584 | E11: 0.0578 | F11: 0.1606 | G11: 0.0798 | H11: 0.1608 | I11: 0.0762 | J11: 0.0702 | K11: 0.0424 | L11: 0.076 | M11: 0.1834 | N11: 0.073 | O11: 0.036 | P11: ='Additional TCS'!B7 -> 0.131 | Q11: 1 | R11: =IF(AND('Input - Output'!A12>=360,'Input - Output'!A12<=830),'Input - Output'!A12,"") -> 390 | S11: 0.252 | T11: 0.089 | U11: 0.07 | V11: 0.093 | W11: 0.31 | X11: 0.265 | Y11: 0.524 | Z11: 0.17 | AA11: 0.058 | AB11: 0.059 | AC11: 0.127 | AD11: 0.09 | AE11: 0.161 | AF11: 0.037 | AG11: 0.147 | AH11: 1
A12: 363 | B12: 0.128 | C12: 0.0542 | D12: 0.0586 | E12: 0.0582 | F12: 0.1694 | G12: 0.0802 | H12: 0.1662 | I12: 0.0768 | J12: 0.0708 | K12: 0.0426 | L12: 0.077 | M12: 0.1806 | N12: 0.074 | O12: 0.036 | P12: ='Additional TCS'!B8 -> 0.131 | Q12: 1 | R12: =IF(AND('Input - Output'!A13>=360,'Input - Output'!A13<=830),'Input - Output'!A13,"") -> 395 | S12: 0.256 | T12: 0.101 | U12: 0.072 | V12: 0.105 | W12: 0.312 | X12: 0.339 | Y12: 0.546 | Z12: 0.24 | AA12: 0.055 | AB12: 0.063 | AC12: 0.129 | AD12: 0.082 | AE12: 0.211 | AF12: 0.038 | AG12: 0.153 | AH12: 1
A13: 364 | B13: 0.132 | C13: 0.0546 | D13: 0.0588 | E13: 0.0586 | F13: 0.1782 | G13: 0.0806 | H13: 0.1716 | I13: 0.0774 | J13: 0.0714 | K13: 0.0428 | L13: 0.078 | M13: 0.1778 | N13: 0.075 | O13: 0.036 | P13: ='Additional TCS'!B9 -> 0.131 | Q13: 1 | R13: =IF(AND('Input - Output'!A14>=360,'Input - Output'!A14<=830),'Input - Output'!A14,"") -> 400 | S13: 0.256 | T13: 0.111 | U13: 0.073 | V13: 0.116 | W13: 0.313 | X13: 0.41 | Y13: 0.551 | Z13: 0.319 | AA13: 0.052 | AB13: 0.066 | AC13: 0.127 | AD13: 0.076 | AE13: 0.264 | AF13: 0.039 | AG13: 0.158 | AH13: 1
A14: 365 | B14: 0.136 | C14: 0.055 | D14: 0.059 | E14: 0.059 | F14: 0.187 | G14: 0.081 | H14: 0.177 | I14: 0.078 | J14: 0.072 | K14: 0.043 | L14: 0.079 | M14: 0.175 | N14: 0.076 | O14: 0.036 | P14: ='Additional TCS'!B10 -> 0.131 | Q14: 1 | R14: =IF(AND('Input - Output'!A15>=360,'Input - Output'!A15<=830),'Input - Output'!A15,"") -> 405 | S14: 0.254 | T14: 0.116 | U14: 0.073 | V14: 0.121 | W14: 0.315 | X14: 0.464 | Y14: 0.555 | Z14: 0.416 | AA14: 0.052 | AB14: 0.067 | AC14: 0.121 | AD14: 0.068 | AE14: 0.313 | AF14: 0.039 | AG14: 0.162 | AH14: 1
A15: 366 | B15: 0.1406 | C15: 0.0558 | D15: 0.0594 | E15: 0.0596 | F15: 0.1962 | G15: 0.0826 | H15: 0.1852 | I15: 0.0792 | J15: 0.0722 | K15: 0.0434 | L15: 0.0804 | M15: 0.1716 | N15: 0.0772 | O15: 0.036 | P15: ='Additional TCS'!B11 -> 0.131 | Q15: 1 | R15: =IF(AND('Input - Output'!A16>=360,'Input - Output'!A16<=830),'Input - Output'!A16,"") -> 410 | S15: 0.252 | T15: 0.118 | U15: 0.074 | V15: 0.124 | W15: 0.319 | X15: 0.492 | Y15: 0.559 | Z15: 0.462 | AA15: 0.051 | AB15: 0.068 | AC15: 0.116 | AD15: 0.064 | AE15: 0.341 | AF15: 0.04 | AG15: 0.164 | AH15: 1
A16: 367 | B16: 0.1452 | C16: 0.0566 | D16: 0.0598 | E16: 0.0602 | F16: 0.2054 | G16: 0.0842 | H16: 0.1934 | I16: 0.0804 | J16: 0.0724 | K16: 0.0438 | L16: 0.0818 | M16: 0.1682 | N16: 0.0784 | O16: 0.036 | P16: ='Additional TCS'!B12 -> 0.131 | Q16: 1 | R16: =IF(AND('Input - Output'!A17>=360,'Input - Output'!A17<=830),'Input - Output'!A17,"") -> 415 | S16: 0.248 | T16: 0.12 | U16: 0.074 | V16: 0.126 | W16: 0.322 | X16: 0.508 | Y16: 0.56 | Z16: 0.482 | AA16: 0.05 | AB16: 0.069 | AC16: 0.112 | AD16: 0.065 | AE16: 0.352 | AF16: 0.041 | AG16: 0.167 | AH16: 1
A17: 368 | B17: 0.1498 | C17: 0.0574 | D17: 0.0602 | E17: 0.0608 | F17: 0.2146 | G17: 0.0858 | H17: 0.2016 | I17: 0.0816 | J17: 0.0726 | K17: 0.0442 | L17: 0.0832 | M17: 0.1648 | N17: 0.0796 | O17: 0.036 | P17: ='Additional TCS'!B13 -> 0.131 | Q17: 1 | R17: =IF(AND('Input - Output'!A18>=360,'Input - Output'!A18<=830),'Input - Output'!A18,"") -> 420 | S17: 0.244 | T17: 0.121 | U17: 0.074 | V17: 0.128 | W17: 0.326 | X17: 0.517 | Y17: 0.561 | Z17: 0.49 | AA17: 0.05 | AB17: 0.069 | AC17: 0.108 | AD17: 0.075 | AE17: 0.359 | AF17: 0.042 | AG17: 0.17 | AH17: 1
A18: 369 | B18: 0.1544 | C18: 0.0582 | D18: 0.0606 | E18: 0.0614 | F18: 0.2238 | G18: 0.0874 | H18: 0.2098 | I18: 0.0828 | J18: 0.0728 | K18: 0.0446 | L18: 0.0846 | M18: 0.1614 | N18: 0.0808 | O18: 0.036 | P18: ='Additional TCS'!B14 -> 0.131 | Q18: 1 | R18: =IF(AND('Input - Output'!A19>=360,'Input - Output'!A19<=830),'Input - Output'!A19,"") -> 425 | S18: 0.24 | T18: 0.122 | U18: 0.073 | V18: 0.131 | W18: 0.33 | X18: 0.524 | Y18: 0.558 | Z18: 0.488 | AA18: 0.049 | AB18: 0.07 | AC18: 0.105 | AD18: 0.093 | AE18: 0.361 | AF18: 0.042 | AG18: 0.175 | AH18: 1
A19: 370 | B19: 0.159 | C19: 0.059 | D19: 0.061 | E19: 0.062 | F19: 0.233 | G19: 0.089 | H19: 0.218 | I19: 0.084 | J19: 0.073 | K19: 0.045 | L19: 0.086 | M19: 0.158 | N19: 0.082 | O19: 0.036 | P19: ='Additional TCS'!B15 -> 0.131 | Q19: 1 | R19: =IF(AND('Input - Output'!A20>=360,'Input - Output'!A20<=830),'Input - Output'!A20,"") -> 430 | S19: 0.237 | T19: 0.122 | U19: 0.073 | V19: 0.135 | W19: 0.334 | X19: 0.531 | Y19: 0.556 | Z19: 0.482 | AA19: 0.048 | AB19: 0.072 | AC19: 0.104 | AD19: 0.123 | AE19: 0.364 | AF19: 0.043 | AG19: 0.182 | AH19: 1
A20: 371 | B20: 0.1652 | C20: 0.06 | D20: 0.0614 | E20: 0.063 | F20: 0.2402 | G20: 0.0938 | H20: 0.233 | I20: 0.0852 | J20: 0.0724 | K20: 0.0454 | L20: 0.0884 | M20: 0.1542 | N20: 0.0836 | O20: 0.036 | P20: ='Additional TCS'!B16 -> 0.131 | Q20: 1 | R20: =IF(AND('Input - Output'!A21>=360,'Input - Output'!A21<=830),'Input - Output'!A21,"") -> 435 | S20: 0.232 | T20: 0.122 | U20: 0.073 | V20: 0.139 | W20: 0.339 | X20: 0.538 | Y20: 0.551 | Z20: 0.473 | AA20: 0.047 | AB20: 0.073 | AC20: 0.104 | AD20: 0.16 | AE20: 0.365 | AF20: 0.044 | AG20: 0.192 | AH20: 1
A21: 372 | B21: 0.1714 | C21: 0.061 | D21: 0.0618 | E21: 0.064 | F21: 0.2474 | G21: 0.0986 | H21: 0.248 | I21: 0.0864 | J21: 0.0718 | K21: 0.0458 | L21: 0.0908 | M21: 0.1504 | N21: 0.0852 | O21: 0.036 | P21: ='Additional TCS'!B17 -> 0.131 | Q21: 1 | R21: =IF(AND('Input - Output'!A22>=360,'Input - Output'!A22<=830),'Input - Output'!A22,"") -> 440 | S21: 0.23 | T21: 0.123 | U21: 0.073 | V21: 0.144 | W21: 0.346 | X21: 0.544 | Y21: 0.544 | Z21: 0.462 | AA21: 0.046 | AB21: 0.076 | AC21: 0.105 | AD21: 0.207 | AE21: 0.367 | AF21: 0.044 | AG21: 0.203 | AH21: 1
A22: 373 | B22: 0.1776 | C22: 0.062 | D22: 0.0622 | E22: 0.065 | F22: 0.2546 | G22: 0.1034 | H22: 0.263 | I22: 0.0876 | J22: 0.0712 | K22: 0.0462 | L22: 0.0932 | M22: 0.1466 | N22: 0.0868 | O22: 0.036 | P22: ='Additional TCS'!B18 -> 0.131 | Q22: 1 | R22: =IF(AND('Input - Output'!A23>=360,'Input - Output'!A23<=830),'Input - Output'!A23,"") -> 445 | S22: 0.226 | T22: 0.124 | U22: 0.073 | V22: 0.151 | W22: 0.352 | X22: 0.551 | Y22: 0.535 | Z22: 0.45 | AA22: 0.044 | AB22: 0.078 | AC22: 0.106 | AD22: 0.256 | AE22: 0.369 | AF22: 0.045 | AG22: 0.212 | AH22: 1
A23: 374 | B23: 0.1838 | C23: 0.063 | D23: 0.0626 | E23: 0.066 | F23: 0.2618 | G23: 0.1082 | H23: 0.278 | I23: 0.0888 | J23: 0.0706 | K23: 0.0466 | L23: 0.0956 | M23: 0.1428 | N23: 0.0884 | O23: 0.036 | P23: ='Additional TCS'!B19 -> 0.131 | Q23: 1 | R23: =IF(AND('Input - Output'!A24>=360,'Input - Output'!A24<=830),'Input - Output'!A24,"") -> 450 | S23: 0.225 | T23: 0.127 | U23: 0.074 | V23: 0.161 | W23: 0.36 | X23: 0.556 | Y23: 0.522 | Z23: 0.439 | AA23: 0.042 | AB23: 0.083 | AC23: 0.11 | AD23: 0.3 | AE23: 0.372 | AF23: 0.045 | AG23: 0.221 | AH23: 1
A24: 375 | B24: 0.19 | C24: 0.064 | D24: 0.063 | E24: 0.067 | F24: 0.269 | G24: 0.113 | H24: 0.293 | I24: 0.09 | J24: 0.07 | K24: 0.047 | L24: 0.098 | M24: 0.139 | N24: 0.09 | O24: 0.036 | P24: ='Additional TCS'!B20 -> 0.131 | Q24: 1 | R24: =IF(AND('Input - Output'!A25>=360,'Input - Output'!A25<=830),'Input - Output'!A25,"") -> 455 | S24: 0.222 | T24: 0.128 | U24: 0.075 | V24: 0.172 | W24: 0.369 | X24: 0.556 | Y24: 0.506 | Z24: 0.426 | AA24: 0.041 | AB24: 0.088 | AC24: 0.115 | AD24: 0.331 | AE24: 0.374 | AF24: 0.046 | AG24: 0.229 | AH24: 1
A25: 376 | B25: 0.1958 | C25: 0.0652 | D25: 0.0634 | E25: 0.0684 | F25: 0.2742 | G25: 0.1206 | H25: 0.31 | I25: 0.0928 | J25: 0.0692 | K25: 0.0476 | L25: 0.1006 | M25: 0.1352 | N25: 0.0928 | O25: 0.036 | P25: ='Additional TCS'!B21 -> 0.131 | Q25: 1 | R25: =IF(AND('Input - Output'!A26>=360,'Input - Output'!A26<=830),'Input - Output'!A26,"") -> 460 | S25: 0.22 | T25: 0.131 | U25: 0.077 | V25: 0.186 | W25: 0.381 | X25: 0.554 | Y25: 0.488 | Z25: 0.413 | AA25: 0.038 | AB25: 0.095 | AC25: 0.123 | AD25: 0.346 | AE25: 0.376 | AF25: 0.047 | AG25: 0.236 | AH25: 1
A26: 377 | B26: 0.2016 | C26: 0.0664 | D26: 0.0638 | E26: 0.0698 | F26: 0.2794 | G26: 0.1282 | H26: 0.327 | I26: 0.0956 | J26: 0.0684 | K26: 0.0482 | L26: 0.1032 | M26: 0.1314 | N26: 0.0956 | O26: 0.036 | P26: ='Additional TCS'!B22 -> 0.131 | Q26: 1 | R26: =IF(AND('Input - Output'!A27>=360,'Input - Output'!A27<=830),'Input - Output'!A27,"") -> 465 | S26: 0.218 | T26: 0.134 | U26: 0.08 | V26: 0.205 | W26: 0.394 | X26: 0.549 | Y26: 0.469 | Z26: 0.397 | AA26: 0.035 | AB26: 0.103 | AC26: 0.134 | AD26: 0.347 | AE26: 0.379 | AF26: 0.048 | AG26: 0.243 | AH26: 1
A27: 378 | B27: 0.2074 | C27: 0.0676 | D27: 0.0642 | E27: 0.0712 | F27: 0.2846 | G27: 0.1358 | H27: 0.344 | I27: 0.0984 | J27: 0.0676 | K27: 0.0488 | L27: 0.1058 | M27: 0.1276 | N27: 0.0984 | O27: 0.036 | P27: ='Additional TCS'!B23 -> 0.131 | Q27: 1 | R27: =IF(AND('Input - Output'!A28>=360,'Input - Output'!A28<=830),'Input - Output'!A28,"") -> 470 | S27: 0.216 | T27: 0.138 | U27: 0.085 | V27: 0.229 | W27: 0.403 | X27: 0.541 | Y27: 0.448 | Z27: 0.382 | AA27: 0.033 | AB27: 0.113 | AC27: 0.148 | AD27: 0.341 | AE27: 0.384 | AF27: 0.05 | AG27: 0.249 | AH27: 1
A28: 379 | B28: 0.2132 | C28: 0.0688 | D28: 0.0646 | E28: 0.0726 | F28: 0.2898 | G28: 0.1434 | H28: 0.361 | I28: 0.1012 | J28: 0.0668 | K28: 0.0494 | L28: 0.1084 | M28: 0.1238 | N28: 0.1012 | O28: 0.036 | P28: ='Additional TCS'!B24 -> 0.131 | Q28: 1 | R28: =IF(AND('Input - Output'!A29>=360,'Input - Output'!A29<=830),'Input - Output'!A29,"") -> 475 | S28: 0.214 | T28: 0.143 | U28: 0.094 | V28: 0.254 | W28: 0.41 | X28: 0.531 | Y28: 0.429 | Z28: 0.366 | AA28: 0.031 | AB28: 0.125 | AC28: 0.167 | AD28: 0.328 | AE28: 0.389 | AF28: 0.052 | AG28: 0.254 | AH28: 1
A29: 380 | B29: 0.219 | C29: 0.07 | D29: 0.065 | E29: 0.074 | F29: 0.295 | G29: 0.151 | H29: 0.378 | I29: 0.104 | J29: 0.066 | K29: 0.05 | L29: 0.111 | M29: 0.12 | N29: 0.104 | O29: 0.036 | P29: ='Additional TCS'!B25 -> 0.131 | Q29: 1 | R29: =IF(AND('Input - Output'!A30>=360,'Input - Output'!A30<=830),'Input - Output'!A30,"") -> 480 | S29: 0.214 | T29: 0.15 | U29: 0.109 | V29: 0.281 | W29: 0.415 | X29: 0.519 | Y29: 0.408 | Z29: 0.352 | AA29: 0.03 | AB29: 0.142 | AC29: 0.192 | AD29: 0.307 | AE29: 0.397 | AF29: 0.055 | AG29: 0.259 | AH29: 1
A30: 381 | B30: 0.223 | C30: 0.0718 | D30: 0.0656 | E30: 0.0758 | F30: 0.2972 | G30: 0.1614 | H30: 0.3942 | I30: 0.109 | J30: 0.0652 | K30: 0.0508 | L30: 0.113 | M30: 0.1166 | N30: 0.1086 | O30: 0.036 | P30: ='Additional TCS'!B26 -> 0.1326 | Q30: 1 | R30: =IF(AND('Input - Output'!A31>=360,'Input - Output'!A31<=830),'Input - Output'!A31,"") -> 485 | S30: 0.214 | T30: 0.159 | U30: 0.126 | V30: 0.308 | W30: 0.418 | X30: 0.504 | Y30: 0.385 | Z30: 0.337 | AA30: 0.029 | AB30: 0.162 | AC30: 0.219 | AD30: 0.282 | AE30: 0.405 | AF30: 0.057 | AG30: 0.264 | AH30: 1
A31: 382 | B31: 0.227 | C31: 0.0736 | D31: 0.0662 | E31: 0.0776 | F31: 0.2994 | G31: 0.1718 | H31: 0.4104 | I31: 0.114 | J31: 0.0644 | K31: 0.0516 | L31: 0.115 | M31: 0.1132 | N31: 0.1132 | O31: 0.036 | P31: ='Additional TCS'!B27 -> 0.1342 | Q31: 1 | R31: =IF(AND('Input - Output'!A32>=360,'Input - Output'!A32<=830),'Input - Output'!A32,"") -> 490 | S31: 0.216 | T31: 0.174 | U31: 0.148 | V31: 0.332 | W31: 0.419 | X31: 0.488 | Y31: 0.363 | Z31: 0.325 | AA31: 0.028 | AB31: 0.189 | AC31: 0.252 | AD31: 0.257 | AE31: 0.416 | AF31: 0.062 | AG31: 0.269 | AH31: 1
A32: 383 | B32: 0.231 | C32: 0.0754 | D32: 0.0668 | E32: 0.0794 | F32: 0.3016 | G32: 0.1822 | H32: 0.4266 | I32: 0.119 | J32: 0.0636 | K32: 0.0524 | L32: 0.117 | M32: 0.1098 | N32: 0.1178 | O32: 0.036 | P32: ='Additional TCS'!B28 -> 0.1358 | Q32: 1 | R32: =IF(AND('Input - Output'!A33>=360,'Input - Output'!A33<=830),'Input - Output'!A33,"") -> 495 | S32: 0.218 | T32: 0.19 | U32: 0.172 | V32: 0.352 | W32: 0.417 | X32: 0.469 | Y32: 0.341 | Z32: 0.31 | AA32: 0.028 | AB32: 0.219 | AC32: 0.291 | AD32: 0.23 | AE32: 0.429 | AF32: 0.067 | AG32: 0.276 | AH32: 1
A33: 384 | B33: 0.235 | C33: 0.0772 | D33: 0.0674 | E33: 0.0812 | F33: 0.3038 | G33: 0.1926 | H33: 0.4428 | I33: 0.124 | J33: 0.0628 | K33: 0.0532 | L33: 0.119 | M33: 0.1064 | N33: 0.1224 | O33: 0.036 | P33: ='Additional TCS'!B29 -> 0.1374 | Q33: 1 | R33: =IF(AND('Input - Output'!A34>=360,'Input - Output'!A34<=830),'Input - Output'!A34,"") -> 500 | S33: 0.223 | T33: 0.207 | U33: 0.198 | V33: 0.37 | W33: 0.413 | X33: 0.45 | Y33: 0.324 | Z33: 0.299 | AA33: 0.028 | AB33: 0.262 | AC33: 0.325 | AD33: 0.204 | AE33: 0.443 | AF33: 0.075 | AG33: 0.284 | AH33: 1
A34: 385 | B34: 0.239 | C34: 0.079 | D34: 0.068 | E34: 0.083 | F34: 0.306 | G34: 0.203 | H34: 0.459 | I34: 0.129 | J34: 0.062 | K34: 0.054 | L34: 0.121 | M34: 0.103 | N34: 0.127 | O34: 0.036 | P34: ='Additional TCS'!B30 -> 0.139 | Q34: 1 | R34: =IF(AND('Input - Output'!A35>=360,'Input - Output'!A35<=830),'Input - Output'!A35,"") -> 505 | S34: 0.225 | T34: 0.225 | U34: 0.221 | V34: 0.383 | W34: 0.409 | X34: 0.431 | Y34: 0.311 | Z34: 0.289 | AA34: 0.029 | AB34: 0.305 | AC34: 0.347 | AD34: 0.178 | AE34: 0.454 | AF34: 0.083 | AG34: 0.291 | AH34: 1
A35: 386 | B35: 0.2416 | C35: 0.081 | D35: 0.0684 | E35: 0.085 | F35: 0.3068 | G35: 0.2154 | H35: 0.472 | I35: 0.1372 | J35: 0.0612 | K35: 0.055 | L35: 0.1222 | M35: 0.1004 | N35: 0.1338 | O35: 0.0362 | P35: ='Additional TCS'!B31 -> 0.1406 | Q35: 1 | R35: =IF(AND('Input - Output'!A36>=360,'Input - Output'!A36<=830),'Input - Output'!A36,"") -> 510 | S35: 0.226 | T35: 0.242 | U35: 0.241 | V35: 0.39 | W35: 0.403 | X35: 0.414 | Y35: 0.301 | Z35: 0.283 | AA35: 0.03 | AB35: 0.365 | AC35: 0.356 | AD35: 0.154 | AE35: 0.461 | AF35: 0.092 | AG35: 0.296 | AH35: 1
A36: 387 | B36: 0.2442 | C36: 0.083 | D36: 0.0688 | E36: 0.087 | F36: 0.3076 | G36: 0.2278 | H36: 0.485 | I36: 0.1454 | J36: 0.0604 | K36: 0.056 | L36: 0.1234 | M36: 0.0978 | N36: 0.1406 | O36: 0.0364 | P36: ='Additional TCS'!B32 -> 0.1422 | Q36: 1 | R36: =IF(AND('Input - Output'!A37>=360,'Input - Output'!A37<=830),'Input - Output'!A37,"") -> 515 | S36: 0.226 | T36: 0.253 | U36: 0.26 | V36: 0.394 | W36: 0.396 | X36: 0.395 | Y36: 0.291 | Z36: 0.276 | AA36: 0.03 | AB36: 0.416 | AC36: 0.353 | AD36: 0.129 | AE36: 0.466 | AF36: 0.1 | AG36: 0.298 | AH36: 1
A37: 388 | B37: 0.2468 | C37: 0.085 | D37: 0.0692 | E37: 0.089 | F37: 0.3084 | G37: 0.2402 | H37: 0.498 | I37: 0.1536 | J37: 0.0596 | K37: 0.057 | L37: 0.1246 | M37: 0.0952 | N37: 0.1474 | O37: 0.0366 | P37: ='Additional TCS'!B33 -> 0.1438 | Q37: 1 | R37: =IF(AND('Input - Output'!A38>=360,'Input - Output'!A38<=830),'Input - Output'!A38,"") -> 520 | S37: 0.225 | T37: 0.26 | U37: 0.278 | V37: 0.395 | W37: 0.389 | X37: 0.377 | Y37: 0.283 | Z37: 0.27 | AA37: 0.031 | AB37: 0.465 | AC37: 0.346 | AD37: 0.109 | AE37: 0.469 | AF37: 0.108 | AG37: 0.296 | AH37: 1
A38: 389 | B38: 0.2494 | C38: 0.087 | D38: 0.0696 | E38: 0.091 | F38: 0.3092 | G38: 0.2526 | H38: 0.511 | I38: 0.1618 | J38: 0.0588 | K38: 0.058 | L38: 0.1258 | M38: 0.0926 | N38: 0.1542 | O38: 0.0368 | P38: ='Additional TCS'!B34 -> 0.1454 | Q38: 1 | R38: =IF(AND('Input - Output'!A39>=360,'Input - Output'!A39<=830),'Input - Output'!A39,"") -> 525 | S38: 0.225 | T38: 0.264 | U38: 0.302 | V38: 0.392 | W38: 0.381 | X38: 0.358 | Y38: 0.273 | Z38: 0.262 | AA38: 0.031 | AB38: 0.509 | AC38: 0.333 | AD38: 0.09 | AE38: 0.471 | AF38: 0.121 | AG38: 0.289 | AH38: 1
A39: 390 | B39: 0.252 | C39: 0.089 | D39: 0.07 | E39: 0.093 | F39: 0.31 | G39: 0.265 | H39: 0.524 | I39: 0.17 | J39: 0.058 | K39: 0.059 | L39: 0.127 | M39: 0.09 | N39: 0.161 | O39: 0.037 | P39: ='Additional TCS'!B35 -> 0.147 | Q39: 1 | R39: =IF(AND('Input - Output'!A40>=360,'Input - Output'!A40<=830),'Input - Output'!A40,"") -> 530 | S39: 0.227 | T39: 0.267 | U39: 0.339 | V39: 0.385 | W39: 0.372 | X39: 0.341 | Y39: 0.265 | Z39: 0.256 | AA39: 0.032 | AB39: 0.546 | AC39: 0.314 | AD39: 0.075 | AE39: 0.474 | AF39: 0.133 | AG39: 0.282 | AH39: 1
A40: 391 | B40: 0.2528 | C40: 0.0914 | D40: 0.0704 | E40: 0.0954 | F40: 0.3104 | G40: 0.2798 | H40: 0.5284 | I40: 0.184 | J40: 0.0574 | K40: 0.0598 | L40: 0.1274 | M40: 0.0884 | N40: 0.171 | O40: 0.0372 | P40: ='Additional TCS'!B36 -> 0.1482 | Q40: 1 | R40: =IF(AND('Input - Output'!A41>=360,'Input - Output'!A41<=830),'Input - Output'!A41,"") -> 535 | S40: 0.23 | T40: 0.269 | U40: 0.37 | V40: 0.377 | W40: 0.363 | X40: 0.325 | Y40: 0.26 | Z40: 0.251 | AA40: 0.032 | AB40: 0.581 | AC40: 0.294 | AD40: 0.062 | AE40: 0.476 | AF40: 0.142 | AG40: 0.276 | AH40: 1
A41: 392 | B41: 0.2536 | C41: 0.0938 | D41: 0.0708 | E41: 0.0978 | F41: 0.3108 | G41: 0.2946 | H41: 0.5328 | I41: 0.198 | J41: 0.0568 | K41: 0.0606 | L41: 0.1278 | M41: 0.0868 | N41: 0.181 | O41: 0.0374 | P41: ='Additional TCS'!B37 -> 0.1494 | Q41: 1 | R41: =IF(AND('Input - Output'!A42>=360,'Input - Output'!A42<=830),'Input - Output'!A42,"") -> 540 | S41: 0.236 | T41: 0.272 | U41: 0.392 | V41: 0.367 | W41: 0.353 | X41: 0.309 | Y41: 0.257 | Z41: 0.25 | AA41: 0.033 | AB41: 0.61 | AC41: 0.271 | AD41: 0.051 | AE41: 0.483 | AF41: 0.15 | AG41: 0.274 | AH41: 1
A42: 393 | B42: 0.2544 | C42: 0.0962 | D42: 0.0712 | E42: 0.1002 | F42: 0.3112 | G42: 0.3094 | H42: 0.5372 | I42: 0.212 | J42: 0.0562 | K42: 0.0614 | L42: 0.1282 | M42: 0.0852 | N42: 0.191 | O42: 0.0376 | P42: ='Additional TCS'!B38 -> 0.1506 | Q42: 1 | R42: =IF(AND('Input - Output'!A43>=360,'Input - Output'!A43<=830),'Input - Output'!A43,"") -> 545 | S42: 0.245 | T42: 0.276 | U42: 0.399 | V42: 0.354 | W42: 0.342 | X42: 0.293 | Y42: 0.257 | Z42: 0.251 | AA42: 0.034 | AB42: 0.634 | AC42: 0.248 | AD42: 0.041 | AE42: 0.49 | AF42: 0.154 | AG42: 0.276 | AH42: 1
A43: 394 | B43: 0.2552 | C43: 0.0986 | D43: 0.0716 | E43: 0.1026 | F43: 0.3116 | G43: 0.3242 | H43: 0.5416 | I43: 0.226 | J43: 0.0556 | K43: 0.0622 | L43: 0.1286 | M43: 0.0836 | N43: 0.201 | O43: 0.0378 | P43: ='Additional TCS'!B39 -> 0.1518 | Q43: 1 | R43: =IF(AND('Input - Output'!A44>=360,'Input - Output'!A44<=830),'Input - Output'!A44,"") -> 550 | S43: 0.253 | T43: 0.282 | U43: 0.4 | V43: 0.341 | W43: 0.331 | X43: 0.279 | Y43: 0.259 | Z43: 0.254 | AA43: 0.035 | AB43: 0.653 | AC43: 0.227 | AD43: 0.035 | AE43: 0.506 | AF43: 0.155 | AG43: 0.281 | AH43: 1
A44: 395 | B44: 0.256 | C44: 0.101 | D44: 0.072 | E44: 0.105 | F44: 0.312 | G44: 0.339 | H44: 0.546 | I44: 0.24 | J44: 0.055 | K44: 0.063 | L44: 0.129 | M44: 0.082 | N44: 0.211 | O44: 0.038 | P44: ='Additional TCS'!B40 -> 0.153 | Q44: 1 | R44: =IF(AND('Input - Output'!A45>=360,'Input - Output'!A45<=830),'Input - Output'!A45,"") -> 555 | S44: 0.262 | T44: 0.289 | U44: 0.393 | V44: 0.327 | W44: 0.32 | X44: 0.265 | Y44: 0.26 | Z44: 0.258 | AA44: 0.037 | AB44: 0.666 | AC44: 0.206 | AD44: 0.029 | AE44: 0.526 | AF44: 0.152 | AG44: 0.286 | AH44: 1
A45: 396 | B45: 0.256 | C45: 0.103 | D45: 0.0722 | E45: 0.1072 | F45: 0.3122 | G45: 0.3532 | H45: 0.547 | I45: 0.2558 | J45: 0.0544 | K45: 0.0636 | L45: 0.1286 | M45: 0.0808 | N45: 0.2216 | O45: 0.0382 | P45: ='Additional TCS'!B41 -> 0.154 | Q45: 1 | R45: =IF(AND('Input - Output'!A46>=360,'Input - Output'!A46<=830),'Input - Output'!A46,"") -> 560 | S45: 0.272 | T45: 0.299 | U45: 0.38 | V45: 0.312 | W45: 0.308 | X45: 0.253 | Y45: 0.26 | Z45: 0.264 | AA45: 0.041 | AB45: 0.678 | AC45: 0.188 | AD45: 0.025 | AE45: 0.553 | AF45: 0.147 | AG45: 0.291 | AH45: 1
A46: 397 | B46: 0.256 | C46: 0.105 | D46: 0.0724 | E46: 0.1094 | F46: 0.3124 | G46: 0.3674 | H46: 0.548 | I46: 0.2716 | J46: 0.0538 | K46: 0.0642 | L46: 0.1282 | M46: 0.0796 | N46: 0.2322 | O46: 0.0384 | P46: ='Additional TCS'!B42 -> 0.155 | Q46: 1 | R46: =IF(AND('Input - Output'!A47>=360,'Input - Output'!A47<=830),'Input - Output'!A47,"") -> 565 | S46: 0.283 | T46: 0.309 | U46: 0.365 | V46: 0.296 | W46: 0.296 | X46: 0.241 | Y46: 0.258 | Z46: 0.269 | AA46: 0.044 | AB46: 0.687 | AC46: 0.17 | AD46: 0.022 | AE46: 0.582 | AF46: 0.14 | AG46: 0.289 | AH46: 1
A47: 398 | B47: 0.256 | C47: 0.107 | D47: 0.0726 | E47: 0.1116 | F47: 0.3126 | G47: 0.3816 | H47: 0.549 | I47: 0.2874 | J47: 0.0532 | K47: 0.0648 | L47: 0.1278 | M47: 0.0784 | N47: 0.2428 | O47: 0.0386 | P47: ='Additional TCS'!B43 -> 0.156 | Q47: 1 | R47: =IF(AND('Input - Output'!A48>=360,'Input - Output'!A48<=830),'Input - Output'!A48,"") -> 570 | S47: 0.298 | T47: 0.322 | U47: 0.349 | V47: 0.28 | W47: 0.284 | X47: 0.234 | Y47: 0.256 | Z47: 0.272 | AA47: 0.048 | AB47: 0.693 | AC47: 0.153 | AD47: 0.019 | AE47: 0.618 | AF47: 0.133 | AG47: 0.286 | AH47: 1
A48: 399 | B48: 0.256 | C48: 0.109 | D48: 0.0728 | E48: 0.1138 | F48: 0.3128 | G48: 0.3958 | H48: 0.55 | I48: 0.3032 | J48: 0.0526 | K48: 0.0654 | L48: 0.1274 | M48: 0.0772 | N48: 0.2534 | O48: 0.0388 | P48: ='Additional TCS'!B44 -> 0.157 | Q48: 1 | R48: =IF(AND('Input - Output'!A49>=360,'Input - Output'!A49<=830),'Input - Output'!A49,"") -> 575 | S48: 0.318 | T48: 0.329 | U48: 0.332 | V48: 0.263 | W48: 0.271 | X48: 0.227 | Y48: 0.254 | Z48: 0.274 | AA48: 0.052 | AB48: 0.698 | AC48: 0.138 | AD48: 0.017 | AE48: 0.651 | AF48: 0.125 | AG48: 0.28 | AH48: 1
A49: 400 | B49: 0.256 | C49: 0.111 | D49: 0.073 | E49: 0.116 | F49: 0.313 | G49: 0.41 | H49: 0.551 | I49: 0.319 | J49: 0.052 | K49: 0.066 | L49: 0.127 | M49: 0.076 | N49: 0.264 | O49: 0.039 | P49: ='Additional TCS'!B45 -> 0.158 | Q49: 1 | R49: =IF(AND('Input - Output'!A50>=360,'Input - Output'!A50<=830),'Input - Output'!A50,"") -> 580 | S49: 0.341 | T49: 0.335 | U49: 0.315 | V49: 0.247 | W49: 0.26 | X49: 0.225 | Y49: 0.254 | Z49: 0.278 | AA49: 0.06 | AB49: 0.701 | AC49: 0.125 | AD49: 0.017 | AE49: 0.68 | AF49: 0.118 | AG49: 0.285 | AH49: 1
A50: 401 | B50: 0.2556 | C50: 0.112 | D50: 0.073 | E50: 0.117 | F50: 0.3134 | G50: 0.4208 | H50: 0.5518 | I50: 0.3384 | J50: 0.052 | K50: 0.0662 | L50: 0.1258 | M50: 0.0744 | N50: 0.2738 | O50: 0.039 | P50: ='Additional TCS'!B46 -> 0.1588 | Q50: 1 | R50: =IF(AND('Input - Output'!A51>=360,'Input - Output'!A51<=830),'Input - Output'!A51,"") -> 585 | S50: 0.367 | T50: 0.339 | U50: 0.299 | V50: 0.229 | W50: 0.247 | X50: 0.222 | Y50: 0.259 | Z50: 0.284 | AA50: 0.076 | AB50: 0.704 | AC50: 0.114 | AD50: 0.017 | AE50: 0.701 | AF50: 0.112 | AG50: 0.314 | AH50: 1
A51: 402 | B51: 0.2552 | C51: 0.113 | D51: 0.073 | E51: 0.118 | F51: 0.3138 | G51: 0.4316 | H51: 0.5526 | I51: 0.3578 | J51: 0.052 | K51: 0.0664 | L51: 0.1246 | M51: 0.0728 | N51: 0.2836 | O51: 0.039 | P51: ='Additional TCS'!B47 -> 0.1596 | Q51: 1 | R51: =IF(AND('Input - Output'!A52>=360,'Input - Output'!A52<=830),'Input - Output'!A52,"") -> 590 | S51: 0.39 | T51: 0.341 | U51: 0.285 | V51: 0.214 | W51: 0.232 | X51: 0.221 | Y51: 0.27 | Z51: 0.295 | AA51: 0.102 | AB51: 0.705 | AC51: 0.106 | AD51: 0.016 | AE51: 0.717 | AF51: 0.106 | AG51: 0.354 | AH51: 1
A52: 403 | B52: 0.2548 | C52: 0.114 | D52: 0.073 | E52: 0.119 | F52: 0.3142 | G52: 0.4424 | H52: 0.5534 | I52: 0.3772 | J52: 0.052 | K52: 0.0666 | L52: 0.1234 | M52: 0.0712 | N52: 0.2934 | O52: 0.039 | P52: ='Additional TCS'!B48 -> 0.1604 | Q52: 1 | R52: =IF(AND('Input - Output'!A53>=360,'Input - Output'!A53<=830),'Input - Output'!A53,"") -> 595 | S52: 0.409 | T52: 0.341 | U52: 0.272 | V52: 0.198 | W52: 0.22 | X52: 0.22 | Y52: 0.284 | Z52: 0.316 | AA52: 0.136 | AB52: 0.705 | AC52: 0.1 | AD52: 0.016 | AE52: 0.729 | AF52: 0.101 | AG52: 0.398 | AH52: 1
A53: 404 | B53: 0.2544 | C53: 0.115 | D53: 0.073 | E53: 0.12 | F53: 0.3146 | G53: 0.4532 | H53: 0.5542 | I53: 0.3966 | J53: 0.052 | K53: 0.0668 | L53: 0.1222 | M53: 0.0696 | N53: 0.3032 | O53: 0.039 | P53: ='Additional TCS'!B49 -> 0.1612 | Q53: 1 | R53: =IF(AND('Input - Output'!A54>=360,'Input - Output'!A54<=830),'Input - Output'!A54,"") -> 600 | S53: 0.424 | T53: 0.342 | U53: 0.264 | V53: 0.185 | W53: 0.21 | X53: 0.22 | Y53: 0.302 | Z53: 0.348 | AA53: 0.19 | AB53: 0.706 | AC53: 0.096 | AD53: 0.016 | AE53: 0.736 | AF53: 0.098 | AG53: 0.44 | AH53: 1
A54: 405 | B54: 0.254 | C54: 0.116 | D54: 0.073 | E54: 0.121 | F54: 0.315 | G54: 0.464 | H54: 0.555 | I54: 0.416 | J54: 0.052 | K54: 0.067 | L54: 0.121 | M54: 0.068 | N54: 0.313 | O54: 0.039 | P54: ='Additional TCS'!B50 -> 0.162 | Q54: 1 | R54: =IF(AND('Input - Output'!A55>=360,'Input - Output'!A55<=830),'Input - Output'!A55,"") -> 605 | S54: 0.435 | T54: 0.342 | U54: 0.257 | V54: 0.175 | W54: 0.2 | X54: 0.22 | Y54: 0.324 | Z54: 0.384 | AA54: 0.256 | AB54: 0.707 | AC54: 0.092 | AD54: 0.016 | AE54: 0.742 | AF54: 0.095 | AG54: 0.47 | AH54: 1
A55: 406 | B55: 0.2536 | C55: 0.1164 | D55: 0.0732 | E55: 0.1216 | F55: 0.3158 | G55: 0.4696 | H55: 0.5558 | I55: 0.4252 | J55: 0.0518 | K55: 0.0672 | L55: 0.12 | M55: 0.0672 | N55: 0.3186 | O55: 0.0392 | P55: ='Additional TCS'!B51 -> 0.1624 | Q55: 1 | R55: =IF(AND('Input - Output'!A56>=360,'Input - Output'!A56<=830),'Input - Output'!A56,"") -> 610 | S55: 0.442 | T55: 0.342 | U55: 0.252 | V55: 0.169 | W55: 0.194 | X55: 0.22 | Y55: 0.344 | Z55: 0.434 | AA55: 0.336 | AB55: 0.707 | AC55: 0.09 | AD55: 0.016 | AE55: 0.745 | AF55: 0.093 | AG55: 0.494 | AH55: 1
A56: 407 | B56: 0.2532 | C56: 0.1168 | D56: 0.0734 | E56: 0.1222 | F56: 0.3166 | G56: 0.4752 | H56: 0.5566 | I56: 0.4344 | J56: 0.0516 | K56: 0.0674 | L56: 0.119 | M56: 0.0664 | N56: 0.3242 | O56: 0.0394 | P56: ='Additional TCS'!B52 -> 0.1628 | Q56: 1 | R56: =IF(AND('Input - Output'!A57>=360,'Input - Output'!A57<=830),'Input - Output'!A57,"") -> 615 | S56: 0.448 | T56: 0.341 | U56: 0.247 | V56: 0.164 | W56: 0.189 | X56: 0.22 | Y56: 0.362 | Z56: 0.482 | AA56: 0.418 | AB56: 0.707 | AC56: 0.087 | AD56: 0.016 | AE56: 0.747 | AF56: 0.09 | AG56: 0.511 | AH56: 1
A57: 408 | B57: 0.2528 | C57: 0.1172 | D57: 0.0736 | E57: 0.1228 | F57: 0.3174 | G57: 0.4808 | H57: 0.5574 | I57: 0.4436 | J57: 0.0514 | K57: 0.0676 | L57: 0.118 | M57: 0.0656 | N57: 0.3298 | O57: 0.0396 | P57: ='Additional TCS'!B53 -> 0.1632 | Q57: 1 | R57: =IF(AND('Input - Output'!A58>=360,'Input - Output'!A58<=830),'Input - Output'!A58,"") -> 620 | S57: 0.45 | T57: 0.341 | U57: 0.241 | V57: 0.16 | W57: 0.185 | X57: 0.223 | Y57: 0.377 | Z57: 0.528 | AA57: 0.505 | AB57: 0.708 | AC57: 0.085 | AD57: 0.016 | AE57: 0.748 | AF57: 0.089 | AG57: 0.524 | AH57: 1
A58: 409 | B58: 0.2524 | C58: 0.1176 | D58: 0.0738 | E58: 0.1234 | F58: 0.3182 | G58: 0.4864 | H58: 0.5582 | I58: 0.4528 | J58: 0.0512 | K58: 0.0678 | L58: 0.117 | M58: 0.0648 | N58: 0.3354 | O58: 0.0398 | P58: ='Additional TCS'!B54 -> 0.1636 | Q58: 1 | R58: =IF(AND('Input - Output'!A59>=360,'Input - Output'!A59<=830),'Input - Output'!A59,"") -> 625 | S58: 0.451 | T58: 0.339 | U58: 0.235 | V58: 0.156 | W58: 0.183 | X58: 0.227 | Y58: 0.389 | Z58: 0.568 | AA58: 0.581 | AB58: 0.708 | AC58: 0.082 | AD58: 0.016 | AE58: 0.748 | AF58: 0.087 | AG58: 0.535 | AH58: 1
A59: 410 | B59: 0.252 | C59: 0.118 | D59: 0.074 | E59: 0.124 | F59: 0.319 | G59: 0.492 | H59: 0.559 | I59: 0.462 | J59: 0.051 | K59: 0.068 | L59: 0.116 | M59: 0.064 | N59: 0.341 | O59: 0.04 | P59: ='Additional TCS'!B55 -> 0.164 | Q59: 1 | R59: =IF(AND('Input - Output'!A60>=360,'Input - Output'!A60<=830),'Input - Output'!A60,"") -> 630 | S59: 0.451 | T59: 0.339 | U59: 0.229 | V59: 0.154 | W59: 0.18 | X59: 0.233 | Y59: 0.4 | Z59: 0.604 | AA59: 0.641 | AB59: 0.71 | AC59: 0.08 | AD59: 0.018 | AE59: 0.748 | AF59: 0.086 | AG59: 0.544 | AH59: 1
A60: 411 | B60: 0.2512 | C60: 0.1184 | D60: 0.074 | E60: 0.1244 | F60: 0.3196 | G60: 0.4952 | H60: 0.5592 | I60: 0.466 | J60: 0.0508 | K60: 0.0682 | L60: 0.1152 | M60: 0.0642 | N60: 0.3432 | O60: 0.0402 | P60: ='Additional TCS'!B56 -> 0.1646 | Q60: 1 | R60: =IF(AND('Input - Output'!A61>=360,'Input - Output'!A61<=830),'Input - Output'!A61,"") -> 635 | S60: 0.451 | T60: 0.338 | U60: 0.224 | V60: 0.152 | W60: 0.177 | X60: 0.239 | Y60: 0.41 | Z60: 0.629 | AA60: 0.682 | AB60: 0.711 | AC60: 0.079 | AD60: 0.018 | AE60: 0.748 | AF60: 0.085 | AG60: 0.552 | AH60: 1
A61: 412 | B61: 0.2504 | C61: 0.1188 | D61: 0.074 | E61: 0.1248 | F61: 0.3202 | G61: 0.4984 | H61: 0.5594 | I61: 0.47 | J61: 0.0506 | K61: 0.0684 | L61: 0.1144 | M61: 0.0644 | N61: 0.3454 | O61: 0.0404 | P61: ='Additional TCS'!B57 -> 0.1652 | Q61: 1 | R61: =IF(AND('Input - Output'!A62>=360,'Input - Output'!A62<=830),'Input - Output'!A62,"") -> 640 | S61: 0.451 | T61: 0.338 | U61: 0.22 | V61: 0.151 | W61: 0.176 | X61: 0.244 | Y61: 0.42 | Z61: 0.648 | AA61: 0.717 | AB61: 0.712 | AC61: 0.078 | AD61: 0.018 | AE61: 0.748 | AF61: 0.084 | AG61: 0.559 | AH61: 1
A62: 413 | B62: 0.2496 | C62: 0.1192 | D62: 0.074 | E62: 0.1252 | F62: 0.3208 | G62: 0.5016 | H62: 0.5596 | I62: 0.474 | J62: 0.0504 | K62: 0.0686 | L62: 0.1136 | M62: 0.0646 | N62: 0.3476 | O62: 0.0406 | P62: ='Additional TCS'!B58 -> 0.1658 | Q62: 1 | R62: =IF(AND('Input - Output'!A63>=360,'Input - Output'!A63<=830),'Input - Output'!A63,"") -> 645 | S62: 0.451 | T62: 0.337 | U62: 0.217 | V62: 0.149 | W62: 0.175 | X62: 0.251 | Y62: 0.429 | Z62: 0.663 | AA62: 0.74 | AB62: 0.714 | AC62: 0.078 | AD62: 0.018 | AE62: 0.748 | AF62: 0.084 | AG62: 0.565 | AH62: 1
A63: 414 | B63: 0.2488 | C63: 0.1196 | D63: 0.074 | E63: 0.1256 | F63: 0.3214 | G63: 0.5048 | H63: 0.5598 | I63: 0.478 | J63: 0.0502 | K63: 0.0688 | L63: 0.1128 | M63: 0.0648 | N63: 0.3498 | O63: 0.0408 | P63: ='Additional TCS'!B59 -> 0.1664 | Q63: 1 | R63: =IF(AND('Input - Output'!A64>=360,'Input - Output'!A64<=830),'Input - Output'!A64,"") -> 650 | S63: 0.45 | T63: 0.336 | U63: 0.216 | V63: 0.148 | W63: 0.175 | X63: 0.258 | Y63: 0.438 | Z63: 0.676 | AA63: 0.758 | AB63: 0.716 | AC63: 0.078 | AD63: 0.019 | AE63: 0.748 | AF63: 0.084 | AG63: 0.571 | AH63: 1
A64: 415 | B64: 0.248 | C64: 0.12 | D64: 0.074 | E64: 0.126 | F64: 0.322 | G64: 0.508 | H64: 0.56 | I64: 0.482 | J64: 0.05 | K64: 0.069 | L64: 0.112 | M64: 0.065 | N64: 0.352 | O64: 0.041 | P64: ='Additional TCS'!B60 -> 0.167 | Q64: 1 | R64: =IF(AND('Input - Output'!A65>=360,'Input - Output'!A65<=830),'Input - Output'!A65,"") -> 655 | S64: 0.45 | T64: 0.335 | U64: 0.216 | V64: 0.148 | W64: 0.175 | X64: 0.263 | Y64: 0.445 | Z64: 0.685 | AA64: 0.77 | AB64: 0.718 | AC64: 0.078 | AD64: 0.02 | AE64: 0.748 | AF64: 0.084 | AG64: 0.576 | AH64: 1
A65: 416 | B65: 0.2472 | C65: 0.1202 | D65: 0.074 | E65: 0.1264 | F65: 0.3228 | G65: 0.5098 | H65: 0.5602 | I65: 0.4836 | J65: 0.05 | K65: 0.069 | L65: 0.1112 | M65: 0.067 | N65: 0.3534 | O65: 0.0412 | P65: ='Additional TCS'!B61 -> 0.1676 | Q65: 1 | R65: =IF(AND('Input - Output'!A66>=360,'Input - Output'!A66<=830),'Input - Output'!A66,"") -> 660 | S65: 0.451 | T65: 0.334 | U65: 0.219 | V65: 0.148 | W65: 0.175 | X65: 0.268 | Y65: 0.452 | Z65: 0.693 | AA65: 0.781 | AB65: 0.72 | AC65: 0.081 | AD65: 0.023 | AE65: 0.747 | AF65: 0.085 | AG65: 0.581 | AH65: 1
A66: 417 | B66: 0.2464 | C66: 0.1204 | D66: 0.074 | E66: 0.1268 | F66: 0.3236 | G66: 0.5116 | H66: 0.5604 | I66: 0.4852 | J66: 0.05 | K66: 0.069 | L66: 0.1104 | M66: 0.069 | N66: 0.3548 | O66: 0.0414 | P66: ='Additional TCS'!B62 -> 0.1682 | Q66: 1 | R66: =IF(AND('Input - Output'!A67>=360,'Input - Output'!A67<=830),'Input - Output'!A67,"") -> 665 | S66: 0.451 | T66: 0.332 | U66: 0.224 | V66: 0.149 | W66: 0.177 | X66: 0.273 | Y66: 0.457 | Z66: 0.7 | AA66: 0.79 | AB66: 0.722 | AC66: 0.083 | AD66: 0.024 | AE66: 0.747 | AF66: 0.087 | AG66: 0.586 | AH66: 1
A67: 418 | B67: 0.2456 | C67: 0.1206 | D67: 0.074 | E67: 0.1272 | F67: 0.3244 | G67: 0.5134 | H67: 0.5606 | I67: 0.4868 | J67: 0.05 | K67: 0.069 | L67: 0.1096 | M67: 0.071 | N67: 0.3562 | O67: 0.0416 | P67: ='Additional TCS'!B63 -> 0.1688 | Q67: 1 | R67: =IF(AND('Input - Output'!A68>=360,'Input - Output'!A68<=830),'Input - Output'!A68,"") -> 670 | S67: 0.453 | T67: 0.332 | U67: 0.23 | V67: 0.151 | W67: 0.18 | X67: 0.278 | Y67: 0.462 | Z67: 0.705 | AA67: 0.797 | AB67: 0.725 | AC67: 0.088 | AD67: 0.026 | AE67: 0.747 | AF67: 0.092 | AG67: 0.59 | AH67: 1
A68: 419 | B68: 0.2448 | C68: 0.1208 | D68: 0.074 | E68: 0.1276 | F68: 0.3252 | G68: 0.5152 | H68: 0.5608 | I68: 0.4884 | J68: 0.05 | K68: 0.069 | L68: 0.1088 | M68: 0.073 | N68: 0.3576 | O68: 0.0418 | P68: ='Additional TCS'!B64 -> 0.1694 | Q68: 1 | R68: =IF(AND('Input - Output'!A69>=360,'Input - Output'!A69<=830),'Input - Output'!A69,"") -> 675 | S68: 0.454 | T68: 0.331 | U68: 0.238 | V68: 0.154 | W68: 0.183 | X68: 0.281 | Y68: 0.466 | Z68: 0.709 | AA68: 0.803 | AB68: 0.729 | AC68: 0.093 | AD68: 0.03 | AE68: 0.747 | AF68: 0.096 | AG68: 0.594 | AH68: 1
A69: 420 | B69: 0.244 | C69: 0.121 | D69: 0.074 | E69: 0.128 | F69: 0.326 | G69: 0.517 | H69: 0.561 | I69: 0.49 | J69: 0.05 | K69: 0.069 | L69: 0.108 | M69: 0.075 | N69: 0.359 | O69: 0.042 | P69: ='Additional TCS'!B65 -> 0.17 | Q69: 1 | R69: =IF(AND('Input - Output'!A70>=360,'Input - Output'!A70<=830),'Input - Output'!A70,"") -> 680 | S69: 0.455 | T69: 0.331 | U69: 0.251 | V69: 0.158 | W69: 0.186 | X69: 0.283 | Y69: 0.468 | Z69: 0.712 | AA69: 0.809 | AB69: 0.731 | AC69: 0.102 | AD69: 0.035 | AE69: 0.747 | AF69: 0.102 | AG69: 0.599 | AH69: 1
A70: 421 | B70: 0.2432 | C70: 0.1212 | D70: 0.0738 | E70: 0.1286 | F70: 0.3268 | G70: 0.5184 | H70: 0.5604 | I70: 0.4896 | J70: 0.0498 | K70: 0.0692 | L70: 0.1074 | M70: 0.0786 | N70: 0.3594 | O70: 0.042 | P70: ='Additional TCS'!B66 -> 0.171 | Q70: 1 | R70: =IF(AND('Input - Output'!A71>=360,'Input - Output'!A71<=830),'Input - Output'!A71,"") -> 685 | S70: 0.457 | T70: 0.33 | U70: 0.269 | V70: 0.162 | W70: 0.189 | X70: 0.286 | Y70: 0.47 | Z70: 0.715 | AA70: 0.814 | AB70: 0.735 | AC70: 0.112 | AD70: 0.043 | AE70: 0.747 | AF70: 0.11 | AG70: 0.603 | AH70: 1
A71: 422 | B71: 0.2424 | C71: 0.1214 | D71: 0.0736 | E71: 0.1292 | F71: 0.3276 | G71: 0.5198 | H71: 0.5598 | I71: 0.4892 | J71: 0.0496 | K71: 0.0694 | L71: 0.1068 | M71: 0.0822 | N71: 0.3598 | O71: 0.042 | P71: ='Additional TCS'!B67 -> 0.172 | Q71: 1 | R71: =IF(AND('Input - Output'!A72>=360,'Input - Output'!A72<=830),'Input - Output'!A72,"") -> 690 | S71: 0.458 | T71: 0.329 | U71: 0.288 | V71: 0.165 | W71: 0.192 | X71: 0.291 | Y71: 0.473 | Z71: 0.717 | AA71: 0.819 | AB71: 0.739 | AC71: 0.125 | AD71: 0.056 | AE71: 0.747 | AF71: 0.123 | AG71: 0.606 | AH71: 1
A72: 423 | B72: 0.2416 | C72: 0.1216 | D72: 0.0734 | E72: 0.1298 | F72: 0.3284 | G72: 0.5212 | H72: 0.5592 | I72: 0.4888 | J72: 0.0494 | K72: 0.0696 | L72: 0.1062 | M72: 0.0858 | N72: 0.3602 | O72: 0.042 | P72: ='Additional TCS'!B68 -> 0.173 | Q72: 1 | R72: =IF(AND('Input - Output'!A73>=360,'Input - Output'!A73<=830),'Input - Output'!A73,"") -> 695 | S72: 0.46 | T72: 0.328 | U72: 0.312 | V72: 0.168 | W72: 0.195 | X72: 0.296 | Y72: 0.477 | Z72: 0.719 | AA72: 0.824 | AB72: 0.742 | AC72: 0.141 | AD72: 0.074 | AE72: 0.746 | AF72: 0.137 | AG72: 0.61 | AH72: 1
A73: 424 | B73: 0.2408 | C73: 0.1218 | D73: 0.0732 | E73: 0.1304 | F73: 0.3292 | G73: 0.5226 | H73: 0.5586 | I73: 0.4884 | J73: 0.0492 | K73: 0.0698 | L73: 0.1056 | M73: 0.0894 | N73: 0.3606 | O73: 0.042 | P73: ='Additional TCS'!B69 -> 0.174 | Q73: 1 | R73: =IF(AND('Input - Output'!A74>=360,'Input - Output'!A74<=830),'Input - Output'!A74,"") -> 700 | S73: 0.462 | T73: 0.328 | U73: 0.34 | V73: 0.17 | W73: 0.199 | X73: 0.302 | Y73: 0.483 | Z73: 0.721 | AA73: 0.828 | AB73: 0.746 | AC73: 0.161 | AD73: 0.097 | AE73: 0.746 | AF73: 0.152 | AG73: 0.612 | AH73: 1
A74: 425 | B74: 0.24 | C74: 0.122 | D74: 0.073 | E74: 0.131 | F74: 0.33 | G74: 0.524 | H74: 0.558 | I74: 0.488 | J74: 0.049 | K74: 0.07 | L74: 0.105 | M74: 0.093 | N74: 0.361 | O74: 0.042 | P74: ='Additional TCS'!B70 -> 0.175 | Q74: 1 | R74: =IF(AND('Input - Output'!A75>=360,'Input - Output'!A75<=830),'Input - Output'!A75,"") -> 705 | S74: =IF($R74<>"",TREND(OFFSET(B$9,MATCH($R74,$A$9:$A$485)-1,,2),OFFSET($A$9,MATCH($R74,$A$9:$A$485)-1,,2),$R74),"") -> 0.463 | T74: =IF($R74<>"",TREND(OFFSET(C$9,MATCH($R74,$A$9:$A$485)-1,,2),OFFSET($A$9,MATCH($R74,$A$9:$A$485)-1,,2),$R74),"") -> 0.327 | U74: =IF($R74<>"",TREND(OFFSET(D$9,MATCH($R74,$A$9:$A$485)-1,,2),OFFSET($A$9,MATCH($R74,$A$9:$A$485)-1,,2),$R74),"") -> 0.366 | V74: =IF($R74<>"",TREND(OFFSET(E$9,MATCH($R74,$A$9:$A$485)-1,,2),OFFSET($A$9,MATCH($R74,$A$9:$A$485)-1,,2),$R74),"") -> 0.171 | W74: =IF($R74<>"",TREND(OFFSET(F$9,MATCH($R74,$A$9:$A$485)-1,,2),OFFSET($A$9,MATCH($R74,$A$9:$A$485)-1,,2),$R74),"") -> 0.2 | X74: =IF($R74<>"",TREND(OFFSET(G$9,MATCH($R74,$A$9:$A$485)-1,,2),OFFSET($A$9,MATCH($R74,$A$9:$A$485)-1,,2),$R74),"") -> 0.313 | Y74: =IF($R74<>"",TREND(OFFSET(H$9,MATCH($R74,$A$9:$A$485)-1,,2),OFFSET($A$9,MATCH($R74,$A$9:$A$485)-1,,2),$R74),"") -> 0.489 | Z74: =IF($R74<>"",TREND(OFFSET(I$9,MATCH($R74,$A$9:$A$485)-1,,2),OFFSET($A$9,MATCH($R74,$A$9:$A$485)-1,,2),$R74),"") -> 0.72 | AA74: =IF($R74<>"",TREND(OFFSET(J$9,MATCH($R74,$A$9:$A$485)-1,,2),OFFSET($A$9,MATCH($R74,$A$9:$A$485)-1,,2),$R74),"") -> 0.83 | AB74: =IF($R74<>"",TREND(OFFSET(K$9,MATCH($R74,$A$9:$A$485)-1,,2),OFFSET($A$9,MATCH($R74,$A$9:$A$485)-1,,2),$R74),"") -> 0.748 | AC74: =IF($R74<>"",TREND(OFFSET(L$9,MATCH($R74,$A$9:$A$485)-1,,2),OFFSET($A$9,MATCH($R74,$A$9:$A$485)-1,,2),$R74),"") -> 0.182 | AD74: =IF($R74<>"",TREND(OFFSET(M$9,MATCH($R74,$A$9:$A$485)-1,,2),OFFSET($A$9,MATCH($R74,$A$9:$A$485)-1,,2),$R74),"") -> 0.128 | AE74: =IF($R74<>"",TREND(OFFSET(N$9,MATCH($R74,$A$9:$A$485)-1,,2),OFFSET($A$9,MATCH($R74,$A$9:$A$485)-1,,2),$R74),"") -> 0.746 | AF74: =IF($R74<>"",TREND(OFFSET(O$9,MATCH($R74,$A$9:$A$485)-1,,2),OFFSET($A$9,MATCH($R74,$A$9:$A$485)-1,,2),$R74),"") -> 0.169 | AG74: =IF($R74<>"",TREND(OFFSET(P$9,MATCH($R74,$A$9:$A$485)-1,,2),OFFSET($A$9,MATCH($R74,$A$9:$A$485)-1,,2),$R74),"") -> 0.614 | AH74: =IF($R74<>"",TREND(OFFSET(Q$9,MATCH($R74,$A$9:$A$485)-1,,2),OFFSET($A$9,MATCH($R74,$A$9:$A$485)-1,,2),$R74),"") -> 1
A75: 426 | B75: 0.2394 | C75: 0.122 | D75: 0.073 | E75: 0.1318 | F75: 0.3308 | G75: 0.5254 | H75: 0.5576 | I75: 0.4868 | J75: 0.0488 | K75: 0.0704 | L75: 0.1048 | M75: 0.099 | N75: 0.3616 | O75: 0.0422 | P75: ='Additional TCS'!B71 -> 0.1764 | Q75: 1 | R75: =IF(AND('Input - Output'!A76>=360,'Input - Output'!A76<=830),'Input - Output'!A76,"") -> 710 | S75: 0.464 | T75: 0.326 | U75: 0.39 | V75: 0.17 | W75: 0.199 | X75: 0.325 | Y75: 0.496 | Z75: 0.719 | AA75: 0.831 | AB75: 0.749 | AC75: 0.203 | AD75: 0.166 | AE75: 0.745 | AF75: 0.188 | AG75: 0.616 | AH75: 1
A76: 427 | B76: 0.2388 | C76: 0.122 | D76: 0.073 | E76: 0.1326 | F76: 0.3316 | G76: 0.5268 | H76: 0.5572 | I76: 0.4856 | J76: 0.0486 | K76: 0.0708 | L76: 0.1046 | M76: 0.105 | N76: 0.3622 | O76: 0.0424 | P76: ='Additional TCS'!B72 -> 0.1778 | Q76: 1 | R76: =IF(AND('Input - Output'!A77>=360,'Input - Output'!A77<=830),'Input - Output'!A77,"") -> 715 | S76: 0.465 | T76: 0.325 | U76: 0.412 | V76: 0.168 | W76: 0.198 | X76: 0.338 | Y76: 0.503 | Z76: 0.722 | AA76: 0.833 | AB76: 0.751 | AC76: 0.223 | AD76: 0.21 | AE76: 0.744 | AF76: 0.207 | AG76: 0.616 | AH76: 1
A77: 428 | B77: 0.2382 | C77: 0.122 | D77: 0.073 | E77: 0.1334 | F77: 0.3324 | G77: 0.5282 | H77: 0.5568 | I77: 0.4844 | J77: 0.0484 | K77: 0.0712 | L77: 0.1044 | M77: 0.111 | N77: 0.3628 | O77: 0.0426 | P77: ='Additional TCS'!B73 -> 0.1792 | Q77: 1 | R77: =IF(AND('Input - Output'!A78>=360,'Input - Output'!A78<=830),'Input - Output'!A78,"") -> 720 | S77: 0.466 | T77: 0.324 | U77: 0.431 | V77: 0.166 | W77: 0.196 | X77: 0.351 | Y77: 0.511 | Z77: 0.725 | AA77: 0.835 | AB77: 0.753 | AC77: 0.242 | AD77: 0.257 | AE77: 0.743 | AF77: 0.226 | AG77: 0.616 | AH77: 1
A78: 429 | B78: 0.2376 | C78: 0.122 | D78: 0.073 | E78: 0.1342 | F78: 0.3332 | G78: 0.5296 | H78: 0.5564 | I78: 0.4832 | J78: 0.0482 | K78: 0.0716 | L78: 0.1042 | M78: 0.117 | N78: 0.3634 | O78: 0.0428 | P78: ='Additional TCS'!B74 -> 0.1806 | Q78: 1 | R78: =IF(AND('Input - Output'!A79>=360,'Input - Output'!A79<=830),'Input - Output'!A79,"") -> 725 | S78: 0.466 | T78: 0.324 | U78: 0.447 | V78: 0.164 | W78: 0.195 | X78: 0.364 | Y78: 0.518 | Z78: 0.727 | AA78: 0.836 | AB78: 0.754 | AC78: 0.257 | AD78: 0.305 | AE78: 0.744 | AF78: 0.243 | AG78: 0.616 | AH78: 1
A79: 430 | B79: 0.237 | C79: 0.122 | D79: 0.073 | E79: 0.135 | F79: 0.334 | G79: 0.531 | H79: 0.556 | I79: 0.482 | J79: 0.048 | K79: 0.072 | L79: 0.104 | M79: 0.123 | N79: 0.364 | O79: 0.043 | P79: ='Additional TCS'!B75 -> 0.182 | Q79: 1 | R79: =IF(AND('Input - Output'!A80>=360,'Input - Output'!A80<=830),'Input - Output'!A80,"") -> 730 | S79: 0.466 | T79: 0.324 | U79: 0.46 | V79: 0.164 | W79: 0.195 | X79: 0.376 | Y79: 0.525 | Z79: 0.729 | AA79: 0.836 | AB79: 0.755 | AC79: 0.27 | AD79: 0.354 | AE79: 0.745 | AF79: 0.26 | AG79: 0.615 | AH79: 1
A80: 431 | B80: 0.236 | C80: 0.122 | D80: 0.073 | E80: 0.1358 | F80: 0.335 | G80: 0.5324 | H80: 0.555 | I80: 0.4802 | J80: 0.0478 | K80: 0.0722 | L80: 0.104 | M80: 0.1304 | N80: 0.3642 | O80: 0.0432 | P80: ='Additional TCS'!B76 -> 0.184 | Q80: 1 | R80: =IF(AND('Input - Output'!A81>=360,'Input - Output'!A81<=830),'Input - Output'!A81,"") -> 735 | S80: 0.466 | T80: 0.323 | U80: 0.472 | V80: 0.165 | W80: 0.196 | X80: 0.389 | Y80: 0.532 | Z80: 0.73 | AA80: 0.837 | AB80: 0.755 | AC80: 0.282 | AD80: 0.401 | AE80: 0.748 | AF80: 0.277 | AG80: 0.613 | AH80: 1
A81: 432 | B81: 0.235 | C81: 0.122 | D81: 0.073 | E81: 0.1366 | F81: 0.336 | G81: 0.5338 | H81: 0.554 | I81: 0.4784 | J81: 0.0476 | K81: 0.0724 | L81: 0.104 | M81: 0.1378 | N81: 0.3644 | O81: 0.0434 | P81: ='Additional TCS'!B77 -> 0.186 | Q81: 1 | R81: =IF(AND('Input - Output'!A82>=360,'Input - Output'!A82<=830),'Input - Output'!A82,"") -> 740 | S81: 0.467 | T81: 0.322 | U81: 0.481 | V81: 0.168 | W81: 0.197 | X81: 0.401 | Y81: 0.539 | Z81: 0.73 | AA81: 0.838 | AB81: 0.755 | AC81: 0.292 | AD81: 0.446 | AE81: 0.75 | AF81: 0.294 | AG81: 0.612 | AH81: 1
A82: 433 | B82: 0.234 | C82: 0.122 | D82: 0.073 | E82: 0.1374 | F82: 0.337 | G82: 0.5352 | H82: 0.553 | I82: 0.4766 | J82: 0.0474 | K82: 0.0726 | L82: 0.104 | M82: 0.1452 | N82: 0.3646 | O82: 0.0436 | P82: ='Additional TCS'!B78 -> 0.188 | Q82: 1 | R82: =IF(AND('Input - Output'!A83>=360,'Input - Output'!A83<=830),'Input - Output'!A83,"") -> 745 | S82: 0.467 | T82: 0.321 | U82: 0.488 | V82: 0.172 | W82: 0.2 | X82: 0.413 | Y82: 0.546 | Z82: 0.73 | AA82: 0.839 | AB82: 0.755 | AC82: 0.302 | AD82: 0.485 | AE82: 0.75 | AF82: 0.31 | AG82: 0.61 | AH82: 1
A83: 434 | B83: 0.233 | C83: 0.122 | D83: 0.073 | E83: 0.1382 | F83: 0.338 | G83: 0.5366 | H83: 0.552 | I83: 0.4748 | J83: 0.0472 | K83: 0.0728 | L83: 0.104 | M83: 0.1526 | N83: 0.3648 | O83: 0.0438 | P83: ='Additional TCS'!B79 -> 0.19 | Q83: 1 | R83: =IF(AND('Input - Output'!A84>=360,'Input - Output'!A84<=830),'Input - Output'!A84,"") -> 750 | S83: 0.467 | T83: 0.32 | U83: 0.493 | V83: 0.177 | W83: 0.203 | X83: 0.425 | Y83: 0.553 | Z83: 0.73 | AA83: 0.839 | AB83: 0.756 | AC83: 0.31 | AD83: 0.52 | AE83: 0.749 | AF83: 0.325 | AG83: 0.609 | AH83: 1
A84: 435 | B84: 0.232 | C84: 0.122 | D84: 0.073 | E84: 0.139 | F84: 0.339 | G84: 0.538 | H84: 0.551 | I84: 0.473 | J84: 0.047 | K84: 0.073 | L84: 0.104 | M84: 0.16 | N84: 0.365 | O84: 0.044 | P84: ='Additional TCS'!B80 -> 0.192 | Q84: 1 | R84: =IF(AND('Input - Output'!A85>=360,'Input - Output'!A85<=830),'Input - Output'!A85,"") -> 755 | S84: 0.467 | T84: 0.318 | U84: 0.497 | V84: 0.181 | W84: 0.205 | X84: 0.436 | Y84: 0.559 | Z84: 0.73 | AA84: 0.839 | AB84: 0.757 | AC84: 0.314 | AD84: 0.551 | AE84: 0.748 | AF84: 0.339 | AG84: 0.608 | AH84: 1
A85: 436 | B85: 0.2316 | C85: 0.1222 | D85: 0.073 | E85: 0.14 | F85: 0.3404 | G85: 0.5392 | H85: 0.5496 | I85: 0.4708 | J85: 0.0468 | K85: 0.0736 | L85: 0.1042 | M85: 0.1694 | N85: 0.3654 | O85: 0.044 | P85: ='Additional TCS'!B81 -> 0.1942 | Q85: 1 | R85: =IF(AND('Input - Output'!A86>=360,'Input - Output'!A86<=830),'Input - Output'!A86,"") -> 760 | S85: 0.467 | T85: 0.316 | U85: 0.5 | V85: 0.185 | W85: 0.208 | X85: 0.447 | Y85: 0.565 | Z85: 0.73 | AA85: 0.839 | AB85: 0.758 | AC85: 0.317 | AD85: 0.577 | AE85: 0.748 | AF85: 0.353 | AG85: 0.607 | AH85: 1
A86: 437 | B86: 0.2312 | C86: 0.1224 | D86: 0.073 | E86: 0.141 | F86: 0.3418 | G86: 0.5404 | H86: 0.5482 | I86: 0.4686 | J86: 0.0466 | K86: 0.0742 | L86: 0.1044 | M86: 0.1788 | N86: 0.3658 | O86: 0.044 | P86: ='Additional TCS'!B82 -> 0.1964 | Q86: 1 | R86: =IF(AND('Input - Output'!A87>=360,'Input - Output'!A87<=830),'Input - Output'!A87,"") -> 765 | S86: 0.467 | T86: 0.315 | U86: 0.502 | V86: 0.189 | W86: 0.212 | X86: 0.458 | Y86: 0.57 | Z86: 0.73 | AA86: 0.839 | AB86: 0.759 | AC86: 0.323 | AD86: 0.599 | AE86: 0.747 | AF86: 0.366 | AG86: 0.607 | AH86: 1
A87: 438 | B87: 0.2308 | C87: 0.1226 | D87: 0.073 | E87: 0.142 | F87: 0.3432 | G87: 0.5416 | H87: 0.5468 | I87: 0.4664 | J87: 0.0464 | K87: 0.0748 | L87: 0.1046 | M87: 0.1882 | N87: 0.3662 | O87: 0.044 | P87: ='Additional TCS'!B83 -> 0.1986 | Q87: 1 | R87: =IF(AND('Input - Output'!A88>=360,'Input - Output'!A88<=830),'Input - Output'!A88,"") -> 770 | S87: 0.467 | T87: 0.315 | U87: 0.505 | V87: 0.192 | W87: 0.215 | X87: 0.469 | Y87: 0.575 | Z87: 0.73 | AA87: 0.839 | AB87: 0.759 | AC87: 0.33 | AD87: 0.618 | AE87: 0.747 | AF87: 0.379 | AG87: 0.609 | AH87: 1
A88: 439 | B88: 0.2304 | C88: 0.1228 | D88: 0.073 | E88: 0.143 | F88: 0.3446 | G88: 0.5428 | H88: 0.5454 | I88: 0.4642 | J88: 0.0462 | K88: 0.0754 | L88: 0.1048 | M88: 0.1976 | N88: 0.3666 | O88: 0.044 | P88: ='Additional TCS'!B84 -> 0.2008 | Q88: 1 | R88: =IF(AND('Input - Output'!A89>=360,'Input - Output'!A89<=830),'Input - Output'!A89,"") -> 775 | S88: 0.467 | T88: 0.314 | U88: 0.51 | V88: 0.194 | W88: 0.217 | X88: 0.477 | Y88: 0.578 | Z88: 0.73 | AA88: 0.839 | AB88: 0.759 | AC88: 0.334 | AD88: 0.633 | AE88: 0.747 | AF88: 0.39 | AG88: 0.61 | AH88: 1
A89: 440 | B89: 0.23 | C89: 0.123 | D89: 0.073 | E89: 0.144 | F89: 0.346 | G89: 0.544 | H89: 0.544 | I89: 0.462 | J89: 0.046 | K89: 0.076 | L89: 0.105 | M89: 0.207 | N89: 0.367 | O89: 0.044 | P89: ='Additional TCS'!B85 -> 0.203 | Q89: 1 | R89: =IF(AND('Input - Output'!A90>=360,'Input - Output'!A90<=830),'Input - Output'!A90,"") -> 780 | S89: 0.467 | T89: 0.314 | U89: 0.516 | V89: 0.197 | W89: 0.219 | X89: 0.485 | Y89: 0.581 | Z89: 0.73 | AA89: 0.839 | AB89: 0.759 | AC89: 0.338 | AD89: 0.645 | AE89: 0.747 | AF89: 0.399 | AG89: 0.611 | AH89: 1
A90: 441 | B90: 0.2292 | C90: 0.1232 | D90: 0.073 | E90: 0.1454 | F90: 0.3472 | G90: 0.5454 | H90: 0.5422 | I90: 0.4596 | J90: 0.0456 | K90: 0.0764 | L90: 0.1052 | M90: 0.2168 | N90: 0.3674 | O90: 0.0442 | P90: ='Additional TCS'!B86 -> 0.2048 | Q90: 1 | R90: =IF(AND('Input - Output'!A91>=360,'Input - Output'!A91<=830),'Input - Output'!A91,"") -> 
A91: 442 | B91: 0.2284 | C91: 0.1234 | D91: 0.073 | E91: 0.1468 | F91: 0.3484 | G91: 0.5468 | H91: 0.5404 | I91: 0.4572 | J91: 0.0452 | K91: 0.0768 | L91: 0.1054 | M91: 0.2266 | N91: 0.3678 | O91: 0.0444 | P91: ='Additional TCS'!B87 -> 0.2066 | Q91: 1 | R91: =IF(AND('Input - Output'!A92>=360,'Input - Output'!A92<=830),'Input - Output'!A92,"") -> 
A92: 443 | B92: 0.2276 | C92: 0.1236 | D92: 0.073 | E92: 0.1482 | F92: 0.3496 | G92: 0.5482 | H92: 0.5386 | I92: 0.4548 | J92: 0.0448 | K92: 0.0772 | L92: 0.1056 | M92: 0.2364 | N92: 0.3682 | O92: 0.0446 | P92: ='Additional TCS'!B88 -> 0.2084 | Q92: 1 | R92: =IF(AND('Input - Output'!A93>=360,'Input - Output'!A93<=830),'Input - Output'!A93,"") -> 
A93: 444 | B93: 0.2268 | C93: 0.1238 | D93: 0.073 | E93: 0.1496 | F93: 0.3508 | G93: 0.5496 | H93: 0.5368 | I93: 0.4524 | J93: 0.0444 | K93: 0.0776 | L93: 0.1058 | M93: 0.2462 | N93: 0.3686 | O93: 0.0448 | P93: ='Additional TCS'!B89 -> 0.2102 | Q93: 1 | R93: =IF(AND('Input - Output'!A94>=360,'Input - Output'!A94<=830),'Input - Output'!A94,"") -> 
A94: 445 | B94: 0.226 | C94: 0.124 | D94: 0.073 | E94: 0.151 | F94: 0.352 | G94: 0.551 | H94: 0.535 | I94: 0.45 | J94: 0.044 | K94: 0.078 | L94: 0.106 | M94: 0.256 | N94: 0.369 | O94: 0.045 | P94: ='Additional TCS'!B90 -> 0.212 | Q94: 1 | R94: =IF(AND('Input - Output'!A95>=360,'Input - Output'!A95<=830),'Input - Output'!A95,"") -> 
A95: 446 | B95: 0.2258 | C95: 0.1246 | D95: 0.0732 | E95: 0.153 | F95: 0.3536 | G95: 0.552 | H95: 0.5324 | I95: 0.4478 | J95: 0.0436 | K95: 0.079 | L95: 0.1068 | M95: 0.2648 | N95: 0.3696 | O95: 0.045 | P95: ='Additional TCS'!B91 -> 0.2138 | Q95: 1 | R95: =IF(AND('Input - Output'!A96>=360,'Input - Output'!A96<=830),'Input - Output'!A96,"") -> 
A96: 447 | B96: 0.2256 | C96: 0.1252 | D96: 0.0734 | E96: 0.155 | F96: 0.3552 | G96: 0.553 | H96: 0.5298 | I96: 0.4456 | J96: 0.0432 | K96: 0.08 | L96: 0.1076 | M96: 0.2736 | N96: 0.3702 | O96: 0.045 | P96: ='Additional TCS'!B92 -> 0.2156 | Q96: 1 | R96: =IF(AND('Input - Output'!A97>=360,'Input - Output'!A97<=830),'Input - Output'!A97,"") -> 
A97: 448 | B97: 0.2254 | C97: 0.1258 | D97: 0.0736 | E97: 0.157 | F97: 0.3568 | G97: 0.554 | H97: 0.5272 | I97: 0.4434 | J97: 0.0428 | K97: 0.081 | L97: 0.1084 | M97: 0.2824 | N97: 0.3708 | O97: 0.045 | P97: ='Additional TCS'!B93 -> 0.2174 | Q97: 1 | R97: =IF(AND('Input - Output'!A98>=360,'Input - Output'!A98<=830),'Input - Output'!A98,"") -> 
A98: 449 | B98: 0.2252 | C98: 0.1264 | D98: 0.0738 | E98: 0.159 | F98: 0.3584 | G98: 0.555 | H98: 0.5246 | I98: 0.4412 | J98: 0.0424 | K98: 0.082 | L98: 0.1092 | M98: 0.2912 | N98: 0.3714 | O98: 0.045 | P98: ='Additional TCS'!B94 -> 0.2192 | Q98: 1 | R98: =IF(AND('Input - Output'!A99>=360,'Input - Output'!A99<=830),'Input - Output'!A99,"") -> 
A99: 450 | B99: 0.225 | C99: 0.127 | D99: 0.074 | E99: 0.161 | F99: 0.36 | G99: 0.556 | H99: 0.522 | I99: 0.439 | J99: 0.042 | K99: 0.083 | L99: 0.11 | M99: 0.3 | N99: 0.372 | O99: 0.045 | P99: ='Additional TCS'!B95 -> 0.221 | Q99: 1 | R99: =IF(AND('Input - Output'!A100>=360,'Input - Output'!A100<=830),'Input - Output'!A100,"") -> 
A100: 451 | B100: 0.2244 | C100: 0.1272 | D100: 0.0742 | E100: 0.1632 | F100: 0.3618 | G100: 0.556 | H100: 0.5188 | I100: 0.4364 | J100: 0.0418 | K100: 0.084 | L100: 0.111 | M100: 0.3062 | N100: 0.3724 | O100: 0.0452 | P100: ='Additional TCS'!B96 -> 0.2226 | Q100: 1 | R100: =IF(AND('Input - Output'!A101>=360,'Input - Output'!A101<=830),'Input - Output'!A101,"") -> 
A101: 452 | B101: 0.2238 | C101: 0.1274 | D101: 0.0744 | E101: 0.1654 | F101: 0.3636 | G101: 0.556 | H101: 0.5156 | I101: 0.4338 | J101: 0.0416 | K101: 0.085 | L101: 0.112 | M101: 0.3124 | N101: 0.3728 | O101: 0.0454 | P101: ='Additional TCS'!B97 -> 0.2242 | Q101: 1 | R101: =IF(AND('Input - Output'!A102>=360,'Input - Output'!A102<=830),'Input - Output'!A102,"") -> 
A102: 453 | B102: 0.2232 | C102: 0.1276 | D102: 0.0746 | E102: 0.1676 | F102: 0.3654 | G102: 0.556 | H102: 0.5124 | I102: 0.4312 | J102: 0.0414 | K102: 0.086 | L102: 0.113 | M102: 0.3186 | N102: 0.3732 | O102: 0.0456 | P102: ='Additional TCS'!B98 -> 0.2258 | Q102: 1 | R102: =IF(AND('Input - Output'!A103>=360,'Input - Output'!A103<=830),'Input - Output'!A103,"") -> 
A103: 454 | B103: 0.2226 | C103: 0.1278 | D103: 0.0748 | E103: 0.1698 | F103: 0.3672 | G103: 0.556 | H103: 0.5092 | I103: 0.4286 | J103: 0.0412 | K103: 0.087 | L103: 0.114 | M103: 0.3248 | N103: 0.3736 | O103: 0.0458 | P103: ='Additional TCS'!B99 -> 0.2274 | Q103: 1 | R103: =IF(AND('Input - Output'!A104>=360,'Input - Output'!A104<=830),'Input - Output'!A104,"") -> 
A104: 455 | B104: 0.222 | C104: 0.128 | D104: 0.075 | E104: 0.172 | F104: 0.369 | G104: 0.556 | H104: 0.506 | I104: 0.426 | J104: 0.041 | K104: 0.088 | L104: 0.115 | M104: 0.331 | N104: 0.374 | O104: 0.046 | P104: ='Additional TCS'!B100 -> 0.229 | Q104: 1 | R104: =IF(AND('Input - Output'!A105>=360,'Input - Output'!A105<=830),'Input - Output'!A105,"") -> 
A105: 456 | B105: 0.2216 | C105: 0.1286 | D105: 0.0754 | E105: 0.1748 | F105: 0.3714 | G105: 0.5556 | H105: 0.5024 | I105: 0.4234 | J105: 0.0404 | K105: 0.0894 | L105: 0.1166 | M105: 0.334 | N105: 0.3744 | O105: 0.0462 | P105: ='Additional TCS'!B101 -> 0.2304 | Q105: 1 | R105: =IF(AND('Input - Output'!A106>=360,'Input - Output'!A106<=830),'Input - Output'!A106,"") -> 
A106: 457 | B106: 0.2212 | C106: 0.1292 | D106: 0.0758 | E106: 0.1776 | F106: 0.3738 | G106: 0.5552 | H106: 0.4988 | I106: 0.4208 | J106: 0.0398 | K106: 0.0908 | L106: 0.1182 | M106: 0.337 | N106: 0.3748 | O106: 0.0464 | P106: ='Additional TCS'!B102 -> 0.2318 | Q106: 1 | R106: =IF(AND('Input - Output'!A107>=360,'Input - Output'!A107<=830),'Input - Output'!A107,"") -> 
A107: 458 | B107: 0.2208 | C107: 0.1298 | D107: 0.0762 | E107: 0.1804 | F107: 0.3762 | G107: 0.5548 | H107: 0.4952 | I107: 0.4182 | J107: 0.0392 | K107: 0.0922 | L107: 0.1198 | M107: 0.34 | N107: 0.3752 | O107: 0.0466 | P107: ='Additional TCS'!B103 -> 0.2332 | Q107: 1 | R107: =IF(AND('Input - Output'!A108>=360,'Input - Output'!A108<=830),'Input - Output'!A108,"") -> 
A108: 459 | B108: 0.2204 | C108: 0.1304 | D108: 0.0766 | E108: 0.1832 | F108: 0.3786 | G108: 0.5544 | H108: 0.4916 | I108: 0.4156 | J108: 0.0386 | K108: 0.0936 | L108: 0.1214 | M108: 0.343 | N108: 0.3756 | O108: 0.0468 | P108: ='Additional TCS'!B104 -> 0.2346 | Q108: 1 | R108: =IF(AND('Input - Output'!A109>=360,'Input - Output'!A109<=830),'Input - Output'!A109,"") -> 
A109: 460 | B109: 0.22 | C109: 0.131 | D109: 0.077 | E109: 0.186 | F109: 0.381 | G109: 0.554 | H109: 0.488 | I109: 0.413 | J109: 0.038 | K109: 0.095 | L109: 0.123 | M109: 0.346 | N109: 0.376 | O109: 0.047 | P109: ='Additional TCS'!B105 -> 0.236 | Q109: 1 | R109: =IF(AND('Input - Output'!A110>=360,'Input - Output'!A110<=830),'Input - Output'!A110,"") -> 
A110: 461 | B110: 0.2196 | C110: 0.1316 | D110: 0.0776 | E110: 0.1898 | F110: 0.3836 | G110: 0.553 | H110: 0.4842 | I110: 0.4098 | J110: 0.0374 | K110: 0.0966 | L110: 0.1252 | M110: 0.3462 | N110: 0.3766 | O110: 0.0472 | P110: ='Additional TCS'!B106 -> 0.2374 | Q110: 1 | R110: =IF(AND('Input - Output'!A111>=360,'Input - Output'!A111<=830),'Input - Output'!A111,"") -> 
A111: 462 | B111: 0.2192 | C111: 0.1322 | D111: 0.0782 | E111: 0.1936 | F111: 0.3862 | G111: 0.552 | H111: 0.4804 | I111: 0.4066 | J111: 0.0368 | K111: 0.0982 | L111: 0.1274 | M111: 0.3464 | N111: 0.3772 | O111: 0.0474 | P111: ='Additional TCS'!B107 -> 0.2388 | Q111: 1 | R111: =IF(AND('Input - Output'!A112>=360,'Input - Output'!A112<=830),'Input - Output'!A112,"") -> 
A112: 463 | B112: 0.2188 | C112: 0.1328 | D112: 0.0788 | E112: 0.1974 | F112: 0.3888 | G112: 0.551 | H112: 0.4766 | I112: 0.4034 | J112: 0.0362 | K112: 0.0998 | L112: 0.1296 | M112: 0.3466 | N112: 0.3778 | O112: 0.0476 | P112: ='Additional TCS'!B108 -> 0.2402 | Q112: 1 | R112: =IF(AND('Input - Output'!A113>=360,'Input - Output'!A113<=830),'Input - Output'!A113,"") -> 
A113: 464 | B113: 0.2184 | C113: 0.1334 | D113: 0.0794 | E113: 0.2012 | F113: 0.3914 | G113: 0.55 | H113: 0.4728 | I113: 0.4002 | J113: 0.0356 | K113: 0.1014 | L113: 0.1318 | M113: 0.3468 | N113: 0.3784 | O113: 0.0478 | P113: ='Additional TCS'!B109 -> 0.2416 | Q113: 1 | R113: =IF(AND('Input - Output'!A114>=360,'Input - Output'!A114<=830),'Input - Output'!A114,"") -> 
A114: 465 | B114: 0.218 | C114: 0.134 | D114: 0.08 | E114: 0.205 | F114: 0.394 | G114: 0.549 | H114: 0.469 | I114: 0.397 | J114: 0.035 | K114: 0.103 | L114: 0.134 | M114: 0.347 | N114: 0.379 | O114: 0.048 | P114: ='Additional TCS'!B110 -> 0.243 | Q114: 1 | R114: =IF(AND('Input - Output'!A115>=360,'Input - Output'!A115<=830),'Input - Output'!A115,"") -> 
A115: 466 | B115: 0.2176 | C115: 0.1348 | D115: 0.081 | E115: 0.2098 | F115: 0.3958 | G115: 0.5474 | H115: 0.4648 | I115: 0.394 | J115: 0.0346 | K115: 0.105 | L115: 0.1368 | M115: 0.3458 | N115: 0.38 | O115: 0.0484 | P115: ='Additional TCS'!B111 -> 0.2442 | Q115: 1 | R115: =IF(AND('Input - Output'!A116>=360,'Input - Output'!A116<=830),'Input - Output'!A116,"") -> 
A116: 467 | B116: 0.2172 | C116: 0.1356 | D116: 0.082 | E116: 0.2146 | F116: 0.3976 | G116: 0.5458 | H116: 0.4606 | I116: 0.391 | J116: 0.0342 | K116: 0.107 | L116: 0.1396 | M116: 0.3446 | N116: 0.381 | O116: 0.0488 | P116: ='Additional TCS'!B112 -> 0.2454 | Q116: 1 | R116: =IF(AND('Input - Output'!A117>=360,'Input - Output'!A117<=830),'Input - Output'!A117,"") -> 
A117: 468 | B117: 0.2168 | C117: 0.1364 | D117: 0.083 | E117: 0.2194 | F117: 0.3994 | G117: 0.5442 | H117: 0.4564 | I117: 0.388 | J117: 0.0338 | K117: 0.109 | L117: 0.1424 | M117: 0.3434 | N117: 0.382 | O117: 0.0492 | P117: ='Additional TCS'!B113 -> 0.2466 | Q117: 1 | R117: =IF(AND('Input - Output'!A118>=360,'Input - Output'!A118<=830),'Input - Output'!A118,"") -> 
A118: 469 | B118: 0.2164 | C118: 0.1372 | D118: 0.084 | E118: 0.2242 | F118: 0.4012 | G118: 0.5426 | H118: 0.4522 | I118: 0.385 | J118: 0.0334 | K118: 0.111 | L118: 0.1452 | M118: 0.3422 | N118: 0.383 | O118: 0.0496 | P118: ='Additional TCS'!B114 -> 0.2478 | Q118: 1 | R118: =IF(AND('Input - Output'!A119>=360,'Input - Output'!A119<=830),'Input - Output'!A119,"") -> 
A119: 470 | B119: 0.216 | C119: 0.138 | D119: 0.085 | E119: 0.229 | F119: 0.403 | G119: 0.541 | H119: 0.448 | I119: 0.382 | J119: 0.033 | K119: 0.113 | L119: 0.148 | M119: 0.341 | N119: 0.384 | O119: 0.05 | P119: ='Additional TCS'!B115 -> 0.249 | Q119: 1 | R119: =IF(AND('Input - Output'!A120>=360,'Input - Output'!A120<=830),'Input - Output'!A120,"") -> 
A120: 471 | B120: 0.2156 | C120: 0.139 | D120: 0.0868 | E120: 0.234 | F120: 0.4044 | G120: 0.539 | H120: 0.4442 | I120: 0.3788 | J120: 0.0326 | K120: 0.1154 | L120: 0.1518 | M120: 0.3384 | N120: 0.385 | O120: 0.0504 | P120: ='Additional TCS'!B116 -> 0.25 | Q120: 1 | R120: =IF(AND('Input - Output'!A121>=360,'Input - Output'!A121<=830),'Input - Output'!A121,"") -> 
A121: 472 | B121: 0.2152 | C121: 0.14 | D121: 0.0886 | E121: 0.239 | F121: 0.4058 | G121: 0.537 | H121: 0.4404 | I121: 0.3756 | J121: 0.0322 | K121: 0.1178 | L121: 0.1556 | M121: 0.3358 | N121: 0.386 | O121: 0.0508 | P121: ='Additional TCS'!B117 -> 0.251 | Q121: 1 | R121: =IF(AND('Input - Output'!A122>=360,'Input - Output'!A122<=830),'Input - Output'!A122,"") -> 
A122: 473 | B122: 0.2148 | C122: 0.141 | D122: 0.0904 | E122: 0.244 | F122: 0.4072 | G122: 0.535 | H122: 0.4366 | I122: 0.3724 | J122: 0.0318 | K122: 0.1202 | L122: 0.1594 | M122: 0.3332 | N122: 0.387 | O122: 0.0512 | P122: ='Additional TCS'!B118 -> 0.252 | Q122: 1 | R122: =IF(AND('Input - Output'!A123>=360,'Input - Output'!A123<=830),'Input - Output'!A123,"") -> 
A123: 474 | B123: 0.2144 | C123: 0.142 | D123: 0.0922 | E123: 0.249 | F123: 0.4086 | G123: 0.533 | H123: 0.4328 | I123: 0.3692 | J123: 0.0314 | K123: 0.1226 | L123: 0.1632 | M123: 0.3306 | N123: 0.388 | O123: 0.0516 | P123: ='Additional TCS'!B119 -> 0.253 | Q123: 1 | R123: =IF(AND('Input - Output'!A124>=360,'Input - Output'!A124<=830),'Input - Output'!A124,"") -> 
A124: 475 | B124: 0.214 | C124: 0.143 | D124: 0.094 | E124: 0.254 | F124: 0.41 | G124: 0.531 | H124: 0.429 | I124: 0.366 | J124: 0.031 | K124: 0.125 | L124: 0.167 | M124: 0.328 | N124: 0.389 | O124: 0.052 | P124: ='Additional TCS'!B120 -> 0.254 | Q124: 1 | R124: =IF(AND('Input - Output'!A125>=360,'Input - Output'!A125<=830),'Input - Output'!A125,"") -> 
A125: 476 | B125: 0.214 | C125: 0.1444 | D125: 0.097 | E125: 0.2594 | F125: 0.411 | G125: 0.5286 | H125: 0.4248 | I125: 0.3632 | J125: 0.0308 | K125: 0.1284 | L125: 0.172 | M125: 0.3238 | N125: 0.3906 | O125: 0.0526 | P125: ='Additional TCS'!B121 -> 0.255 | Q125: 1 | R125: =IF(AND('Input - Output'!A126>=360,'Input - Output'!A126<=830),'Input - Output'!A126,"") -> 
A126: 477 | B126: 0.214 | C126: 0.1458 | D126: 0.1 | E126: 0.2648 | F126: 0.412 | G126: 0.5262 | H126: 0.4206 | I126: 0.3604 | J126: 0.0306 | K126: 0.1318 | L126: 0.177 | M126: 0.3196 | N126: 0.3922 | O126: 0.0532 | P126: ='Additional TCS'!B122 -> 0.256 | Q126: 1 | R126: =IF(AND('Input - Output'!A127>=360,'Input - Output'!A127<=830),'Input - Output'!A127,"") -> 
A127: 478 | B127: 0.214 | C127: 0.1472 | D127: 0.103 | E127: 0.2702 | F127: 0.413 | G127: 0.5238 | H127: 0.4164 | I127: 0.3576 | J127: 0.0304 | K127: 0.1352 | L127: 0.182 | M127: 0.3154 | N127: 0.3938 | O127: 0.0538 | P127: ='Additional TCS'!B123 -> 0.257 | Q127: 1 | R127: =IF(AND('Input - Output'!A128>=360,'Input - Output'!A128<=830),'Input - Output'!A128,"") -> 
A128: 479 | B128: 0.214 | C128: 0.1486 | D128: 0.106 | E128: 0.2756 | F128: 0.414 | G128: 0.5214 | H128: 0.4122 | I128: 0.3548 | J128: 0.0302 | K128: 0.1386 | L128: 0.187 | M128: 0.3112 | N128: 0.3954 | O128: 0.0544 | P128: ='Additional TCS'!B124 -> 0.258 | Q128: 1 | R128: =IF(AND('Input - Output'!A129>=360,'Input - Output'!A129<=830),'Input - Output'!A129,"") -> 
A129: 480 | B129: 0.214 | C129: 0.15 | D129: 0.109 | E129: 0.281 | F129: 0.415 | G129: 0.519 | H129: 0.408 | I129: 0.352 | J129: 0.03 | K129: 0.142 | L129: 0.192 | M129: 0.307 | N129: 0.397 | O129: 0.055 | P129: ='Additional TCS'!B125 -> 0.259 | Q129: 1 | R129: =IF(AND('Input - Output'!A130>=360,'Input - Output'!A130<=830),'Input - Output'!A130,"") -> 
A130: 481 | B130: 0.214 | C130: 0.1518 | D130: 0.1124 | E130: 0.2864 | F130: 0.4156 | G130: 0.516 | H130: 0.4034 | I130: 0.349 | J130: 0.0298 | K130: 0.146 | L130: 0.1974 | M130: 0.302 | N130: 0.3986 | O130: 0.0554 | P130: ='Additional TCS'!B126 -> 0.26 | Q130: 1 | R130: =IF(AND('Input - Output'!A131>=360,'Input - Output'!A131<=830),'Input - Output'!A131,"") -> 
A131: 482 | B131: 0.214 | C131: 0.1536 | D131: 0.1158 | E131: 0.2918 | F131: 0.4162 | G131: 0.513 | H131: 0.3988 | I131: 0.346 | J131: 0.0296 | K131: 0.15 | L131: 0.2028 | M131: 0.297 | N131: 0.4002 | O131: 0.0558 | P131: ='Additional TCS'!B127 -> 0.261 | Q131: 1 | R131: =IF(AND('Input - Output'!A132>=360,'Input - Output'!A132<=830),'Input - Output'!A132,"") -> 
A132: 483 | B132: 0.214 | C132: 0.1554 | D132: 0.1192 | E132: 0.2972 | F132: 0.4168 | G132: 0.51 | H132: 0.3942 | I132: 0.343 | J132: 0.0294 | K132: 0.154 | L132: 0.2082 | M132: 0.292 | N132: 0.4018 | O132: 0.0562 | P132: ='Additional TCS'!B128 -> 0.262 | Q132: 1 | R132: =IF(AND('Input - Output'!A133>=360,'Input - Output'!A133<=830),'Input - Output'!A133,"") -> 
A133: 484 | B133: 0.214 | C133: 0.1572 | D133: 0.1226 | E133: 0.3026 | F133: 0.4174 | G133: 0.507 | H133: 0.3896 | I133: 0.34 | J133: 0.0292 | K133: 0.158 | L133: 0.2136 | M133: 0.287 | N133: 0.4034 | O133: 0.0566 | P133: ='Additional TCS'!B129 -> 0.263 | Q133: 1 | R133: =IF(AND('Input - Output'!A134>=360,'Input - Output'!A134<=830),'Input - Output'!A134,"") -> 
A134: 485 | B134: 0.214 | C134: 0.159 | D134: 0.126 | E134: 0.308 | F134: 0.418 | G134: 0.504 | H134: 0.385 | I134: 0.337 | J134: 0.029 | K134: 0.162 | L134: 0.219 | M134: 0.282 | N134: 0.405 | O134: 0.057 | P134: ='Additional TCS'!B130 -> 0.264 | Q134: 1 | R134: =IF(AND('Input - Output'!A135>=360,'Input - Output'!A135<=830),'Input - Output'!A135,"") -> 
A135: 486 | B135: 0.2144 | C135: 0.162 | D135: 0.1304 | E135: 0.3128 | F135: 0.4182 | G135: 0.5008 | H135: 0.3806 | I135: 0.3346 | J135: 0.0288 | K135: 0.1674 | L135: 0.2256 | M135: 0.277 | N135: 0.4072 | O135: 0.058 | P135: ='Additional TCS'!B131 -> 0.265 | Q135: 1 | R135: =IF(AND('Input - Output'!A136>=360,'Input - Output'!A136<=830),'Input - Output'!A136,"") -> 
A136: 487 | B136: 0.2148 | C136: 0.165 | D136: 0.1348 | E136: 0.3176 | F136: 0.4184 | G136: 0.4976 | H136: 0.3762 | I136: 0.3322 | J136: 0.0286 | K136: 0.1728 | L136: 0.2322 | M136: 0.272 | N136: 0.4094 | O136: 0.059 | P136: ='Additional TCS'!B132 -> 0.266 | Q136: 1 | R136: =IF(AND('Input - Output'!A137>=360,'Input - Output'!A137<=830),'Input - Output'!A137,"") -> 
A137: 488 | B137: 0.2152 | C137: 0.168 | D137: 0.1392 | E137: 0.3224 | F137: 0.4186 | G137: 0.4944 | H137: 0.3718 | I137: 0.3298 | J137: 0.0284 | K137: 0.1782 | L137: 0.2388 | M137: 0.267 | N137: 0.4116 | O137: 0.06 | P137: ='Additional TCS'!B133 -> 0.267 | Q137: 1 | R137: =IF(AND('Input - Output'!A138>=360,'Input - Output'!A138<=830),'Input - Output'!A138,"") -> 
A138: 489 | B138: 0.2156 | C138: 0.171 | D138: 0.1436 | E138: 0.3272 | F138: 0.4188 | G138: 0.4912 | H138: 0.3674 | I138: 0.3274 | J138: 0.0282 | K138: 0.1836 | L138: 0.2454 | M138: 0.262 | N138: 0.4138 | O138: 0.061 | P138: ='Additional TCS'!B134 -> 0.268 | Q138: 1 | R138: =IF(AND('Input - Output'!A139>=360,'Input - Output'!A139<=830),'Input - Output'!A139,"") ->  | S138: =IF($R138<>"",TREND(OFFSET(B$9,MATCH($R138,$A$9:$A$485)-1,,2),OFFSET($A$9,MATCH($R138,$A$9:$A$485)-1,,2),$R138),"") ->  | T138: =IF($R138<>"",TREND(OFFSET(C$9,MATCH($R138,$A$9:$A$485)-1,,2),OFFSET($A$9,MATCH($R138,$A$9:$A$485)-1,,2),$R138),"") ->  | U138: =IF($R138<>"",TREND(OFFSET(D$9,MATCH($R138,$A$9:$A$485)-1,,2),OFFSET($A$9,MATCH($R138,$A$9:$A$485)-1,,2),$R138),"") ->  | V138: =IF($R138<>"",TREND(OFFSET(E$9,MATCH($R138,$A$9:$A$485)-1,,2),OFFSET($A$9,MATCH($R138,$A$9:$A$485)-1,,2),$R138),"") ->  | W138: =IF($R138<>"",TREND(OFFSET(F$9,MATCH($R138,$A$9:$A$485)-1,,2),OFFSET($A$9,MATCH($R138,$A$9:$A$485)-1,,2),$R138),"") ->  | X138: =IF($R138<>"",TREND(OFFSET(G$9,MATCH($R138,$A$9:$A$485)-1,,2),OFFSET($A$9,MATCH($R138,$A$9:$A$485)-1,,2),$R138),"") ->  | Y138: =IF($R138<>"",TREND(OFFSET(H$9,MATCH($R138,$A$9:$A$485)-1,,2),OFFSET($A$9,MATCH($R138,$A$9:$A$485)-1,,2),$R138),"") ->  | Z138: =IF($R138<>"",TREND(OFFSET(I$9,MATCH($R138,$A$9:$A$485)-1,,2),OFFSET($A$9,MATCH($R138,$A$9:$A$485)-1,,2),$R138),"") ->  | AA138: =IF($R138<>"",TREND(OFFSET(J$9,MATCH($R138,$A$9:$A$485)-1,,2),OFFSET($A$9,MATCH($R138,$A$9:$A$485)-1,,2),$R138),"") ->  | AB138: =IF($R138<>"",TREND(OFFSET(K$9,MATCH($R138,$A$9:$A$485)-1,,2),OFFSET($A$9,MATCH($R138,$A$9:$A$485)-1,,2),$R138),"") ->  | AC138: =IF($R138<>"",TREND(OFFSET(L$9,MATCH($R138,$A$9:$A$485)-1,,2),OFFSET($A$9,MATCH($R138,$A$9:$A$485)-1,,2),$R138),"") ->  | AD138: =IF($R138<>"",TREND(OFFSET(M$9,MATCH($R138,$A$9:$A$485)-1,,2),OFFSET($A$9,MATCH($R138,$A$9:$A$485)-1,,2),$R138),"") ->  | AE138: =IF($R138<>"",TREND(OFFSET(N$9,MATCH($R138,$A$9:$A$485)-1,,2),OFFSET($A$9,MATCH($R138,$A$9:$A$485)-1,,2),$R138),"") ->  | AF138: =IF($R138<>"",TREND(OFFSET(O$9,MATCH($R138,$A$9:$A$485)-1,,2),OFFSET($A$9,MATCH($R138,$A$9:$A$485)-1,,2),$R138),"") ->  | AG138: =IF($R138<>"",TREND(OFFSET(P$9,MATCH($R138,$A$9:$A$485)-1,,2),OFFSET($A$9,MATCH($R138,$A$9:$A$485)-1,,2),$R138),"") ->  | AH138: =IF($R138<>"",TREND(OFFSET(Q$9,MATCH($R138,$A$9:$A$485)-1,,2),OFFSET($A$9,MATCH($R138,$A$9:$A$485)-1,,2),$R138),"") -> 
A139: 490 | B139: 0.216 | C139: 0.174 | D139: 0.148 | E139: 0.332 | F139: 0.419 | G139: 0.488 | H139: 0.363 | I139: 0.325 | J139: 0.028 | K139: 0.189 | L139: 0.252 | M139: 0.257 | N139: 0.416 | O139: 0.062 | P139: ='Additional TCS'!B135 -> 0.269 | Q139: 1 | R139: =IF(AND('Input - Output'!A140>=360,'Input - Output'!A140<=830),'Input - Output'!A140,"") -> 
A140: 491 | B140: 0.2164 | C140: 0.1772 | D140: 0.1528 | E140: 0.336 | F140: 0.4186 | G140: 0.4842 | H140: 0.3586 | I140: 0.322 | J140: 0.028 | K140: 0.195 | L140: 0.2598 | M140: 0.2516 | N140: 0.4186 | O140: 0.063 | P140: ='Additional TCS'!B136 -> 0.2704 | Q140: 1 | R140: =IF(AND('Input - Output'!A141>=360,'Input - Output'!A141<=830),'Input - Output'!A141,"") -> 
A141: 492 | B141: 0.2168 | C141: 0.1804 | D141: 0.1576 | E141: 0.34 | F141: 0.4182 | G141: 0.4804 | H141: 0.3542 | I141: 0.319 | J141: 0.028 | K141: 0.201 | L141: 0.2676 | M141: 0.2462 | N141: 0.4212 | O141: 0.064 | P141: ='Additional TCS'!B137 -> 0.2718 | Q141: 1 | R141: =IF(AND('Input - Output'!A142>=360,'Input - Output'!A142<=830),'Input - Output'!A142,"") -> 
A142: 493 | B142: 0.2172 | C142: 0.1836 | D142: 0.1624 | E142: 0.344 | F142: 0.4178 | G142: 0.4766 | H142: 0.3498 | I142: 0.316 | J142: 0.028 | K142: 0.207 | L142: 0.2754 | M142: 0.2408 | N142: 0.4238 | O142: 0.065 | P142: ='Additional TCS'!B138 -> 0.2732 | Q142: 1 | R142: =IF(AND('Input - Output'!A143>=360,'Input - Output'!A143<=830),'Input - Output'!A143,"") -> 
A143: 494 | B143: 0.2176 | C143: 0.1868 | D143: 0.1672 | E143: 0.348 | F143: 0.4174 | G143: 0.4728 | H143: 0.3454 | I143: 0.313 | J143: 0.028 | K143: 0.213 | L143: 0.2832 | M143: 0.2354 | N143: 0.4264 | O143: 0.066 | P143: ='Additional TCS'!B139 -> 0.2746 | Q143: 1 | R143: =IF(AND('Input - Output'!A144>=360,'Input - Output'!A144<=830),'Input - Output'!A144,"") -> 
A144: 495 | B144: 0.218 | C144: 0.19 | D144: 0.172 | E144: 0.352 | F144: 0.417 | G144: 0.469 | H144: 0.341 | I144: 0.31 | J144: 0.028 | K144: 0.219 | L144: 0.291 | M144: 0.23 | N144: 0.429 | O144: 0.067 | P144: ='Additional TCS'!B140 -> 0.276 | Q144: 1 | R144: =IF(AND('Input - Output'!A145>=360,'Input - Output'!A145<=830),'Input - Output'!A145,"") -> 
A145: 496 | B145: 0.219 | C145: 0.1934 | D145: 0.1772 | E145: 0.3556 | F145: 0.4162 | G145: 0.4652 | H145: 0.3376 | I145: 0.3078 | J145: 0.028 | K145: 0.2276 | L145: 0.2978 | M145: 0.2248 | N145: 0.4318 | O145: 0.0686 | P145: ='Additional TCS'!B141 -> 0.2776 | Q145: 1 | R145: =IF(AND('Input - Output'!A146>=360,'Input - Output'!A146<=830),'Input - Output'!A146,"") -> 
A146: 497 | B146: 0.22 | C146: 0.1968 | D146: 0.1824 | E146: 0.3592 | F146: 0.4154 | G146: 0.4614 | H146: 0.3342 | I146: 0.3056 | J146: 0.028 | K146: 0.2362 | L146: 0.3046 | M146: 0.2196 | N146: 0.4346 | O146: 0.0702 | P146: ='Additional TCS'!B142 -> 0.2792 | Q146: 1 | R146: =IF(AND('Input - Output'!A147>=360,'Input - Output'!A147<=830),'Input - Output'!A147,"") -> 
A147: 498 | B147: 0.221 | C147: 0.2002 | D147: 0.1876 | E147: 0.3628 | F147: 0.4146 | G147: 0.4576 | H147: 0.3308 | I147: 0.3034 | J147: 0.028 | K147: 0.2448 | L147: 0.3114 | M147: 0.2144 | N147: 0.4374 | O147: 0.0718 | P147: ='Additional TCS'!B143 -> 0.2808 | Q147: 1 | R147: =IF(AND('Input - Output'!A148>=360,'Input - Output'!A148<=830),'Input - Output'!A148,"") -> 
A148: 499 | B148: 0.222 | C148: 0.2036 | D148: 0.1928 | E148: 0.3664 | F148: 0.4138 | G148: 0.4538 | H148: 0.3274 | I148: 0.3012 | J148: 0.028 | K148: 0.2534 | L148: 0.3182 | M148: 0.2092 | N148: 0.4402 | O148: 0.0734 | P148: ='Additional TCS'!B144 -> 0.2824 | Q148: 1 | R148: =IF(AND('Input - Output'!A149>=360,'Input - Output'!A149<=830),'Input - Output'!A149,"") -> 
A149: 500 | B149: 0.223 | C149: 0.207 | D149: 0.198 | E149: 0.37 | F149: 0.413 | G149: 0.45 | H149: 0.324 | I149: 0.299 | J149: 0.028 | K149: 0.262 | L149: 0.325 | M149: 0.204 | N149: 0.443 | O149: 0.075 | P149: ='Additional TCS'!B145 -> 0.284 | Q149: 1 | R149: =IF(AND('Input - Output'!A150>=360,'Input - Output'!A150<=830),'Input - Output'!A150,"") -> 
A150: 501 | B150: 0.2234 | C150: 0.2106 | D150: 0.2026 | E150: 0.3726 | F150: 0.4122 | G150: 0.4462 | H150: 0.3214 | I150: 0.297 | J150: 0.0282 | K150: 0.2706 | L150: 0.3294 | M150: 0.1988 | N150: 0.4452 | O150: 0.0766 | P150: ='Additional TCS'!B146 -> 0.2854 | Q150: 1 | R150: =IF(AND('Input - Output'!A151>=360,'Input - Output'!A151<=830),'Input - Output'!A151,"") -> 
A151: 502 | B151: 0.2238 | C151: 0.2142 | D151: 0.2072 | E151: 0.3752 | F151: 0.4114 | G151: 0.4424 | H151: 0.3188 | I151: 0.295 | J151: 0.0284 | K151: 0.2792 | L151: 0.3338 | M151: 0.1936 | N151: 0.4474 | O151: 0.0782 | P151: ='Additional TCS'!B147 -> 0.2868 | Q151: 1 | R151: =IF(AND('Input - Output'!A152>=360,'Input - Output'!A152<=830),'Input - Output'!A152,"") -> 
A152: 503 | B152: 0.2242 | C152: 0.2178 | D152: 0.2118 | E152: 0.3778 | F152: 0.4106 | G152: 0.4386 | H152: 0.3162 | I152: 0.293 | J152: 0.0286 | K152: 0.2878 | L152: 0.3382 | M152: 0.1884 | N152: 0.4496 | O152: 0.0798 | P152: ='Additional TCS'!B148 -> 0.2882 | Q152: 1 | R152: =IF(AND('Input - Output'!A153>=360,'Input - Output'!A153<=830),'Input - Output'!A153,"") -> 
A153: 504 | B153: 0.2246 | C153: 0.2214 | D153: 0.2164 | E153: 0.3804 | F153: 0.4098 | G153: 0.4348 | H153: 0.3136 | I153: 0.291 | J153: 0.0288 | K153: 0.2964 | L153: 0.3426 | M153: 0.1832 | N153: 0.4518 | O153: 0.0814 | P153: ='Additional TCS'!B149 -> 0.2896 | Q153: 1 | R153: =IF(AND('Input - Output'!A154>=360,'Input - Output'!A154<=830),'Input - Output'!A154,"") -> 
A154: 505 | B154: 0.225 | C154: 0.225 | D154: 0.221 | E154: 0.383 | F154: 0.409 | G154: 0.431 | H154: 0.311 | I154: 0.289 | J154: 0.029 | K154: 0.305 | L154: 0.347 | M154: 0.178 | N154: 0.454 | O154: 0.083 | P154: ='Additional TCS'!B150 -> 0.291 | Q154: 1 | R154: =IF(AND('Input - Output'!A155>=360,'Input - Output'!A155<=830),'Input - Output'!A155,"") -> 
A155: 506 | B155: 0.2252 | C155: 0.2284 | D155: 0.225 | E155: 0.3844 | F155: 0.4078 | G155: 0.4276 | H155: 0.309 | I155: 0.2878 | J155: 0.0292 | K155: 0.317 | L155: 0.3488 | M155: 0.1732 | N155: 0.4554 | O155: 0.0848 | P155: ='Additional TCS'!B151 -> 0.292 | Q155: 1 | R155: =IF(AND('Input - Output'!A156>=360,'Input - Output'!A156<=830),'Input - Output'!A156,"") -> 
A156: 507 | B156: 0.2254 | C156: 0.2318 | D156: 0.229 | E156: 0.3858 | F156: 0.4066 | G156: 0.4242 | H156: 0.307 | I156: 0.2866 | J156: 0.0294 | K156: 0.329 | L156: 0.3506 | M156: 0.1684 | N156: 0.4568 | O156: 0.0866 | P156: ='Additional TCS'!B152 -> 0.293 | Q156: 1 | R156: =IF(AND('Input - Output'!A157>=360,'Input - Output'!A157<=830),'Input - Output'!A157,"") -> 
A157: 508 | B157: 0.2256 | C157: 0.2352 | D157: 0.233 | E157: 0.3872 | F157: 0.4054 | G157: 0.4208 | H157: 0.305 | I157: 0.2854 | J157: 0.0296 | K157: 0.341 | L157: 0.3524 | M157: 0.1636 | N157: 0.4582 | O157: 0.0884 | P157: ='Additional TCS'!B153 -> 0.294 | Q157: 1 | R157: =IF(AND('Input - Output'!A158>=360,'Input - Output'!A158<=830),'Input - Output'!A158,"") -> 
A158: 509 | B158: 0.2258 | C158: 0.2386 | D158: 0.237 | E158: 0.3886 | F158: 0.4042 | G158: 0.4174 | H158: 0.303 | I158: 0.2842 | J158: 0.0298 | K158: 0.353 | L158: 0.3542 | M158: 0.1588 | N158: 0.4596 | O158: 0.0902 | P158: ='Additional TCS'!B154 -> 0.295 | Q158: 1 | R158: =IF(AND('Input - Output'!A159>=360,'Input - Output'!A159<=830),'Input - Output'!A159,"") -> 
A159: 510 | B159: 0.226 | C159: 0.242 | D159: 0.241 | E159: 0.39 | F159: 0.403 | G159: 0.414 | H159: 0.301 | I159: 0.283 | J159: 0.03 | K159: 0.365 | L159: 0.356 | M159: 0.154 | N159: 0.461 | O159: 0.092 | P159: ='Additional TCS'!B155 -> 0.296 | Q159: 1 | R159: =IF(AND('Input - Output'!A160>=360,'Input - Output'!A160<=830),'Input - Output'!A160,"") -> 
A160: 511 | B160: 0.226 | C160: 0.2442 | D160: 0.2448 | E160: 0.3908 | F160: 0.4016 | G160: 0.4102 | H160: 0.299 | I160: 0.2816 | J160: 0.03 | K160: 0.3752 | L160: 0.3554 | M160: 0.149 | N160: 0.462 | O160: 0.0936 | P160: ='Additional TCS'!B156 -> 0.2964 | Q160: 1 | R160: =IF(AND('Input - Output'!A161>=360,'Input - Output'!A161<=830),'Input - Output'!A161,"") -> 
A161: 512 | B161: 0.226 | C161: 0.2464 | D161: 0.2486 | E161: 0.3916 | F161: 0.4002 | G161: 0.4064 | H161: 0.297 | I161: 0.2802 | J161: 0.03 | K161: 0.3854 | L161: 0.3548 | M161: 0.144 | N161: 0.463 | O161: 0.0952 | P161: ='Additional TCS'!B157 -> 0.2968 | Q161: 1 | R161: =IF(AND('Input - Output'!A162>=360,'Input - Output'!A162<=830),'Input - Output'!A162,"") -> 
A162: 513 | B162: 0.226 | C162: 0.2486 | D162: 0.2524 | E162: 0.3924 | F162: 0.3988 | G162: 0.4026 | H162: 0.295 | I162: 0.2788 | J162: 0.03 | K162: 0.3956 | L162: 0.3542 | M162: 0.139 | N162: 0.464 | O162: 0.0968 | P162: ='Additional TCS'!B158 -> 0.2972 | Q162: 1 | R162: =IF(AND('Input - Output'!A163>=360,'Input - Output'!A163<=830),'Input - Output'!A163,"") -> 
A163: 514 | B163: 0.226 | C163: 0.2508 | D163: 0.2562 | E163: 0.3932 | F163: 0.3974 | G163: 0.3988 | H163: 0.293 | I163: 0.2774 | J163: 0.03 | K163: 0.4058 | L163: 0.3536 | M163: 0.134 | N163: 0.465 | O163: 0.0984 | P163: ='Additional TCS'!B159 -> 0.2976 | Q163: 1 | R163: =IF(AND('Input - Output'!A164>=360,'Input - Output'!A164<=830),'Input - Output'!A164,"") -> 
A164: 515 | B164: 0.226 | C164: 0.253 | D164: 0.26 | E164: 0.394 | F164: 0.396 | G164: 0.395 | H164: 0.291 | I164: 0.276 | J164: 0.03 | K164: 0.416 | L164: 0.353 | M164: 0.129 | N164: 0.466 | O164: 0.1 | P164: ='Additional TCS'!B160 -> 0.298 | Q164: 1 | R164: =IF(AND('Input - Output'!A165>=360,'Input - Output'!A165<=830),'Input - Output'!A165,"") -> 
A165: 516 | B165: 0.2258 | C165: 0.2544 | D165: 0.2636 | E165: 0.3942 | F165: 0.3946 | G165: 0.3914 | H165: 0.2894 | I165: 0.2748 | J165: 0.0302 | K165: 0.4258 | L165: 0.3516 | M165: 0.125 | N165: 0.4666 | O165: 0.1016 | P165: ='Additional TCS'!B161 -> 0.2976 | Q165: 1 | R165: =IF(AND('Input - Output'!A166>=360,'Input - Output'!A166<=830),'Input - Output'!A166,"") -> 
A166: 517 | B166: 0.2256 | C166: 0.2558 | D166: 0.2672 | E166: 0.3944 | F166: 0.3932 | G166: 0.3878 | H166: 0.2878 | I166: 0.2736 | J166: 0.0304 | K166: 0.4356 | L166: 0.3502 | M166: 0.121 | N166: 0.4672 | O166: 0.1032 | P166: ='Additional TCS'!B162 -> 0.2972 | Q166: 1 | R166: =IF(AND('Input - Output'!A167>=360,'Input - Output'!A167<=830),'Input - Output'!A167,"") -> 
A167: 518 | B167: 0.2254 | C167: 0.2572 | D167: 0.2708 | E167: 0.3946 | F167: 0.3918 | G167: 0.3842 | H167: 0.2862 | I167: 0.2724 | J167: 0.0306 | K167: 0.4454 | L167: 0.3488 | M167: 0.117 | N167: 0.4678 | O167: 0.1048 | P167: ='Additional TCS'!B163 -> 0.2968 | Q167: 1 | R167: =IF(AND('Input - Output'!A168>=360,'Input - Output'!A168<=830),'Input - Output'!A168,"") -> 
A168: 519 | B168: 0.2252 | C168: 0.2586 | D168: 0.2744 | E168: 0.3948 | F168: 0.3904 | G168: 0.3806 | H168: 0.2846 | I168: 0.2712 | J168: 0.0308 | K168: 0.4552 | L168: 0.3474 | M168: 0.113 | N168: 0.4684 | O168: 0.1064 | P168: ='Additional TCS'!B164 -> 0.2964 | Q168: 1 | R168: =IF(AND('Input - Output'!A169>=360,'Input - Output'!A169<=830),'Input - Output'!A169,"") -> 
A169: 520 | B169: 0.225 | C169: 0.26 | D169: 0.278 | E169: 0.395 | F169: 0.389 | G169: 0.377 | H169: 0.283 | I169: 0.27 | J169: 0.031 | K169: 0.465 | L169: 0.346 | M169: 0.109 | N169: 0.469 | O169: 0.108 | P169: ='Additional TCS'!B165 -> 0.296 | Q169: 1 | R169: =IF(AND('Input - Output'!A170>=360,'Input - Output'!A170<=830),'Input - Output'!A170,"") -> 
A170: 521 | B170: 0.225 | C170: 0.2608 | D170: 0.2828 | E170: 0.3944 | F170: 0.3874 | G170: 0.3732 | H170: 0.281 | I170: 0.2684 | J170: 0.031 | K170: 0.4738 | L170: 0.3434 | M170: 0.1052 | N170: 0.4694 | O170: 0.1106 | P170: ='Additional TCS'!B166 -> 0.2946 | Q170: 1 | R170: =IF(AND('Input - Output'!A171>=360,'Input - Output'!A171<=830),'Input - Output'!A171,"") -> 
A171: 522 | B171: 0.225 | C171: 0.2616 | D171: 0.2876 | E171: 0.3938 | F171: 0.3858 | G171: 0.3694 | H171: 0.279 | I171: 0.2668 | J171: 0.031 | K171: 0.4826 | L171: 0.3408 | M171: 0.1014 | N171: 0.4698 | O171: 0.1132 | P171: ='Additional TCS'!B167 -> 0.2932 | Q171: 1 | R171: =IF(AND('Input - Output'!A172>=360,'Input - Output'!A172<=830),'Input - Output'!A172,"") -> 
A172: 523 | B172: 0.225 | C172: 0.2624 | D172: 0.2924 | E172: 0.3932 | F172: 0.3842 | G172: 0.3656 | H172: 0.277 | I172: 0.2652 | J172: 0.031 | K172: 0.4914 | L172: 0.3382 | M172: 0.0976 | N172: 0.4702 | O172: 0.1158 | P172: ='Additional TCS'!B168 -> 0.2918 | Q172: 1 | R172: =IF(AND('Input - Output'!A173>=360,'Input - Output'!A173<=830),'Input - Output'!A173,"") -> 
A173: 524 | B173: 0.225 | C173: 0.2632 | D173: 0.2972 | E173: 0.3926 | F173: 0.3826 | G173: 0.3618 | H173: 0.275 | I173: 0.2636 | J173: 0.031 | K173: 0.5002 | L173: 0.3356 | M173: 0.0938 | N173: 0.4706 | O173: 0.1184 | P173: ='Additional TCS'!B169 -> 0.2904 | Q173: 1 | R173: =IF(AND('Input - Output'!A174>=360,'Input - Output'!A174<=830),'Input - Output'!A174,"") -> 
A174: 525 | B174: 0.225 | C174: 0.264 | D174: 0.302 | E174: 0.392 | F174: 0.381 | G174: 0.358 | H174: 0.273 | I174: 0.262 | J174: 0.031 | K174: 0.509 | L174: 0.333 | M174: 0.09 | N174: 0.471 | O174: 0.121 | P174: ='Additional TCS'!B170 -> 0.289 | Q174: 1 | R174: =IF(AND('Input - Output'!A175>=360,'Input - Output'!A175<=830),'Input - Output'!A175,"") -> 
A175: 526 | B175: 0.2254 | C175: 0.2646 | D175: 0.3094 | E175: 0.3906 | F175: 0.3792 | G175: 0.3546 | H175: 0.2714 | I175: 0.2608 | J175: 0.0312 | K175: 0.5164 | L175: 0.3292 | M175: 0.087 | N175: 0.4716 | O175: 0.1234 | P175: ='Additional TCS'!B171 -> 0.2876 | Q175: 1 | R175: =IF(AND('Input - Output'!A176>=360,'Input - Output'!A176<=830),'Input - Output'!A176,"") -> 
A176: 527 | B176: 0.2258 | C176: 0.2652 | D176: 0.3168 | E176: 0.3892 | F176: 0.3774 | G176: 0.3512 | H176: 0.2698 | I176: 0.2596 | J176: 0.0314 | K176: 0.5238 | L176: 0.3254 | M176: 0.084 | N176: 0.4722 | O176: 0.1258 | P176: ='Additional TCS'!B172 -> 0.2862 | Q176: 1 | R176: =IF(AND('Input - Output'!A177>=360,'Input - Output'!A177<=830),'Input - Output'!A177,"") -> 
A177: 528 | B177: 0.2262 | C177: 0.2658 | D177: 0.3242 | E177: 0.3878 | F177: 0.3756 | G177: 0.3478 | H177: 0.2682 | I177: 0.2584 | J177: 0.0316 | K177: 0.5312 | L177: 0.3216 | M177: 0.081 | N177: 0.4728 | O177: 0.1282 | P177: ='Additional TCS'!B173 -> 0.2848 | Q177: 1 | R177: =IF(AND('Input - Output'!A178>=360,'Input - Output'!A178<=830),'Input - Output'!A178,"") -> 
A178: 529 | B178: 0.2266 | C178: 0.2664 | D178: 0.3316 | E178: 0.3864 | F178: 0.3738 | G178: 0.3444 | H178: 0.2666 | I178: 0.2572 | J178: 0.0318 | K178: 0.5386 | L178: 0.3178 | M178: 0.078 | N178: 0.4734 | O178: 0.1306 | P178: ='Additional TCS'!B174 -> 0.2834 | Q178: 1 | R178: =IF(AND('Input - Output'!A179>=360,'Input - Output'!A179<=830),'Input - Output'!A179,"") -> 
A179: 530 | B179: 0.227 | C179: 0.267 | D179: 0.339 | E179: 0.385 | F179: 0.372 | G179: 0.341 | H179: 0.265 | I179: 0.256 | J179: 0.032 | K179: 0.546 | L179: 0.314 | M179: 0.075 | N179: 0.474 | O179: 0.133 | P179: ='Additional TCS'!B175 -> 0.282 | Q179: 1 | R179: =IF(AND('Input - Output'!A180>=360,'Input - Output'!A180<=830),'Input - Output'!A180,"") -> 
A180: 531 | B180: 0.2276 | C180: 0.2674 | D180: 0.3452 | E180: 0.3834 | F180: 0.3702 | G180: 0.3378 | H180: 0.264 | I180: 0.255 | J180: 0.032 | K180: 0.553 | L180: 0.31 | M180: 0.0724 | N180: 0.4744 | O180: 0.1348 | P180: ='Additional TCS'!B176 -> 0.2808 | Q180: 1 | R180: =IF(AND('Input - Output'!A181>=360,'Input - Output'!A181<=830),'Input - Output'!A181,"") -> 
A181: 532 | B181: 0.2282 | C181: 0.2678 | D181: 0.3514 | E181: 0.3818 | F181: 0.3684 | G181: 0.3346 | H181: 0.263 | I181: 0.254 | J181: 0.032 | K181: 0.56 | L181: 0.306 | M181: 0.0698 | N181: 0.4748 | O181: 0.1366 | P181: ='Additional TCS'!B177 -> 0.2796 | Q181: 1 | R181: =IF(AND('Input - Output'!A182>=360,'Input - Output'!A182<=830),'Input - Output'!A182,"") -> 
A182: 533 | B182: 0.2288 | C182: 0.2682 | D182: 0.3576 | E182: 0.3802 | F182: 0.3666 | G182: 0.3314 | H182: 0.262 | I182: 0.253 | J182: 0.032 | K182: 0.567 | L182: 0.302 | M182: 0.0672 | N182: 0.4752 | O182: 0.1384 | P182: ='Additional TCS'!B178 -> 0.2784 | Q182: 1 | R182: =IF(AND('Input - Output'!A183>=360,'Input - Output'!A183<=830),'Input - Output'!A183,"") -> 
A183: 534 | B183: 0.2294 | C183: 0.2686 | D183: 0.3638 | E183: 0.3786 | F183: 0.3648 | G183: 0.3282 | H183: 0.261 | I183: 0.252 | J183: 0.032 | K183: 0.574 | L183: 0.298 | M183: 0.0646 | N183: 0.4756 | O183: 0.1402 | P183: ='Additional TCS'!B179 -> 0.2772 | Q183: 1 | R183: =IF(AND('Input - Output'!A184>=360,'Input - Output'!A184<=830),'Input - Output'!A184,"") -> 
A184: 535 | B184: 0.23 | C184: 0.269 | D184: 0.37 | E184: 0.377 | F184: 0.363 | G184: 0.325 | H184: 0.26 | I184: 0.251 | J184: 0.032 | K184: 0.581 | L184: 0.294 | M184: 0.062 | N184: 0.476 | O184: 0.142 | P184: ='Additional TCS'!B180 -> 0.276 | Q184: 1 | R184: =IF(AND('Input - Output'!A185>=360,'Input - Output'!A185<=830),'Input - Output'!A185,"") -> 
A185: 536 | B185: 0.2312 | C185: 0.2696 | D185: 0.3744 | E185: 0.375 | F185: 0.361 | G185: 0.3218 | H185: 0.2594 | I185: 0.2508 | J185: 0.0322 | K185: 0.5868 | L185: 0.2894 | M185: 0.0598 | N185: 0.4774 | O185: 0.1436 | P185: ='Additional TCS'!B181 -> 0.2756 | Q185: 1 | R185: =IF(AND('Input - Output'!A186>=360,'Input - Output'!A186<=830),'Input - Output'!A186,"") -> 
A186: 537 | B186: 0.2324 | C186: 0.2702 | D186: 0.3788 | E186: 0.373 | F186: 0.359 | G186: 0.3186 | H186: 0.2588 | I186: 0.2506 | J186: 0.0324 | K186: 0.5926 | L186: 0.2848 | M186: 0.0576 | N186: 0.4788 | O186: 0.1452 | P186: ='Additional TCS'!B182 -> 0.2752 | Q186: 1 | R186: =IF(AND('Input - Output'!A187>=360,'Input - Output'!A187<=830),'Input - Output'!A187,"") -> 
A187: 538 | B187: 0.2336 | C187: 0.2708 | D187: 0.3832 | E187: 0.371 | F187: 0.357 | G187: 0.3154 | H187: 0.2582 | I187: 0.2504 | J187: 0.0326 | K187: 0.5984 | L187: 0.2802 | M187: 0.0554 | N187: 0.4802 | O187: 0.1468 | P187: ='Additional TCS'!B183 -> 0.2748 | Q187: 1 | R187: =IF(AND('Input - Output'!A188>=360,'Input - Output'!A188<=830),'Input - Output'!A188,"") -> 
A188: 539 | B188: 0.2348 | C188: 0.2714 | D188: 0.3876 | E188: 0.369 | F188: 0.355 | G188: 0.3122 | H188: 0.2576 | I188: 0.2502 | J188: 0.0328 | K188: 0.6042 | L188: 0.2756 | M188: 0.0532 | N188: 0.4816 | O188: 0.1484 | P188: ='Additional TCS'!B184 -> 0.2744 | Q188: 1 | R188: =IF(AND('Input - Output'!A189>=360,'Input - Output'!A189<=830),'Input - Output'!A189,"") -> 
A189: 540 | B189: 0.236 | C189: 0.272 | D189: 0.392 | E189: 0.367 | F189: 0.353 | G189: 0.309 | H189: 0.257 | I189: 0.25 | J189: 0.033 | K189: 0.61 | L189: 0.271 | M189: 0.051 | N189: 0.483 | O189: 0.15 | P189: ='Additional TCS'!B185 -> 0.274 | Q189: 1 | R189: =IF(AND('Input - Output'!A190>=360,'Input - Output'!A190<=830),'Input - Output'!A190,"") -> 
A190: 541 | B190: 0.2378 | C190: 0.2728 | D190: 0.3934 | E190: 0.3644 | F190: 0.3508 | G190: 0.3058 | H190: 0.257 | I190: 0.2502 | J190: 0.0332 | K190: 0.6148 | L190: 0.2664 | M190: 0.049 | N190: 0.4844 | O190: 0.1508 | P190: ='Additional TCS'!B186 -> 0.2744 | Q190: 1 | R190: =IF(AND('Input - Output'!A191>=360,'Input - Output'!A191<=830),'Input - Output'!A191,"") -> 
A191: 542 | B191: 0.2396 | C191: 0.2736 | D191: 0.3948 | E191: 0.3618 | F191: 0.3486 | G191: 0.3026 | H191: 0.257 | I191: 0.2504 | J191: 0.0334 | K191: 0.6196 | L191: 0.2618 | M191: 0.047 | N191: 0.4858 | O191: 0.1516 | P191: ='Additional TCS'!B187 -> 0.2748 | Q191: 1 | R191: =IF(AND('Input - Output'!A192>=360,'Input - Output'!A192<=830),'Input - Output'!A192,"") -> 
A192: 543 | B192: 0.2414 | C192: 0.2744 | D192: 0.3962 | E192: 0.3592 | F192: 0.3464 | G192: 0.2994 | H192: 0.257 | I192: 0.2506 | J192: 0.0336 | K192: 0.6244 | L192: 0.2572 | M192: 0.045 | N192: 0.4872 | O192: 0.1524 | P192: ='Additional TCS'!B188 -> 0.2752 | Q192: 1 | R192: =IF(AND('Input - Output'!A193>=360,'Input - Output'!A193<=830),'Input - Output'!A193,"") -> 
A193: 544 | B193: 0.2432 | C193: 0.2752 | D193: 0.3976 | E193: 0.3566 | F193: 0.3442 | G193: 0.2962 | H193: 0.257 | I193: 0.2508 | J193: 0.0338 | K193: 0.6292 | L193: 0.2526 | M193: 0.043 | N193: 0.4886 | O193: 0.1532 | P193: ='Additional TCS'!B189 -> 0.2756 | Q193: 1 | R193: =IF(AND('Input - Output'!A194>=360,'Input - Output'!A194<=830),'Input - Output'!A194,"") -> 
A194: 545 | B194: 0.245 | C194: 0.276 | D194: 0.399 | E194: 0.354 | F194: 0.342 | G194: 0.293 | H194: 0.257 | I194: 0.251 | J194: 0.034 | K194: 0.634 | L194: 0.248 | M194: 0.041 | N194: 0.49 | O194: 0.154 | P194: ='Additional TCS'!B190 -> 0.276 | Q194: 1 | R194: =IF(AND('Input - Output'!A195>=360,'Input - Output'!A195<=830),'Input - Output'!A195,"") -> 
A195: 546 | B195: 0.2466 | C195: 0.2772 | D195: 0.3992 | E195: 0.3514 | F195: 0.3398 | G195: 0.2902 | H195: 0.2574 | I195: 0.2516 | J195: 0.0342 | K195: 0.6378 | L195: 0.2438 | M195: 0.0398 | N195: 0.4932 | O195: 0.1542 | P195: ='Additional TCS'!B191 -> 0.277 | Q195: 1 | R195: =IF(AND('Input - Output'!A196>=360,'Input - Output'!A196<=830),'Input - Output'!A196,"") -> 
A196: 547 | B196: 0.2482 | C196: 0.2784 | D196: 0.3994 | E196: 0.3488 | F196: 0.3376 | G196: 0.2874 | H196: 0.2578 | I196: 0.2522 | J196: 0.0344 | K196: 0.6416 | L196: 0.2396 | M196: 0.0386 | N196: 0.4964 | O196: 0.1544 | P196: ='Additional TCS'!B192 -> 0.278 | Q196: 1 | R196: =IF(AND('Input - Output'!A197>=360,'Input - Output'!A197<=830),'Input - Output'!A197,"") -> 
A197: 548 | B197: 0.2498 | C197: 0.2796 | D197: 0.3996 | E197: 0.3462 | F197: 0.3354 | G197: 0.2846 | H197: 0.2582 | I197: 0.2528 | J197: 0.0346 | K197: 0.6454 | L197: 0.2354 | M197: 0.0374 | N197: 0.4996 | O197: 0.1546 | P197: ='Additional TCS'!B193 -> 0.279 | Q197: 1 | R197: =IF(AND('Input - Output'!A198>=360,'Input - Output'!A198<=830),'Input - Output'!A198,"") -> 
A198: 549 | B198: 0.2514 | C198: 0.2808 | D198: 0.3998 | E198: 0.3436 | F198: 0.3332 | G198: 0.2818 | H198: 0.2586 | I198: 0.2534 | J198: 0.0348 | K198: 0.6492 | L198: 0.2312 | M198: 0.0362 | N198: 0.5028 | O198: 0.1548 | P198: ='Additional TCS'!B194 -> 0.28 | Q198: 1 | R198: =IF(AND('Input - Output'!A199>=360,'Input - Output'!A199<=830),'Input - Output'!A199,"") -> 
A199: 550 | B199: 0.253 | C199: 0.282 | D199: 0.4 | E199: 0.341 | F199: 0.331 | G199: 0.279 | H199: 0.259 | I199: 0.254 | J199: 0.035 | K199: 0.653 | L199: 0.227 | M199: 0.035 | N199: 0.506 | O199: 0.155 | P199: ='Additional TCS'!B195 -> 0.281 | Q199: 1 | R199: =IF(AND('Input - Output'!A200>=360,'Input - Output'!A200<=830),'Input - Output'!A200,"") -> 
A200: 551 | B200: 0.2548 | C200: 0.2834 | D200: 0.3986 | E200: 0.3382 | F200: 0.3288 | G200: 0.2762 | H200: 0.2592 | I200: 0.2548 | J200: 0.0354 | K200: 0.6556 | L200: 0.2228 | M200: 0.0338 | N200: 0.51 | O200: 0.1544 | P200: ='Additional TCS'!B196 -> 0.282 | Q200: 1 | R200: =IF(AND('Input - Output'!A201>=360,'Input - Output'!A201<=830),'Input - Output'!A201,"") -> 
... 287 more rows

Sheet CIE1931 1-nm (hidden)
A1: ISO 11664-1:2007(E) / CIE S 014-1/E:2006 ; TABLE 1. COLOUR-MATCHING FUNCTIONS AND CHROMATICITY COORDINATES OF CIE 1931 STANDARD COLORIMETRIC OBSERVER
E4: max | F4: =MAX(F9:F479) -> 4.679166451 | G4: =MAX(G9:G479) -> 4.679166451 | H4: x | I4: y | J4: CCT | K4: Duv
E5: X | G5: =IF($G$4>0,SUMPRODUCT($G$9:$G$479,$H$9:$H$479),1) -> 100.0009238 | H5: =IF(G4>0,G5/SUM(G5:G7),0) -> 0.3333342817 | I5: =IF(G4>0,G6/SUM(G5:G7),0) -> 0.3333312026 | J5: 5455 | K5: -0.0044
E6: Y | F6: =IF($F$4>0,SUMPRODUCT($I$9:$I$479,$F$9:$F$479)/100,1) -> 1 | G6: =IF($G$4>0,SUMPRODUCT($I$9:$I$479,$G$9:$G$479),1) -> 100
E7: Z | G7: =IF($G$4>0,SUMPRODUCT($J$9:$J$479,$G$9:$G$479),1) -> 100.0009939 | K7: =IF('Input - Output'!D482>0,'Input - Output'!D482,100000000000000000000) -> 5
B8: x(λ) | C8: y(λ) | D8: z(λ) | E8: WL | F8: SPD | G8: Y=100 | H8: x(λ) | I8: y(λ) | J8: z(λ) | K8: SPD
A9: 360 | B9: 0.0001299 | C9: 3.917e-06 | D9: 0.0006061 | E9: =IF(AND('Input - Output'!A10>=360,'Input - Output'!A10<=830),'Input - Output'!A10,831) -> 380 | F9: =IF(E9<>"",'Input - Output'!B10,"") -> 4.679166451 | G9: =IF(F9<>0,F9/$F$6,0) -> 4.679166451 | H9: =IF($E9<>0,TREND(OFFSET(B$9,MATCH($E9,$A$9:$A$480)-1,,2),OFFSET($A$9,MATCH($E9,$A$9:$A$480)-1,,2),$E9),0) -> 0.001368 | I9: =IF($E9<>0,TREND(OFFSET(C$9,MATCH($E9,$A$9:$A$480)-1,,2),OFFSET($A$9,MATCH($E9,$A$9:$A$480)-1,,2),$E9),0) -> 3.9e-05 | J9: =IF($E9<>0,TREND(OFFSET(D$9,MATCH($E9,$A$9:$A$480)-1,,2),OFFSET($A$9,MATCH($E9,$A$9:$A$480)-1,,2),$E9),0) -> 0.006450001 | K9: =G9/$K$7 -> 0.9358332901
A10: 361 | B10: 0.000145847 | C10: 4.393581e-06 | D10: 0.0006808792 | E10: =IF(AND('Input - Output'!A11>=360,'Input - Output'!A11<=830),'Input - Output'!A11,831) -> 385 | F10: =IF(E10<>"",'Input - Output'!B11,"") -> 4.679166451 | G10: =IF(F10<>0,F10/$F$6,0) -> 4.679166451 | H10: 0.002236 | I10: 6.4e-05 | J10: 0.01054999 | K10: =G10/$K$7 -> 0.9358332901
A11: 362 | B11: 0.0001638021 | C11: 4.929604e-06 | D11: 0.0007651456 | E11: =IF(AND('Input - Output'!A12>=360,'Input - Output'!A12<=830),'Input - Output'!A12,831) -> 390 | F11: =IF(E11<>"",'Input - Output'!B12,"") -> 4.679166451 | G11: 4.679166451 | H11: 0.004243 | I11: 0.00012 | J11: 0.02005001 | K11: 0.9358332901
A12: 363 | B12: 0.0001840037 | C12: 5.532136e-06 | D12: 0.0008600124 | E12: =IF(AND('Input - Output'!A13>=360,'Input - Output'!A13<=830),'Input - Output'!A13,831) -> 395 | F12: =IF(E12<>"",'Input - Output'!B13,"") -> 4.679166451 | G12: 4.679166451 | H12: 0.00765 | I12: 0.000217 | J12: 0.03621 | K12: 0.9358332901
A13: 364 | B13: 0.0002066902 | C13: 6.208245e-06 | D13: 0.0009665928 | E13: =IF(AND('Input - Output'!A14>=360,'Input - Output'!A14<=830),'Input - Output'!A14,831) -> 400 | F13: =IF(E13<>"",'Input - Output'!B14,"") -> 4.679166451 | G13: 4.679166451 | H13: 0.01431 | I13: 0.000396 | J13: 0.06785001 | K13: 0.9358332901
A14: 365 | B14: 0.0002321 | C14: 6.965e-06 | D14: 0.001086 | E14: =IF(AND('Input - Output'!A15>=360,'Input - Output'!A15<=830),'Input - Output'!A15,831) -> 405 | F14: =IF(E14<>"",'Input - Output'!B15,"") -> 4.679166451 | G14: 4.679166451 | H14: 0.02319 | I14: 0.00064 | J14: 0.1102 | K14: 0.9358332901
A15: 366 | B15: 0.000260728 | C15: 7.813219e-06 | D15: 0.001220586 | E15: =IF(AND('Input - Output'!A16>=360,'Input - Output'!A16<=830),'Input - Output'!A16,831) -> 410 | F15: =IF(E15<>"",'Input - Output'!B16,"") -> 4.679166451 | G15: 4.679166451 | H15: 0.04351 | I15: 0.00121 | J15: 0.2074 | K15: 0.9358332901
A16: 367 | B16: 0.000293075 | C16: 8.767336e-06 | D16: 0.001372729 | E16: =IF(AND('Input - Output'!A17>=360,'Input - Output'!A17<=830),'Input - Output'!A17,831) -> 415 | F16: =IF(E16<>"",'Input - Output'!B17,"") -> 4.679166451 | G16: 4.679166451 | H16: 0.07763 | I16: 0.00218 | J16: 0.3713 | K16: 0.9358332901
A17: 368 | B17: 0.000329388 | C17: 9.839844e-06 | D17: 0.001543579 | E17: =IF(AND('Input - Output'!A18>=360,'Input - Output'!A18<=830),'Input - Output'!A18,831) -> 420 | F17: =IF(E17<>"",'Input - Output'!B18,"") -> 4.679166451 | G17: 4.679166451 | H17: 0.13438 | I17: 0.004 | J17: 0.6456 | K17: 0.9358332901
A18: 369 | B18: 0.000369914 | C18: 1.104323e-05 | D18: 0.001734286 | E18: =IF(AND('Input - Output'!A19>=360,'Input - Output'!A19<=830),'Input - Output'!A19,831) -> 425 | F18: =IF(E18<>"",'Input - Output'!B19,"") -> 4.679166451 | G18: 4.679166451 | H18: 0.21477 | I18: 0.0073 | J18: 1.0390501 | K18: 0.9358332901
A19: 370 | B19: 0.0004149 | C19: 1.239e-05 | D19: 0.001946 | E19: =IF(AND('Input - Output'!A20>=360,'Input - Output'!A20<=830),'Input - Output'!A20,831) -> 430 | F19: =IF(E19<>"",'Input - Output'!B20,"") -> 4.679166451 | G19: 4.679166451 | H19: 0.2839 | I19: 0.0116 | J19: 1.3856 | K19: 0.9358332901
A20: 371 | B20: 0.0004641587 | C20: 1.388641e-05 | D20: 0.002177777 | E20: =IF(AND('Input - Output'!A21>=360,'Input - Output'!A21<=830),'Input - Output'!A21,831) -> 435 | F20: =IF(E20<>"",'Input - Output'!B21,"") -> 4.679166451 | G20: 4.679166451 | H20: 0.3285 | I20: 0.01684 | J20: 1.62296 | K20: 0.9358332901
A21: 372 | B21: 0.000518986 | C21: 1.555728e-05 | D21: 0.002435809 | E21: =IF(AND('Input - Output'!A22>=360,'Input - Output'!A22<=830),'Input - Output'!A22,831) -> 440 | F21: =IF(E21<>"",'Input - Output'!B22,"") -> 4.679166451 | G21: 4.679166451 | H21: 0.34828 | I21: 0.023 | J21: 1.74706 | K21: 0.9358332901
A22: 373 | B22: 0.000581854 | C22: 1.744296e-05 | D22: 0.002731953 | E22: =IF(AND('Input - Output'!A23>=360,'Input - Output'!A23<=830),'Input - Output'!A23,831) -> 445 | F22: =IF(E22<>"",'Input - Output'!B23,"") -> 4.679166451 | G22: 4.679166451 | H22: 0.34806 | I22: 0.0298 | J22: 1.7826 | K22: 0.9358332901
A23: 374 | B23: 0.0006552347 | C23: 1.958375e-05 | D23: 0.003078064 | E23: =IF(AND('Input - Output'!A24>=360,'Input - Output'!A24<=830),'Input - Output'!A24,831) -> 450 | F23: =IF(E23<>"",'Input - Output'!B24,"") -> 4.679166451 | G23: 4.679166451 | H23: 0.3362 | I23: 0.038 | J23: 1.77211 | K23: 0.9358332901
A24: 375 | B24: 0.0007416 | C24: 2.202e-05 | D24: 0.003486 | E24: =IF(AND('Input - Output'!A25>=360,'Input - Output'!A25<=830),'Input - Output'!A25,831) -> 455 | F24: =IF(E24<>"",'Input - Output'!B25,"") -> 4.679166451 | G24: 4.679166451 | H24: 0.3187 | I24: 0.048 | J24: 1.7441 | K24: 0.9358332901
A25: 376 | B25: 0.0008450296 | C25: 2.483965e-05 | D25: 0.003975227 | E25: =IF(AND('Input - Output'!A26>=360,'Input - Output'!A26<=830),'Input - Output'!A26,831) -> 460 | F25: =IF(E25<>"",'Input - Output'!B26,"") -> 4.679166451 | G25: 4.679166451 | H25: 0.2908 | I25: 0.06 | J25: 1.6692 | K25: 0.9358332901
A26: 377 | B26: 0.0009645268 | C26: 2.804126e-05 | D26: 0.00454088 | E26: =IF(AND('Input - Output'!A27>=360,'Input - Output'!A27<=830),'Input - Output'!A27,831) -> 465 | F26: =IF(E26<>"",'Input - Output'!B27,"") -> 4.679166451 | G26: 4.679166451 | H26: 0.2511 | I26: 0.0739 | J26: 1.5281 | K26: 0.9358332901
A27: 378 | B27: 0.001094949 | C27: 3.153104e-05 | D27: 0.00515832 | E27: =IF(AND('Input - Output'!A28>=360,'Input - Output'!A28<=830),'Input - Output'!A28,831) -> 470 | F27: =IF(E27<>"",'Input - Output'!B28,"") -> 4.679166451 | G27: 4.679166451 | H27: 0.19536 | I27: 0.09098 | J27: 1.28764 | K27: 0.9358332901
A28: 379 | B28: 0.001231154 | C28: 3.521521e-05 | D28: 0.005802907 | E28: =IF(AND('Input - Output'!A29>=360,'Input - Output'!A29<=830),'Input - Output'!A29,831) -> 475 | F28: =IF(E28<>"",'Input - Output'!B29,"") -> 4.679166451 | G28: 4.679166451 | H28: 0.1421 | I28: 0.1126 | J28: 1.0419 | K28: 0.9358332901
A29: 380 | B29: 0.001368 | C29: 3.9e-05 | D29: 0.006450001 | E29: =IF(AND('Input - Output'!A30>=360,'Input - Output'!A30<=830),'Input - Output'!A30,831) -> 480 | F29: =IF(E29<>"",'Input - Output'!B30,"") -> 4.679166451 | G29: 4.679166451 | H29: 0.09564 | I29: 0.13902 | J29: 0.8129501 | K29: 0.9358332901
A30: 381 | B30: 0.00150205 | C30: 4.28264e-05 | D30: 0.007083216 | E30: =IF(AND('Input - Output'!A31>=360,'Input - Output'!A31<=830),'Input - Output'!A31,831) -> 485 | F30: =IF(E30<>"",'Input - Output'!B31,"") -> 4.679166451 | G30: 4.679166451 | H30: 0.05795001 | I30: 0.1693 | J30: 0.6162 | K30: 0.9358332901
A31: 382 | B31: 0.001642328 | C31: 4.69146e-05 | D31: 0.007745488 | E31: =IF(AND('Input - Output'!A32>=360,'Input - Output'!A32<=830),'Input - Output'!A32,831) -> 490 | F31: =IF(E31<>"",'Input - Output'!B32,"") -> 4.679166451 | G31: 4.679166451 | H31: 0.03201 | I31: 0.20802 | J31: 0.46518 | K31: 0.9358332901
A32: 383 | B32: 0.001802382 | C32: 5.15896e-05 | D32: 0.008501152 | E32: =IF(AND('Input - Output'!A33>=360,'Input - Output'!A33<=830),'Input - Output'!A33,831) -> 495 | F32: =IF(E32<>"",'Input - Output'!B33,"") -> 4.679166451 | G32: 4.679166451 | H32: 0.0147 | I32: 0.2586 | J32: 0.3533 | K32: 0.9358332901
A33: 384 | B33: 0.001995757 | C33: 5.71764e-05 | D33: 0.009414544 | E33: =IF(AND('Input - Output'!A34>=360,'Input - Output'!A34<=830),'Input - Output'!A34,831) -> 500 | F33: =IF(E33<>"",'Input - Output'!B34,"") -> 4.679166451 | G33: 4.679166451 | H33: 0.0049 | I33: 0.323 | J33: 0.272 | K33: 0.9358332901
A34: 385 | B34: 0.002236 | C34: 6.4e-05 | D34: 0.01054999 | E34: =IF(AND('Input - Output'!A35>=360,'Input - Output'!A35<=830),'Input - Output'!A35,831) -> 505 | F34: =IF(E34<>"",'Input - Output'!B35,"") -> 4.679166451 | G34: 4.679166451 | H34: 0.0024 | I34: 0.4073 | J34: 0.2123 | K34: 0.9358332901
A35: 386 | B35: 0.002535385 | C35: 7.234421e-05 | D35: 0.0119658 | E35: =IF(AND('Input - Output'!A36>=360,'Input - Output'!A36<=830),'Input - Output'!A36,831) -> 510 | F35: =IF(E35<>"",'Input - Output'!B36,"") -> 4.679166451 | G35: 4.679166451 | H35: 0.0093 | I35: 0.503 | J35: 0.1582 | K35: 0.9358332901
A36: 387 | B36: 0.002892603 | C36: 8.221224e-05 | D36: 0.01365587 | E36: =IF(AND('Input - Output'!A37>=360,'Input - Output'!A37<=830),'Input - Output'!A37,831) -> 515 | F36: =IF(E36<>"",'Input - Output'!B37,"") -> 4.679166451 | G36: 4.679166451 | H36: 0.0291 | I36: 0.6082 | J36: 0.1117 | K36: 0.9358332901
A37: 388 | B37: 0.003300829 | C37: 9.350816e-05 | D37: 0.01558805 | E37: =IF(AND('Input - Output'!A38>=360,'Input - Output'!A38<=830),'Input - Output'!A38,831) -> 520 | F37: =IF(E37<>"",'Input - Output'!B38,"") -> 4.679166451 | G37: 4.679166451 | H37: 0.06327 | I37: 0.71 | J37: 0.07824999 | K37: 0.9358332901
A38: 389 | B38: 0.003753236 | C38: 0.0001061361 | D38: 0.01773015 | E38: =IF(AND('Input - Output'!A39>=360,'Input - Output'!A39<=830),'Input - Output'!A39,831) -> 525 | F38: =IF(E38<>"",'Input - Output'!B39,"") -> 4.679166451 | G38: 4.679166451 | H38: 0.1096 | I38: 0.7932 | J38: 0.05725001 | K38: 0.9358332901
A39: 390 | B39: 0.004243 | C39: 0.00012 | D39: 0.02005001 | E39: =IF(AND('Input - Output'!A40>=360,'Input - Output'!A40<=830),'Input - Output'!A40,831) -> 530 | F39: =IF(E39<>"",'Input - Output'!B40,"") -> 4.679166451 | G39: 4.679166451 | H39: 0.1655 | I39: 0.862 | J39: 0.04216 | K39: 0.9358332901
A40: 391 | B40: 0.004762389 | C40: 0.000134984 | D40: 0.02251136 | E40: =IF(AND('Input - Output'!A41>=360,'Input - Output'!A41<=830),'Input - Output'!A41,831) -> 535 | F40: =IF(E40<>"",'Input - Output'!B41,"") -> 4.679166451 | G40: 4.679166451 | H40: 0.2257499 | I40: 0.9148501 | J40: 0.02984 | K40: 0.9358332901
A41: 392 | B41: 0.005330048 | C41: 0.000151492 | D41: 0.02520288 | E41: =IF(AND('Input - Output'!A42>=360,'Input - Output'!A42<=830),'Input - Output'!A42,831) -> 540 | F41: =IF(E41<>"",'Input - Output'!B42,"") -> 4.679166451 | G41: 4.679166451 | H41: 0.2904 | I41: 0.954 | J41: 0.0203 | K41: 0.9358332901
A42: 393 | B42: 0.005978712 | C42: 0.000170208 | D42: 0.02827972 | E42: =IF(AND('Input - Output'!A43>=360,'Input - Output'!A43<=830),'Input - Output'!A43,831) -> 545 | F42: =IF(E42<>"",'Input - Output'!B43,"") -> 4.679166451 | G42: 4.679166451 | H42: 0.3597 | I42: 0.9803 | J42: 0.0134 | K42: 0.9358332901
A43: 394 | B43: 0.006741117 | C43: 0.000191816 | D43: 0.03189704 | E43: =IF(AND('Input - Output'!A44>=360,'Input - Output'!A44<=830),'Input - Output'!A44,831) -> 550 | F43: =IF(E43<>"",'Input - Output'!B44,"") -> 4.679166451 | G43: 4.679166451 | H43: 0.4334499 | I43: 0.9949501 | J43: 0.008749999 | K43: 0.9358332901
A44: 395 | B44: 0.00765 | C44: 0.000217 | D44: 0.03621 | E44: =IF(AND('Input - Output'!A45>=360,'Input - Output'!A45<=830),'Input - Output'!A45,831) -> 555 | F44: =IF(E44<>"",'Input - Output'!B45,"") -> 4.679166451 | G44: 4.679166451 | H44: 0.5120501 | I44: 1 | J44: 0.005749999 | K44: 0.9358332901
A45: 396 | B45: 0.008751373 | C45: 0.0002469067 | D45: 0.04143771 | E45: =IF(AND('Input - Output'!A46>=360,'Input - Output'!A46<=830),'Input - Output'!A46,831) -> 560 | F45: =IF(E45<>"",'Input - Output'!B46,"") -> 4.679166451 | G45: 4.679166451 | H45: 0.5945 | I45: 0.995 | J45: 0.0039 | K45: 0.9358332901
A46: 397 | B46: 0.01002888 | C46: 0.00028124 | D46: 0.04750372 | E46: =IF(AND('Input - Output'!A47>=360,'Input - Output'!A47<=830),'Input - Output'!A47,831) -> 565 | F46: =IF(E46<>"",'Input - Output'!B47,"") -> 4.679166451 | G46: 4.679166451 | H46: 0.6784 | I46: 0.9786 | J46: 0.002749999 | K46: 0.9358332901
A47: 398 | B47: 0.0114217 | C47: 0.00031852 | D47: 0.05411988 | E47: =IF(AND('Input - Output'!A48>=360,'Input - Output'!A48<=830),'Input - Output'!A48,831) -> 570 | F47: =IF(E47<>"",'Input - Output'!B48,"") -> 4.679166451 | G47: 4.679166451 | H47: 0.7621 | I47: 0.952 | J47: 0.0021 | K47: 0.9358332901
A48: 399 | B48: 0.01286901 | C48: 0.0003572667 | D48: 0.06099803 | E48: =IF(AND('Input - Output'!A49>=360,'Input - Output'!A49<=830),'Input - Output'!A49,831) -> 575 | F48: =IF(E48<>"",'Input - Output'!B49,"") -> 4.679166451 | G48: 4.679166451 | H48: 0.8425 | I48: 0.9154 | J48: 0.0018 | K48: 0.9358332901
A49: 400 | B49: 0.01431 | C49: 0.000396 | D49: 0.06785001 | E49: =IF(AND('Input - Output'!A50>=360,'Input - Output'!A50<=830),'Input - Output'!A50,831) -> 580 | F49: =IF(E49<>"",'Input - Output'!B50,"") -> 4.679166451 | G49: 4.679166451 | H49: 0.9163 | I49: 0.87 | J49: 0.001650001 | K49: 0.9358332901
A50: 401 | B50: 0.01570443 | C50: 0.0004337147 | D50: 0.07448632 | E50: =IF(AND('Input - Output'!A51>=360,'Input - Output'!A51<=830),'Input - Output'!A51,831) -> 585 | F50: =IF(E50<>"",'Input - Output'!B51,"") -> 4.679166451 | G50: 4.679166451 | H50: 0.9786 | I50: 0.8163 | J50: 0.0014 | K50: 0.9358332901
A51: 402 | B51: 0.01714744 | C51: 0.000473024 | D51: 0.08136156 | E51: =IF(AND('Input - Output'!A52>=360,'Input - Output'!A52<=830),'Input - Output'!A52,831) -> 590 | F51: =IF(E51<>"",'Input - Output'!B52,"") -> 4.679166451 | G51: 4.679166451 | H51: 1.0263 | I51: 0.757 | J51: 0.0011 | K51: 0.9358332901
A52: 403 | B52: 0.01878122 | C52: 0.000517876 | D52: 0.08915364 | E52: =IF(AND('Input - Output'!A53>=360,'Input - Output'!A53<=830),'Input - Output'!A53,831) -> 595 | F52: =IF(E52<>"",'Input - Output'!B53,"") -> 4.679166451 | G52: 4.679166451 | H52: 1.0567 | I52: 0.6949 | J52: 0.001 | K52: 0.9358332901
A53: 404 | B53: 0.02074801 | C53: 0.0005722187 | D53: 0.09854048 | E53: =IF(AND('Input - Output'!A54>=360,'Input - Output'!A54<=830),'Input - Output'!A54,831) -> 600 | F53: =IF(E53<>"",'Input - Output'!B54,"") -> 4.679166451 | G53: 4.679166451 | H53: 1.0622 | I53: 0.631 | J53: 0.0008 | K53: 0.9358332901
A54: 405 | B54: 0.02319 | C54: 0.00064 | D54: 0.1102 | E54: =IF(AND('Input - Output'!A55>=360,'Input - Output'!A55<=830),'Input - Output'!A55,831) -> 605 | F54: =IF(E54<>"",'Input - Output'!B55,"") -> 4.679166451 | G54: 4.679166451 | H54: 1.0456 | I54: 0.5668 | J54: 0.0006 | K54: 0.9358332901
A55: 406 | B55: 0.02620736 | C55: 0.00072456 | D55: 0.1246133 | E55: =IF(AND('Input - Output'!A56>=360,'Input - Output'!A56<=830),'Input - Output'!A56,831) -> 610 | F55: =IF(E55<>"",'Input - Output'!B56,"") -> 4.679166451 | G55: 4.679166451 | H55: 1.0026 | I55: 0.503 | J55: 0.00034 | K55: 0.9358332901
A56: 407 | B56: 0.02978248 | C56: 0.0008255 | D56: 0.1417017 | E56: =IF(AND('Input - Output'!A57>=360,'Input - Output'!A57<=830),'Input - Output'!A57,831) -> 615 | F56: =IF(E56<>"",'Input - Output'!B57,"") -> 4.679166451 | G56: 4.679166451 | H56: 0.9384 | I56: 0.4412 | J56: 0.00024 | K56: 0.9358332901
A57: 408 | B57: 0.03388092 | C57: 0.00094116 | D57: 0.1613035 | E57: =IF(AND('Input - Output'!A58>=360,'Input - Output'!A58<=830),'Input - Output'!A58,831) -> 620 | F57: =IF(E57<>"",'Input - Output'!B58,"") -> 4.679166451 | G57: 4.679166451 | H57: 0.8544499 | I57: 0.381 | J57: 0.00019 | K57: 0.9358332901
A58: 409 | B58: 0.03846824 | C58: 0.00106988 | D58: 0.1832568 | E58: =IF(AND('Input - Output'!A59>=360,'Input - Output'!A59<=830),'Input - Output'!A59,831) -> 625 | F58: =IF(E58<>"",'Input - Output'!B59,"") -> 4.679166451 | G58: 4.679166451 | H58: 0.7514 | I58: 0.321 | J58: 0.0001 | K58: 0.9358332901
A59: 410 | B59: 0.04351 | C59: 0.00121 | D59: 0.2074 | E59: =IF(AND('Input - Output'!A60>=360,'Input - Output'!A60<=830),'Input - Output'!A60,831) -> 630 | F59: =IF(E59<>"",'Input - Output'!B60,"") -> 4.679166451 | G59: 4.679166451 | H59: 0.6424 | I59: 0.265 | J59: 4.999999e-05 | K59: 0.9358332901
A60: 411 | B60: 0.0489956 | C60: 0.001362091 | D60: 0.2336921 | E60: =IF(AND('Input - Output'!A61>=360,'Input - Output'!A61<=830),'Input - Output'!A61,831) -> 635 | F60: =IF(E60<>"",'Input - Output'!B61,"") -> 4.679166451 | G60: 4.679166451 | H60: 0.5419 | I60: 0.217 | J60: 3e-05 | K60: 0.9358332901
A61: 412 | B61: 0.0550226 | C61: 0.001530752 | D61: 0.2626114 | E61: =IF(AND('Input - Output'!A62>=360,'Input - Output'!A62<=830),'Input - Output'!A62,831) -> 640 | F61: =IF(E61<>"",'Input - Output'!B62,"") -> 4.679166451 | G61: 4.679166451 | H61: 0.4479 | I61: 0.175 | J61: 2e-05 | K61: 0.9358332901
A62: 413 | B62: 0.0617188 | C62: 0.001720368 | D62: 0.2947746 | E62: =IF(AND('Input - Output'!A63>=360,'Input - Output'!A63<=830),'Input - Output'!A63,831) -> 645 | F62: =IF(E62<>"",'Input - Output'!B63,"") -> 4.679166451 | G62: 4.679166451 | H62: 0.3608 | I62: 0.1382 | J62: 1e-05 | K62: 0.9358332901
A63: 414 | B63: 0.069212 | C63: 0.001935323 | D63: 0.3307985 | E63: =IF(AND('Input - Output'!A64>=360,'Input - Output'!A64<=830),'Input - Output'!A64,831) -> 650 | F63: =IF(E63<>"",'Input - Output'!B64,"") -> 4.679166451 | G63: 4.679166451 | H63: 0.2835 | I63: 0.107 | J63: 0 | K63: 0.9358332901
A64: 415 | B64: 0.07763 | C64: 0.00218 | D64: 0.3713 | E64: =IF(AND('Input - Output'!A65>=360,'Input - Output'!A65<=830),'Input - Output'!A65,831) -> 655 | F64: =IF(E64<>"",'Input - Output'!B65,"") -> 4.679166451 | G64: 4.679166451 | H64: 0.2187 | I64: 0.0816 | J64: 0 | K64: 0.9358332901
A65: 416 | B65: 0.08695811 | C65: 0.0024548 | D65: 0.4162091 | E65: =IF(AND('Input - Output'!A66>=360,'Input - Output'!A66<=830),'Input - Output'!A66,831) -> 660 | F65: =IF(E65<>"",'Input - Output'!B66,"") -> 4.679166451 | G65: 4.679166451 | H65: 0.1649 | I65: 0.061 | J65: 0 | K65: 0.9358332901
A66: 417 | B66: 0.09717672 | C66: 0.002764 | D66: 0.4654642 | E66: =IF(AND('Input - Output'!A67>=360,'Input - Output'!A67<=830),'Input - Output'!A67,831) -> 665 | F66: =IF(E66<>"",'Input - Output'!B67,"") -> 4.679166451 | G66: 4.679166451 | H66: 0.1212 | I66: 0.04458 | J66: 0 | K66: 0.9358332901
A67: 418 | B67: 0.1084063 | C67: 0.0031178 | D67: 0.5196948 | E67: =IF(AND('Input - Output'!A68>=360,'Input - Output'!A68<=830),'Input - Output'!A68,831) -> 670 | F67: =IF(E67<>"",'Input - Output'!B68,"") -> 4.679166451 | G67: 4.679166451 | H67: 0.0874 | I67: 0.032 | J67: 0 | K67: 0.9358332901
A68: 419 | B68: 0.1207672 | C68: 0.0035264 | D68: 0.5795303 | E68: =IF(AND('Input - Output'!A69>=360,'Input - Output'!A69<=830),'Input - Output'!A69,831) -> 675 | F68: =IF(E68<>"",'Input - Output'!B69,"") -> 4.679166451 | G68: 4.679166451 | H68: 0.0636 | I68: 0.0232 | J68: 0 | K68: 0.9358332901
A69: 420 | B69: 0.13438 | C69: 0.004 | D69: 0.6456 | E69: =IF(AND('Input - Output'!A70>=360,'Input - Output'!A70<=830),'Input - Output'!A70,831) -> 680 | F69: =IF(E69<>"",'Input - Output'!B70,"") -> 4.679166451 | G69: 4.679166451 | H69: 0.04677 | I69: 0.017 | J69: 0 | K69: 0.9358332901
A70: 421 | B70: 0.1493582 | C70: 0.00454624 | D70: 0.7184838 | E70: =IF(AND('Input - Output'!A71>=360,'Input - Output'!A71<=830),'Input - Output'!A71,831) -> 685 | F70: =IF(E70<>"",'Input - Output'!B71,"") -> 4.679166451 | G70: 4.679166451 | H70: 0.0329 | I70: 0.01192 | J70: 0 | K70: 0.9358332901
A71: 422 | B71: 0.1653957 | C71: 0.00515932 | D71: 0.7967133 | E71: =IF(AND('Input - Output'!A72>=360,'Input - Output'!A72<=830),'Input - Output'!A72,831) -> 690 | F71: =IF(E71<>"",'Input - Output'!B72,"") -> 4.679166451 | G71: 4.679166451 | H71: 0.0227 | I71: 0.00821 | J71: 0 | K71: 0.9358332901
A72: 423 | B72: 0.1819831 | C72: 0.00582928 | D72: 0.8778459 | E72: =IF(AND('Input - Output'!A73>=360,'Input - Output'!A73<=830),'Input - Output'!A73,831) -> 695 | F72: =IF(E72<>"",'Input - Output'!B73,"") -> 4.679166451 | G72: 4.679166451 | H72: 0.01584 | I72: 0.005723 | J72: 0 | K72: 0.9358332901
A73: 424 | B73: 0.198611 | C73: 0.00654616 | D73: 0.959439 | E73: =IF(AND('Input - Output'!A74>=360,'Input - Output'!A74<=830),'Input - Output'!A74,831) -> 700 | F73: =IF(E73<>"",'Input - Output'!B74,"") -> 4.679166451 | G73: 4.679166451 | H73: =IF($E73<>0,TREND(OFFSET(B$9,MATCH($E73,$A$9:$A$480)-1,,2),OFFSET($A$9,MATCH($E73,$A$9:$A$480)-1,,2),$E73),0) -> 0.01135916 | I73: =IF($E73<>0,TREND(OFFSET(C$9,MATCH($E73,$A$9:$A$480)-1,,2),OFFSET($A$9,MATCH($E73,$A$9:$A$480)-1,,2),$E73),0) -> 0.004102 | J73: =IF($E73<>0,TREND(OFFSET(D$9,MATCH($E73,$A$9:$A$480)-1,,2),OFFSET($A$9,MATCH($E73,$A$9:$A$480)-1,,2),$E73),0) -> 0 | K73: 0.9358332901
A74: 425 | B74: 0.21477 | C74: 0.0073 | D74: 1.0390501 | E74: =IF(AND('Input - Output'!A75>=360,'Input - Output'!A75<=830),'Input - Output'!A75,831) -> 705 | F74: =IF(E74<>"",'Input - Output'!B75,"") -> 4.679166451 | G74: =IF(F74<>0,F74/$F$6,0) -> 4.679166451 | H74: 0.008110916 | I74: 0.002929 | J74: 0 | K74: =G74/$K$7 -> 0.9358332901
A75: 426 | B75: 0.2301868 | C75: 0.008086507 | D75: 1.1153673 | E75: =IF(AND('Input - Output'!A76>=360,'Input - Output'!A76<=830),'Input - Output'!A76,831) -> 710 | F75: =IF(E75<>"",'Input - Output'!B76,"") -> 4.679166451 | G75: 4.679166451 | H75: 0.005790346 | I75: 0.002091 | J75: 0 | K75: 0.9358332901
A76: 427 | B76: 0.2448797 | C76: 0.00890872 | D76: 1.1884971 | E76: =IF(AND('Input - Output'!A77>=360,'Input - Output'!A77<=830),'Input - Output'!A77,831) -> 715 | F76: =IF(E76<>"",'Input - Output'!B77,"") -> 4.679166451 | G76: 4.679166451 | H76: 0.004109457 | I76: 0.001484 | J76: 0 | K76: 0.9358332901
A77: 428 | B77: 0.2587773 | C77: 0.00976768 | D77: 1.2581233 | E77: =IF(AND('Input - Output'!A78>=360,'Input - Output'!A78<=830),'Input - Output'!A78,831) -> 720 | F77: =IF(E77<>"",'Input - Output'!B78,"") -> 4.679166451 | G77: 4.679166451 | H77: 0.002899327 | I77: 0.001047 | J77: 0 | K77: 0.9358332901
A78: 429 | B78: 0.2718079 | C78: 0.01066443 | D78: 1.3239296 | E78: =IF(AND('Input - Output'!A79>=360,'Input - Output'!A79<=830),'Input - Output'!A79,831) -> 725 | F78: =IF(E78<>"",'Input - Output'!B79,"") -> 4.679166451 | G78: 4.679166451 | H78: 0.00204919 | I78: 0.00074 | J78: 0 | K78: 0.9358332901
A79: 430 | B79: 0.2839 | C79: 0.0116 | D79: 1.3856 | E79: =IF(AND('Input - Output'!A80>=360,'Input - Output'!A80<=830),'Input - Output'!A80,831) -> 730 | F79: =IF(E79<>"",'Input - Output'!B80,"") -> 4.679166451 | G79: 4.679166451 | H79: 0.001439971 | I79: 0.00052 | J79: 0 | K79: 0.9358332901
A80: 431 | B80: 0.2949438 | C80: 0.01257317 | D80: 1.4426352 | E80: =IF(AND('Input - Output'!A81>=360,'Input - Output'!A81<=830),'Input - Output'!A81,831) -> 735 | F80: =IF(E80<>"",'Input - Output'!B81,"") -> 4.679166451 | G80: 4.679166451 | H80: 0.0009999493 | I80: 0.0003611 | J80: 0 | K80: 0.9358332901
A81: 432 | B81: 0.3048965 | C81: 0.01358272 | D81: 1.4948035 | E81: =IF(AND('Input - Output'!A82>=360,'Input - Output'!A82<=830),'Input - Output'!A82,831) -> 740 | F81: =IF(E81<>"",'Input - Output'!B82,"") -> 4.679166451 | G81: 4.679166451 | H81: 0.0006900786 | I81: 0.0002492 | J81: 0 | K81: 0.9358332901
A82: 433 | B82: 0.3137873 | C82: 0.01462968 | D82: 1.5421903 | E82: =IF(AND('Input - Output'!A83>=360,'Input - Output'!A83<=830),'Input - Output'!A83,831) -> 745 | F82: =IF(E82<>"",'Input - Output'!B83,"") -> 4.679166451 | G82: 4.679166451 | H82: 0.0004760213 | I82: 0.0001719 | J82: 0 | K82: 0.9358332901
A83: 434 | B83: 0.3216454 | C83: 0.01571509 | D83: 1.5848807 | E83: =IF(AND('Input - Output'!A84>=360,'Input - Output'!A84<=830),'Input - Output'!A84,831) -> 750 | F83: =IF(E83<>"",'Input - Output'!B84,"") -> 4.679166451 | G83: 4.679166451 | H83: 0.0003323011 | I83: 0.00012 | J83: 0 | K83: 0.9358332901
A84: 435 | B84: 0.3285 | C84: 0.01684 | D84: 1.62296 | E84: =IF(AND('Input - Output'!A85>=360,'Input - Output'!A85<=830),'Input - Output'!A85,831) -> 755 | F84: =IF(E84<>"",'Input - Output'!B85,"") -> 4.679166451 | G84: 4.679166451 | H84: 0.0002348261 | I84: 8.48e-05 | J84: 0 | K84: 0.9358332901
A85: 436 | B85: 0.3343513 | C85: 0.01800736 | D85: 1.6564048 | E85: =IF(AND('Input - Output'!A86>=360,'Input - Output'!A86<=830),'Input - Output'!A86,831) -> 760 | F85: =IF(E85<>"",'Input - Output'!B86,"") -> 4.679166451 | G85: 4.679166451 | H85: 0.0001661505 | I85: 6e-05 | J85: 0 | K85: 0.9358332901
A86: 437 | B86: 0.3392101 | C86: 0.01921448 | D86: 1.6852959 | E86: =IF(AND('Input - Output'!A87>=360,'Input - Output'!A87<=830),'Input - Output'!A87,831) -> 765 | F86: =IF(E86<>"",'Input - Output'!B87,"") -> 4.679166451 | G86: 4.679166451 | H86: 0.000117413 | I86: 4.24e-05 | J86: 0 | K86: 0.9358332901
A87: 438 | B87: 0.3431213 | C87: 0.02045392 | D87: 1.7098745 | E87: =IF(AND('Input - Output'!A88>=360,'Input - Output'!A88<=830),'Input - Output'!A88,831) -> 770 | F87: =IF(E87<>"",'Input - Output'!B88,"") -> 4.679166451 | G87: 4.679166451 | H87: 8.307527e-05 | I87: 3e-05 | J87: 0 | K87: 0.9358332901
A88: 439 | B88: 0.3461296 | C88: 0.02171824 | D88: 1.7303821 | E88: =IF(AND('Input - Output'!A89>=360,'Input - Output'!A89<=830),'Input - Output'!A89,831) -> 775 | F88: =IF(E88<>"",'Input - Output'!B89,"") -> 4.679166451 | G88: 4.679166451 | H88: 5.870652e-05 | I88: 2.12e-05 | J88: 0 | K88: 0.9358332901
A89: 440 | B89: 0.34828 | C89: 0.023 | D89: 1.74706 | E89: =IF(AND('Input - Output'!A90>=360,'Input - Output'!A90<=830),'Input - Output'!A90,831) -> 780 | F89: =IF(E89<>"",'Input - Output'!B90,"") -> 4.679166451 | G89: 4.679166451 | H89: 4.150994e-05 | I89: 1.499e-05 | J89: 0 | K89: 0.9358332901
A90: 441 | B90: 0.3495999 | C90: 0.02429461 | D90: 1.7600446 | E90: =IF(AND('Input - Output'!A91>=360,'Input - Output'!A91<=830),'Input - Output'!A91,831) -> 831 | F90: =IF(E90<>"",'Input - Output'!B91,"") -> 0 | G90: 0 | H90: 0 | I90: 0 | J90: 0 | K90: 0
A91: 442 | B91: 0.3501474 | C91: 0.02561024 | D91: 1.7696233 | E91: =IF(AND('Input - Output'!A92>=360,'Input - Output'!A92<=830),'Input - Output'!A92,831) -> 831 | F91: =IF(E91<>"",'Input - Output'!B92,"") -> 0 | G91: 0 | H91: 0 | I91: 0 | J91: 0 | K91: 0
A92: 443 | B92: 0.350013 | C92: 0.02695857 | D92: 1.7762637 | E92: =IF(AND('Input - Output'!A93>=360,'Input - Output'!A93<=830),'Input - Output'!A93,831) -> 831 | F92: =IF(E92<>"",'Input - Output'!B93,"") -> 0 | G92: 0 | H92: 0 | I92: 0 | J92: 0 | K92: 0
A93: 444 | B93: 0.349287 | C93: 0.02835125 | D93: 1.7804334 | E93: =IF(AND('Input - Output'!A94>=360,'Input - Output'!A94<=830),'Input - Output'!A94,831) -> 831 | F93: =IF(E93<>"",'Input - Output'!B94,"") -> 0 | G93: 0 | H93: 0 | I93: 0 | J93: 0 | K93: 0
A94: 445 | B94: 0.34806 | C94: 0.0298 | D94: 1.7826 | E94: =IF(AND('Input - Output'!A95>=360,'Input - Output'!A95<=830),'Input - Output'!A95,831) -> 831 | F94: =IF(E94<>"",'Input - Output'!B95,"") -> 0 | G94: 0 | H94: 0 | I94: 0 | J94: 0 | K94: 0
A95: 446 | B95: 0.3463733 | C95: 0.03131083 | D95: 1.7829682 | E95: =IF(AND('Input - Output'!A96>=360,'Input - Output'!A96<=830),'Input - Output'!A96,831) -> 831 | F95: =IF(E95<>"",'Input - Output'!B96,"") -> 0 | G95: 0 | H95: 0 | I95: 0 | J95: 0 | K95: 0
A96: 447 | B96: 0.3442624 | C96: 0.03288368 | D96: 1.7816998 | E96: =IF(AND('Input - Output'!A97>=360,'Input - Output'!A97<=830),'Input - Output'!A97,831) -> 831 | F96: =IF(E96<>"",'Input - Output'!B97,"") -> 0 | G96: 0 | H96: 0 | I96: 0 | J96: 0 | K96: 0
A97: 448 | B97: 0.3418088 | C97: 0.03452112 | D97: 1.7791982 | E97: =IF(AND('Input - Output'!A98>=360,'Input - Output'!A98<=830),'Input - Output'!A98,831) -> 831 | F97: =IF(E97<>"",'Input - Output'!B98,"") -> 0 | G97: 0 | H97: 0 | I97: 0 | J97: 0 | K97: 0
A98: 449 | B98: 0.3390941 | C98: 0.03622571 | D98: 1.7758671 | E98: =IF(AND('Input - Output'!A99>=360,'Input - Output'!A99<=830),'Input - Output'!A99,831) -> 831 | F98: =IF(E98<>"",'Input - Output'!B99,"") -> 0 | G98: 0 | H98: 0 | I98: 0 | J98: 0 | K98: 0
A99: 450 | B99: 0.3362 | C99: 0.038 | D99: 1.77211 | E99: =IF(AND('Input - Output'!A100>=360,'Input - Output'!A100<=830),'Input - Output'!A100,831) -> 831 | F99: =IF(E99<>"",'Input - Output'!B100,"") -> 0 | G99: 0 | H99: 0 | I99: 0 | J99: 0 | K99: 0
A100: 451 | B100: 0.3331977 | C100: 0.03984667 | D100: 1.7682589 | E100: =IF(AND('Input - Output'!A101>=360,'Input - Output'!A101<=830),'Input - Output'!A101,831) -> 831 | F100: =IF(E100<>"",'Input - Output'!B101,"") -> 0 | G100: 0 | H100: 0 | I100: 0 | J100: 0 | K100: 0
A101: 452 | B101: 0.3300411 | C101: 0.041768 | D101: 1.764039 | E101: =IF(AND('Input - Output'!A102>=360,'Input - Output'!A102<=830),'Input - Output'!A102,831) -> 831 | F101: =IF(E101<>"",'Input - Output'!B102,"") -> 0 | G101: 0 | H101: 0 | I101: 0 | J101: 0 | K101: 0
A102: 453 | B102: 0.3266357 | C102: 0.043766 | D102: 1.7589438 | E102: =IF(AND('Input - Output'!A103>=360,'Input - Output'!A103<=830),'Input - Output'!A103,831) -> 831 | F102: =IF(E102<>"",'Input - Output'!B103,"") -> 0 | G102: 0 | H102: 0 | I102: 0 | J102: 0 | K102: 0
A103: 454 | B103: 0.3228868 | C103: 0.04584267 | D103: 1.7524663 | E103: =IF(AND('Input - Output'!A104>=360,'Input - Output'!A104<=830),'Input - Output'!A104,831) -> 831 | F103: =IF(E103<>"",'Input - Output'!B104,"") -> 0 | G103: 0 | H103: 0 | I103: 0 | J103: 0 | K103: 0
A104: 455 | B104: 0.3187 | C104: 0.048 | D104: 1.7441 | E104: =IF(AND('Input - Output'!A105>=360,'Input - Output'!A105<=830),'Input - Output'!A105,831) -> 831 | F104: =IF(E104<>"",'Input - Output'!B105,"") -> 0 | G104: 0 | H104: 0 | I104: 0 | J104: 0 | K104: 0
A105: 456 | B105: 0.3140251 | C105: 0.05024368 | D105: 1.7335595 | E105: =IF(AND('Input - Output'!A106>=360,'Input - Output'!A106<=830),'Input - Output'!A106,831) -> 831 | F105: =IF(E105<>"",'Input - Output'!B106,"") -> 0 | G105: 0 | H105: 0 | I105: 0 | J105: 0 | K105: 0
A106: 457 | B106: 0.308884 | C106: 0.05257304 | D106: 1.7208581 | E106: =IF(AND('Input - Output'!A107>=360,'Input - Output'!A107<=830),'Input - Output'!A107,831) -> 831 | F106: =IF(E106<>"",'Input - Output'!B107,"") -> 0 | G106: 0 | H106: 0 | I106: 0 | J106: 0 | K106: 0
A107: 458 | B107: 0.3032904 | C107: 0.05498056 | D107: 1.7059369 | E107: =IF(AND('Input - Output'!A108>=360,'Input - Output'!A108<=830),'Input - Output'!A108,831) -> 831 | F107: =IF(E107<>"",'Input - Output'!B108,"") -> 0 | G107: 0 | H107: 0 | I107: 0 | J107: 0 | K107: 0
A108: 459 | B108: 0.2972579 | C108: 0.05745872 | D108: 1.6887372 | E108: =IF(AND('Input - Output'!A109>=360,'Input - Output'!A109<=830),'Input - Output'!A109,831) -> 831 | F108: =IF(E108<>"",'Input - Output'!B109,"") -> 0 | G108: 0 | H108: 0 | I108: 0 | J108: 0 | K108: 0
A109: 460 | B109: 0.2908 | C109: 0.06 | D109: 1.6692 | E109: =IF(AND('Input - Output'!A110>=360,'Input - Output'!A110<=830),'Input - Output'!A110,831) -> 831 | F109: =IF(E109<>"",'Input - Output'!B110,"") -> 0 | G109: 0 | H109: 0 | I109: 0 | J109: 0 | K109: 0
A110: 461 | B110: 0.2839701 | C110: 0.06260197 | D110: 1.6475287 | E110: =IF(AND('Input - Output'!A111>=360,'Input - Output'!A111<=830),'Input - Output'!A111,831) -> 831 | F110: =IF(E110<>"",'Input - Output'!B111,"") -> 0 | G110: 0 | H110: 0 | I110: 0 | J110: 0 | K110: 0
A111: 462 | B111: 0.2767214 | C111: 0.06527752 | D111: 1.6234127 | E111: =IF(AND('Input - Output'!A112>=360,'Input - Output'!A112<=830),'Input - Output'!A112,831) -> 831 | F111: =IF(E111<>"",'Input - Output'!B112,"") -> 0 | G111: 0 | H111: 0 | I111: 0 | J111: 0 | K111: 0
A112: 463 | B112: 0.2689178 | C112: 0.06804208 | D112: 1.5960223 | E112: =IF(AND('Input - Output'!A113>=360,'Input - Output'!A113<=830),'Input - Output'!A113,831) -> 831 | F112: =IF(E112<>"",'Input - Output'!B113,"") -> 0 | G112: 0 | H112: 0 | I112: 0 | J112: 0 | K112: 0
A113: 464 | B113: 0.2604227 | C113: 0.07091109 | D113: 1.564528 | E113: =IF(AND('Input - Output'!A114>=360,'Input - Output'!A114<=830),'Input - Output'!A114,831) -> 831 | F113: =IF(E113<>"",'Input - Output'!B114,"") -> 0 | G113: 0 | H113: 0 | I113: 0 | J113: 0 | K113: 0
A114: 465 | B114: 0.2511 | C114: 0.0739 | D114: 1.5281 | E114: =IF(AND('Input - Output'!A115>=360,'Input - Output'!A115<=830),'Input - Output'!A115,831) -> 831 | F114: =IF(E114<>"",'Input - Output'!B115,"") -> 0 | G114: 0 | H114: 0 | I114: 0 | J114: 0 | K114: 0
A115: 466 | B115: 0.2408475 | C115: 0.077016 | D115: 1.4861114 | E115: =IF(AND('Input - Output'!A116>=360,'Input - Output'!A116<=830),'Input - Output'!A116,831) -> 831 | F115: =IF(E115<>"",'Input - Output'!B116,"") -> 0 | G115: 0 | H115: 0 | I115: 0 | J115: 0 | K115: 0
A116: 467 | B116: 0.2298512 | C116: 0.0802664 | D116: 1.4395215 | E116: =IF(AND('Input - Output'!A117>=360,'Input - Output'!A117<=830),'Input - Output'!A117,831) -> 831 | F116: =IF(E116<>"",'Input - Output'!B117,"") -> 0 | G116: 0 | H116: 0 | I116: 0 | J116: 0 | K116: 0
A117: 468 | B117: 0.2184072 | C117: 0.0836668 | D117: 1.3898799 | E117: =IF(AND('Input - Output'!A118>=360,'Input - Output'!A118<=830),'Input - Output'!A118,831) -> 831 | F117: =IF(E117<>"",'Input - Output'!B118,"") -> 0 | G117: 0 | H117: 0 | I117: 0 | J117: 0 | K117: 0
A118: 469 | B118: 0.2068115 | C118: 0.0872328 | D118: 1.3387362 | E118: =IF(AND('Input - Output'!A119>=360,'Input - Output'!A119<=830),'Input - Output'!A119,831) -> 831 | F118: =IF(E118<>"",'Input - Output'!B119,"") -> 0 | G118: 0 | H118: 0 | I118: 0 | J118: 0 | K118: 0
A119: 470 | B119: 0.19536 | C119: 0.09098 | D119: 1.28764 | E119: =IF(AND('Input - Output'!A120>=360,'Input - Output'!A120<=830),'Input - Output'!A120,831) -> 831 | F119: =IF(E119<>"",'Input - Output'!B120,"") -> 0 | G119: 0 | H119: 0 | I119: 0 | J119: 0 | K119: 0
A120: 471 | B120: 0.1842136 | C120: 0.09491755 | D120: 1.2374223 | E120: =IF(AND('Input - Output'!A121>=360,'Input - Output'!A121<=830),'Input - Output'!A121,831) -> 831 | F120: =IF(E120<>"",'Input - Output'!B121,"") -> 0 | G120: 0 | H120: 0 | I120: 0 | J120: 0 | K120: 0
A121: 472 | B121: 0.1733273 | C121: 0.09904584 | D121: 1.1878243 | E121: =IF(AND('Input - Output'!A122>=360,'Input - Output'!A122<=830),'Input - Output'!A122,831) -> 831 | F121: =IF(E121<>"",'Input - Output'!B122,"") -> 0 | G121: 0 | H121: 0 | I121: 0 | J121: 0 | K121: 0
A122: 473 | B122: 0.1626881 | C122: 0.1033674 | D122: 1.1387611 | E122: =IF(AND('Input - Output'!A123>=360,'Input - Output'!A123<=830),'Input - Output'!A123,831) -> 831 | F122: =IF(E122<>"",'Input - Output'!B123,"") -> 0 | G122: 0 | H122: 0 | I122: 0 | J122: 0 | K122: 0
A123: 474 | B123: 0.1522833 | C123: 0.1078846 | D123: 1.090148 | E123: =IF(AND('Input - Output'!A124>=360,'Input - Output'!A124<=830),'Input - Output'!A124,831) -> 831 | F123: =IF(E123<>"",'Input - Output'!B124,"") -> 0 | G123: 0 | H123: 0 | I123: 0 | J123: 0 | K123: 0
A124: 475 | B124: 0.1421 | C124: 0.1126 | D124: 1.0419 | E124: =IF(AND('Input - Output'!A125>=360,'Input - Output'!A125<=830),'Input - Output'!A125,831) -> 831 | F124: =IF(E124<>"",'Input - Output'!B125,"") -> 0 | G124: 0 | H124: 0 | I124: 0 | J124: 0 | K124: 0
A125: 476 | B125: 0.1321786 | C125: 0.117532 | D125: 0.9941976 | E125: =IF(AND('Input - Output'!A126>=360,'Input - Output'!A126<=830),'Input - Output'!A126,831) -> 831 | F125: =IF(E125<>"",'Input - Output'!B126,"") -> 0 | G125: 0 | H125: 0 | I125: 0 | J125: 0 | K125: 0
A126: 477 | B126: 0.1225696 | C126: 0.1226744 | D126: 0.9473473 | E126: =IF(AND('Input - Output'!A127>=360,'Input - Output'!A127<=830),'Input - Output'!A127,831) -> 831 | F126: =IF(E126<>"",'Input - Output'!B127,"") -> 0 | G126: 0 | H126: 0 | I126: 0 | J126: 0 | K126: 0
A127: 478 | B127: 0.1132752 | C127: 0.1279928 | D127: 0.9014531 | E127: =IF(AND('Input - Output'!A128>=360,'Input - Output'!A128<=830),'Input - Output'!A128,831) -> 831 | F127: =IF(E127<>"",'Input - Output'!B128,"") -> 0 | G127: 0 | H127: 0 | I127: 0 | J127: 0 | K127: 0
A128: 479 | B128: 0.1042979 | C128: 0.1334528 | D128: 0.8566193 | E128: =IF(AND('Input - Output'!A129>=360,'Input - Output'!A129<=830),'Input - Output'!A129,831) -> 831 | F128: =IF(E128<>"",'Input - Output'!B129,"") -> 0 | G128: 0 | H128: 0 | I128: 0 | J128: 0 | K128: 0
A129: 480 | B129: 0.09564 | C129: 0.13902 | D129: 0.8129501 | E129: =IF(AND('Input - Output'!A130>=360,'Input - Output'!A130<=830),'Input - Output'!A130,831) -> 831 | F129: =IF(E129<>"",'Input - Output'!B130,"") -> 0 | G129: 0 | H129: 0 | I129: 0 | J129: 0 | K129: 0
A130: 481 | B130: 0.08729955 | C130: 0.1446764 | D130: 0.7705173 | E130: =IF(AND('Input - Output'!A131>=360,'Input - Output'!A131<=830),'Input - Output'!A131,831) -> 831 | F130: =IF(E130<>"",'Input - Output'!B131,"") -> 0 | G130: 0 | H130: 0 | I130: 0 | J130: 0 | K130: 0
A131: 482 | B131: 0.07930804 | C131: 0.1504693 | D131: 0.7294448 | E131: =IF(AND('Input - Output'!A132>=360,'Input - Output'!A132<=830),'Input - Output'!A132,831) -> 831 | F131: =IF(E131<>"",'Input - Output'!B132,"") -> 0 | G131: 0 | H131: 0 | I131: 0 | J131: 0 | K131: 0
A132: 483 | B132: 0.07171776 | C132: 0.1564619 | D132: 0.6899136 | E132: =IF(AND('Input - Output'!A133>=360,'Input - Output'!A133<=830),'Input - Output'!A133,831) -> 831 | F132: =IF(E132<>"",'Input - Output'!B133,"") -> 0 | G132: 0 | H132: 0 | I132: 0 | J132: 0 | K132: 0
A133: 484 | B133: 0.06458099 | C133: 0.1627177 | D133: 0.6521049 | E133: =IF(AND('Input - Output'!A134>=360,'Input - Output'!A134<=830),'Input - Output'!A134,831) -> 831 | F133: =IF(E133<>"",'Input - Output'!B134,"") -> 0 | G133: 0 | H133: 0 | I133: 0 | J133: 0 | K133: 0
A134: 485 | B134: 0.05795001 | C134: 0.1693 | D134: 0.6162 | E134: =IF(AND('Input - Output'!A135>=360,'Input - Output'!A135<=830),'Input - Output'!A135,831) -> 831 | F134: =IF(E134<>"",'Input - Output'!B135,"") -> 0 | G134: 0 | H134: 0 | I134: 0 | J134: 0 | K134: 0
A135: 486 | B135: 0.05186211 | C135: 0.1762431 | D135: 0.5823286 | E135: =IF(AND('Input - Output'!A136>=360,'Input - Output'!A136<=830),'Input - Output'!A136,831) -> 831 | F135: =IF(E135<>"",'Input - Output'!B136,"") -> 0 | G135: 0 | H135: 0 | I135: 0 | J135: 0 | K135: 0
A136: 487 | B136: 0.04628152 | C136: 0.1835581 | D136: 0.5504162 | E136: =IF(AND('Input - Output'!A137>=360,'Input - Output'!A137<=830),'Input - Output'!A137,831) -> 831 | F136: =IF(E136<>"",'Input - Output'!B137,"") -> 0 | G136: 0 | H136: 0 | I136: 0 | J136: 0 | K136: 0
A137: 488 | B137: 0.04115088 | C137: 0.1912735 | D137: 0.5203376 | E137: =IF(AND('Input - Output'!A138>=360,'Input - Output'!A138<=830),'Input - Output'!A138,831) -> 831 | F137: =IF(E137<>"",'Input - Output'!B138,"") -> 0 | G137: 0 | H137: =IF($E137<>0,TREND(OFFSET(B$9,MATCH($E137,$A$9:$A$480)-1,,2),OFFSET($A$9,MATCH($E137,$A$9:$A$480)-1,,2),$E137),0) -> 0 | I137: =IF($E137<>0,TREND(OFFSET(C$9,MATCH($E137,$A$9:$A$480)-1,,2),OFFSET($A$9,MATCH($E137,$A$9:$A$480)-1,,2),$E137),0) -> 0 | J137: =IF($E137<>0,TREND(OFFSET(D$9,MATCH($E137,$A$9:$A$480)-1,,2),OFFSET($A$9,MATCH($E137,$A$9:$A$480)-1,,2),$E137),0) -> 0 | K137: 0
A138: 489 | B138: 0.03641283 | C138: 0.199418 | D138: 0.4919673 | E138: =IF(AND('Input - Output'!A139>=360,'Input - Output'!A139<=830),'Input - Output'!A139,831) -> 831 | F138: =IF(E138<>"",'Input - Output'!B139,"") -> 0 | G138: =IF(F138<>0,F138/$F$6,0) -> 0 | H138: 0 | I138: 0 | J138: 0 | K138: =G138/$K$7 -> 0
A139: 490 | B139: 0.03201 | C139: 0.20802 | D139: 0.46518 | E139: =IF(AND('Input - Output'!A140>=360,'Input - Output'!A140<=830),'Input - Output'!A140,831) -> 831 | F139: =IF(E139<>"",'Input - Output'!B140,"") -> 0 | G139: 0 | H139: 0 | I139: 0 | J139: 0 | K139: 0
A140: 491 | B140: 0.0279172 | C140: 0.2171199 | D140: 0.4399246 | E140: =IF(AND('Input - Output'!A141>=360,'Input - Output'!A141<=830),'Input - Output'!A141,831) -> 831 | F140: =IF(E140<>"",'Input - Output'!B141,"") -> 0 | G140: 0 | H140: 0 | I140: 0 | J140: 0 | K140: 0
A141: 492 | B141: 0.0241444 | C141: 0.2267345 | D141: 0.4161836 | E141: =IF(AND('Input - Output'!A142>=360,'Input - Output'!A142<=830),'Input - Output'!A142,831) -> 831 | F141: =IF(E141<>"",'Input - Output'!B142,"") -> 0 | G141: 0 | H141: 0 | I141: 0 | J141: 0 | K141: 0
A142: 493 | B142: 0.020687 | C142: 0.2368571 | D142: 0.3938822 | E142: =IF(AND('Input - Output'!A143>=360,'Input - Output'!A143<=830),'Input - Output'!A143,831) -> 831 | F142: =IF(E142<>"",'Input - Output'!B143,"") -> 0 | G142: 0 | H142: 0 | I142: 0 | J142: 0 | K142: 0
A143: 494 | B143: 0.0175404 | C143: 0.2474812 | D143: 0.3729459 | E143: =IF(AND('Input - Output'!A144>=360,'Input - Output'!A144<=830),'Input - Output'!A144,831) -> 831 | F143: =IF(E143<>"",'Input - Output'!B144,"") -> 0 | G143: 0 | H143: 0 | I143: 0 | J143: 0 | K143: 0
A144: 495 | B144: 0.0147 | C144: 0.2586 | D144: 0.3533 | E144: =IF(AND('Input - Output'!A145>=360,'Input - Output'!A145<=830),'Input - Output'!A145,831) -> 831 | F144: =IF(E144<>"",'Input - Output'!B145,"") -> 0 | G144: 0 | H144: 0 | I144: 0 | J144: 0 | K144: 0
A145: 496 | B145: 0.01216179 | C145: 0.2701849 | D145: 0.3348578 | E145: =IF(AND('Input - Output'!A146>=360,'Input - Output'!A146<=830),'Input - Output'!A146,831) -> 831 | F145: =IF(E145<>"",'Input - Output'!B146,"") -> 0 | G145: 0 | H145: 0 | I145: 0 | J145: 0 | K145: 0
A146: 497 | B146: 0.00991996 | C146: 0.2822939 | D146: 0.3175521 | E146: =IF(AND('Input - Output'!A147>=360,'Input - Output'!A147<=830),'Input - Output'!A147,831) -> 831 | F146: =IF(E146<>"",'Input - Output'!B147,"") -> 0 | G146: 0 | H146: 0 | I146: 0 | J146: 0 | K146: 0
A147: 498 | B147: 0.00796724 | C147: 0.2950505 | D147: 0.3013375 | E147: =IF(AND('Input - Output'!A148>=360,'Input - Output'!A148<=830),'Input - Output'!A148,831) -> 831 | F147: =IF(E147<>"",'Input - Output'!B148,"") -> 0 | G147: 0 | H147: 0 | I147: 0 | J147: 0 | K147: 0
A148: 499 | B148: 0.006296346 | C148: 0.308578 | D148: 0.2861686 | E148: =IF(AND('Input - Output'!A149>=360,'Input - Output'!A149<=830),'Input - Output'!A149,831) -> 831 | F148: =IF(E148<>"",'Input - Output'!B149,"") -> 0 | G148: 0 | H148: 0 | I148: 0 | J148: 0 | K148: 0
A149: 500 | B149: 0.0049 | C149: 0.323 | D149: 0.272 | E149: =IF(AND('Input - Output'!A150>=360,'Input - Output'!A150<=830),'Input - Output'!A150,831) -> 831 | F149: =IF(E149<>"",'Input - Output'!B150,"") -> 0 | G149: 0 | H149: 0 | I149: 0 | J149: 0 | K149: 0
A150: 501 | B150: 0.003777173 | C150: 0.3384021 | D150: 0.2588171 | E150: =IF(AND('Input - Output'!A151>=360,'Input - Output'!A151<=830),'Input - Output'!A151,831) -> 831 | F150: =IF(E150<>"",'Input - Output'!B151,"") -> 0 | G150: 0 | H150: 0 | I150: 0 | J150: 0 | K150: 0
A151: 502 | B151: 0.00294532 | C151: 0.3546858 | D151: 0.2464838 | E151: =IF(AND('Input - Output'!A152>=360,'Input - Output'!A152<=830),'Input - Output'!A152,831) -> 831 | F151: =IF(E151<>"",'Input - Output'!B152,"") -> 0 | G151: 0 | H151: 0 | I151: 0 | J151: 0 | K151: 0
A152: 503 | B152: 0.00242488 | C152: 0.3716986 | D152: 0.2347718 | E152: =IF(AND('Input - Output'!A153>=360,'Input - Output'!A153<=830),'Input - Output'!A153,831) -> 831 | F152: =IF(E152<>"",'Input - Output'!B153,"") -> 0 | G152: 0 | H152: 0 | I152: 0 | J152: 0 | K152: 0
A153: 504 | B153: 0.002236293 | C153: 0.3892875 | D153: 0.2234533 | E153: =IF(AND('Input - Output'!A154>=360,'Input - Output'!A154<=830),'Input - Output'!A154,831) -> 831 | F153: =IF(E153<>"",'Input - Output'!B154,"") -> 0 | G153: 0 | H153: 0 | I153: 0 | J153: 0 | K153: 0
A154: 505 | B154: 0.0024 | C154: 0.4073 | D154: 0.2123 | E154: =IF(AND('Input - Output'!A155>=360,'Input - Output'!A155<=830),'Input - Output'!A155,831) -> 831 | F154: =IF(E154<>"",'Input - Output'!B155,"") -> 0 | G154: 0 | H154: 0 | I154: 0 | J154: 0 | K154: 0
A155: 506 | B155: 0.00292552 | C155: 0.4256299 | D155: 0.2011692 | E155: =IF(AND('Input - Output'!A156>=360,'Input - Output'!A156<=830),'Input - Output'!A156,831) -> 831 | F155: =IF(E155<>"",'Input - Output'!B156,"") -> 0 | G155: 0 | H155: 0 | I155: 0 | J155: 0 | K155: 0
A156: 507 | B156: 0.00383656 | C156: 0.4443096 | D156: 0.1901196 | E156: =IF(AND('Input - Output'!A157>=360,'Input - Output'!A157<=830),'Input - Output'!A157,831) -> 831 | F156: =IF(E156<>"",'Input - Output'!B157,"") -> 0 | G156: 0 | H156: 0 | I156: 0 | J156: 0 | K156: 0
A157: 508 | B157: 0.00517484 | C157: 0.4633944 | D157: 0.1792254 | E157: =IF(AND('Input - Output'!A158>=360,'Input - Output'!A158<=830),'Input - Output'!A158,831) -> 831 | F157: =IF(E157<>"",'Input - Output'!B158,"") -> 0 | G157: 0 | H157: 0 | I157: 0 | J157: 0 | K157: 0
A158: 509 | B158: 0.00698208 | C158: 0.4829395 | D158: 0.1685608 | E158: =IF(AND('Input - Output'!A159>=360,'Input - Output'!A159<=830),'Input - Output'!A159,831) -> 831 | F158: =IF(E158<>"",'Input - Output'!B159,"") -> 0 | G158: 0 | H158: 0 | I158: 0 | J158: 0 | K158: 0
A159: 510 | B159: 0.0093 | C159: 0.503 | D159: 0.1582 | E159: =IF(AND('Input - Output'!A160>=360,'Input - Output'!A160<=830),'Input - Output'!A160,831) -> 831 | F159: =IF(E159<>"",'Input - Output'!B160,"") -> 0 | G159: 0 | H159: 0 | I159: 0 | J159: 0 | K159: 0
A160: 511 | B160: 0.01214949 | C160: 0.5235693 | D160: 0.1481383 | E160: =IF(AND('Input - Output'!A161>=360,'Input - Output'!A161<=830),'Input - Output'!A161,831) -> 831 | F160: =IF(E160<>"",'Input - Output'!B161,"") -> 0 | G160: 0 | H160: 0 | I160: 0 | J160: 0 | K160: 0
A161: 512 | B161: 0.01553588 | C161: 0.544512 | D161: 0.1383758 | E161: =IF(AND('Input - Output'!A162>=360,'Input - Output'!A162<=830),'Input - Output'!A162,831) -> 831 | F161: =IF(E161<>"",'Input - Output'!B162,"") -> 0 | G161: 0 | H161: 0 | I161: 0 | J161: 0 | K161: 0
A162: 513 | B162: 0.01947752 | C162: 0.56569 | D162: 0.1289942 | E162: =IF(AND('Input - Output'!A163>=360,'Input - Output'!A163<=830),'Input - Output'!A163,831) -> 831 | F162: =IF(E162<>"",'Input - Output'!B163,"") -> 0 | G162: 0 | H162: 0 | I162: 0 | J162: 0 | K162: 0
A163: 514 | B163: 0.02399277 | C163: 0.5869653 | D163: 0.1200751 | E163: =IF(AND('Input - Output'!A164>=360,'Input - Output'!A164<=830),'Input - Output'!A164,831) -> 831 | F163: =IF(E163<>"",'Input - Output'!B164,"") -> 0 | G163: 0 | H163: 0 | I163: 0 | J163: 0 | K163: 0
A164: 515 | B164: 0.0291 | C164: 0.6082 | D164: 0.1117 | E164: =IF(AND('Input - Output'!A165>=360,'Input - Output'!A165<=830),'Input - Output'!A165,831) -> 831 | F164: =IF(E164<>"",'Input - Output'!B165,"") -> 0 | G164: 0 | H164: 0 | I164: 0 | J164: 0 | K164: 0
A165: 516 | B165: 0.03481485 | C165: 0.6293456 | D165: 0.1039048 | E165: =IF(AND('Input - Output'!A166>=360,'Input - Output'!A166<=830),'Input - Output'!A166,831) -> 831 | F165: =IF(E165<>"",'Input - Output'!B166,"") -> 0 | G165: 0 | H165: 0 | I165: 0 | J165: 0 | K165: 0
A166: 517 | B166: 0.04112016 | C166: 0.6503068 | D166: 0.09666748 | E166: =IF(AND('Input - Output'!A167>=360,'Input - Output'!A167<=830),'Input - Output'!A167,831) -> 831 | F166: =IF(E166<>"",'Input - Output'!B167,"") -> 0 | G166: 0 | H166: 0 | I166: 0 | J166: 0 | K166: 0
A167: 518 | B167: 0.04798504 | C167: 0.6708752 | D167: 0.08998272 | E167: =IF(AND('Input - Output'!A168>=360,'Input - Output'!A168<=830),'Input - Output'!A168,831) -> 831 | F167: =IF(E167<>"",'Input - Output'!B168,"") -> 0 | G167: 0 | H167: 0 | I167: 0 | J167: 0 | K167: 0
A168: 519 | B168: 0.05537861 | C168: 0.6908424 | D168: 0.08384531 | E168: =IF(AND('Input - Output'!A169>=360,'Input - Output'!A169<=830),'Input - Output'!A169,831) -> 831 | F168: =IF(E168<>"",'Input - Output'!B169,"") -> 0 | G168: 0 | H168: 0 | I168: 0 | J168: 0 | K168: 0
A169: 520 | B169: 0.06327 | C169: 0.71 | D169: 0.07824999 | E169: =IF(AND('Input - Output'!A170>=360,'Input - Output'!A170<=830),'Input - Output'!A170,831) -> 831 | F169: =IF(E169<>"",'Input - Output'!B170,"") -> 0 | G169: 0 | H169: 0 | I169: 0 | J169: 0 | K169: 0
A170: 521 | B170: 0.07163501 | C170: 0.7281852 | D170: 0.07320899 | E170: =IF(AND('Input - Output'!A171>=360,'Input - Output'!A171<=830),'Input - Output'!A171,831) -> 831 | F170: =IF(E170<>"",'Input - Output'!B171,"") -> 0 | G170: 0 | H170: 0 | I170: 0 | J170: 0 | K170: 0
A171: 522 | B171: 0.08046224 | C171: 0.7454636 | D171: 0.06867816 | E171: =IF(AND('Input - Output'!A172>=360,'Input - Output'!A172<=830),'Input - Output'!A172,831) -> 831 | F171: =IF(E171<>"",'Input - Output'!B172,"") -> 0 | G171: 0 | H171: 0 | I171: 0 | J171: 0 | K171: 0
A172: 523 | B172: 0.08973996 | C172: 0.7619694 | D172: 0.06456784 | E172: =IF(AND('Input - Output'!A173>=360,'Input - Output'!A173<=830),'Input - Output'!A173,831) -> 831 | F172: =IF(E172<>"",'Input - Output'!B173,"") -> 0 | G172: 0 | H172: 0 | I172: 0 | J172: 0 | K172: 0
A173: 524 | B173: 0.09945645 | C173: 0.7778368 | D173: 0.06078835 | E173: =IF(AND('Input - Output'!A174>=360,'Input - Output'!A174<=830),'Input - Output'!A174,831) -> 831 | F173: =IF(E173<>"",'Input - Output'!B174,"") -> 0 | G173: 0 | H173: 0 | I173: 0 | J173: 0 | K173: 0
A174: 525 | B174: 0.1096 | C174: 0.7932 | D174: 0.05725001 | E174: =IF(AND('Input - Output'!A175>=360,'Input - Output'!A175<=830),'Input - Output'!A175,831) -> 831 | F174: =IF(E174<>"",'Input - Output'!B175,"") -> 0 | G174: 0 | H174: 0 | I174: 0 | J174: 0 | K174: 0
A175: 526 | B175: 0.1201674 | C175: 0.8081104 | D175: 0.05390435 | E175: =IF(AND('Input - Output'!A176>=360,'Input - Output'!A176<=830),'Input - Output'!A176,831) -> 831 | F175: =IF(E175<>"",'Input - Output'!B176,"") -> 0 | G175: 0 | H175: 0 | I175: 0 | J175: 0 | K175: 0
A176: 527 | B176: 0.1311145 | C176: 0.8224962 | D176: 0.05074664 | E176: =IF(AND('Input - Output'!A177>=360,'Input - Output'!A177<=830),'Input - Output'!A177,831) -> 831 | F176: =IF(E176<>"",'Input - Output'!B177,"") -> 0 | G176: 0 | H176: 0 | I176: 0 | J176: 0 | K176: 0
A177: 528 | B177: 0.1423679 | C177: 0.8363068 | D177: 0.04775276 | E177: =IF(AND('Input - Output'!A178>=360,'Input - Output'!A178<=830),'Input - Output'!A178,831) -> 831 | F177: =IF(E177<>"",'Input - Output'!B178,"") -> 0 | G177: 0 | H177: 0 | I177: 0 | J177: 0 | K177: 0
A178: 529 | B178: 0.1538542 | C178: 0.8494916 | D178: 0.04489859 | E178: =IF(AND('Input - Output'!A179>=360,'Input - Output'!A179<=830),'Input - Output'!A179,831) -> 831 | F178: =IF(E178<>"",'Input - Output'!B179,"") -> 0 | G178: 0 | H178: 0 | I178: 0 | J178: 0 | K178: 0
A179: 530 | B179: 0.1655 | C179: 0.862 | D179: 0.04216 | E179: =IF(AND('Input - Output'!A180>=360,'Input - Output'!A180<=830),'Input - Output'!A180,831) -> 831 | F179: =IF(E179<>"",'Input - Output'!B180,"") -> 0 | G179: 0 | H179: 0 | I179: 0 | J179: 0 | K179: 0
A180: 531 | B180: 0.1772571 | C180: 0.8738108 | D180: 0.03950728 | E180: =IF(AND('Input - Output'!A181>=360,'Input - Output'!A181<=830),'Input - Output'!A181,831) -> 831 | F180: =IF(E180<>"",'Input - Output'!B181,"") -> 0 | G180: 0 | H180: 0 | I180: 0 | J180: 0 | K180: 0
A181: 532 | B181: 0.18914 | C181: 0.8849624 | D181: 0.03693564 | E181: =IF(AND('Input - Output'!A182>=360,'Input - Output'!A182<=830),'Input - Output'!A182,831) -> 831 | F181: =IF(E181<>"",'Input - Output'!B182,"") -> 0 | G181: 0 | H181: 0 | I181: 0 | J181: 0 | K181: 0
A182: 533 | B182: 0.2011694 | C182: 0.8954936 | D182: 0.03445836 | E182: =IF(AND('Input - Output'!A183>=360,'Input - Output'!A183<=830),'Input - Output'!A183,831) -> 831 | F182: =IF(E182<>"",'Input - Output'!B183,"") -> 0 | G182: 0 | H182: 0 | I182: 0 | J182: 0 | K182: 0
A183: 534 | B183: 0.2133658 | C183: 0.9054432 | D183: 0.03208872 | E183: =IF(AND('Input - Output'!A184>=360,'Input - Output'!A184<=830),'Input - Output'!A184,831) -> 831 | F183: =IF(E183<>"",'Input - Output'!B184,"") -> 0 | G183: 0 | H183: 0 | I183: 0 | J183: 0 | K183: 0
A184: 535 | B184: 0.2257499 | C184: 0.9148501 | D184: 0.02984 | E184: =IF(AND('Input - Output'!A185>=360,'Input - Output'!A185<=830),'Input - Output'!A185,831) -> 831 | F184: =IF(E184<>"",'Input - Output'!B185,"") -> 0 | G184: 0 | H184: 0 | I184: 0 | J184: 0 | K184: 0
A185: 536 | B185: 0.2383209 | C185: 0.9237348 | D185: 0.02771181 | E185: =IF(AND('Input - Output'!A186>=360,'Input - Output'!A186<=830),'Input - Output'!A186,831) -> 831 | F185: =IF(E185<>"",'Input - Output'!B186,"") -> 0 | G185: 0 | H185: 0 | I185: 0 | J185: 0 | K185: 0
A186: 537 | B186: 0.2510668 | C186: 0.9320924 | D186: 0.02569444 | E186: =IF(AND('Input - Output'!A187>=360,'Input - Output'!A187<=830),'Input - Output'!A187,831) -> 831 | F186: =IF(E186<>"",'Input - Output'!B187,"") -> 0 | G186: 0 | H186: 0 | I186: 0 | J186: 0 | K186: 0
A187: 538 | B187: 0.2639922 | C187: 0.9399226 | D187: 0.02378716 | E187: =IF(AND('Input - Output'!A188>=360,'Input - Output'!A188<=830),'Input - Output'!A188,831) -> 831 | F187: =IF(E187<>"",'Input - Output'!B188,"") -> 0 | G187: 0 | H187: 0 | I187: 0 | J187: 0 | K187: 0
A188: 539 | B188: 0.2771017 | C188: 0.9472252 | D188: 0.02198925 | E188: =IF(AND('Input - Output'!A189>=360,'Input - Output'!A189<=830),'Input - Output'!A189,831) -> 831 | F188: =IF(E188<>"",'Input - Output'!B189,"") -> 0 | G188: 0 | H188: 0 | I188: 0 | J188: 0 | K188: 0
A189: 540 | B189: 0.2904 | C189: 0.954 | D189: 0.0203 | E189: =IF(AND('Input - Output'!A190>=360,'Input - Output'!A190<=830),'Input - Output'!A190,831) -> 831 | F189: =IF(E189<>"",'Input - Output'!B190,"") -> 0 | G189: 0 | H189: 0 | I189: 0 | J189: 0 | K189: 0
A190: 541 | B190: 0.3038912 | C190: 0.9602561 | D190: 0.01871805 | E190: =IF(AND('Input - Output'!A191>=360,'Input - Output'!A191<=830),'Input - Output'!A191,831) -> 831 | F190: =IF(E190<>"",'Input - Output'!B191,"") -> 0 | G190: 0 | H190: 0 | I190: 0 | J190: 0 | K190: 0
A191: 542 | B191: 0.3175726 | C191: 0.9660074 | D191: 0.01724036 | E191: =IF(AND('Input - Output'!A192>=360,'Input - Output'!A192<=830),'Input - Output'!A192,831) -> 831 | F191: =IF(E191<>"",'Input - Output'!B192,"") -> 0 | G191: 0 | H191: 0 | I191: 0 | J191: 0 | K191: 0
A192: 543 | B192: 0.3314384 | C192: 0.9712606 | D192: 0.01586364 | E192: =IF(AND('Input - Output'!A193>=360,'Input - Output'!A193<=830),'Input - Output'!A193,831) -> 831 | F192: =IF(E192<>"",'Input - Output'!B193,"") -> 0 | G192: 0 | H192: 0 | I192: 0 | J192: 0 | K192: 0
A193: 544 | B193: 0.3454828 | C193: 0.9760225 | D193: 0.01458461 | E193: =IF(AND('Input - Output'!A194>=360,'Input - Output'!A194<=830),'Input - Output'!A194,831) -> 831 | F193: =IF(E193<>"",'Input - Output'!B194,"") -> 0 | G193: 0 | H193: 0 | I193: 0 | J193: 0 | K193: 0
A194: 545 | B194: 0.3597 | C194: 0.9803 | D194: 0.0134 | E194: =IF(AND('Input - Output'!A195>=360,'Input - Output'!A195<=830),'Input - Output'!A195,831) -> 831 | F194: =IF(E194<>"",'Input - Output'!B195,"") -> 0 | G194: 0 | H194: 0 | I194: 0 | J194: 0 | K194: 0
A195: 546 | B195: 0.3740839 | C195: 0.9840924 | D195: 0.01230723 | E195: =IF(AND('Input - Output'!A196>=360,'Input - Output'!A196<=830),'Input - Output'!A196,831) -> 831 | F195: =IF(E195<>"",'Input - Output'!B196,"") -> 0 | G195: 0 | H195: 0 | I195: 0 | J195: 0 | K195: 0
A196: 547 | B196: 0.3886396 | C196: 0.9874182 | D196: 0.01130188 | E196: =IF(AND('Input - Output'!A197>=360,'Input - Output'!A197<=830),'Input - Output'!A197,831) -> 831 | F196: =IF(E196<>"",'Input - Output'!B197,"") -> 0 | G196: 0 | H196: 0 | I196: 0 | J196: 0 | K196: 0
A197: 548 | B197: 0.4033784 | C197: 0.9903128 | D197: 0.01037792 | E197: =IF(AND('Input - Output'!A198>=360,'Input - Output'!A198<=830),'Input - Output'!A198,831) -> 831 | F197: =IF(E197<>"",'Input - Output'!B198,"") -> 0 | G197: 0 | H197: 0 | I197: 0 | J197: 0 | K197: 0
A198: 549 | B198: 0.4183115 | C198: 0.9928116 | D198: 0.009529306 | E198: =IF(AND('Input - Output'!A199>=360,'Input - Output'!A199<=830),'Input - Output'!A199,831) -> 831 | F198: =IF(E198<>"",'Input - Output'!B199,"") -> 0 | G198: 0 | H198: 0 | I198: 0 | J198: 0 | K198: 0
A199: 550 | B199: 0.4334499 | C199: 0.9949501 | D199: 0.008749999 | E199: =IF(AND('Input - Output'!A200>=360,'Input - Output'!A200<=830),'Input - Output'!A200,831) -> 831 | F199: =IF(E199<>"",'Input - Output'!B200,"") -> 0 | G199: 0 | H199: 0 | I199: 0 | J199: 0 | K199: 0
A200: 551 | B200: 0.4487953 | C200: 0.9967108 | D200: 0.0080352 | E200: =IF(AND('Input - Output'!A201>=360,'Input - Output'!A201<=830),'Input - Output'!A201,831) -> 831 | F200: =IF(E200<>"",'Input - Output'!B201,"") -> 0 | G200: 0 | H200: 0 | I200: 0 | J200: 0 | K200: 0
A201: 552 | B201: 0.464336 | C201: 0.9980983 | D201: 0.0073816 | E201: =IF(AND('Input - Output'!A202>=360,'Input - Output'!A202<=830),'Input - Output'!A202,831) -> 831 | F201: =IF(E201<>"",'Input - Output'!B202,"") -> 0 | G201: 0 | H201: =IF($E201<>0,TREND(OFFSET(B$9,MATCH($E201,$A$9:$A$480)-1,,2),OFFSET($A$9,MATCH($E201,$A$9:$A$480)-1,,2),$E201),0) -> 0 | I201: =IF($E201<>0,TREND(OFFSET(C$9,MATCH($E201,$A$9:$A$480)-1,,2),OFFSET($A$9,MATCH($E201,$A$9:$A$480)-1,,2),$E201),0) -> 0 | J201: =IF($E201<>0,TREND(OFFSET(D$9,MATCH($E201,$A$9:$A$480)-1,,2),OFFSET($A$9,MATCH($E201,$A$9:$A$480)-1,,2),$E201),0) -> 0 | K201: 0
A202: 553 | B202: 0.480064 | C202: 0.999112 | D202: 0.0067854 | E202: =IF(AND('Input - Output'!A203>=360,'Input - Output'!A203<=830),'Input - Output'!A203,831) -> 831 | F202: =IF(E202<>"",'Input - Output'!B203,"") -> 0 | G202: =IF(F202<>0,F202/$F$6,0) -> 0 | H202: 0 | I202: 0 | J202: 0 | K202: =G202/$K$7 -> 0
... 282 more rows

Sheet Reference (hidden)
B1: =IF('CIE1931 1-nm'!J5>0,'CIE1931 1-nm'!J5,998) -> 5455 | C1: CCT test source
B2: =3.741771E-16*0.000000000001 -> 3.741771e-28 | C2: Constants for Planckian Locus
B3: 0.014388
B4: 0.9358308541
A5: X | C5: =SUMPRODUCT($C$9:$C$479,'CIE1931 1-nm'!$B$9:$B$479) -> 95.73840973 | D5: x | E5: y | F5: CCT | G5: Duv
A6: Y | B6: =IF(B1<5000,SUMPRODUCT(B9:B479,'CIE1931 1-nm'!C9:C479)/100,1) -> 1 | C6: =SUMPRODUCT($C$9:$C$479,'CIE1931 1-nm'!$C$9:$C$479) -> 100 | D6: =C5/SUM(C5:C7) -> 0.3335894255 | E6: =C6/SUM(C5:C7) -> 0.3484384443 | F6: 5454 | G6: 0.0032 | H6: Y | I6: =IF(B1>=5000,SUMPRODUCT(I9:I479,'CIE1931 1-nm'!C9:C479)/100,1) -> 105.0857048
A7: Z | C7: =SUMPRODUCT($C$9:$C$479,'CIE1931 1-nm'!$D$9:$D$479) -> 91.25632819
A8: Wavelength (nm) | B8: Planck's Law | C8: Ref Illuminant | D8: S0 | E8: S1 | F8: S2 | I8: Illuminant D
A9: 360 | B9: =$B$2/((A9*0.000000001)^5)/(EXP($B$3/(A9*0.000000001*$B$1))-1) -> 40.73272389 | C9: =IF('CIE1931 1-nm'!$J$5>0,IF($B$1<5000,B9/$B$6,I9/$I$6),$B$4) -> 0.2847670388 | D9: 61.5 | E9: 38 | F9: 5.3 | I9: =D9+E9*H$20+F9*H$21 -> 29.92494497
A10: 361 | B10: =$B$2/((A10*0.000000001)^5)/(EXP($B$3/(A10*0.000000001*$B$1))-1) -> 40.99585568 | C10: =IF('CIE1931 1-nm'!$J$5>0,IF($B$1<5000,B10/$B$6,I10/$I$6),$B$4) -> 0.2882069471 | D10: 62.23 | E10: 38.44 | F10: 5.38 | G10: 4000-7000K | I10: =D10+E10*H$20+F10*H$21 -> 30.28643016
A11: 362 | B11: 41.25765219 | C11: =IF('CIE1931 1-nm'!$J$5>0,IF($B$1<5000,B11/$B$6,I11/$I$6),$B$4) -> 0.2916468554 | D11: 62.96 | E11: 38.88 | F11: 5.46 | G11: XD= | H11: =-4.607*10^9/B1^3+2.9678*10^6/B1^2+0.09911*10^3/B1+0.244063 -> 0.3335846764 | I11: 30.64791535
A12: 363 | B12: 41.518096 | C12: =IF('CIE1931 1-nm'!$J$5>0,IF($B$1<5000,B12/$B$6,I12/$I$6),$B$4) -> 0.2950867637 | D12: 63.69 | E12: 39.32 | F12: 5.54 | I12: 31.00940053
A13: 364 | B13: 41.7771701 | C13: =IF('CIE1931 1-nm'!$J$5>0,IF($B$1<5000,B13/$B$6,I13/$I$6),$B$4) -> 0.298526672 | D13: 64.42 | E13: 39.76 | F13: 5.62 | G13: 7000-25000K | I13: 31.37088572
A14: 365 | B14: 42.03485788 | C14: =IF('CIE1931 1-nm'!$J$5>0,IF($B$1<5000,B14/$B$6,I14/$I$6),$B$4) -> 0.3019665803 | D14: 65.15 | E14: 40.2 | F14: 5.7 | G14: XD= | H14: =-2.0064*10^9/B1^3+1.9018*10^6/B1^2+0.24748*10^3/B1+0.23704 -> 0.3339580908 | I14: 31.73237091
A15: 366 | B15: 42.29114309 | C15: =IF('CIE1931 1-nm'!$J$5>0,IF($B$1<5000,B15/$B$6,I15/$I$6),$B$4) -> 0.3054064885 | D15: 65.88 | E15: 40.64 | F15: 5.78 | I15: 32.0938561
A16: 367 | B16: 42.54600991 | C16: =IF('CIE1931 1-nm'!$J$5>0,IF($B$1<5000,B16/$B$6,I16/$I$6),$B$4) -> 0.3088463968 | D16: 66.61 | E16: 41.08 | F16: 5.86 | G16: Automatic selection | I16: 32.45534128
A17: 368 | B17: 42.79944288 | C17: =IF('CIE1931 1-nm'!$J$5>0,IF($B$1<5000,B17/$B$6,I17/$I$6),$B$4) -> 0.3122863051 | D17: 67.34 | E17: 41.52 | F17: 5.94 | G17: XD= | H17: =IF(B1<7000,H11,H14) -> 0.3335846764 | I17: 32.81682647
A18: 369 | B18: 43.05142694 | C18: =IF('CIE1931 1-nm'!$J$5>0,IF($B$1<5000,B18/$B$6,I18/$I$6),$B$4) -> 0.3157262134 | D18: 68.07 | E18: 41.96 | F18: 6.02 | G18: YD= | H18: =-3*H17^2+2.87*H17-0.275 -> 0.3485518123 | I18: 33.17831166
A19: 370 | B19: 43.3019474 | C19: =IF('CIE1931 1-nm'!$J$5>0,IF($B$1<5000,B19/$B$6,I19/$I$6),$B$4) -> 0.3191661217 | D19: 68.8 | E19: 42.4 | F19: 6.1 | I19: 33.53979684
A20: 371 | B20: 43.55098996 | C20: =IF('CIE1931 1-nm'!$J$5>0,IF($B$1<5000,B20/$B$6,I20/$I$6),$B$4) -> 0.3174909836 | D20: 68.26 | E20: 42.01 | F20: 5.79 | G20: M1= | H20: =(-1.3515-1.7703*H17+5.9114*H18)/(0.0241+0.2562*H17-0.7341*H18) -> -0.8091467456 | I20: 33.36376377
A21: 372 | B21: 43.79854069 | C21: =IF('CIE1931 1-nm'!$J$5>0,IF($B$1<5000,B21/$B$6,I21/$I$6),$B$4) -> 0.3158158454 | D21: 67.72 | E21: 41.62 | F21: 5.48 | G21: M2= | H21: =(0.03-31.4424*H17+30.0717*H18)/(0.0241+0.2562*H17-0.7341*H18) -> -0.1561280562 | I21: 33.1877307
A22: 373 | B22: 44.04458604 | C22: =IF('CIE1931 1-nm'!$J$5>0,IF($B$1<5000,B22/$B$6,I22/$I$6),$B$4) -> 0.3141407073 | D22: 67.18 | E22: 41.23 | F22: 5.17 | I22: 33.01169763
A23: 374 | B23: 44.28911283 | C23: =IF('CIE1931 1-nm'!$J$5>0,IF($B$1<5000,B23/$B$6,I23/$I$6),$B$4) -> 0.3124655692 | D23: 66.64 | E23: 40.84 | F23: 4.86 | I23: 32.83566456
A24: 375 | B24: 44.53210825 | C24: =IF('CIE1931 1-nm'!$J$5>0,IF($B$1<5000,B24/$B$6,I24/$I$6),$B$4) -> 0.310790431 | D24: 66.1 | E24: 40.45 | F24: 4.55 | I24: 32.65963149
A25: 376 | B25: 44.77355986 | C25: =IF('CIE1931 1-nm'!$J$5>0,IF($B$1<5000,B25/$B$6,I25/$I$6),$B$4) -> 0.3091152929 | D25: 65.56 | E25: 40.06 | F25: 4.24 | I25: 32.48359841
A26: 377 | B26: 45.01345556 | C26: =IF('CIE1931 1-nm'!$J$5>0,IF($B$1<5000,B26/$B$6,I26/$I$6),$B$4) -> 0.3074401548 | D26: 65.02 | E26: 39.67 | F26: 3.93 | I26: 32.30756534
A27: 378 | B27: 45.25178365 | C27: =IF('CIE1931 1-nm'!$J$5>0,IF($B$1<5000,B27/$B$6,I27/$I$6),$B$4) -> 0.3057650166 | D27: 64.48 | E27: 39.28 | F27: 3.62 | I27: 32.13153227
A28: 379 | B28: 45.48853275 | C28: =IF('CIE1931 1-nm'!$J$5>0,IF($B$1<5000,B28/$B$6,I28/$I$6),$B$4) -> 0.3040898785 | D28: 63.94 | E28: 38.89 | F28: 3.31 | I28: 31.9554992
A29: 380 | B29: 45.72369185 | C29: =IF('CIE1931 1-nm'!$J$5>0,IF($B$1<5000,B29/$B$6,I29/$I$6),$B$4) -> 0.3024147403 | D29: 63.4 | E29: 38.5 | F29: 3 | I29: 31.77946613
A30: 381 | B30: 45.9572503 | C30: =IF('CIE1931 1-nm'!$J$5>0,IF($B$1<5000,B30/$B$6,I30/$I$6),$B$4) -> 0.3076609764 | D30: 63.64 | E30: 38.15 | F30: 2.82 | I30: 32.33077054
A31: 382 | B31: 46.18919777 | C31: =IF('CIE1931 1-nm'!$J$5>0,IF($B$1<5000,B31/$B$6,I31/$I$6),$B$4) -> 0.3129072124 | D31: 63.88 | E31: 37.8 | F31: 2.64 | I31: 32.88207495
A32: 383 | B32: 46.4195243 | C32: =IF('CIE1931 1-nm'!$J$5>0,IF($B$1<5000,B32/$B$6,I32/$I$6),$B$4) -> 0.3181534484 | D32: 64.12 | E32: 37.45 | F32: 2.46 | I32: 33.43337936
A33: 384 | B33: 46.64822025 | C33: =IF('CIE1931 1-nm'!$J$5>0,IF($B$1<5000,B33/$B$6,I33/$I$6),$B$4) -> 0.3233996845 | D33: 64.36 | E33: 37.1 | F33: 2.28 | I33: 33.98468377
A34: 385 | B34: 46.87527635 | C34: =IF('CIE1931 1-nm'!$J$5>0,IF($B$1<5000,B34/$B$6,I34/$I$6),$B$4) -> 0.3286459205 | D34: 64.6 | E34: 36.75 | F34: 2.1 | I34: 34.53598818
A35: 386 | B35: 47.10068362 | C35: =IF('CIE1931 1-nm'!$J$5>0,IF($B$1<5000,B35/$B$6,I35/$I$6),$B$4) -> 0.3338921565 | D35: 64.84 | E35: 36.4 | F35: 1.92 | I35: 35.08729259
A36: 387 | B36: 47.32443345 | C36: =IF('CIE1931 1-nm'!$J$5>0,IF($B$1<5000,B36/$B$6,I36/$I$6),$B$4) -> 0.3391383926 | D36: 65.08 | E36: 36.05 | F36: 1.74 | I36: 35.638597
A37: 388 | B37: 47.54651752 | C37: =IF('CIE1931 1-nm'!$J$5>0,IF($B$1<5000,B37/$B$6,I37/$I$6),$B$4) -> 0.3443846286 | D37: 65.32 | E37: 35.7 | F37: 1.56 | I37: 36.18990142
A38: 389 | B38: 47.76692788 | C38: =IF('CIE1931 1-nm'!$J$5>0,IF($B$1<5000,B38/$B$6,I38/$I$6),$B$4) -> 0.3496308647 | D38: 65.56 | E38: 35.35 | F38: 1.38 | I38: 36.74120583
A39: 390 | B39: 47.98565686 | C39: =IF('CIE1931 1-nm'!$J$5>0,IF($B$1<5000,B39/$B$6,I39/$I$6),$B$4) -> 0.3548771007 | D39: 65.8 | E39: 35 | F39: 1.2 | I39: 37.29251024
A40: 391 | B40: 48.20269712 | C40: =IF('CIE1931 1-nm'!$J$5>0,IF($B$1<5000,B40/$B$6,I40/$I$6),$B$4) -> 0.3763474443 | D40: 68.7 | E40: 35.84 | F40: 0.97 | I40: 39.54873642
A41: 392 | B41: 48.41804164 | C41: =IF('CIE1931 1-nm'!$J$5>0,IF($B$1<5000,B41/$B$6,I41/$I$6),$B$4) -> 0.3978177878 | D41: 71.6 | E41: 36.68 | F41: 0.74 | I41: 41.80496261
A42: 393 | B42: 48.6316837 | C42: =IF('CIE1931 1-nm'!$J$5>0,IF($B$1<5000,B42/$B$6,I42/$I$6),$B$4) -> 0.4192881314 | D42: 74.5 | E42: 37.52 | F42: 0.51 | I42: 44.0611888
A43: 394 | B43: 48.84361689 | C43: =IF('CIE1931 1-nm'!$J$5>0,IF($B$1<5000,B43/$B$6,I43/$I$6),$B$4) -> 0.440758475 | D43: 77.4 | E43: 38.36 | F43: 0.28 | I43: 46.31741498
A44: 395 | B44: 49.05383511 | C44: =IF('CIE1931 1-nm'!$J$5>0,IF($B$1<5000,B44/$B$6,I44/$I$6),$B$4) -> 0.4622288186 | D44: 80.3 | E44: 39.2 | F44: 0.05 | I44: 48.57364117
A45: 396 | B45: 49.26233254 | C45: =IF('CIE1931 1-nm'!$J$5>0,IF($B$1<5000,B45/$B$6,I45/$I$6),$B$4) -> 0.4836991621 | D45: 83.2 | E45: 40.04 | F45: -0.18 | I45: 50.82986736
A46: 397 | B46: 49.46910369 | C46: =IF('CIE1931 1-nm'!$J$5>0,IF($B$1<5000,B46/$B$6,I46/$I$6),$B$4) -> 0.5051695057 | D46: 86.1 | E46: 40.88 | F46: -0.41 | I46: 53.08609354
A47: 398 | B47: 49.67414331 | C47: =IF('CIE1931 1-nm'!$J$5>0,IF($B$1<5000,B47/$B$6,I47/$I$6),$B$4) -> 0.5266398493 | D47: 89 | E47: 41.72 | F47: -0.64 | I47: 55.34231973
A48: 399 | B48: 49.8774465 | C48: =IF('CIE1931 1-nm'!$J$5>0,IF($B$1<5000,B48/$B$6,I48/$I$6),$B$4) -> 0.5481101929 | D48: 91.9 | E48: 42.56 | F48: -0.87 | I48: 57.59854592
A49: 400 | B49: 50.07900858 | C49: =IF('CIE1931 1-nm'!$J$5>0,IF($B$1<5000,B49/$B$6,I49/$I$6),$B$4) -> 0.5695805364 | D49: 94.8 | E49: 43.4 | F49: -1.1 | I49: 59.8547721
A50: 401 | B50: 50.27882521 | C50: =IF('CIE1931 1-nm'!$J$5>0,IF($B$1<5000,B50/$B$6,I50/$I$6),$B$4) -> 0.5767744717 | D50: 95.8 | E50: 43.69 | F50: -1.04 | I50: 60.61075186
A51: 402 | B51: 50.47689229 | C51: =IF('CIE1931 1-nm'!$J$5>0,IF($B$1<5000,B51/$B$6,I51/$I$6),$B$4) -> 0.583968407 | D51: 96.8 | E51: 43.98 | F51: -0.98 | I51: 61.36673163
A52: 403 | B52: 50.673206 | C52: =IF('CIE1931 1-nm'!$J$5>0,IF($B$1<5000,B52/$B$6,I52/$I$6),$B$4) -> 0.5911623423 | D52: 97.8 | E52: 44.27 | F52: -0.92 | I52: 62.12271139
A53: 404 | B53: 50.86776281 | C53: =IF('CIE1931 1-nm'!$J$5>0,IF($B$1<5000,B53/$B$6,I53/$I$6),$B$4) -> 0.5983562776 | D53: 98.8 | E53: 44.56 | F53: -0.86 | I53: 62.87869115
A54: 405 | B54: 51.06055942 | C54: =IF('CIE1931 1-nm'!$J$5>0,IF($B$1<5000,B54/$B$6,I54/$I$6),$B$4) -> 0.6055502129 | D54: 99.8 | E54: 44.85 | F54: -0.8 | I54: 63.63467091
A55: 406 | B55: 51.25159283 | C55: =IF('CIE1931 1-nm'!$J$5>0,IF($B$1<5000,B55/$B$6,I55/$I$6),$B$4) -> 0.6127441482 | D55: 100.8 | E55: 45.14 | F55: -0.74 | I55: 64.39065067
A56: 407 | B56: 51.44086028 | C56: =IF('CIE1931 1-nm'!$J$5>0,IF($B$1<5000,B56/$B$6,I56/$I$6),$B$4) -> 0.6199380835 | D56: 101.8 | E56: 45.43 | F56: -0.68 | I56: 65.14663043
A57: 408 | B57: 51.62835927 | C57: =IF('CIE1931 1-nm'!$J$5>0,IF($B$1<5000,B57/$B$6,I57/$I$6),$B$4) -> 0.6271320188 | D57: 102.8 | E57: 45.72 | F57: -0.62 | I57: 65.90261019
A58: 409 | B58: 51.81408754 | C58: =IF('CIE1931 1-nm'!$J$5>0,IF($B$1<5000,B58/$B$6,I58/$I$6),$B$4) -> 0.6343259541 | D58: 103.8 | E58: 46.01 | F58: -0.56 | I58: 66.65858995
A59: 410 | B59: 51.99804311 | C59: =IF('CIE1931 1-nm'!$J$5>0,IF($B$1<5000,B59/$B$6,I59/$I$6),$B$4) -> 0.6415198894 | D59: 104.8 | E59: 46.3 | F59: -0.5 | I59: 67.41456971
A60: 411 | B60: 52.1802242 | C60: =IF('CIE1931 1-nm'!$J$5>0,IF($B$1<5000,B60/$B$6,I60/$I$6),$B$4) -> 0.6444443383 | D60: 104.91 | E60: 46.06 | F60: -0.52 | I60: 67.72188749
